Workbook

Sheet Entries
A1: Name | B1: College | C1: Gender | D1: Bow | E1: Level | F1: Face | G1: Points | H1: IV | K1: List of IVs
C2: F | D2: Barebow | E2: Intermediate | F2: 60cm
C3: M | D3: Compound | E3: Guest | F3: 40cm
D4: Recurve | E4: Advanced | F4: 3 spot
E5: Beginner
A6: Aaron Downes | B6: GMIT | C6: M | D6: recurve | E6: intermediate | G6: 242 | H6: DCU | K6: DCU IV
A7: Aaron Downes | B7: GMIT | C7: M | D7: Recurve | E7: Intermediate | G7: 88 | H7: UCD/ITC | K7: UCD/ITC IV
A8: Aaron Downes | B8: GMIT | C8: M | D8: Recurve | E8: Intermediate | G8: 72 | H8: DkIT | K8: DkIT IV
A9: Aaron Downes | B9: GMIT | C9: M | D9: Recurve | E9: Intermediate | G9: 155 | H9: NUIM/GMIT | K9: NUIM/GMIT IV
A10: Aaron downes | B10: GMIT | C10: M | D10: Recurve | E10: Intermediate | G10: 156 | H10: NUIG | K10: NUIG IV
A11: Aaron downes | B11: GMIT | C11: M | D11: recurve | E11: Intermediate | G11: 245 | H11: UL | K11: UL IV
A12: Abigail Miller | B12: NUIG | C12: F | D12: Barebow | E12: Beginner | G12: 258 | H12: NUIM/GMIT
A13: Adam Garton | B13: DIT | C13: M | D13: Recurve | E13: Advanced | G13: 475 | H13: DCU | K13: Completed Ivs
A14: Adam Garton | B14: DIT | C14: M | D14: Recurve | E14: Advanced | G14: 486 | H14: UCD/ITC | K14: DCU
A15: Adam Garton | B15: DIT | C15: M | D15: Recurve | E15: Advanced | G15: 485 | H15: NUIM/GMIT | K15: UCD/ITC
A16: Adam Garton | B16: DIT | C16: M | D16: Recurve | E16: Advanced | G16: 437 | H16: NUIG | K16: DkIT
A17: Adam Garton | B17: DIT | C17: M | D17: Recurve | E17: Advanced | G17: 478 | H17: UL | K17: NUIM/GMIT
A18: Adam McSweeney | B18: DCU | C18: M | D18: Recurve | E18: advanced | G18: 554 | H18: UL | K18: NUIG
A19: Adam McSweeney | B19: DCU | C19: M | D19: Recurve | E19: Advanced | G19: 547 | H19: DCU | K19: UL
A20: Adam McSweeney | B20: DCU | C20: M | D20: Recurve | E20: Advanced | G20: 547 | H20: UCD/ITC | K20: =COUNTA(K14:K19) -> 6
A21: Adam McSweeney | B21: DCU | C21: M | D21: Recurve | E21: Advanced | G21: 544 | H21: DkIT
A22: Adam McSweeney | B22: DCU | C22: M | D22: Recurve | E22: Advanced | G22: 538 | H22: NUIM/GMIT
A23: Adam McSweeney | B23: DCU | C23: M | D23: Recurve | E23: Advanced | G23: 530 | H23: NUIG
A24: Adin Middleton | B24: ITC | C24: M | D24: Recurve | E24: Intermediate | G24: 474 | H24: DCU
A25: Adin Middleton | B25: ITC | C25: M | D25: Recurve | E25: Intermediate | G25: 400 | H25: UCD/ITC
A26: Adin Middleton | B26: ITC | C26: M | D26: Recurve | E26: Intermediate | G26: 467 | H26: DkIT
A27: Adin Middleton | B27: ITC | C27: M | D27: Recurve | E27: Intermediate | G27: 489 | H27: NUIG
A28: Adin Middleton | B28: ITC | C28: M | D28: Recurve | E28: Intermediate | G28: 484 | H28: UL
A29: Adria Quinn | B29: GMITC | C29: F | D29: Compound | E29: advanced | G29: 528 | H29: DCU
A30: Adria Quinn | B30: GMITC | C30: F | D30: Compound | E30: Advanced | G30: 533 | H30: UCD/ITC
A31: Adria Quinn | B31: GMITC | C31: F | D31: Compound | E31: Advanced | G31: 512 | H31: DkIT
A32: Aida Alexandru | B32: NUIM | C32: F | D32: Recurve | E32: Advanced | G32: 505 | H32: DCU
A33: Aida Alexandru | B33: NUIM | C33: F | D33: Recurve | E33: Advanced | G33: 521 | H33: UCD/ITC
A34: Aida Alexandru | B34: NUIM | C34: F | D34: Recurve | E34: Advanced | G34: 525 | H34: DkIT
A35: Aida Alexandru | B35: NUIM | C35: F | D35: Recurve | E35: Advanced | G35: 492 | H35: NUIM/GMIT
A36: Aida Alexandru | B36: NUIM | C36: F | D36: Recurve | E36: Advanced | G36: 485 | H36: NUIG
A37: Aida Alexandru | B37: NUIM | C37: F | D37: Recurve | E37: Advanced | G37: 448 | H37: UL
A38: Adin Middleton | B38: ITC | C38: M | D38: Recurve | E38: Intermediate | G38: 496 | H38: NUIM/GMIT
A39: Ailish Dennehy | B39: UCD | C39: F | D39: Recurve | E39: Intermediate | G39: 474 | H39: DCU
A40: Ailish Dennehy | B40: UCD | C40: F | D40: Recurve | E40: Intermediate | G40: 429 | H40: UCD/ITC
A41: Ailish Dennehy | B41: UCD | C41: F | D41: Recurve | E41: Intermediate | G41: 486 | H41: DkIT
A42: Ailish Dennehy | B42: UCD | C42: F | D42: Recurve | E42: Intermediate | G42: 457 | H42: NUIM/GMIT
A43: Ailish Dennehy | B43: UCD | C43: F | D43: Recurve | E43: Intermediate | G43: 479 | H43: NUIG
A44: Ailish Dennehy | B44: UCD | C44: F | D44: Recurve | E44: Intermediate | G44: 494 | H44: UL
A45: Aiman Rahim | B45: RCSI | C45: M | D45: Barebow | E45: Beginner | G45: 331 | H45: DCU
A46: Aiman Rahim | B46: RCSI | C46: M | D46: Barebow | E46: Beginner | G46: 216 | H46: UL
A47: Aisling Brady | B47: NUIG | C47: F | D47: Recurve | E47: Beginner | G47: 402 | H47: DkIT
A48: Aisling Brady | B48: NUIG | C48: F | D48: Recurve | E48: Beginner | G48: 260 | H48: NUIM/GMIT
A49: Aisling Brady | B49: NUIG | C49: F | D49: Recurve | E49: Beginner | G49: 280 | H49: NUIG
A50: Aisling Brady | B50: NUIG | C50: F | D50: Recurve | E50: Beginner | G50: 271 | H50: UL
A51: Aisling Finn | B51: NUIG | C51: F | D51: Recurve | E51: Advanced | G51: 519 | H51: DkIT
A52: Aisling Finn | B52: NUIG | C52: F | D52: Recurve | E52: Advanced | G52: 501 | H52: NUIG
A53: Alan Boylan | B53: DIT | C53: M | D53: Recurve | E53: Beginner | G53: 421 | H53: DCU
A54: Alan Gibbons | B54: GMITC | C54: M | D54: Barebow | E54: Beginner | G54: 414 | H54: DkIT
A55: Alan Gibbons | B55: GMITC | C55: M | D55: barebow | E55: Beginner | G55: 367 | H55: UL
A56: Alan Sheppard | B56: ITC | C56: M | D56: Barebow | E56: Beginner | G56: 248 | H56: UCD/ITC
A57: Alan Sheppard | B57: ITC | C57: M | D57: Barebow | E57: Beginner | G57: 187 | H57: DCU
A58: alannah redington | B58: UL | C58: F | D58: recurve | E58: beginner | G58: 356 | H58: DCU
A59: Alannah Redington | B59: UL | C59: F | D59: Recurve | E59: Beginner | G59: 325 | H59: UCD/ITC
A60: Alannah Redington | B60: UL | C60: F | D60: Recurve | E60: Beginner | G60: 449 | H60: NUIM/GMIT
A61: Alannah Redington | B61: UL | C61: F | D61: recurve | E61: Beginner | G61: 381 | H61: UL
A62: Aldrin Campos | B62: IT Tallaght | C62: M | D62: Recurve | E62: Advanced | G62: 392 | H62: DCU
A63: Aldrin Campos | B63: IT Tallaght | C63: M | D63: Recurve | E63: Advanced | G63: 499 | H63: UCD/ITC
A64: Aldrin Campos | B64: IT Tallaght | C64: M | D64: Recurve | E64: Advanced | G64: 477 | H64: DkIT
A65: Aldrin Campos | B65: IT Tallaght | C65: M | D65: Recurve | E65: Advanced | G65: 478 | H65: NUIM/GMIT
A66: Aldrin Campos | B66: IT Tallaght | C66: M | D66: Recurve | E66: Advanced | G66: 451 | H66: NUIG
A67: Aldrin Campos | B67: IT Tallaght | C67: M | D67: recurve | E67: advanced | G67: 494 | H67: UL
A68: Alysoun Killilea | B68: UCC | C68: F | D68: Recurve | E68: Intermediate | G68: 399 | H68: NUIG
A69: Alysoun Killilea | B69: UCC | C69: F | D69: Recurve | E69: Intermediate | G69: 423 | H69: DCU
A70: Andrew Egan | B70: UCC | C70: M | D70: Compound | E70: Advanced | G70: 534 | H70: DCU
A71: Andrew Egan | B71: UCC | C71: M | D71: Compound | E71: Advanced | G71: 550 | H71: UCD/ITC
A72: Andrew Egan | B72: UCC | C72: M | D72: Compound | E72: Advanced | G72: 553 | H72: DkIT
A73: Andrew Egan | B73: UCC | C73: M | D73: Compound | E73: Advanced | G73: 554 | H73: NUIG
A74: Andrew Egan | B74: UCC | C74: M | D74: Compound | E74: Advanced | G74: 559 | H74: UL
A75: Andrew Warrington | B75: GMITC | C75: M | D75: Barebow | E75: Beginner | G75: 281 | H75: UCD/ITC
A76: Andrew Warrington | B76: GMITC | C76: M | D76: Barebow | E76: Beginner | G76: 287 | H76: NUIM/GMIT
A77: Andrew Warrington | B77: GMITC | C77: M | D77: Barebow | E77: Beginner | G77: 380 | H77: UL
A78: Aoife Monaghan | B78: GMIT | C78: F | D78: barebow | E78: Beginner | G78: 319 | H78: UL
A79: Aoife Monaghan | B79: GMIT | C79: F | D79: Barebow | E79: Beginner | G79: 231 | H79: UCD/ITC
A80: Aoife Monaghan | B80: GMIT | C80: F | D80: Barebow | E80: Beginner | G80: 274 | H80: NUIM/GMIT
A81: Aoife Monaghan | B81: GMIT | C81: F | D81: Barebow | E81: Beginner | G81: 253 | H81: DkIT
A82: Aoife Monaghan | B82: GMIT | C82: F | D82: Barebow | E82: Beginner | G82: 314 | H82: NUIG
A83: Arief Naimun | B83: RCSI | C83: M | D83: Barebow | E83: Beginner | G83: 143 | H83: NUIM/GMIT
A84: Artem Eremin | B84: DIT | C84: M | D84: Recurve | E84: Beginner | G84: 365 | H84: NUIG
A85: Ashley Allen | B85: UCD | C85: F | D85: Recurve | E85: Intermediate | G85: 407 | H85: DCU
A86: Ashley Allen | B86: UCD | C86: F | D86: Recurve | E86: Intermediate | G86: 105 | H86: NUIM/GMIT
A87: Ashley Allen | B87: UCD | C87: F | D87: Recurve | E87: Intermediate | G87: 394 | H87: NUIG
A88: Auni Awang Dahan | B88: RCSI | C88: F | D88: Recurve | E88: Beginner | G88: 94 | H88: DCU
A89: Austin Tobin | B89: DCU | C89: M | D89: Recurve | E89: Advanced | G89: 524 | H89: DkIT
A90: Austin Tobin | B90: DCU | C90: M | D90: Recurve | E90: Advanced | G90: 543 | H90: NUIM/GMIT
A91: Austin Tobin | B91: DCU | C91: M | D91: Recurve | E91: Advanced | G91: 521 | H91: NUIG
A92: Austin Tobin | B92: DCU | C92: M | D92: Recurve | E92: advanced | G92: 538 | H92: UL
A93: Brendan Browne | B93: GMIT | C93: M | D93: Recurve | E93: Intermediate | G93: 400 | H93: DkIT
A94: Brendan Browne | B94: GMIT | C94: M | D94: Recurve | E94: Intermediate | G94: 380 | H94: NUIM/GMIT
A95: Brendan Browne | B95: GMIT | C95: M | D95: Recurve | E95: Intermediate | G95: 422 | H95: NUIG
A96: Brendan Browne | B96: GMIT | C96: M | D96: recurve | E96: Intermediate | G96: 371 | H96: UL
A97: Brendan Burke | B97: NUIM | C97: M | D97: Recurve | E97: Beginner | G97: 344 | H97: NUIM/GMIT
A98: Brendan Burke | B98: NUIM | C98: M | D98: Recurve | E98: Beginner | G98: 370 | H98: UL
A99: Brendan Forde | B99: DkIT | C99: M | D99: Recurve | E99: Advanced | G99: 503 | H99: DCU
A100: Brendan Forde | B100: DKIT | C100: M | D100: Recurve | E100: Advanced | G100: 542 | H100: UCD/ITC
A101: Brendan Forde | B101: DkIT | C101: M | D101: Recurve | E101: Advanced | G101: 496 | H101: DkIT
A102: Brendan Forde | B102: DKIT | C102: M | D102: Recurve | E102: Advanced | G102: 513 | H102: NUIM/GMIT
A103: Brendan Forde | B103: DKIT | C103: M | D103: Recurve | E103: Advanced | G103: 556 | H103: NUIG
A104: Brendan Forde | B104: DKIT | C104: M | D104: Recurve | E104: Advanced | G104: 531 | H104: UL
A105: Brian Breslin | B105: ITC | C105: M | D105: Barebow | E105: Beginner | G105: 224 | H105: DCU
A106: Brian Breslin | B106: ITC | C106: M | D106: Barebow | E106: Beginner | G106: 227 | H106: UCD/ITC
A107: Bríd Galvin | B107: NUIG | C107: F | D107: Recurve | E107: Advanced | G107: 460 | H107: UCD/ITC
A108: Bríd Galvin | B108: NUIG | C108: F | D108: Recurve | E108: Advanced | G108: 389 | H108: NUIG
A109: Brona Howard | B109: DkIT | C109: F | D109: Recurve | E109: Beginner | G109: 421 | H109: DkIT
A110: Callum Conroy | B110: NUIG | C110: M | D110: Compound | E110: Advanced | G110: 505 | H110: DCU
A111: Callum Conroy | B111: NUIG | C111: M | D111: Compound | E111: Advanced | G111: 469 | H111: UCD/ITC
A112: Callum Conroy | B112: NUIG | C112: M | D112: Compound | E112: Advanced | G112: 493 | H112: DkIT
A113: Callum Conroy | B113: NUIG | C113: M | D113: Compound | E113: Advanced | G113: 468 | H113: NUIM/GMIT
A114: Callum Conroy | B114: NUIG | C114: M | D114: Compound | E114: Advanced | G114: 524 | H114: NUIG
A115: Callum Conroy | B115: NUIG | C115: M | D115: Compound | E115: Advanced | G115: 540 | H115: UL
A116: Cara Brennan | B116: NUIG | C116: F | D116: Recurve | E116: Beginner | G116: 263 | H116: NUIM/GMIT
A117: Cara Brennan | B117: NUIG | C117: F | D117: Recurve | E117: Beginner | G117: 224 | H117: NUIG
A118: Carl Byrne | B118: NUIG | C118: M | D118: Compound | E118: Advanced | G118: 566 | H118: DCU
A119: Carl Byrne | B119: NUIG | C119: M | D119: Compound | E119: Advanced | G119: 566 | H119: UCD/ITC
A120: Carl Byrne | B120: NUIG | C120: M | D120: Compound | E120: Advanced | G120: 576 | H120: DkIT
A121: Carl Byrne | B121: NUIG | C121: M | D121: Compound | E121: Advanced | G121: 567 | H121: NUIM/GMIT
A122: Carl Byrne | B122: NUIG | C122: M | D122: Compound | E122: Advanced | G122: 575 | H122: NUIG
A123: Carl Byrne | B123: NUIG | C123: M | D123: Compound | E123: Advanced | G123: 572 | H123: UL
A124: Carlton Bennett | B124: GMITC | C124: M | D124: Barebow | E124: Beginner | G124: 269 | H124: NUIM/GMIT
A125: Carlton Bennett | B125: GMITC | C125: M | D125: Barebow | E125: Beginner | G125: 283 | H125: NUIG
A126: Carlton Bennett | B126: GMITC | C126: M | D126: Barebow | E126: Beginner | G126: 326 | H126: UL
A127: Caroline Greene | B127: GMIT | C127: F | D127: barebow | E127: beginner | G127: 153 | H127: DCU
A128: Caroline Greene | B128: GMIT | C128: F | D128: Barebow | E128: Beginner | G128: 255 | H128: NUIM/GMIT
A129: Caroline Greene | B129: GMIT | C129: F | D129: Barebow | E129: Beginner | G129: 245 | H129: NUIG
A130: Cathal Mc Guire | B130: UCD | C130: M | D130: Recurve | E130: Beginner | G130: 272 | H130: UCD/ITC
A131: Chris O'Leary | B131: UCC | C131: M | D131: Recurve | E131: Intermediate | G131: 452 | H131: DCU
A132: Chris O'Leary | B132: UCC | C132: M | D132: Recurve | E132: Intermediate | G132: 450 | H132: UCD/ITC
A133: Chris O'Leary | B133: UCC | C133: M | D133: Recurve | E133: Intermediate | G133: 414 | H133: DkIT
A134: Chris O'Leary | B134: UCC | C134: M | D134: Recurve | E134: Intermediate | G134: 479 | H134: NUIG
A135: Chris O'Leary | B135: UCC | C135: M | D135: Recurve | E135: Intermediate | G135: 490 | H135: UL
A136: Christopher Ryan | B136: NUIG | C136: M | D136: Compound | E136: Advanced | G136: 547 | H136: DkIT
A137: Christopher Ryan | B137: NUIG | C137: M | D137: Compound | E137: Advanced | G137: 525 | H137: NUIM/GMIT
A138: Christopher Ryan | B138: NUIG | C138: M | D138: Compound | E138: Advanced | G138: 350 | H138: NUIG
A139: Christopher Ryan | B139: NUIG | C139: M | D139: Compound | E139: Advanced | G139: 544 | H139: UL
A140: Christina Somers | B140: DCU | C140: F | D140: Recurve | E140: Beginner | G140: 366 | H140: DCU
A141: Christina Somers | B141: DCU | C141: F | D141: Recurve | E141: Beginner | G141: 446 | H141: UCD/ITC
A142: Christina Somers | B142: DCU | C142: F | D142: Recurve | E142: Beginner | G142: 456 | H142: NUIM/GMIT
A143: Christina Somers | B143: DCU | C143: F | D143: Recurve | E143: Beginner | G143: 397 | H143: NUIG
A144: Christina Somers | B144: DCU | C144: F | D144: Recurve | E144: Beginner | G144: 431 | H144: UL
A145: Christina Somers | B145: DCU | C145: F | D145: Recurve | E145: Beginner | G145: 377 | H145: DkIT
A146: Christopher Ryan | B146: NUIG | C146: M | D146: Compound | E146: Advanced | G146: 513 | H146: DCU
A147: Christopher Ryan | B147: NUIG | C147: M | D147: Compound | E147: Advanced | G147: 539 | H147: UCD/ITC
A148: Cian Aherne | B148: UCD | C148: M | D148: Recurve | E148: Beginner | G148: 233 | H148: UCD/ITC
A149: Cian Aherne | B149: UCD | C149: M | D149: Recurve | E149: Beginner | G149: 244 | H149: DkIT
A150: Ciara O'Sullivan | B150: DCU | C150: F | D150: Recurve | E150: Beginner | G150: 410 | H150: DkIT
A151: Ciara O'Sullivan | B151: DCU | C151: F | D151: Recurve | E151: Beginner | G151: 284 | H151: UCD/ITC
A152: Ciara O'Sullivan | B152: DCU | C152: F | D152: Recurve | E152: Beginner | G152: 410 | H152: NUIM/GMIT
A153: Ciara O'Sullivan | B153: DCU | C153: F | D153: Recurve | E153: Beginner | G153: 380 | H153: NUIG
A154: Ciara O'Sullivan | B154: DCU | C154: F | D154: recurve | E154: Beginner | G154: 363 | H154: UL
A155: Ciarán Lowe | B155: NUIM | C155: M | D155: Recurve | E155: Advanced | G155: 519 | H155: UCD/ITC
A156: Ciarán Lowe | B156: NUIM | C156: M | D156: Recurve | E156: Advanced | G156: 519 | H156: DkIT
A157: Ciarán Lowe | B157: NUIM | C157: M | D157: Recurve | E157: Advanced | G157: 513 | H157: NUIM/GMIT
A158: Ciarán Lowe | B158: NUIM | C158: M | D158: Recurve | E158: Advanced | G158: 515 | H158: UL
A159: Ciaran McElhinney | B159: GMIT | C159: M | D159: recurve | E159: beginner | G159: 252 | H159: DCU
A160: Cillian Byrne | B160: DCU | C160: M | D160: Compound | E160: Advanced | G160: 524 | H160: DCU
A161: Cillian Byrne | B161: DCU | C161: M | D161: Compound | E161: Advanced | G161: 538 | H161: UCD/ITC
A162: Cillian Byrne | B162: DCU | C162: M | D162: Compound | E162: Advanced | G162: 542 | H162: NUIM/GMIT
A163: Cillian Byrne | B163: DCU | C163: M | D163: Compound | E163: Advanced | G163: 544 | H163: NUIG
A164: Cody Meadows | B164: NUIG | C164: M | D164: Barebow | E164: Beginner | G164: 105 | H164: NUIG
A165: Colm McClelland | B165: DKIT | C165: M | D165: Recurve | E165: Beginner | G165: 244 | H165: NUIM/GMIT
A166: Colm McClelland | B166: DkIT | C166: M | D166: Recurve | E166: Beginner | G166: 279 | H166: DCU
A167: Colm McClelland | B167: DkIT | C167: M | D167: Recurve | E167: Beginner | G167: 402 | H167: DkIT
A168: Colm McClelland | B168: DKIT | C168: M | D168: Recurve | E168: Beginner | G168: 253 | H168: NUIG
A169: Colm McClelland | B169: DKIT | C169: M | D169: Recurve | E169: Beginner | G169: 336 | H169: UL
A170: Colm McClelland | B170: DKIT | C170: M | D170: Recurve | E170: Beginner | G170: 342 | H170: UCD/ITC
A171: Conor dePaor | B171: UCD | C171: M | D171: Recurve | E171: Beginner | G171: 415 | H171: NUIM/GMIT
A172: Conor dePaor | B172: UCD | C172: M | D172: Recurve | E172: Beginner | G172: 366 | H172: NUIG
A173: Conor dePaor | B173: UCD | C173: M | D173: Recurve | E173: Beginner | G173: 276 | H173: UL
A174: Conor Lydon | B174: NUIG | C174: M | D174: Recurve | E174: Intermediate | G174: 245 | H174: DCU
A175: Conor Lydon | B175: NUIG | C175: M | D175: Recurve | E175: Intermediate | G175: 360 | H175: NUIM/GMIT
A176: Conor Lydon | B176: NUIG | C176: M | D176: Recurve | E176: Intermediate | G176: 319 | H176: NUIG
A177: Conor Lydon | B177: NUIG | C177: M | D177: Recurve | E177: Intermediate | G177: 375 | H177: UL
A178: Conor McCan | B178: GMIT | C178: M | D178: Recurve | E178: Intermediate | G178: 389 | H178: DkIT
A179: Conor McCan | B179: GMIT | C179: M | D179: Recurve | E179: Intermediate | G179: 437 | H179: NUIM/GMIT
A180: Conor McCan | B180: GMIT | C180: M | D180: recurve | E180: Intermediate | G180: 444 | H180: UL
A181: Conor McCan | B181: GMIT | C181: M | D181: Recurve | E181: Intermediate | G181: 458 | H181: NUIG
A182: Conor Moran | B182: UL | C182: M | D182: recurve | E182: beginner | G182: 391 | H182: DCU
A183: Conor Moran | B183: UL | C183: M | D183: Recurve | E183: Beginner | G183: 401 | H183: UCD/ITC
A184: Conor Moran | B184: UL | C184: M | D184: Recurve | E184: Beginner | G184: 230 | H184: NUIM/GMIT
A185: conor watkins | B185: UL | C185: M | D185: barebow | E185: beginner | G185: 278 | H185: DCU
A186: Craig Hill | B186: GMITC | C186: M | D186: Barebow | E186: Beginner | G186: 123 | H186: NUIG
A187: Daeln Murphy | B187: DCU | C187: M | D187: Barebow | E187: Beginner | G187: 216 | H187: DCU
A188: Daeln Murphy | B188: DCU | C188: M | D188: Barebow | E188: Beginner | G188: 292 | H188: UCD/ITC
A189: Daniel Meyer | B189: DCU | C189: M | D189: Recurve | E189: Advanced | G189: 468 | H189: NUIM/GMIT
A190: Daniel Meyer | B190: DCU | C190: M | D190: Recurve | E190: Advanced | G190: 441 | H190: NUIG
A191: Daniel Meyer | B191: DCU | C191: M | D191: Recurve | E191: advanced | G191: 480 | H191: UL
A192: Daniel Olajide | B192: NUIG | C192: M | D192: Recurve | E192: Beginner | G192: 280 | H192: UCD/ITC
A193: Daniel Sinnott | B193: UCD | C193: M | D193: Recurve | E193: Beginner | G193: 383 | H193: DCU
A194: danny neill | B194: UL | C194: M | D194: recurve | E194: beginner | G194: 462 | H194: DCU
A195: Dara MacEoin | B195: NUIG | C195: M | D195: Barebow | E195: Advanced | G195: 241 | H195: DCU
A196: Dara MacEoin | B196: NUIG | C196: M | D196: Barebow | E196: Advanced | G196: 284 | H196: DkIT
A197: Dara MacEoin | B197: NUIG | C197: M | D197: Barebow | E197: Advanced | G197: 267 | H197: NUIM/GMIT
A198: Dara Oliver | B198: NUIG | C198: M | D198: Recurve | E198: Intermediate | G198: 323 | H198: DkIT
A199: Darren Daly | B199: ITC | C199: M | D199: Recurve | E199: Advanced | G199: 535 | H199: UCD/ITC
A200: Darren Griffin | B200: GMITC | C200: M | D200: Barebow | E200: Beginner | G200: 419 | H200: DkIT
... 618 more rows

Sheet Singles
B2: Gender | C2: M | E2: Male Beginner Recurve | P2: Gender | Q2: F | S2: Female Beginner Recurve | AD2: Gender | AE2: M | AG2: Male Intermediate Recurve | AR2: Gender | AS2: F | AU2: Female Intermediate Recurve | BF2: Gender | BG2: M | BI2: Male Advanced Recurve | BT2: Gender | BU2: F | BW2: Female Advanced Recurve
B3: Bow | C3: Recurve | P3: Bow | Q3: Recurve | AD3: Bow | AE3: Recurve | AR3: Bow | AS3: Recurve | BF3: Bow | BG3: Recurve | BT3: Bow | BU3: Recurve
B4: Level | C4: Beginner | P4: Level | Q4: Beginner | AD4: Level | AE4: (blank) | AR4: Level | AS4: (blank) | BF4: Level | BG4: (Multiple Items) | BT4: Level | BU4: (Multiple Items)
B6: Sum of Points | D6: IV | K6: Lowest | L6: League total | P6: Sum of Points | R6: IV | Y6: Lowest | Z6: League total | AD6: Sum of Points | AF6: IV | AL6: Grand Total | AM6: Lowest | AN6: League total | AR6: Sum of Points | AT6: IV | AZ6: Grand Total | BA6: Lowest | BB6: League total | BF6: Sum of Points | BH6: IV | BO6: Lowest | BP6: League total | BT6: Sum of Points | BV6: IV | CC6: Lowest | CD6: League total
B7: Name | C7: College | D7: DCU | E7: UCD/ITC | F7: DkIT | G7: NUIM/GMIT | H7: NUIG | I7: UL | J7: Grand Total | P7: Name | Q7: College | R7: DCU | S7: UCD/ITC | T7: DkIT | U7: NUIM/GMIT | V7: NUIG | W7: UL | X7: Grand Total | AD7: Name | AE7: College | AR7: Name | AS7: College | BF7: Name | BG7: College | BH7: DCU | BI7: UCD/ITC | BJ7: DkIT | BK7: NUIM/GMIT | BL7: NUIG | BM7: UL | BN7: Grand Total | BT7: Name | BU7: College | BV7: DCU | BW7: UCD/ITC | BX7: DkIT | BY7: NUIM/GMIT | BZ7: NUIG | CA7: UL | CB7: Grand Total
A8: A8 | B8: Kevin Kok Zhi Hao | C8: DkIT | D8: 452 | E8: 427 | F8: 462 | G8: 413 | H8: 446 | I8: 432 | J8: 2632 | K8: =MIN(D8:I8) -> 413 | L8: =IF(C8="TBC",0,(J8-K8)+(LARGE(D8:H8,1)/10000)+(LARGE(D8:H8,2)/10000000)) -> 2219.046245 | O8: N8 | P8: Christina Somers | Q8: DCU | R8: 366 | S8: 446 | T8: 377 | U8: 456 | V8: 397 | W8: 431 | X8: 2473 | Y8: =MIN(R8:W8) -> 366 | Z8: =IF(Q8="TBC",0,(X8-Y8)+(LARGE(R8:V8,1)/10000)+(LARGE(R8:V8,2)/10000000)) -> 2107.045645 | AC8: AA8 | AG8: TBC | AH8: TBC | AI8: TBC | AJ8: TBC | AK8: TBC | AL8: =SUM(AF8:AJ8) -> 0 | AM8: =MIN(AF8:AJ8) -> 0 | AN8: =IF(AE8="TBC",0,(AL8-AM8)+(LARGE(AF8:AJ8,1)/10000)+(LARGE(AF8:AJ8,2)/10000000)) ->  | AQ8: AN8 | AU8: TBC | AV8: TBC | AW8: TBC | AX8: TBC | AY8: TBC | BA8: =MIN(AT8:AX8) -> 0 | BB8: =IF(AS8="TBC",0,(AY8-BA8)+(LARGE(AT8:AX8,1)/10000)+(LARGE(AT8:AX8,2)/10000000)) ->  | BE8: BA8 | BF8: Darren Wallace | BG8: NUIG | BH8: 564 | BI8: 560 | BJ8: 567 | BK8: 560 | BL8: 575 | BM8: 565 | BN8: 3391 | BO8: =MIN(BH8:BM8) -> 560 | BP8: =IF(BG8="TBC",0,(BN8-BO8)+(LARGE(BH8:BL8,1)/10000)+(LARGE(BH8:BL8,2)/10000000)) -> 2831.057557 | BS8: BN8 | BT8: Maeve Reidy | BU8: BCFE | BV8: 552 | BW8: 546 | BX8: 562 | BY8: 550 | BZ8: 559 | CA8: 548 | CB8: 3317 | CC8: =MIN(BV8:CA8) -> 546 | CD8: =IF(BU8="TBC",0,(CB8-CC8)+(LARGE(BV8:BZ8,1)/10000)+(LARGE(BV8:BZ8,2)/10000000)) -> 2771.056256
A9: A9 | B9: Frank Stafford | C9: UL | D9: 501 | E9: 376 | F9: 387 | G9: 427 | H9: 399 | I9: 441 | J9: 2531 | K9: =MIN(D9:I9) -> 376 | L9: 2155.050143 | O9: N9 | P9: Jen Daly | Q9: DIT | R9: 355 | S9: 467 | T9: 389 | U9: 373 | V9: 398 | W9: 464 | X9: 2446 | Y9: =MIN(R9:W9) -> 355 | Z9: 2091.04674 | AC9: AA9 | AE9: TBC | AF9: TBC | AG9: TBC | AH9: TBC | AI9: TBC | AJ9: TBC | AK9: TBC | AL9: 0 | AM9: =MIN(AF9:AJ9) -> 0 | AN9: 0 | AQ9: AN9 | AS9: TBC | AT9: TBC | AU9: TBC | AV9: TBC | AW9: TBC | AX9: TBC | AY9: TBC | BA9: =MIN(AT9:AX9) -> 0 | BB9: 0 | BE9: BA9 | BF9: Adam McSweeney | BG9: DCU | BH9: 547 | BI9: 547 | BJ9: 544 | BK9: 538 | BL9: 530 | BM9: 554 | BN9: 3260 | BO9: =MIN(BH9:BM9) -> 530 | BP9: 2730.054755 | BS9: BN9 | BT9: Aida Alexandru | BU9: NUIM | BV9: 505 | BW9: 521 | BX9: 525 | BY9: 492 | BZ9: 485 | CA9: 448 | CB9: 2976 | CC9: =MIN(BV9:CA9) -> 448 | CD9: 2528.052552
A10: A10 | B10: Edwin Ma | C10: DkIT | D10: 399 | E10: 464 | F10: 394 | G10: 323 | H10: 334 | I10: 350 | J10: 2264 | K10: 323 | L10: 1941.04644 | O10: N10 | P10: Jessica Lee | Q10: DkIT | R10: 347 | S10: 388 | T10: 342 | U10: 404 | V10: 337 | W10: 351 | X10: 2169 | Y10: 337 | Z10: 1832.040439 | AC10: AA10 | AE10: TBC | AF10: TBC | AG10: TBC | AH10: TBC | AI10: TBC | AJ10: TBC | AK10: TBC | AL10: 0 | AM10: 0 | AN10: 0 | AQ10: AN10 | AS10: TBC | AT10: TBC | AU10: TBC | AV10: TBC | AW10: TBC | AX10: TBC | AY10: TBC | BA10: 0 | BB10: 0 | BE10: BA10 | BF10: Brendan Forde | BG10: DkIT | BH10: 503 | BI10: 542 | BJ10: 496 | BK10: 513 | BL10: 556 | BM10: 531 | BN10: 3141 | BO10: 496 | BP10: 2645.055654 | BS10: BN10 | BT10: Ines Rauch | BU10: UCD | BV10: 473 | BW10: 458 | BX10: 537 | BY10: 502 | BZ10: 498 | CA10: 502 | CB10: 2970 | CC10: 458 | CD10: 2512.05375
A11: A11 | B11: See Qui Ren | C11: DkIT | D11: 471 | E11: 422 | F11: 414 | G11: 362 | H11: 292 | I11: 301 | J11: 2262 | K11: 292 | L11: 1970.047142 | O11: N11 | P11: Karen Power | Q11: UL | R11: 394 | S11: 364 | T11: 0 | U11: 433 | V11: 487 | W11: 357 | X11: 2035 | Y11: 0 | Z11: 2035.048743 | AC11: AA11 | AE11: TBC | AF11: TBC | AG11: TBC | AH11: TBC | AI11: TBC | AJ11: TBC | AK11: TBC | AL11: 0 | AM11: 0 | AN11: 0 | AQ11: AN11 | AS11: TBC | AT11: TBC | AU11: TBC | AV11: TBC | AW11: TBC | AX11: TBC | AY11: TBC | BA11: 0 | BB11: 0 | BE11: BA11 | BF11: Sean Flavin | BG11: UL | BH11: 524 | BI11: 517 | BJ11: 505 | BK11: 522 | BL11: 527 | BM11: 503 | BN11: 3098 | BO11: 503 | BP11: 2595.052752 | BS11: BN11 | BT11: Ailish Dennehy | BU11: UCD | BV11: 474 | BW11: 429 | BX11: 486 | BY11: 457 | BZ11: 479 | CA11: 494 | CB11: 2819 | CC11: 429 | CD11: 2390.048648
A12: A12 | B12: Keet Wai Hong | C12: DkIT | D12: 287 | E12: 402 | F12: 358 | G12: 339 | H12: 357 | I12: 355 | J12: 2098 | K12: 287 | L12: 1811.040236 | O12: N12 | P12: Jocelyn Yee | Q12: DkIT | R12: 337 | S12: 320 | T12: 443 | U12: 279 | V12: 247 | W12: 352 | X12: 1978 | Y12: 247 | Z12: 1731.044334 | AC12: AA12 | AE12: TBC | AF12: TBC | AG12: TBC | AH12: TBC | AI12: TBC | AJ12: TBC | AK12: TBC | AL12: 0 | AM12: 0 | AN12: 0 | AQ12: AN12 | AS12: TBC | AT12: TBC | AU12: TBC | AV12: TBC | AW12: TBC | AX12: TBC | AY12: TBC | BA12: 0 | BB12: 0 | BE12: BA12 | BF12: Sean Curtin | BG12: UL | BH12: 541 | BI12: 540 | BJ12: 494 | BK12: 529 | BL12: 491 | BM12: 499 | BN12: 3094 | BO12: 491 | BP12: 2603.054154 | BS12: BN12 | BT12: Sarah Maloney | BU12: DCU | BV12: 465 | BW12: 434 | BX12: 517 | BY12: 484 | BZ12: 431 | CA12: 474 | CB12: 2805 | CC12: 431 | CD12: 2374.051748
A13: A13 | B13: Yeo Eng Jet | C13: DkIT | D13: 465 | E13: 344 | F13: 350 | G13: 200 | H13: 228 | I13: 342 | J13: 1929 | K13: 200 | L13: 1729.046535 | O13: N13 | P13: Victoria Tan | Q13: DkIT | R13: 291 | S13: 267 | T13: 401 | U13: 352 | V13: 313 | W13: 330 | X13: 1954 | Y13: 267 | Z13: 1687.040135 | AC13: AA13 | AE13: TBC | AF13: TBC | AG13: TBC | AH13: TBC | AI13: TBC | AJ13: TBC | AK13: TBC | AL13: 0 | AM13: 0 | AN13: 0 | AQ13: AN13 | AS13: TBC | AT13: TBC | AU13: TBC | AV13: TBC | AW13: TBC | AX13: TBC | AY13: TBC | BA13: 0 | BB13: 0 | BE13: BA13 | BF13: Dave Boyle | BG13: DCU | BH13: 513 | BI13: 533 | BJ13: 522 | BK13: 527 | BL13: 493 | BM13: 480 | BN13: 3068 | BO13: 480 | BP13: 2588.053353 | BS13: BN13 | BT13: Sinead O`Connell | BU13: NUIM | BV13: 433 | BW13: 477 | BX13: 472 | BY13: 428 | BZ13: 444 | CA13: 482 | CB13: 2736 | CC13: 428 | CD13: 2308.047747
A14: A14 | B14: Mark Walsh | C14: NUIG | D14: 354 | E14: 394 | F14: 449 | G14: 355 | H14: 354 | I14: 0 | J14: 1906 | K14: 0 | L14: 1906.044939 | O14: N14 | P14: Ciara O'Sullivan | Q14: DCU | R14: 0 | S14: 284 | T14: 410 | U14: 410 | V14: 380 | W14: 363 | X14: 1847 | Y14: 0 | Z14: 1847.041041 | AC14: AA14 | AE14: TBC | AF14: TBC | AG14: TBC | AH14: TBC | AI14: TBC | AJ14: TBC | AK14: TBC | AL14: 0 | AM14: 0 | AN14: 0 | AQ14: AN14 | AS14: TBC | AT14: TBC | AU14: TBC | AV14: TBC | AW14: TBC | AX14: TBC | AY14: TBC | BA14: 0 | BB14: 0 | BE14: BA14 | BF14: John Hally | BG14: UL | BH14: 512 | BI14: 488 | BJ14: 541 | BK14: 497 | BL14: 515 | BM14: 511 | BN14: 3064 | BO14: 488 | BP14: 2576.054151 | BS14: BN14 | BT14: Sinead Naughton | BU14: GMITC | BV14: 366 | BW14: 452 | BX14: 413 | BY14: 423 | BZ14: 445 | CA14: 452 | CB14: 2551 | CC14: 366 | CD14: 2185.045245
A15: A15 | B15: Colm McClelland | C15: DkIT | D15: 279 | E15: 342 | F15: 402 | G15: 244 | H15: 253 | I15: 336 | J15: 1856 | K15: 244 | L15: 1612.040234 | O15: N15 | P15: Ester Schwarz | Q15: NUIM | R15: 0 | S15: 375 | T15: 0 | U15: 359 | V15: 393 | W15: 416 | X15: 1543 | Y15: 0 | Z15: 1543.039337 | AC15: AA15 | AE15: TBC | AF15: TBC | AG15: TBC | AH15: TBC | AI15: TBC | AJ15: TBC | AK15: TBC | AL15: 0 | AM15: 0 | AN15: 0 | AQ15: AN15 | AS15: TBC | AT15: TBC | AU15: TBC | AV15: TBC | AW15: TBC | AX15: TBC | AY15: TBC | BA15: 0 | BB15: 0 | BE15: BA15 | BF15: James Byrne | BG15: DIT | BH15: 499 | BI15: 476 | BJ15: 494 | BK15: 488 | BL15: 508 | BM15: 503 | BN15: 2968 | BO15: 476 | BP15: 2492.05085 | BS15: BN15 | BT15: Jennifer Nally | BU15: NUIM | BV15: 349 | BW15: 419 | BX15: 459 | BY15: 413 | BZ15: 478 | CA15: 419 | CB15: 2537 | CC15: 349 | CD15: 2188.047846
A16: A16 | B16: sean Morrisey | C16: UL | D16: 391 | E16: 398 | F16: 507 | G16: 0 | H16: 0 | I16: 374 | J16: 1670 | K16: 0 | L16: 1670.05074 | O16: N16 | P16: Linda Hearn | Q16: UCC | R16: 450 | S16: 312 | T16: 374 | U16: 0 | V16: 0 | W16: 405 | X16: 1541 | Y16: 0 | Z16: 1541.045037 | AC16: AA16 | AE16: TBC | AF16: TBC | AG16: TBC | AH16: TBC | AI16: TBC | AJ16: TBC | AK16: TBC | AL16: 0 | AM16: 0 | AN16: 0 | AQ16: AN16 | AS16: TBC | AT16: TBC | AU16: TBC | AV16: TBC | AW16: TBC | AX16: TBC | AY16: TBC | BA16: 0 | BB16: 0 | BE16: BA16 | BF16: Diego Coyle Diez | BG16: NUIM | BH16: 505 | BI16: 504 | BJ16: 496 | BK16: 445 | BL16: 487 | BM16: 470 | BN16: 2907 | BO16: 445 | BP16: 2462.05055 | BS16: BN16 | BT16: Marie Phelan | BU16: DCU | BV16: 0 | BW16: 393 | BX16: 0 | BY16: 385 | BZ16: 0 | CA16: 408 | CB16: 1186 | CC16: 0 | CD16: 1186.039338
A17: A17 | B17: Paul Coleman | C17: DCU | D17: 454 | E17: 372 | F17: 0 | G17: 0 | H17: 314 | I17: 375 | J17: 1515 | K17: 0 | L17: 1515.045437 | O17: N17 | P17: alannah redington | Q17: UL | R17: 356 | S17: 325 | T17: 0 | U17: 449 | V17: 0 | W17: 381 | X17: 1511 | Y17: 0 | Z17: 1511.044936 | AC17: AA17 | AE17: TBC | AF17: TBC | AG17: TBC | AH17: TBC | AI17: TBC | AJ17: TBC | AK17: TBC | AL17: 0 | AM17: 0 | AN17: 0 | AQ17: AN17 | AS17: TBC | AT17: TBC | AU17: TBC | AV17: TBC | AW17: TBC | AX17: TBC | AY17: TBC | BA17: 0 | BB17: 0 | BE17: BA17 | BF17: Thomas Brouder | BG17: UL | BH17: 452 | BI17: 453 | BJ17: 499 | BK17: 480 | BL17: 485 | BM17: 462 | BN17: 2831 | BO17: 452 | BP17: 2379.049949 | BS17: BN17 | BT17: Aisling Finn | BU17: NUIG | BV17: 0 | BW17: 0 | BX17: 519 | BY17: 0 | BZ17: 501 | CA17: 0 | CB17: 1020 | CC17: 0 | CD17: 1020.05195
A18: A18 | B18: Eric Moore | C18: NUIG | D18: 0 | E18: 0 | F18: 315 | G18: 387 | H18: 343 | I18: 455 | J18: 1500 | K18: 0 | L18: 1500.038734 | O18: N18 | P18: Tara Dunne | Q18: UCD | R18: 272 | S18: 184 | T18: 0 | U18: 256 | V18: 287 | W18: 280 | X18: 1279 | Y18: 0 | Z18: 1279.028727 | AC18: AA18 | AE18: TBC | AF18: TBC | AG18: TBC | AH18: TBC | AI18: TBC | AJ18: TBC | AK18: TBC | AL18: 0 | AM18: 0 | AN18: 0 | AQ18: AN18 | AS18: TBC | AT18: TBC | AU18: TBC | AV18: TBC | AW18: TBC | AX18: TBC | AY18: TBC | BA18: 0 | BB18: 0 | BE18: BA18 | BF18: Ian Kenna | BG18: ITC | BH18: 429 | BI18: 393 | BJ18: 484 | BK18: 510 | BL18: 474 | BM18: 526 | BN18: 2816 | BO18: 393 | BP18: 2423.051048 | BS18: BN18 | BT18: Sinead Walsh | BU18: UCC | BV18: 403 | BW18: 0 | BX18: 0 | BY18: 0 | BZ18: 252 | CA18: 314 | CB18: 969 | CC18: 0 | CD18: 969.0403252
A19: A19 | B19: Zul Farhan | C19: UCD | D19: 399 | E19: 426 | F19: 0 | G19: 312 | H19: 0 | I19: 355 | J19: 1492 | K19: 0 | L19: 1492.04264 | O19: N19 | P19: Laura Ni Riada | Q19: DCU | R19: 477 | S19: 415 | T19: 0 | U19: 0 | V19: 0 | W19: 369 | X19: 1261 | Y19: 0 | Z19: 1261.047742 | AC19: AA19 | AE19: TBC | AF19: TBC | AG19: TBC | AH19: TBC | AI19: TBC | AJ19: TBC | AK19: TBC | AL19: 0 | AM19: 0 | AN19: 0 | AQ19: AN19 | AS19: TBC | AT19: TBC | AU19: TBC | AV19: TBC | AW19: TBC | AX19: TBC | AY19: TBC | BA19: 0 | BB19: 0 | BE19: BA19 | BF19: Adin Middleton | BG19: ITC | BH19: 474 | BI19: 400 | BJ19: 467 | BK19: 496 | BL19: 489 | BM19: 484 | BN19: 2810 | BO19: 400 | BP19: 2410.049649 | BS19: BN19 | BT19: Laura Adams | BU19: QUB | BV19: 454 | BW19: 0 | BX19: 0 | BY19: 0 | BZ19: 471 | CA19: 0 | CB19: 925 | CC19: 0 | CD19: 925.0471454
A20: A20 | B20: Shane McGloin | C20: GMIT | D20: 0 | E20: 0 | F20: 325 | G20: 373 | H20: 428 | I20: 361 | J20: 1487 | K20: 0 | L20: 1487.042837 | O20: N20 | P20: Aisling Brady | Q20: NUIG | R20: 0 | S20: 0 | T20: 402 | U20: 260 | V20: 280 | W20: 271 | X20: 1213 | Y20: 0 | Z20: 1213.040228 | AC20: AA20 | AE20: TBC | AF20: TBC | AG20: TBC | AH20: TBC | AI20: TBC | AJ20: TBC | AK20: TBC | AL20: 0 | AM20: 0 | AN20: 0 | AQ20: AN20 | AS20: TBC | AT20: TBC | AU20: TBC | AV20: TBC | AW20: TBC | AX20: TBC | AY20: TBC | BA20: 0 | BB20: 0 | BE20: BA20 | BF20: Aldrin Campos | BG20: IT Tallaght | BH20: 392 | BI20: 499 | BJ20: 477 | BK20: 478 | BL20: 451 | BM20: 494 | BN20: 2791 | BO20: 392 | BP20: 2399.049948 | BS20: BN20 | BT20: Ashley Allen | BU20: UCD | BV20: 407 | BW20: 0 | BX20: 0 | BY20: 105 | BZ20: 394 | CA20: 0 | CB20: 906 | CC20: 0 | CD20: 906.0407394
A21: A21 | B21: Max Klein | C21: NUIM | D21: 462 | E21: 0 | F21: 272 | G21: 384 | H21: 363 | I21: 0 | J21: 1481 | K21: 0 | L21: 1481.046238 | O21: N21 | P21: Katy Doyle | Q21: UCD | R21: 0 | S21: 203 | T21: 0 | U21: 313 | V21: 278 | W21: 341 | X21: 1135 | Y21: 0 | Z21: 1135.031328 | AC21: AA21 | AE21: TBC | AF21: TBC | AG21: TBC | AH21: TBC | AI21: TBC | AJ21: TBC | AK21: TBC | AL21: 0 | AM21: 0 | AN21: 0 | AQ21: AN21 | AS21: TBC | AT21: TBC | AU21: TBC | AV21: TBC | AW21: TBC | AX21: TBC | AY21: TBC | BA21: 0 | BB21: 0 | BE21: BA21 | BF21: Ryan Byrne | BG21: DIT | BH21: 559 | BI21: 480 | BJ21: 527 | BK21: 530 | BL21: 0 | BM21: 530 | BN21: 2626 | BO21: 0 | BP21: 2626.055953 | BS21: BN21 | BT21: Bríd Galvin | BU21: NUIG | BV21: 0 | BW21: 460 | BX21: 0 | BY21: 0 | BZ21: 389 | CA21: 0 | CB21: 849 | CC21: 0 | CD21: 849.0460389
A22: A22 | B22: Thomas Kear | C22: NUIG | D22: 0 | E22: 337 | F22: 180 | G22: 365 | H22: 298 | I22: 279 | J22: 1459 | K22: 0 | L22: 1459.036534 | O22: N22 | P22: Sarah Delaney | Q22: NUIG | R22: 0 | S22: 421 | T22: 0 | U22: 361 | V22: 252 | W22: 0 | X22: 1034 | Y22: 0 | Z22: 1034.042136 | AC22: AA22 | AE22: TBC | AF22: TBC | AG22: TBC | AH22: TBC | AI22: TBC | AJ22: TBC | AK22: TBC | AL22: 0 | AM22: 0 | AN22: 0 | AQ22: AN22 | AS22: TBC | AT22: TBC | AU22: TBC | AV22: TBC | AW22: TBC | AX22: TBC | AY22: TBC | BA22: 0 | BB22: 0 | BE22: BA22 | BF22: Patrick Molloy | BG22: NUIG | BH22: 454 | BI22: 459 | BJ22: 386 | BK22: 408 | BL22: 456 | BM22: 427 | BN22: 2590 | BO22: 386 | BP22: 2204.045946 | BS22: BN22 | BT22: Alysoun Killilea | BU22: UCC | BV22: 423 | BW22: 0 | BX22: 0 | BY22: 0 | BZ22: 399 | CA22: 0 | CB22: 822 | CC22: 0 | CD22: 822.0423399
A23: A23 | B23: Eoin Hinkson | C23: UCD | D23: 313 | E23: 270 | F23: 456 | G23: 0 | H23: 0 | I23: 400 | J23: 1439 | K23: 0 | L23: 1439.045631 | O23: N23 | P23: Maria Jacob | Q23: UCD | R23: 0 | S23: 0 | T23: 230 | U23: 410 | V23: 0 | W23: 274 | X23: 914 | Y23: 0 | Z23: 914.041023 | AC23: AA23 | AE23: TBC | AF23: TBC | AG23: TBC | AH23: TBC | AI23: TBC | AJ23: TBC | AK23: TBC | AL23: 0 | AM23: 0 | AN23: 0 | AQ23: AN23 | AS23: TBC | AT23: TBC | AU23: TBC | AV23: TBC | AW23: TBC | AX23: TBC | AY23: TBC | BA23: 0 | BB23: 0 | BE23: BA23 | BF23: Muhammad Asyraf Maarof | BG23: NUIG | BH23: 410 | BI23: 404 | BJ23: 467 | BK23: 443 | BL23: 424 | BM23: 425 | BN23: 2573 | BO23: 404 | BP23: 2169.046744 | BS23: BN23 | BT23: Laura Ford | BU23: DCU | BV23: 0 | BW23: 0 | BX23: 0 | BY23: 416 | BZ23: 403 | CA23: 0 | CB23: 819 | CC23: 0 | CD23: 819.0416403
A24: A24 | B24: John Power | C24: NUIM | D24: 523 | E24: 464 | F24: 419 | G24: 0 | H24: 0 | I24: 0 | J24: 1406 | K24: 0 | L24: 1406.052346 | O24: N24 | P24: Katrina Kelly | Q24: NUIG | R24: 0 | S24: 0 | T24: 363 | U24: 146 | V24: 404 | W24: 0 | X24: 913 | Y24: 0 | Z24: 913.0404363 | AC24: AA24 | AE24: TBC | AF24: TBC | AG24: TBC | AH24: TBC | AI24: TBC | AJ24: TBC | AK24: TBC | AL24: 0 | AM24: 0 | AN24: 0 | AQ24: AN24 | AS24: TBC | AT24: TBC | AU24: TBC | AV24: TBC | AW24: TBC | AX24: TBC | AY24: TBC | BA24: 0 | BB24: 0 | BE24: BA24 | BF24: Stephen Masterson | BG24: UCD | BH24: 466 | BI24: 75 | BJ24: 473 | BK24: 488 | BL24: 461 | BM24: 526 | BN24: 2489 | BO24: 75 | BP24: 2414.048847 | BS24: BN24 | BT24: Susan Ryan | BU24: UCD | BV24: 390 | BW24: 333 | BX24: 0 | BY24: 0 | BZ24: 0 | CA24: 0 | CB24: 723 | CC24: 0 | CD24: 723.0390333
A25: A25 | B25: Leo Byrne | C25: ITC | D25: 0 | E25: 0 | F25: 304 | G25: 313 | H25: 337 | I25: 399 | J25: 1353 | K25: 0 | L25: 1353.033731 | O25: N25 | P25: Martha Chege | Q25: UU | R25: 0 | S25: 322 | T25: 0 | U25: 381 | V25: 0 | W25: 0 | X25: 703 | Y25: 0 | Z25: 703.0381322 | AC25: AA25 | AE25: TBC | AF25: TBC | AG25: TBC | AH25: TBC | AI25: TBC | AJ25: TBC | AK25: TBC | AL25: 0 | AM25: 0 | AN25: 0 | AQ25: AN25 | AS25: TBC | AT25: TBC | AU25: TBC | AV25: TBC | AW25: TBC | AX25: TBC | AY25: TBC | BA25: 0 | BB25: 0 | BE25: BA25 | BF25: Simon Henleywillis | BG25: UCC | BH25: 495 | BI25: 489 | BJ25: 486 | BK25: 0 | BL25: 488 | BM25: 465 | BN25: 2423 | BO25: 0 | BP25: 2423.049549 | BS25: BN25 | BT25: Katie Hamilton | BU25: UCC | BV25: 451 | BW25: 0 | BX25: 0 | BY25: 0 | BZ25: 0 | CA25: 0 | CB25: 451 | CC25: 0 | CD25: 451.0451
A26: A26 | B26: Lukasz wrobel | C26: GMIT | D26: 346 | E26: 0 | F26: 424 | G26: 225 | H26: 286 | I26: 0 | J26: 1281 | K26: 0 | L26: 1281.042435 | O26: N26 | P26: Rebecca Ward | Q26: DkIT | R26: 272 | S26: 0 | T26: 331 | U26: 0 | V26: 0 | W26: 0 | X26: 603 | Y26: 0 | Z26: 603.0331272 | AC26: AA26 | AE26: TBC | AF26: TBC | AG26: TBC | AH26: TBC | AI26: TBC | AJ26: TBC | AK26: TBC | AL26: 0 | AM26: 0 | AN26: 0 | AQ26: AN26 | AS26: TBC | AT26: TBC | AU26: TBC | AV26: TBC | AW26: TBC | AX26: TBC | AY26: TBC | BA26: 0 | BB26: 0 | BE26: BA26 | BF26: Youcheng Pan | BG26: DIT | BH26: 399 | BI26: 0 | BJ26: 480 | BK26: 509 | BL26: 529 | BM26: 499 | BN26: 2416 | BO26: 0 | BP26: 2416.052951 | BS26: BN26 | BT26: sarah o sullivan | BU26: UL | BV26: 432 | BW26: 0 | BX26: 0 | BY26: 0 | BZ26: 0 | CA26: 0 | CB26: 432 | CC26: 0 | CD26: 432.0432
A27: A27 | B27: Darren Ng | C27: UCD | D27: 0 | E27: 391 | F27: 457 | G27: 0 | H27: 0 | I27: 418 | J27: 1266 | K27: 0 | L27: 1266.045739 | O27: N27 | P27: Zhi-Miin Ong | Q27: RCSI | R27: 0 | S27: 0 | T27: 0 | U27: 318 | V27: 251 | W27: 0 | X27: 569 | Y27: 0 | Z27: 569.0318251 | AC27: AA27 | AE27: TBC | AF27: TBC | AG27: TBC | AH27: TBC | AI27: TBC | AJ27: TBC | AK27: TBC | AL27: 0 | AM27: 0 | AN27: 0 | AQ27: AN27 | AS27: TBC | AT27: TBC | AU27: TBC | AV27: TBC | AW27: TBC | AX27: TBC | AY27: TBC | BA27: 0 | BB27: 0 | BE27: BA27 | BF27: Pádraig Dunphy | BG27: NUIM | BH27: 401 | BI27: 476 | BJ27: 0 | BK27: 499 | BL27: 488 | BM27: 509 | BN27: 2373 | BO27: 0 | BP27: 2373.049949 | BS27: BN27 | BU27: TBC | BV27: TBC | BW27: TBC | BX27: TBC | BY27: TBC | BZ27: TBC | CA27: TBC | CC27: 0 | CD27: 0
A28: A28 | B28: Paul Murphy | C28: UL | D28: 470 | E28: 0 | F28: 0 | G28: 321 | H28: 0 | I28: 424 | J28: 1215 | K28: 0 | L28: 1215.047032 | O28: N28 | P28: Rose Comendador | Q28: IT Tallaght | R28: 0 | S28: 0 | T28: 0 | U28: 283 | V28: 0 | W28: 250 | X28: 533 | Y28: 0 | Z28: 533.0283 | AC28: AA28 | AE28: TBC | AF28: TBC | AG28: TBC | AH28: TBC | AI28: TBC | AJ28: TBC | AK28: TBC | AL28: 0 | AM28: 0 | AN28: 0 | AQ28: AN28 | AS28: TBC | AT28: TBC | AU28: TBC | AV28: TBC | AW28: TBC | AX28: TBC | AY28: TBC | BA28: 0 | BB28: 0 | BE28: BA28 | BF28: Adam Garton | BG28: DIT | BH28: 475 | BI28: 486 | BJ28: 0 | BK28: 485 | BL28: 437 | BM28: 478 | BN28: 2361 | BO28: 0 | BP28: 2361.048649 | BS28: BN28 | BU28: TBC | BV28: TBC | BW28: TBC | BX28: TBC | BY28: TBC | BZ28: TBC | CA28: TBC | CC28: 0 | CD28: 0
A29: A29 | B29: Mark Kearns | C29: NUIM | D29: 417 | E29: 363 | F29: 0 | G29: 386 | H29: 0 | I29: 0 | J29: 1166 | K29: 0 | L29: 1166.041739 | O29: N29 | P29: Cara Brennan | Q29: NUIG | R29: 0 | S29: 0 | T29: 0 | U29: 263 | V29: 224 | W29: 0 | X29: 487 | Y29: 0 | Z29: 487.0263224 | AC29: AA29 | AE29: TBC | AF29: TBC | AG29: TBC | AH29: TBC | AI29: TBC | AJ29: TBC | AK29: TBC | AL29: 0 | AM29: 0 | AN29: 0 | AQ29: AN29 | AS29: TBC | AT29: TBC | AU29: TBC | AV29: TBC | AW29: TBC | AX29: TBC | AY29: TBC | BA29: 0 | BB29: 0 | BE29: BA29 | BF29: Michael O Callaghan | BG29: UL | BH29: 448 | BI29: 449 | BJ29: 0 | BK29: 439 | BL29: 492 | BM29: 465 | BN29: 2293 | BO29: 0 | BP29: 2293.049245 | BS29: BN29 | BU29: TBC | BV29: TBC | BW29: TBC | BX29: TBC | BY29: TBC | BZ29: TBC | CA29: TBC | CC29: 0 | CD29: 0
A30: A30 | B30: Graham Buckley | C30: DIT | D30: 0 | E30: 0 | F30: 437 | G30: 0 | H30: 366 | I30: 340 | J30: 1143 | K30: 0 | L30: 1143.043737 | O30: N30 | P30: Liu Min | Q30: NUIG | R30: 0 | S30: 0 | T30: 0 | U30: 0 | V30: 238 | W30: 249 | X30: 487 | Y30: 0 | Z30: 487.0238 | AC30: AA30 | AE30: TBC | AF30: TBC | AG30: TBC | AH30: TBC | AI30: TBC | AJ30: TBC | AK30: TBC | AL30: 0 | AM30: 0 | AN30: 0 | AQ30: AN30 | AS30: TBC | AT30: TBC | AU30: TBC | AV30: TBC | AW30: TBC | AX30: TBC | AY30: TBC | BA30: 0 | BB30: 0 | BE30: BA30 | BF30: Chris O'Leary | BG30: UCC | BH30: 452 | BI30: 450 | BJ30: 414 | BK30: 0 | BL30: 479 | BM30: 490 | BN30: 2285 | BO30: 0 | BP30: 2285.047945 | BS30: BN30 | BU30: TBC | BV30: TBC | BW30: TBC | BX30: TBC | BY30: TBC | BZ30: TBC | CA30: TBC | CC30: 0 | CD30: 0
A31: A31 | B31: Conor dePaor | C31: UCD | D31: 0 | E31: 0 | F31: 0 | G31: 415 | H31: 366 | I31: 276 | J31: 1057 | K31: 0 | L31: 1057.041537 | O31: N31 | P31: Farah Nadia Zikhtar | Q31: RCSI | R31: 187 | S31: 186 | T31: 0 | U31: 0 | V31: 0 | W31: 66 | X31: 439 | Y31: 0 | Z31: 439.0187186 | AC31: AA31 | AE31: TBC | AF31: TBC | AG31: TBC | AH31: TBC | AI31: TBC | AJ31: TBC | AK31: TBC | AL31: 0 | AM31: 0 | AN31: 0 | AQ31: AN31 | AS31: TBC | AT31: TBC | AU31: TBC | AV31: TBC | AW31: TBC | AX31: TBC | AY31: TBC | BA31: 0 | BB31: 0 | BE31: BA31 | BF31: Peter Cummings | BG31: UU | BH31: 564 | BI31: 548 | BJ31: 559 | BK31: 557 | BL31: 0 | BM31: 0 | BN31: 2228 | BO31: 0 | BP31: 2228.056456 | BS31: BN31 | BU31: TBC | BV31: TBC | BW31: TBC | BX31: TBC | BY31: TBC | BZ31: TBC | CA31: TBC | CC31: 0 | CD31: 0
A32: A32 | B32: Tan Shu leed | C32: RCSI | D32: 0 | E32: 282 | F32: 0 | G32: 0 | H32: 366 | I32: 407 | J32: 1055 | K32: 0 | L32: 1055.036628 | O32: N32 | P32: Brona Howard | Q32: DkIT | R32: 0 | S32: 0 | T32: 421 | U32: 0 | V32: 0 | W32: 0 | X32: 421 | Y32: 0 | Z32: 421.0421 | AC32: AA32 | AE32: TBC | AF32: TBC | AG32: TBC | AH32: TBC | AI32: TBC | AJ32: TBC | AK32: TBC | AL32: 0 | AM32: 0 | AN32: 0 | AQ32: AN32 | AS32: TBC | AT32: TBC | AU32: TBC | AV32: TBC | AW32: TBC | AX32: TBC | AY32: TBC | BA32: 0 | BB32: 0 | BE32: BA32 | BF32: Mark Christiansen | BG32: NUIM | BH32: 0 | BI32: 440 | BJ32: 458 | BK32: 430 | BL32: 422 | BM32: 408 | BN32: 2158 | BO32: 0 | BP32: 2158.045844 | BS32: BN32 | BU32: TBC | BV32: TBC | BW32: TBC | BX32: TBC | BY32: TBC | BZ32: TBC | CA32: TBC | CC32: 0 | CD32: 0
A33: A33 | B33: Conor Moran | C33: UL | D33: 391 | E33: 401 | F33: 0 | G33: 230 | H33: 0 | I33: 0 | J33: 1022 | K33: 0 | L33: 1022.040139 | O33: N33 | P33: Eilis Ni Shuilleabhain | Q33: UCD | R33: 0 | S33: 339 | T33: 0 | U33: 0 | V33: 0 | W33: 0 | X33: 339 | Y33: 0 | Z33: 339.0339 | AC33: AA33 | AE33: TBC | AF33: TBC | AG33: TBC | AH33: TBC | AI33: TBC | AJ33: TBC | AK33: TBC | AL33: 0 | AM33: 0 | AN33: 0 | AQ33: AN33 | AS33: TBC | AT33: TBC | AU33: TBC | AV33: TBC | AW33: TBC | AX33: TBC | AY33: TBC | BA33: 0 | BB33: 0 | BE33: BA33 | BF33: Austin Tobin | BG33: DCU | BH33: 0 | BI33: 0 | BJ33: 524 | BK33: 543 | BL33: 521 | BM33: 538 | BN33: 2126 | BO33: 0 | BP33: 2126.054352 | BS33: BN33 | BU33: TBC | BV33: TBC | BW33: TBC | BX33: TBC | BY33: TBC | BZ33: TBC | CA33: TBC | CC33: 0 | CD33: 0
A34: A34 | B34: Muhammad Hakim Mohd Nasir | C34: RCSI | D34: 224 | E34: 239 | F34: 0 | G34: 444 | H34: 0 | I34: 114 | J34: 1021 | K34: 0 | L34: 1021.044424 | O34: N34 | P34: Elizabeth Clare Lao | Q34: DIT | R34: 287 | S34: 0 | T34: 0 | U34: 0 | V34: 0 | W34: 0 | X34: 287 | Y34: 0 | Z34: 287.0287 | AC34: AA34 | AE34: TBC | AF34: TBC | AG34: TBC | AH34: TBC | AI34: TBC | AJ34: TBC | AK34: TBC | AL34: 0 | AM34: 0 | AN34: 0 | AQ34: AN34 | AS34: TBC | AT34: TBC | AU34: TBC | AV34: TBC | AW34: TBC | AX34: TBC | AY34: TBC | BA34: 0 | BB34: 0 | BE34: BA34 | BF34: Stephen Dillon | BG34: IT Tallaght | BH34: 497 | BI34: 0 | BJ34: 543 | BK34: 523 | BL34: 0 | BM34: 525 | BN34: 2088 | BO34: 0 | BP34: 2088.054352 | BS34: BN34 | BU34: TBC | BV34: TBC | BW34: TBC | BX34: TBC | BY34: TBC | BZ34: TBC | CA34: TBC | CC34: 0 | CD34: 0
A35: A35 | B35: Ronan Walsh | C35: UCD | D35: 0 | E35: 268 | F35: 247 | G35: 0 | H35: 0 | I35: 469 | J35: 984 | K35: 0 | L35: 984.0268247 | O35: N35 | P35: Hana Cúipéir | Q35: DCU | R35: 0 | S35: 275 | T35: 0 | U35: 0 | V35: 0 | W35: 0 | X35: 275 | Y35: 0 | Z35: 275.0275 | AC35: AA35 | AE35: TBC | AF35: TBC | AG35: TBC | AH35: TBC | AI35: TBC | AJ35: TBC | AK35: TBC | AL35: 0 | AM35: 0 | AN35: 0 | AQ35: AN35 | AS35: TBC | AT35: TBC | AU35: TBC | AV35: TBC | AW35: TBC | AX35: TBC | AY35: TBC | BA35: 0 | BB35: 0 | BE35: BA35 | BF35: Philip Early | BG35: DCU | BH35: 406 | BI35: 408 | BJ35: 442 | BK35: 381 | BL35: 0 | BM35: 444 | BN35: 2081 | BO35: 0 | BP35: 2081.044241 | BS35: BN35 | BU35: TBC | BV35: TBC | BW35: TBC | BX35: TBC | BY35: TBC | BZ35: TBC | CA35: TBC | CC35: 0 | CD35: 0
A36: A36 | B36: Gary Cooney | C36: DCU | D36: 516 | E36: 449 | F36: 0 | G36: 0 | H36: 0 | I36: 0 | J36: 965 | K36: 0 | L36: 965.0516449 | O36: N36 | P36: Shahrizan Majid Allapitchai | Q36: RCSI | R36: 259 | S36: 0 | T36: 0 | U36: 0 | V36: 0 | W36: 0 | X36: 259 | Y36: 0 | Z36: 259.0259 | AC36: AA36 | AE36: TBC | AF36: TBC | AG36: TBC | AH36: TBC | AI36: TBC | AJ36: TBC | AK36: TBC | AL36: 0 | AM36: 0 | AN36: 0 | AQ36: AN36 | AS36: TBC | AT36: TBC | AU36: TBC | AV36: TBC | AW36: TBC | AX36: TBC | AY36: TBC | BA36: 0 | BB36: 0 | BE36: BA36 | BF36: Ciarán Lowe | BG36: NUIM | BH36: 0 | BI36: 519 | BJ36: 519 | BK36: 513 | BL36: 0 | BM36: 515 | BN36: 2066 | BO36: 0 | BP36: 2066.051952 | BS36: BN36 | BU36: TBC | BV36: TBC | BW36: TBC | BX36: TBC | BY36: TBC | BZ36: TBC | CA36: TBC | CC36: 0 | CD36: 0
A37: A37 | B37: Sam Schultz | C37: NUIG | D37: 486 | E37: 435 | F37: 0 | G37: 0 | H37: 0 | I37: 0 | J37: 921 | K37: 0 | L37: 921.0486435 | O37: N37 | P37: Maria Dunne | Q37: UL | R37: 0 | S37: 0 | T37: 0 | U37: 0 | V37: 0 | W37: 257 | X37: 257 | Y37: 0 | Z37: 257 | AC37: AA37 | AE37: TBC | AF37: TBC | AG37: TBC | AH37: TBC | AI37: TBC | AJ37: TBC | AK37: TBC | AL37: 0 | AM37: 0 | AN37: 0 | AQ37: AN37 | AS37: TBC | AT37: TBC | AU37: TBC | AV37: TBC | AW37: TBC | AX37: TBC | AY37: TBC | BA37: 0 | BB37: 0 | BE37: BA37 | BF37: Patrick Markey | BG37: DkIT | BH37: 424 | BI37: 394 | BJ37: 374 | BK37: 349 | BL37: 397 | BM37: 0 | BN37: 1938 | BO37: 0 | BP37: 1938.04244 | BS37: BN37 | BU37: TBC | BV37: TBC | BW37: TBC | BX37: TBC | BY37: TBC | BZ37: TBC | CA37: TBC | CC37: 0 | CD37: 0
A38: A38 | B38: Muhammad Izrin Syukri Mohd Nasri | C38: RCSI | D38: 0 | E38: 240 | F38: 0 | G38: 0 | H38: 282 | I38: 382 | J38: 904 | K38: 0 | L38: 904.028224 | O38: N38 | P38: Shauna O Brien | Q38: UCD | R38: 0 | S38: 0 | T38: 249 | U38: 0 | V38: 0 | W38: 0 | X38: 249 | Y38: 0 | Z38: 249.0249 | AC38: AA38 | AE38: TBC | AF38: TBC | AG38: TBC | AH38: TBC | AI38: TBC | AJ38: TBC | AK38: TBC | AL38: 0 | AM38: 0 | AN38: 0 | AQ38: AN38 | AS38: TBC | AT38: TBC | AU38: TBC | AV38: TBC | AW38: TBC | AX38: TBC | AY38: TBC | BA38: 0 | BB38: 0 | BE38: BA38 | BF38: Jordan McCord | BG38: UU | BH38: 445 | BI38: 472 | BJ38: 476 | BK38: 531 | BL38: 0 | BM38: 0 | BN38: 1924 | BO38: 0 | BP38: 1924.053148 | BS38: BN38 | BU38: TBC | BV38: TBC | BW38: TBC | BX38: TBC | BY38: TBC | BZ38: TBC | CA38: TBC | CC38: 0 | CD38: 0
A39: A39 | B39: Paul Ferguson | C39: IT Tallaght | D39: 0 | E39: 0 | F39: 0 | G39: 480 | H39: 0 | I39: 423 | J39: 903 | K39: 0 | L39: 903.048 | O39: N39 | P39: Nassira Musa | Q39: UCC | R39: 0 | S39: 241 | T39: 0 | U39: 0 | V39: 0 | W39: 0 | X39: 241 | Y39: 0 | Z39: 241.0241 | AC39: AA39 | AE39: TBC | AF39: TBC | AG39: TBC | AH39: TBC | AI39: TBC | AJ39: TBC | AK39: TBC | AL39: 0 | AM39: 0 | AN39: 0 | AQ39: AN39 | AS39: TBC | AT39: TBC | AU39: TBC | AV39: TBC | AW39: TBC | AX39: TBC | AY39: TBC | BA39: 0 | BB39: 0 | BE39: BA39 | BF39: Conor McCan | BG39: GMIT | BH39: 0 | BI39: 0 | BJ39: 389 | BK39: 437 | BL39: 458 | BM39: 444 | BN39: 1728 | BO39: 0 | BP39: 1728.045844 | BS39: BN39 | BU39: TBC | BV39: TBC | BW39: TBC | BX39: TBC | BY39: TBC | BZ39: TBC | CA39: TBC | CC39: 0 | CD39: 0
A40: A40 | B40: geoffrey doorbosch | C40: UL | D40: 446 | E40: 438 | F40: 0 | G40: 0 | H40: 0 | I40: 0 | J40: 884 | K40: 0 | L40: =IF(C40="TBC",0,(J40-K40)+(LARGE(D40:H40,1)/10000)+(LARGE(D40:H40,2)/10000000)) -> 884.0446438 | O40: N40 | P40: zahratulfatin | Q40: RCSI | R40: 0 | S40: 0 | T40: 0 | U40: 0 | V40: 0 | W40: 232 | X40: 232 | Y40: 0 | Z40: =IF(Q40="TBC",0,(X40-Y40)+(LARGE(R40:V40,1)/10000)+(LARGE(R40:V40,2)/10000000)) -> 232 | AC40: AA40 | AE40: TBC | AF40: TBC | AG40: TBC | AH40: TBC | AI40: TBC | AJ40: TBC | AK40: TBC | AL40: =SUM(AF40:AJ40) -> 0 | AM40: 0 | AN40: =IF(AE40="TBC",0,(AL40-AM40)+(LARGE(AF40:AJ40,1)/10000)+(LARGE(AF40:AJ40,2)/10000000)) -> 0 | AQ40: AN40 | AS40: TBC | AT40: TBC | AU40: TBC | AV40: TBC | AW40: TBC | AX40: TBC | AY40: TBC | BA40: 0 | BB40: 0 | BE40: BA40 | BF40: Peter Callanan | BG40: UCD | BH40: 303 | BI40: 205 | BJ40: 350 | BK40: 0 | BL40: 328 | BM40: 451 | BN40: 1637 | BO40: 0 | BP40: =IF(BG40="TBC",0,(BN40-BO40)+(LARGE(BH40:BL40,1)/10000)+(LARGE(BH40:BL40,2)/10000000)) -> 1637.035033 | BS40: BN40 | BU40: TBC | BV40: TBC | BW40: TBC | BX40: TBC | BY40: TBC | BZ40: TBC | CA40: TBC | CC40: 0 | CD40: =IF(BU40="TBC",0,(CB40-CC40)+(LARGE(BV40:BZ40,1)/10000)+(LARGE(BV40:BZ40,2)/10000000)) -> 0
A41: A41 | B41: Omar Mustafa | C41: NUIG | D41: 414 | E41: 386 | F41: 0 | G41: 0 | H41: 0 | I41: 0 | J41: 800 | K41: 0 | L41: 800.0414386 | O41: N41 | P41: Shenelle Samodee | Q41: RCSI | R41: 0 | S41: 0 | T41: 0 | U41: 0 | V41: 230 | W41: 0 | X41: 230 | Y41: 0 | Z41: 230.023 | AC41: AA41 | AE41: TBC | AF41: TBC | AG41: TBC | AH41: TBC | AI41: TBC | AJ41: TBC | AK41: TBC | AL41: 0 | AM41: 0 | AN41: 0 | AQ41: AN41 | AS41: TBC | AT41: TBC | AU41: TBC | AV41: TBC | AW41: TBC | AX41: TBC | AY41: TBC | BA41: 0 | BB41: 0 | BE41: BA41 | BF41: Eoin Miller | BG41: NUIM | BH41: 437 | BI41: 0 | BJ41: 0 | BK41: 414 | BL41: 392 | BM41: 386 | BN41: 1629 | BO41: 0 | BP41: 1629.043741 | BS41: BN41 | BU41: TBC | BV41: TBC | BW41: TBC | BX41: TBC | BY41: TBC | BZ41: TBC | CA41: TBC | CC41: 0 | CD41: 0
A42: A42 | B42: Richard Jeffery | C42: NUIG | D42: 0 | E42: 436 | F42: 304 | G42: 0 | H42: 0 | I42: 0 | J42: 740 | K42: 0 | L42: 740.0436304 | O42: N42 | P42: Rebecca Watkin | Q42: UCD | R42: 0 | S42: 0 | T42: 179 | U42: 0 | V42: 0 | W42: 0 | X42: 179 | Y42: 0 | Z42: 179.0179 | AC42: AA42 | AE42: TBC | AF42: TBC | AG42: TBC | AH42: TBC | AI42: TBC | AJ42: TBC | AK42: TBC | AL42: 0 | AM42: 0 | AN42: 0 | AQ42: AN42 | AS42: TBC | AT42: TBC | AU42: TBC | AV42: TBC | AW42: TBC | AX42: TBC | AY42: TBC | BA42: 0 | BB42: 0 | BE42: BA42 | BF42: Brendan Browne | BG42: GMIT | BH42: 0 | BI42: 0 | BJ42: 400 | BK42: 380 | BL42: 422 | BM42: 371 | BN42: 1573 | BO42: 0 | BP42: 1573.04224 | BS42: BN42 | BU42: TBC | BV42: TBC | BW42: TBC | BX42: TBC | BY42: TBC | BZ42: TBC | CA42: TBC | CC42: 0 | CD42: 0
A43: A43 | B43: Brendan Burke | C43: NUIM | D43: 0 | E43: 0 | F43: 0 | G43: 344 | H43: 0 | I43: 370 | J43: 714 | K43: 0 | L43: 714.0344 | O43: N43 | P43: Rubasangkari Rajaderam | Q43: RCSI | R43: 149 | S43: 0 | T43: 0 | U43: 0 | V43: 0 | W43: 0 | X43: 149 | Y43: 0 | Z43: 149.0149 | AC43: AA43 | AE43: TBC | AF43: TBC | AG43: TBC | AH43: TBC | AI43: TBC | AJ43: TBC | AK43: TBC | AL43: 0 | AM43: 0 | AN43: 0 | AQ43: AN43 | AS43: TBC | AT43: TBC | AU43: TBC | AV43: TBC | AW43: TBC | AX43: TBC | AY43: TBC | BA43: 0 | BB43: 0 | BE43: BA43 | BF43: Fan Zingliang | BG43: NUIG | BH43: 0 | BI43: 0 | BJ43: 0 | BK43: 502 | BL43: 507 | BM43: 522 | BN43: 1531 | BO43: 0 | BP43: 1531.05075 | BS43: BN43 | BU43: TBC | BV43: TBC | BW43: TBC | BX43: TBC | BY43: TBC | BZ43: TBC | CA43: TBC | CC43: 0 | CD43: 0
A44: A44 | B44: Paul Connolly | C44: NUIG | D44: 0 | E44: 0 | F44: 0 | G44: 259 | H44: 0 | I44: 375 | J44: 634 | K44: 0 | L44: 634.0259 | O44: N44 | P44: Auni Awang Dahan | Q44: RCSI | R44: 94 | S44: 0 | T44: 0 | U44: 0 | V44: 0 | W44: 0 | X44: 94 | Y44: 0 | Z44: 94.0094 | AC44: AA44 | AE44: TBC | AF44: TBC | AG44: TBC | AH44: TBC | AI44: TBC | AJ44: TBC | AK44: TBC | AL44: 0 | AM44: 0 | AN44: 0 | AQ44: AN44 | AS44: TBC | AT44: TBC | AU44: TBC | AV44: TBC | AW44: TBC | AX44: TBC | AY44: TBC | BA44: 0 | BB44: 0 | BE44: BA44 | BF44: Daniel Meyer | BG44: DCU | BH44: 0 | BI44: 0 | BJ44: 0 | BK44: 468 | BL44: 441 | BM44: 480 | BN44: 1389 | BO44: 0 | BP44: 1389.046844 | BS44: BN44 | BU44: TBC | BV44: TBC | BW44: TBC | BX44: TBC | BY44: TBC | BZ44: TBC | CA44: TBC | CC44: 0 | CD44: 0
A45: A45 | B45: Eric Brown | C45: UCD | D45: 0 | E45: 484 | F45: 0 | G45: 0 | H45: 0 | I45: 0 | J45: 484 | K45: 0 | L45: 484.0484 | O45: N45 | P45: Nurhidayah Miswan | Q45: RCSI | R45: 0 | S45: 84 | T45: 0 | U45: 0 | V45: 0 | W45: 0 | X45: 84 | Y45: 0 | Z45: 84.0084 | AC45: AA45 | AE45: TBC | AF45: TBC | AG45: TBC | AH45: TBC | AI45: TBC | AJ45: TBC | AK45: TBC | AL45: 0 | AM45: 0 | AN45: 0 | AQ45: AN45 | AS45: TBC | AT45: TBC | AU45: TBC | AV45: TBC | AW45: TBC | AX45: TBC | AY45: TBC | BA45: 0 | BB45: 0 | BE45: BA45 | BF45: Tony Liu | BG45: DkIT | BH45: 466 | BI45: 442 | BJ45: 0 | BK45: 0 | BL45: 475 | BM45: 0 | BN45: 1383 | BO45: 0 | BP45: 1383.047547 | BS45: BN45 | BU45: TBC | BV45: TBC | BW45: TBC | BX45: TBC | BY45: TBC | BZ45: TBC | CA45: TBC | CC45: 0 | CD45: 0
A46: A46 | B46: Cian Aherne | C46: UCD | D46: 0 | E46: 233 | F46: 244 | G46: 0 | H46: 0 | I46: 0 | J46: 477 | K46: 0 | L46: 477.0244233 | O46: N46 | P46: Siti Nur Syazwana Mohammad Shafiee | Q46: RCSI | R46: 0 | S46: 76 | T46: 0 | U46: 0 | V46: 0 | W46: 0 | X46: 76 | Y46: 0 | Z46: 76.0076 | AC46: AA46 | AE46: TBC | AF46: TBC | AG46: TBC | AH46: TBC | AI46: TBC | AJ46: TBC | AK46: TBC | AL46: 0 | AM46: 0 | AN46: 0 | AQ46: AN46 | AS46: TBC | AT46: TBC | AU46: TBC | AV46: TBC | AW46: TBC | AX46: TBC | AY46: TBC | BA46: 0 | BB46: 0 | BE46: BA46 | BF46: Marko Kovacevic | BG46: GMIT | BH46: 0 | BI46: 0 | BJ46: 0 | BK46: 430 | BL46: 444 | BM46: 472 | BN46: 1346 | BO46: 0 | BP46: 1346.044443 | BS46: BN46 | BU46: TBC | BV46: TBC | BW46: TBC | BX46: TBC | BY46: TBC | BZ46: TBC | CA46: TBC | CC46: 0 | CD46: 0
A47: A47 | B47: danny neill | C47: UL | D47: 462 | E47: 0 | F47: 0 | G47: 0 | H47: 0 | I47: 0 | J47: 462 | K47: 0 | L47: 462.0462 | O47: N47 | Q47: TBC | R47: TBC | S47: TBC | T47: TBC | U47: TBC | V47: TBC | W47: TBC | Y47: 0 | Z47: 0 | AC47: AA47 | AE47: TBC | AF47: TBC | AG47: TBC | AH47: TBC | AI47: TBC | AJ47: TBC | AK47: TBC | AL47: 0 | AM47: 0 | AN47: 0 | AQ47: AN47 | AS47: TBC | AT47: TBC | AU47: TBC | AV47: TBC | AW47: TBC | AX47: TBC | AY47: TBC | BA47: 0 | BB47: 0 | BE47: BA47 | BF47: Conor Lydon | BG47: NUIG | BH47: 245 | BI47: 0 | BJ47: 0 | BK47: 360 | BL47: 319 | BM47: 375 | BN47: 1299 | BO47: 0 | BP47: 1299.036032 | BS47: BN47 | BU47: TBC | BV47: TBC | BW47: TBC | BX47: TBC | BY47: TBC | BZ47: TBC | CA47: TBC | CC47: 0 | CD47: 0
A48: A48 | B48: Davy Shaw | C48: UCD | D48: 0 | E48: 263 | F48: 187 | G48: 0 | H48: 0 | I48: 0 | J48: 450 | K48: 0 | L48: 450.0263187 | O48: N48 | Q48: TBC | R48: TBC | S48: TBC | T48: TBC | U48: TBC | V48: TBC | W48: TBC | Y48: 0 | Z48: 0 | AC48: AA48 | AE48: TBC | AF48: TBC | AG48: TBC | AH48: TBC | AI48: TBC | AJ48: TBC | AK48: TBC | AL48: 0 | AM48: 0 | AN48: 0 | AQ48: AN48 | AS48: TBC | AT48: TBC | AU48: TBC | AV48: TBC | AW48: TBC | AX48: TBC | AY48: TBC | BA48: 0 | BB48: 0 | BE48: BA48 | BF48: Paul Beirne | BG48: UCD | BH48: 421 | BI48: 0 | BJ48: 0 | BK48: 419 | BL48: 0 | BM48: 446 | BN48: 1286 | BO48: 0 | BP48: 1286.042142 | BS48: BN48 | BU48: TBC | BV48: TBC | BW48: TBC | BX48: TBC | BY48: TBC | BZ48: TBC | CA48: TBC | CC48: 0 | CD48: 0
A49: A49 | B49: Pavle Barbaric | C49: NUIM | D49: 0 | E49: 445 | F49: 0 | G49: 0 | H49: 0 | I49: 0 | J49: 445 | K49: 0 | L49: 445.0445 | O49: N49 | Q49: TBC | R49: TBC | S49: TBC | T49: TBC | U49: TBC | V49: TBC | W49: TBC | Y49: 0 | Z49: 0 | AC49: AA49 | AE49: TBC | AF49: TBC | AG49: TBC | AH49: TBC | AI49: TBC | AJ49: TBC | AK49: TBC | AL49: 0 | AM49: 0 | AN49: 0 | AQ49: AN49 | AS49: TBC | AT49: TBC | AU49: TBC | AV49: TBC | AW49: TBC | AX49: TBC | AY49: TBC | BA49: 0 | BB49: 0 | BE49: BA49 | BF49: James Ryan | BG49: UCD | BH49: 531 | BI49: 535 | BJ49: 0 | BK49: 0 | BL49: 0 | BM49: 0 | BN49: 1066 | BO49: 0 | BP49: 1066.053553 | BS49: BN49 | BU49: TBC | BV49: TBC | BW49: TBC | BX49: TBC | BY49: TBC | BZ49: TBC | CA49: TBC | CC49: 0 | CD49: 0
A50: A50 | B50: James Greer | C50: UCD | D50: 0 | E50: 0 | F50: 0 | G50: 0 | H50: 429 | I50: 0 | J50: 429 | K50: 0 | L50: 429.0429 | O50: N50 | Q50: TBC | R50: TBC | S50: TBC | T50: TBC | U50: TBC | V50: TBC | W50: TBC | Y50: 0 | Z50: 0 | AC50: AA50 | AE50: TBC | AF50: TBC | AG50: TBC | AH50: TBC | AI50: TBC | AJ50: TBC | AK50: TBC | AL50: 0 | AM50: 0 | AN50: 0 | AQ50: AN50 | AS50: TBC | AT50: TBC | AU50: TBC | AV50: TBC | AW50: TBC | AX50: TBC | AY50: TBC | BA50: 0 | BB50: 0 | BE50: BA50 | BF50: Kevin Roche | BG50: UCD | BH50: 0 | BI50: 0 | BJ50: 0 | BK50: 0 | BL50: 520 | BM50: 526 | BN50: 1046 | BO50: 0 | BP50: 1046.052 | BS50: BN50 | BU50: TBC | BV50: TBC | BW50: TBC | BX50: TBC | BY50: TBC | BZ50: TBC | CA50: TBC | CC50: 0 | CD50: 0
A51: A51 | B51: Alan Boylan | C51: DIT | D51: 421 | E51: 0 | F51: 0 | G51: 0 | H51: 0 | I51: 0 | J51: 421 | K51: 0 | L51: 421.0421 | O51: N51 | Q51: TBC | R51: TBC | S51: TBC | T51: TBC | U51: TBC | V51: TBC | W51: TBC | Y51: 0 | Z51: 0 | AC51: AA51 | AE51: TBC | AF51: TBC | AG51: TBC | AH51: TBC | AI51: TBC | AJ51: TBC | AK51: TBC | AL51: 0 | AM51: 0 | AN51: 0 | AQ51: AN51 | AS51: TBC | AT51: TBC | AU51: TBC | AV51: TBC | AW51: TBC | AX51: TBC | AY51: TBC | BA51: 0 | BB51: 0 | BE51: BA51 | BF51: Aaron Downes | BG51: GMIT | BH51: 242 | BI51: 88 | BJ51: 72 | BK51: 155 | BL51: 156 | BM51: 245 | BN51: 958 | BO51: 72 | BP51: 886.0242156 | BS51: BN51 | BU51: TBC | BV51: TBC | BW51: TBC | BX51: TBC | BY51: TBC | BZ51: TBC | CA51: TBC | CC51: 0 | CD51: 0
A52: A52 | B52: Tengku Nazim Tengku Yusof | C52: RCSI | D52: 0 | E52: 0 | F52: 0 | G52: 248 | H52: 159 | I52: 0 | J52: 407 | K52: 0 | L52: 407.0248159 | O52: N52 | Q52: TBC | R52: TBC | S52: TBC | T52: TBC | U52: TBC | V52: TBC | W52: TBC | Y52: 0 | Z52: 0 | AC52: AA52 | AE52: TBC | AF52: TBC | AG52: TBC | AH52: TBC | AI52: TBC | AJ52: TBC | AK52: TBC | AL52: 0 | AM52: 0 | AN52: 0 | AQ52: AN52 | AS52: TBC | AT52: TBC | AU52: TBC | AV52: TBC | AW52: TBC | AX52: TBC | AY52: TBC | BA52: 0 | BB52: 0 | BE52: BA52 | BF52: Thomas D'Arcy | BG52: UCD | BH52: 438 | BI52: 462 | BJ52: 0 | BK52: 0 | BL52: 0 | BM52: 0 | BN52: 900 | BO52: 0 | BP52: 900.0462438 | BS52: BN52 | BU52: TBC | BV52: TBC | BW52: TBC | BX52: TBC | BY52: TBC | BZ52: TBC | CA52: TBC | CC52: 0 | CD52: 0
A53: A53 | B53: Mark McGrane | C53: UCD | D53: 185 | E53: 204 | F53: 0 | G53: 0 | H53: 0 | I53: 0 | J53: 389 | K53: 0 | L53: 389.0204185 | O53: N53 | Q53: TBC | R53: TBC | S53: TBC | T53: TBC | U53: TBC | V53: TBC | W53: TBC | Y53: 0 | Z53: 0 | AC53: AA53 | AE53: TBC | AF53: TBC | AG53: TBC | AH53: TBC | AI53: TBC | AJ53: TBC | AK53: TBC | AL53: 0 | AM53: 0 | AN53: 0 | AQ53: AN53 | AS53: TBC | AT53: TBC | AU53: TBC | AV53: TBC | AW53: TBC | AX53: TBC | AY53: TBC | BA53: 0 | BB53: 0 | BE53: BA53 | BF53: Ian Hand | BG53: ITC | BH53: 0 | BI53: 448 | BJ53: 429 | BK53: 0 | BL53: 0 | BM53: 0 | BN53: 877 | BO53: 0 | BP53: 877.0448429 | BS53: BN53 | BU53: TBC | BV53: TBC | BW53: TBC | BX53: TBC | BY53: TBC | BZ53: TBC | CA53: TBC | CC53: 0 | CD53: 0
A54: A54 | B54: Daniel Sinnott | C54: UCD | D54: 383 | E54: 0 | F54: 0 | G54: 0 | H54: 0 | I54: 0 | J54: 383 | K54: 0 | L54: 383.0383 | O54: N54 | Q54: TBC | R54: TBC | S54: TBC | T54: TBC | U54: TBC | V54: TBC | W54: TBC | Y54: 0 | Z54: 0 | AC54: AA54 | AE54: TBC | AF54: TBC | AG54: TBC | AH54: TBC | AI54: TBC | AJ54: TBC | AK54: TBC | AL54: 0 | AM54: 0 | AN54: 0 | AQ54: AN54 | AS54: TBC | AT54: TBC | AU54: TBC | AV54: TBC | AW54: TBC | AX54: TBC | AY54: TBC | BA54: 0 | BB54: 0 | BE54: BA54 | BF54: Shane Lordan | BG54: UCC | BH54: 383 | BI54: 458 | BJ54: 0 | BK54: 0 | BL54: 0 | BM54: 0 | BN54: 841 | BO54: 0 | BP54: 841.0458383 | BS54: BN54 | BU54: TBC | BV54: TBC | BW54: TBC | BX54: TBC | BY54: TBC | BZ54: TBC | CA54: TBC | CC54: 0 | CD54: 0
A55: A55 | B55: Robin Collins | C55: DIT | D55: 0 | E55: 372 | F55: 0 | G55: 0 | H55: 0 | I55: 0 | J55: 372 | K55: 0 | L55: 372.0372 | O55: N55 | Q55: TBC | R55: TBC | S55: TBC | T55: TBC | U55: TBC | V55: TBC | W55: TBC | Y55: 0 | Z55: 0 | AC55: AA55 | AE55: TBC | AF55: TBC | AG55: TBC | AH55: TBC | AI55: TBC | AJ55: TBC | AK55: TBC | AL55: 0 | AM55: 0 | AN55: 0 | AQ55: AN55 | AS55: TBC | AT55: TBC | AU55: TBC | AV55: TBC | AW55: TBC | AX55: TBC | AY55: TBC | BA55: 0 | BB55: 0 | BE55: BA55 | BF55: Kieran Cullinane | BG55: NUIG | BH55: 383 | BI55: 0 | BJ55: 0 | BK55: 0 | BL55: 397 | BM55: 0 | BN55: 780 | BO55: 0 | BP55: 780.0397383 | BS55: BN55 | BU55: TBC | BV55: TBC | BW55: TBC | BX55: TBC | BY55: TBC | BZ55: TBC | CA55: TBC | CC55: 0 | CD55: 0
A56: A56 | B56: Fahad Alabdullatif | C56: RCSI | D56: 0 | E56: 0 | F56: 0 | G56: 371 | H56: 0 | I56: 0 | J56: 371 | K56: 0 | L56: 371.0371 | O56: N56 | Q56: TBC | R56: TBC | S56: TBC | T56: TBC | U56: TBC | V56: TBC | W56: TBC | Y56: 0 | Z56: 0 | AC56: AA56 | AE56: TBC | AF56: TBC | AG56: TBC | AH56: TBC | AI56: TBC | AJ56: TBC | AK56: TBC | AL56: 0 | AM56: 0 | AN56: 0 | AQ56: AN56 | AS56: TBC | AT56: TBC | AU56: TBC | AV56: TBC | AW56: TBC | AX56: TBC | AY56: TBC | BA56: 0 | BB56: 0 | BE56: BA56 | BF56: Luke Watson | BG56: GMIT | BH56: 0 | BI56: 354 | BJ56: 0 | BK56: 0 | BL56: 378 | BM56: 0 | BN56: 732 | BO56: 0 | BP56: 732.0378354 | BS56: BN56 | BU56: TBC | BV56: TBC | BW56: TBC | BX56: TBC | BY56: TBC | BZ56: TBC | CA56: TBC | CC56: 0 | CD56: 0
A57: A57 | B57: Artem Eremin | C57: DIT | D57: 0 | E57: 0 | F57: 0 | G57: 0 | H57: 365 | I57: 0 | J57: 365 | K57: 0 | L57: 365.0365 | O57: N57 | Q57: TBC | R57: TBC | S57: TBC | T57: TBC | U57: TBC | V57: TBC | W57: TBC | Y57: 0 | Z57: 0 | AC57: AA57 | AE57: TBC | AF57: TBC | AG57: TBC | AH57: TBC | AI57: TBC | AJ57: TBC | AK57: TBC | AL57: 0 | AM57: 0 | AN57: 0 | AQ57: AN57 | AS57: TBC | AT57: TBC | AU57: TBC | AV57: TBC | AW57: TBC | AX57: TBC | AY57: TBC | BA57: 0 | BB57: 0 | BE57: BA57 | BF57: David Burdon | BG57: NUIG | BH57: 0 | BI57: 0 | BJ57: 0 | BK57: 0 | BL57: 325 | BM57: 369 | BN57: 694 | BO57: 0 | BP57: 694.0325 | BS57: BN57 | BU57: TBC | BV57: TBC | BW57: TBC | BX57: TBC | BY57: TBC | BZ57: TBC | CA57: TBC | CC57: 0 | CD57: 0
A58: A58 | B58: Ruaidhri | C58: UCD | D58: 0 | E58: 360 | F58: 0 | G58: 0 | H58: 0 | I58: 0 | J58: 360 | K58: 0 | L58: 360.036 | O58: N58 | Q58: TBC | R58: TBC | S58: TBC | T58: TBC | U58: TBC | V58: TBC | W58: TBC | Y58: 0 | Z58: 0 | AC58: AA58 | AE58: TBC | AF58: TBC | AG58: TBC | AH58: TBC | AI58: TBC | AJ58: TBC | AK58: TBC | AL58: 0 | AM58: 0 | AN58: 0 | AQ58: AN58 | AS58: TBC | AT58: TBC | AU58: TBC | AV58: TBC | AW58: TBC | AX58: TBC | AY58: TBC | BA58: 0 | BB58: 0 | BE58: BA58 | BF58: Martin Stenson | BG58: GMIT | BH58: 168 | BI58: 0 | BJ58: 0 | BK58: 223 | BL58: 0 | BM58: 215 | BN58: 606 | BO58: 0 | BP58: 606.0223168 | BS58: BN58 | BU58: TBC | BV58: TBC | BW58: TBC | BX58: TBC | BY58: TBC | BZ58: TBC | CA58: TBC | CC58: 0 | CD58: 0
A59: A59 | B59: Faiq Syukri | C59: RCSI | D59: 0 | E59: 0 | F59: 0 | G59: 0 | H59: 359 | I59: 0 | J59: 359 | K59: 0 | L59: 359.0359 | O59: N59 | Q59: TBC | R59: TBC | S59: TBC | T59: TBC | U59: TBC | V59: TBC | W59: TBC | Y59: 0 | Z59: 0 | AC59: AA59 | AE59: TBC | AF59: TBC | AG59: TBC | AH59: TBC | AI59: TBC | AJ59: TBC | AK59: TBC | AL59: 0 | AM59: 0 | AN59: 0 | AQ59: AN59 | AS59: TBC | AT59: TBC | AU59: TBC | AV59: TBC | AW59: TBC | AX59: TBC | AY59: TBC | BA59: 0 | BB59: 0 | BE59: BA59 | BF59: Darren Daly | BG59: ITC | BH59: 0 | BI59: 535 | BJ59: 0 | BK59: 0 | BL59: 0 | BM59: 0 | BN59: 535 | BO59: 0 | BP59: 535.0535 | BS59: BN59 | BU59: TBC | BV59: TBC | BW59: TBC | BX59: TBC | BY59: TBC | BZ59: TBC | CA59: TBC | CC59: 0 | CD59: 0
A60: A60 | B60: Eamonn Dunleavy | C60: GMITC | D60: 337 | E60: 0 | F60: 0 | G60: 0 | H60: 0 | I60: 0 | J60: 337 | K60: 0 | L60: 337.0337 | O60: N60 | Q60: TBC | R60: TBC | S60: TBC | T60: TBC | U60: TBC | V60: TBC | W60: TBC | Y60: 0 | Z60: 0 | AC60: AA60 | AE60: TBC | AF60: TBC | AG60: TBC | AH60: TBC | AI60: TBC | AJ60: TBC | AK60: TBC | AL60: 0 | AM60: 0 | AN60: 0 | AQ60: AN60 | AS60: TBC | AT60: TBC | AU60: TBC | AV60: TBC | AW60: TBC | AX60: TBC | AY60: TBC | BA60: 0 | BB60: 0 | BE60: BA60 | BF60: Lewis Holmes | BG60: UU | BH60: 0 | BI60: 500 | BJ60: 0 | BK60: 0 | BL60: 0 | BM60: 0 | BN60: 500 | BO60: 0 | BP60: 500.05 | BS60: BN60 | BU60: TBC | BV60: TBC | BW60: TBC | BX60: TBC | BY60: TBC | BZ60: TBC | CA60: TBC | CC60: 0 | CD60: 0
A61: A61 | B61: Thomas Carr | C61: NUIG | D61: 318 | E61: 0 | F61: 0 | G61: 0 | H61: 0 | I61: 0 | J61: 318 | K61: 0 | L61: 318.0318 | O61: N61 | Q61: TBC | R61: TBC | S61: TBC | T61: TBC | U61: TBC | V61: TBC | W61: TBC | Y61: 0 | Z61: 0 | AC61: AA61 | AE61: TBC | AF61: TBC | AG61: TBC | AH61: TBC | AI61: TBC | AJ61: TBC | AK61: TBC | AL61: 0 | AM61: 0 | AN61: 0 | AQ61: AN61 | AS61: TBC | AT61: TBC | AU61: TBC | AV61: TBC | AW61: TBC | AX61: TBC | AY61: TBC | BA61: 0 | BB61: 0 | BE61: BA61 | BF61: Gary Stuart | BG61: IT Tallaght | BH61: 497 | BI61: 0 | BJ61: 0 | BK61: 0 | BL61: 0 | BM61: 0 | BN61: 497 | BO61: 0 | BP61: 497.0497 | BS61: BN61 | BU61: TBC | BV61: TBC | BW61: TBC | BX61: TBC | BY61: TBC | BZ61: TBC | CA61: TBC | CC61: 0 | CD61: 0
A62: A62 | B62: Eoin Codd | C62: UCD | D62: 0 | E62: 304 | F62: 0 | G62: 0 | H62: 0 | I62: 0 | J62: 304 | K62: 0 | L62: 304.0304 | O62: N62 | Q62: TBC | R62: TBC | S62: TBC | T62: TBC | U62: TBC | V62: TBC | W62: TBC | Y62: 0 | Z62: 0 | AC62: AA62 | AE62: TBC | AF62: TBC | AG62: TBC | AH62: TBC | AI62: TBC | AJ62: TBC | AK62: TBC | AL62: 0 | AM62: 0 | AN62: 0 | AQ62: AN62 | AS62: TBC | AT62: TBC | AU62: TBC | AV62: TBC | AW62: TBC | AX62: TBC | AY62: TBC | BA62: 0 | BB62: 0 | BE62: BA62 | BF62: Graham Enright | BG62: UCC | BH62: 448 | BI62: 0 | BJ62: 0 | BK62: 0 | BL62: 0 | BM62: 0 | BN62: 448 | BO62: 0 | BP62: 448.0448 | BS62: BN62 | BU62: TBC | BV62: TBC | BW62: TBC | BX62: TBC | BY62: TBC | BZ62: TBC | CA62: TBC | CC62: 0 | CD62: 0
A63: A63 | B63: Dennis Reynor | C63: UCD | D63: 0 | E63: 0 | F63: 0 | G63: 0 | H63: 302 | I63: 0 | J63: 302 | K63: 0 | L63: 302.0302 | O63: N63 | Q63: TBC | R63: TBC | S63: TBC | T63: TBC | U63: TBC | V63: TBC | W63: TBC | Y63: 0 | Z63: 0 | AC63: AA63 | AE63: TBC | AF63: TBC | AG63: TBC | AH63: TBC | AI63: TBC | AJ63: TBC | AK63: TBC | AL63: 0 | AM63: 0 | AN63: 0 | AQ63: AN63 | AS63: TBC | AT63: TBC | AU63: TBC | AV63: TBC | AW63: TBC | AX63: TBC | AY63: TBC | BA63: 0 | BB63: 0 | BE63: BA63 | BF63: Gary Kelly | BG63: DCU | BH63: 437 | BI63: 0 | BJ63: 0 | BK63: 0 | BL63: 0 | BM63: 0 | BN63: 437 | BO63: 0 | BP63: 437.0437 | BS63: BN63 | BU63: TBC | BV63: TBC | BW63: TBC | BX63: TBC | BY63: TBC | BZ63: TBC | CA63: TBC | CC63: 0 | CD63: 0
A64: A64 | B64: Tudor Varga | C64: UCD | D64: 0 | E64: 300 | F64: 0 | G64: 0 | H64: 0 | I64: 0 | J64: 300 | K64: 0 | L64: 300.03 | O64: N64 | Q64: TBC | R64: TBC | S64: TBC | T64: TBC | U64: TBC | V64: TBC | W64: TBC | Y64: 0 | Z64: 0 | AC64: AA64 | AE64: TBC | AF64: TBC | AG64: TBC | AH64: TBC | AI64: TBC | AJ64: TBC | AK64: TBC | AL64: 0 | AM64: 0 | AN64: 0 | AQ64: AN64 | AS64: TBC | AT64: TBC | AU64: TBC | AV64: TBC | AW64: TBC | AX64: TBC | AY64: TBC | BA64: 0 | BB64: 0 | BE64: BA64 | BF64: Shu Chen | BG64: DCU | BH64: 350 | BI64: 0 | BJ64: 0 | BK64: 0 | BL64: 0 | BM64: 0 | BN64: 350 | BO64: 0 | BP64: 350.035 | BS64: BN64 | BU64: TBC | BV64: TBC | BW64: TBC | BX64: TBC | BY64: TBC | BZ64: TBC | CA64: TBC | CC64: 0 | CD64: 0
A65: A65 | B65: Daniel Olajide | C65: NUIG | D65: 0 | E65: 280 | F65: 0 | G65: 0 | H65: 0 | I65: 0 | J65: 280 | K65: 0 | L65: 280.028 | O65: N65 | Q65: TBC | R65: TBC | S65: TBC | T65: TBC | U65: TBC | V65: TBC | W65: TBC | Y65: 0 | Z65: 0 | AC65: AA65 | AE65: TBC | AF65: TBC | AG65: TBC | AH65: TBC | AI65: TBC | AJ65: TBC | AK65: TBC | AL65: 0 | AM65: 0 | AN65: 0 | AQ65: AN65 | AS65: TBC | AT65: TBC | AU65: TBC | AV65: TBC | AW65: TBC | AX65: TBC | AY65: TBC | BA65: 0 | BB65: 0 | BE65: BA65 | BF65: William Clifford | BG65: NUIM | BH65: 0 | BI65: 0 | BJ65: 0 | BK65: 0 | BL65: 331 | BM65: 0 | BN65: 331 | BO65: 0 | BP65: 331.0331 | BS65: BN65 | BU65: TBC | BV65: TBC | BW65: TBC | BX65: TBC | BY65: TBC | BZ65: TBC | CA65: TBC | CC65: 0 | CD65: 0
A66: A66 | B66: Cathal Mc Guire | C66: UCD | D66: 0 | E66: 272 | F66: 0 | G66: 0 | H66: 0 | I66: 0 | J66: 272 | K66: 0 | L66: 272.0272 | O66: N66 | Q66: TBC | R66: TBC | S66: TBC | T66: TBC | U66: TBC | V66: TBC | W66: TBC | Y66: 0 | Z66: 0 | AC66: AA66 | AE66: TBC | AF66: TBC | AG66: TBC | AH66: TBC | AI66: TBC | AJ66: TBC | AK66: TBC | AL66: 0 | AM66: 0 | AN66: 0 | AQ66: AN66 | AS66: TBC | AT66: TBC | AU66: TBC | AV66: TBC | AW66: TBC | AX66: TBC | AY66: TBC | BA66: 0 | BB66: 0 | BE66: BA66 | BF66: Dara Oliver | BG66: NUIG | BH66: 0 | BI66: 0 | BJ66: 323 | BK66: 0 | BL66: 0 | BM66: 0 | BN66: 323 | BO66: 0 | BP66: 323.0323 | BS66: BN66 | BU66: TBC | BV66: TBC | BW66: TBC | BX66: TBC | BY66: TBC | BZ66: TBC | CA66: TBC | CC66: 0 | CD66: 0
A67: A67 | B67: Ian Mc Dermot | C67: UCC | D67: 0 | E67: 266 | F67: 0 | G67: 0 | H67: 0 | I67: 0 | J67: 266 | K67: 0 | L67: 266.0266 | O67: N67 | Q67: TBC | R67: TBC | S67: TBC | T67: TBC | U67: TBC | V67: TBC | W67: TBC | Y67: 0 | Z67: 0 | AC67: AA67 | AE67: TBC | AF67: TBC | AG67: TBC | AH67: TBC | AI67: TBC | AJ67: TBC | AK67: TBC | AL67: 0 | AM67: 0 | AN67: 0 | AQ67: AN67 | AS67: TBC | AT67: TBC | AU67: TBC | AV67: TBC | AW67: TBC | AX67: TBC | AY67: TBC | BA67: 0 | BB67: 0 | BE67: BA67 | BF67: Desmond Monaghan | BG67: GMIT | BH67: 252 | BI67: 0 | BJ67: 12 | BK67: 0 | BL67: 0 | BM67: 0 | BN67: 264 | BO67: 0 | BP67: 264.0252012 | BS67: BN67 | BU67: TBC | BV67: TBC | BW67: TBC | BX67: TBC | BY67: TBC | BZ67: TBC | CA67: TBC | CC67: 0 | CD67: 0
A68: A68 | B68: Ciaran McElhinney | C68: GMIT | D68: 252 | E68: 0 | F68: 0 | G68: 0 | H68: 0 | I68: 0 | J68: 252 | K68: 0 | L68: 252.0252 | O68: N68 | Q68: TBC | R68: TBC | S68: TBC | T68: TBC | U68: TBC | V68: TBC | W68: TBC | Y68: 0 | Z68: 0 | AC68: AA68 | AE68: TBC | AF68: TBC | AG68: TBC | AH68: TBC | AI68: TBC | AJ68: TBC | AK68: TBC | AL68: 0 | AM68: 0 | AN68: 0 | AQ68: AN68 | AS68: TBC | AT68: TBC | AU68: TBC | AV68: TBC | AW68: TBC | AX68: TBC | AY68: TBC | BA68: 0 | BB68: 0 | BE68: BA68 | BF68: Rob Ó Gallachóir | BG68: NUIM | BH68: 0 | BI68: 0 | BJ68: 0 | BK68: 0 | BL68: 187 | BM68: 0 | BN68: 187 | BO68: 0 | BP68: 187.0187 | BS68: BN68 | BU68: TBC | BV68: TBC | BW68: TBC | BX68: TBC | BY68: TBC | BZ68: TBC | CA68: TBC | CC68: 0 | CD68: 0
A69: A69 | B69: Syahira Najua Zulkefly | C69: UCD | D69: 0 | E69: 221 | F69: 0 | G69: 0 | H69: 0 | I69: 0 | J69: 221 | K69: 0 | L69: 221.0221 | O69: N69 | Q69: TBC | R69: TBC | S69: TBC | T69: TBC | U69: TBC | V69: TBC | W69: TBC | Y69: 0 | Z69: 0 | AC69: AA69 | AE69: TBC | AF69: TBC | AG69: TBC | AH69: TBC | AI69: TBC | AJ69: TBC | AK69: TBC | AL69: 0 | AM69: 0 | AN69: 0 | AQ69: AN69 | AS69: TBC | AT69: TBC | AU69: TBC | AV69: TBC | AW69: TBC | AX69: TBC | AY69: TBC | BA69: 0 | BB69: 0 | BE69: BA69 | BG69: TBC | BH69: TBC | BI69: TBC | BJ69: TBC | BK69: TBC | BL69: TBC | BM69: TBC | BO69: 0 | BP69: 0 | BS69: BN69 | BU69: TBC | BV69: TBC | BW69: TBC | BX69: TBC | BY69: TBC | BZ69: TBC | CA69: TBC | CC69: 0 | CD69: 0
A70: A70 | B70: Tajul Syaqqil Tajor Amar | C70: RCSI | D70: 0 | E70: 173 | F70: 0 | G70: 0 | H70: 0 | I70: 0 | J70: 173 | K70: 0 | L70: 173.0173 | O70: N70 | Q70: TBC | R70: TBC | S70: TBC | T70: TBC | U70: TBC | V70: TBC | W70: TBC | Y70: 0 | Z70: 0 | AC70: AA70 | AE70: TBC | AF70: TBC | AG70: TBC | AH70: TBC | AI70: TBC | AJ70: TBC | AK70: TBC | AL70: 0 | AM70: 0 | AN70: 0 | AQ70: AN70 | AS70: TBC | AT70: TBC | AU70: TBC | AV70: TBC | AW70: TBC | AX70: TBC | AY70: TBC | BA70: 0 | BB70: 0 | BE70: BA70 | BG70: TBC | BH70: TBC | BI70: TBC | BJ70: TBC | BK70: TBC | BL70: TBC | BM70: TBC | BO70: 0 | BP70: 0 | BS70: BN70 | BU70: TBC | BV70: TBC | BW70: TBC | BX70: TBC | BY70: TBC | BZ70: TBC | CA70: TBC | CC70: 0 | CD70: 0
A71: A71 | B71: Eoghan Brophy | C71: IT Tallaght | D71: 0 | E71: 0 | F71: 0 | G71: 170 | H71: 0 | I71: 0 | J71: 170 | K71: 0 | L71: 170.017 | O71: N71 | Q71: TBC | R71: TBC | S71: TBC | T71: TBC | U71: TBC | V71: TBC | W71: TBC | Y71: 0 | Z71: 0 | AC71: AA71 | AE71: TBC | AF71: TBC | AG71: TBC | AH71: TBC | AI71: TBC | AJ71: TBC | AK71: TBC | AL71: 0 | AM71: 0 | AN71: 0 | AQ71: AN71 | AS71: TBC | AT71: TBC | AU71: TBC | AV71: TBC | AW71: TBC | AX71: TBC | AY71: TBC | BA71: 0 | BB71: 0 | BE71: BA71 | BG71: TBC | BH71: TBC | BI71: TBC | BJ71: TBC | BK71: TBC | BL71: TBC | BM71: TBC | BO71: 0 | BP71: 0 | BS71: BN71 | BU71: TBC | BV71: TBC | BW71: TBC | BX71: TBC | BY71: TBC | BZ71: TBC | CA71: TBC | CC71: 0 | CD71: 0
A72: A72 | B72: Marc Creehan | C72: UCC | D72: 0 | E72: 166 | F72: 0 | G72: 0 | H72: 0 | I72: 0 | J72: 166 | K72: 0 | L72: =IF(C72="TBC",0,(J72-K72)+(LARGE(D72:H72,1)/10000)+(LARGE(D72:H72,2)/10000000)) -> 166.0166 | O72: N72 | Q72: TBC | R72: TBC | S72: TBC | T72: TBC | U72: TBC | V72: TBC | W72: TBC | Y72: 0 | Z72: =IF(Q72="TBC",0,(X72-Y72)+(LARGE(R72:V72,1)/10000)+(LARGE(R72:V72,2)/10000000)) -> 0 | AC72: AA72 | AE72: TBC | AF72: TBC | AG72: TBC | AH72: TBC | AI72: TBC | AJ72: TBC | AK72: TBC | AL72: =SUM(AF72:AJ72) -> 0 | AM72: 0 | AN72: =IF(AE72="TBC",0,(AL72-AM72)+(LARGE(AF72:AJ72,1)/10000)+(LARGE(AF72:AJ72,2)/10000000)) -> 0 | AQ72: AN72 | AS72: TBC | AT72: TBC | AU72: TBC | AV72: TBC | AW72: TBC | AX72: TBC | AY72: TBC | BA72: 0 | BB72: =IF(AS72="TBC",0,(AY72-BA72)+(LARGE(AT72:AX72,1)/10000)+(LARGE(AT72:AX72,2)/10000000)) -> 0 | BE72: BA72 | BG72: TBC | BH72: TBC | BI72: TBC | BJ72: TBC | BK72: TBC | BL72: TBC | BM72: TBC | BO72: 0 | BP72: =IF(BG72="TBC",0,(BN72-BO72)+(LARGE(BH72:BL72,1)/10000)+(LARGE(BH72:BL72,2)/10000000)) -> 0 | BS72: BN72 | BU72: TBC | BV72: TBC | BW72: TBC | BX72: TBC | BY72: TBC | BZ72: TBC | CA72: TBC | CC72: 0 | CD72: =IF(BU72="TBC",0,(CB72-CC72)+(LARGE(BV72:BZ72,1)/10000)+(LARGE(BV72:BZ72,2)/10000000)) -> 0
A73: A73 | B73: Zain Bari | C73: UCD | D73: 0 | E73: 123 | F73: 0 | G73: 0 | H73: 0 | I73: 0 | J73: 123 | K73: =MIN(D73:I73) -> 0 | L73: 123.0123 | O73: N73 | Q73: TBC | R73: TBC | S73: TBC | T73: TBC | U73: TBC | V73: TBC | W73: TBC | Y73: =MIN(R73:W73) -> 0 | Z73: 0 | AC73: AA73 | AE73: TBC | AF73: TBC | AG73: TBC | AH73: TBC | AI73: TBC | AJ73: TBC | AK73: TBC | AL73: 0 | AM73: =MIN(AF73:AJ73) -> 0 | AN73: 0 | AQ73: AN73 | AS73: TBC | AT73: TBC | AU73: TBC | AV73: TBC | AW73: TBC | AX73: TBC | AY73: TBC | BA73: =MIN(AT73:AX73) -> 0 | BB73: 0 | BE73: BA73 | BG73: TBC | BH73: TBC | BI73: TBC | BJ73: TBC | BK73: TBC | BL73: TBC | BM73: TBC | BO73: =MIN(BH73:BM73) -> 0 | BP73: 0 | BS73: BN73 | BU73: TBC | BV73: TBC | BW73: TBC | BX73: TBC | BY73: TBC | BZ73: TBC | CA73: TBC | CC73: =MIN(BV73:CA73) -> 0 | CD73: 0
A74: A74 | B74: Jonathan Cassidy | C74: NUIG | D74: 122 | E74: 0 | F74: 0 | G74: 0 | H74: 0 | I74: 0 | J74: 122 | K74: 0 | L74: 122.0122 | O74: N74 | Q74: TBC | R74: TBC | S74: TBC | T74: TBC | U74: TBC | V74: TBC | W74: TBC | Y74: 0 | Z74: 0 | AC74: AA74 | AE74: TBC | AF74: TBC | AG74: TBC | AH74: TBC | AI74: TBC | AJ74: TBC | AK74: TBC | AL74: 0 | AM74: 0 | AN74: 0 | AQ74: AN74 | AS74: TBC | AT74: TBC | AU74: TBC | AV74: TBC | AW74: TBC | AX74: TBC | AY74: TBC | BA74: 0 | BB74: 0 | BE74: BA74 | BG74: TBC | BH74: TBC | BI74: TBC | BJ74: TBC | BK74: TBC | BL74: TBC | BM74: TBC | BO74: 0 | BP74: 0 | BS74: BN74 | BU74: TBC | BV74: TBC | BW74: TBC | BX74: TBC | BY74: TBC | BZ74: TBC | CA74: TBC | CC74: 0 | CD74: 0
A75: A75 | B75: Lorenzo | C75: UCD | D75: 0 | E75: 104 | F75: 0 | G75: 0 | H75: 0 | I75: 0 | J75: 104 | K75: 0 | L75: 104.0104 | O75: N75 | Q75: TBC | R75: TBC | S75: TBC | T75: TBC | U75: TBC | V75: TBC | W75: TBC | Y75: 0 | Z75: 0 | AC75: AA75 | AE75: TBC | AF75: TBC | AG75: TBC | AH75: TBC | AI75: TBC | AJ75: TBC | AK75: TBC | AL75: 0 | AM75: 0 | AN75: 0 | AQ75: AN75 | AS75: TBC | AT75: TBC | AU75: TBC | AV75: TBC | AW75: TBC | AX75: TBC | AY75: TBC | BA75: 0 | BB75: 0 | BE75: BA75 | BG75: TBC | BH75: TBC | BI75: TBC | BJ75: TBC | BK75: TBC | BL75: TBC | BM75: TBC | BO75: 0 | BP75: 0 | BS75: BN75 | BU75: TBC | BV75: TBC | BW75: TBC | BX75: TBC | BY75: TBC | BZ75: TBC | CA75: TBC | CC75: 0 | CD75: 0
A76: A76 | B76: Yogeswran Muthukumaru | C76: RCSI | D76: 0 | E76: 0 | F76: 0 | G76: 0 | H76: 96 | I76: 0 | J76: 96 | K76: 0 | L76: 96.0096 | O76: N76 | Q76: TBC | R76: TBC | S76: TBC | T76: TBC | U76: TBC | V76: TBC | W76: TBC | Y76: 0 | Z76: 0 | AC76: AA76 | AE76: TBC | AF76: TBC | AG76: TBC | AH76: TBC | AI76: TBC | AJ76: TBC | AK76: TBC | AL76: 0 | AM76: 0 | AN76: 0 | AQ76: AN76 | AS76: TBC | AT76: TBC | AU76: TBC | AV76: TBC | AW76: TBC | AX76: TBC | AY76: TBC | BA76: 0 | BB76: 0 | BE76: BA76 | BG76: TBC | BH76: TBC | BI76: TBC | BJ76: TBC | BK76: TBC | BL76: TBC | BM76: TBC | BO76: 0 | BP76: 0 | BS76: BN76 | BU76: TBC | BV76: TBC | BW76: TBC | BX76: TBC | BY76: TBC | BZ76: TBC | CA76: TBC | CC76: 0 | CD76: 0
A77: A77 | B77: William Oliver | C77: IT Tallaght | D77: 53 | E77: 0 | F77: 0 | G77: 0 | H77: 0 | I77: 0 | J77: 53 | K77: 0 | L77: 53.0053 | O77: N77 | Q77: TBC | R77: TBC | S77: TBC | T77: TBC | U77: TBC | V77: TBC | W77: TBC | Y77: 0 | Z77: 0 | AC77: AA77 | AE77: TBC | AF77: TBC | AG77: TBC | AH77: TBC | AI77: TBC | AJ77: TBC | AK77: TBC | AL77: 0 | AM77: 0 | AN77: 0 | AQ77: AN77 | AS77: TBC | AT77: TBC | AU77: TBC | AV77: TBC | AW77: TBC | AX77: TBC | AY77: TBC | BA77: 0 | BB77: 0 | BE77: BA77 | BG77: TBC | BH77: TBC | BI77: TBC | BJ77: TBC | BK77: TBC | BL77: TBC | BM77: TBC | BO77: 0 | BP77: 0 | BS77: BN77 | BU77: TBC | BV77: TBC | BW77: TBC | BX77: TBC | BY77: TBC | BZ77: TBC | CA77: TBC | CC77: 0 | CD77: 0
A78: A78 | B78: Kevin Lynch | C78: UCD | D78: 0 | E78: 31 | F78: 0 | G78: 0 | H78: 0 | I78: 0 | J78: 31 | K78: 0 | L78: 31.0031 | O78: N78 | Q78: TBC | R78: TBC | S78: TBC | T78: TBC | U78: TBC | V78: TBC | W78: TBC | Y78: 0 | Z78: 0 | AC78: AA78 | AE78: TBC | AF78: TBC | AG78: TBC | AH78: TBC | AI78: TBC | AJ78: TBC | AK78: TBC | AL78: 0 | AM78: 0 | AN78: 0 | AQ78: AN78 | AS78: TBC | AT78: TBC | AU78: TBC | AV78: TBC | AW78: TBC | AX78: TBC | AY78: TBC | BA78: 0 | BB78: 0 | BE78: BA78 | BG78: TBC | BH78: TBC | BI78: TBC | BJ78: TBC | BK78: TBC | BL78: TBC | BM78: TBC | BO78: 0 | BP78: 0 | BS78: BN78 | BU78: TBC | BV78: TBC | BW78: TBC | BX78: TBC | BY78: TBC | BZ78: TBC | CA78: TBC | CC78: 0 | CD78: 0
A79: A79 | C79: TBC | D79: TBC | E79: TBC | F79: TBC | G79: TBC | H79: TBC | I79: TBC | K79: 0 | L79: 0 | O79: N79 | Q79: TBC | R79: TBC | S79: TBC | T79: TBC | U79: TBC | V79: TBC | W79: TBC | Y79: 0 | Z79: 0 | AC79: AA79 | AE79: TBC | AF79: TBC | AG79: TBC | AH79: TBC | AI79: TBC | AJ79: TBC | AK79: TBC | AL79: 0 | AM79: 0 | AN79: 0 | AQ79: AN79 | AS79: TBC | AT79: TBC | AU79: TBC | AV79: TBC | AW79: TBC | AX79: TBC | AY79: TBC | BA79: 0 | BB79: 0 | BE79: BA79 | BG79: TBC | BH79: TBC | BI79: TBC | BJ79: TBC | BK79: TBC | BL79: TBC | BM79: TBC | BO79: 0 | BP79: 0 | BS79: BN79 | BU79: TBC | BV79: TBC | BW79: TBC | BX79: TBC | BY79: TBC | BZ79: TBC | CA79: TBC | CC79: 0 | CD79: 0
A80: A80 | C80: TBC | D80: TBC | E80: TBC | F80: TBC | G80: TBC | H80: TBC | I80: TBC | K80: 0 | L80: 0 | O80: N80 | Q80: TBC | R80: TBC | S80: TBC | T80: TBC | U80: TBC | V80: TBC | W80: TBC | Y80: 0 | Z80: 0 | AC80: AA80 | AE80: TBC | AF80: TBC | AG80: TBC | AH80: TBC | AI80: TBC | AJ80: TBC | AK80: TBC | AL80: 0 | AM80: 0 | AN80: 0 | AQ80: AN80 | AS80: TBC | AT80: TBC | AU80: TBC | AV80: TBC | AW80: TBC | AX80: TBC | AY80: TBC | BA80: 0 | BB80: 0 | BE80: BA80 | BG80: TBC | BH80: TBC | BI80: TBC | BJ80: TBC | BK80: TBC | BL80: TBC | BM80: TBC | BO80: 0 | BP80: 0 | BS80: BN80 | BU80: TBC | BV80: TBC | BW80: TBC | BX80: TBC | BY80: TBC | BZ80: TBC | CA80: TBC | CC80: 0 | CD80: 0
A81: A81 | C81: TBC | D81: TBC | E81: TBC | F81: TBC | G81: TBC | H81: TBC | I81: TBC | K81: 0 | L81: 0 | O81: N81 | Q81: TBC | R81: TBC | S81: TBC | T81: TBC | U81: TBC | V81: TBC | W81: TBC | Y81: 0 | Z81: 0 | AC81: AA81 | AE81: TBC | AF81: TBC | AG81: TBC | AH81: TBC | AI81: TBC | AJ81: TBC | AK81: TBC | AL81: 0 | AM81: 0 | AN81: 0 | AQ81: AN81 | AS81: TBC | AT81: TBC | AU81: TBC | AV81: TBC | AW81: TBC | AX81: TBC | AY81: TBC | BA81: 0 | BB81: 0 | BE81: BA81 | BG81: TBC | BH81: TBC | BI81: TBC | BJ81: TBC | BK81: TBC | BL81: TBC | BM81: TBC | BO81: 0 | BP81: 0 | BS81: BN81 | BU81: TBC | BV81: TBC | BW81: TBC | BX81: TBC | BY81: TBC | BZ81: TBC | CA81: TBC | CC81: 0 | CD81: 0
A82: A82 | B82: 0 | C82: TBC | D82: TBC | E82: TBC | F82: TBC | G82: TBC | H82: TBC | I82: TBC | K82: 0 | L82: 0 | O82: N82 | P82: 0 | Q82: TBC | R82: TBC | S82: TBC | T82: TBC | U82: TBC | V82: TBC | W82: TBC | Y82: 0 | Z82: 0 | AC82: AA82 | AD82: 0 | AE82: TBC | AF82: TBC | AG82: TBC | AH82: TBC | AI82: TBC | AJ82: TBC | AK82: TBC | AL82: 0 | AM82: 0 | AN82: 0 | AQ82: AN82 | AR82: 0 | AS82: TBC | AT82: TBC | AU82: TBC | AV82: TBC | AW82: TBC | AX82: TBC | AY82: TBC | BA82: 0 | BB82: 0 | BE82: BA82 | BF82: 0 | BG82: TBC | BH82: TBC | BI82: TBC | BJ82: TBC | BK82: TBC | BL82: TBC | BM82: TBC | BO82: 0 | BP82: 0 | BS82: BN82 | BT82: 0 | BU82: TBC | BV82: TBC | BW82: TBC | BX82: TBC | BY82: TBC | BZ82: TBC | CA82: TBC | CC82: 0 | CD82: 0
B87: Gender | C87: M | E87: Male Beginner Barebow | P87: Gender | Q87: F | S87: Female Beginner Barebow | AD87: Gender | AE87: M | AG87: Male Advanced Barebow | AR87: Gender | AS87: F | AU87: Female Advanced Barebow | BF87: Gender | BG87: M | BI87: Male Compound | BT87: Gender | BU87: F | BW87: Female Compound
B88: Bow | C88: Barebow | P88: Bow | Q88: Barebow | AD88: Bow | AE88: Barebow | AR88: Bow | AS88: Barebow | BF88: Bow | BG88: Compound | BT88: Bow | BU88: Compound
B89: Level | C89: (blank) | P89: Level | Q89: (blank) | AD89: Level | AE89: (Multiple Items) | AR89: Level | AS89: (Multiple Items) | BF89: Level | BG89: (Multiple Items) | BT89: Level | BU89: (Multiple Items)
B91: Sum of Points | D91: IV | K91: Lowest | L91: League total | P91: Sum of Points | R91: IV | Y91: Lowest | Z91: League total | AD91: Sum of Points | AF91: IV | AM91: Lowest | AN91: League total | AR91: Sum of Points | AT91: IV | BA91: Lowest | BB91: League total | BF91: Sum of Points | BH91: IV | BO91: Minimum | BP91: League total | BT91: Sum of Points | BV91: IV | CC91: Lowest | CD91: League total
B92: Name | C92: College | P92: Name | Q92: College | AD92: Name | AE92: College | AF92: DCU | AG92: UCD/ITC | AH92: DkIT | AI92: NUIM/GMIT | AJ92: NUIG | AK92: UL | AL92: Grand Total | AR92: Name | AS92: College | AT92: DCU | AU92: UCD/ITC | AV92: DkIT | AW92: NUIM/GMIT | AX92: NUIG | AY92: UL | AZ92: Grand Total | BF92: Name | BG92: College | BH92: DCU | BI92: UCD/ITC | BJ92: DkIT | BK92: NUIM/GMIT | BL92: NUIG | BM92: UL | BN92: Grand Total | BT92: Name | BU92: College | BV92: DCU | BW92: UCD/ITC | BX92: DkIT | BY92: NUIM/GMIT | BZ92: NUIG | CA92: UL | CB92: Grand Total
A93: A93 | E93: TBC | F93: TBC | G93: TBC | H93: TBC | I93: TBC | K93: =MIN(D93:H93) -> 0 | L93: =IF(C93="TBC",0,(I93-K93)+(LARGE(D93:H93,1)/10000)+(LARGE(D93:H93,2)/10000000)) ->  | O93: N93 | S93: TBC | T93: TBC | U93: TBC | V93: TBC | W93: TBC | Y93: =MIN(R93:V93) -> 0 | Z93: =IF(Q93="TBC",0,(W93-Y93)+(LARGE(R93:V93,1)/10000)+(LARGE(R93:V93,2)/10000000)) ->  | AC93: AA93 | AD93: Jeffery McMahon | AE93: UL | AF93: 409 | AG93: 406 | AH93: 432 | AI93: 436 | AJ93: 420 | AK93: 427 | AL93: 2530 | AM93: =MIN(AF93:AI93) -> 406 | AN93: =IF(AE93="TBC",0,(AL93-AM93)+(LARGE(AF93:AJ93,1)/10000)+(LARGE(AF93:AJ93,2)/10000000)) -> 2124.043643 | AQ93: AN93 | AR93: Tami Baumann | AS93: NUIM | AT93: 361 | AU93: 378 | AV93: 0 | AW93: 421 | AX93: 469 | AY93: 356 | AZ93: 1985 | BA93: =MIN(AT93:AY93) -> 0 | BB93: =IF(AS93="TBC",0,(AZ93-BA93)+(LARGE(AT93:AX93,1)/10000)+(LARGE(AT93:AX93,2)/10000000)) -> 1985.046942 | BE93: BA93 | BF93: Carl Byrne | BG93: NUIG | BH93: 566 | BI93: 566 | BJ93: 576 | BK93: 567 | BL93: 575 | BM93: 572 | BN93: 3422 | BO93: =MIN(BH93:BM93) -> 566 | BP93: =IF(BG93="TBC",0,(BN93-BO93)+(LARGE(BH93:BL93,1)/10000)+(LARGE(BH93:BL93,2)/10000000)) -> 2856.057658 | BS93: BN93 | BT93: Kerrie Leonard | BU93: NUIM | BV93: 506 | BW93: 479 | BX93: 510 | BY93: 495 | BZ93: 524 | CA93: 512 | CB93: 3026 | CC93: =MIN(BV93:CA93) -> 479 | CD93: =IF(BU93="TBC",0,(CB93-CC93)+(LARGE(BV93:BZ93,1)/10000)+(LARGE(BV93:BZ93,2)/10000000)) -> 2547.052451
A94: A94 | C94: TBC | D94: TBC | E94: TBC | F94: TBC | G94: TBC | H94: TBC | I94: TBC | K94: =MIN(D94:H94) -> 0 | L94: 0 | O94: N94 | Q94: TBC | R94: TBC | S94: TBC | T94: TBC | U94: TBC | V94: TBC | W94: TBC | Y94: =MIN(R94:V94) -> 0 | Z94: 0 | AC94: AA94 | AD94: Tom McGrath | AE94: NUIG | AF94: 398 | AG94: 304 | AH94: 411 | AI94: 306 | AJ94: 430 | AK94: 345 | AL94: 2194 | AM94: =MIN(AF94:AI94) -> 304 | AN94: 1890.043041 | AQ94: AN94 | AR94: Nada Khaled-Abdo | AS94: NUIG | AT94: 306 | AU94: 332 | AV94: 0 | AW94: 357 | AX94: 364 | AY94: 346 | AZ94: 1705 | BA94: =MIN(AT94:AY94) -> 0 | BB94: 1705.036436 | BE94: BA94 | BF94: Mark Sharvin | BG94: DCU | BH94: 557 | BI94: 550 | BJ94: 572 | BK94: 557 | BL94: 557 | BM94: 569 | BN94: 3362 | BO94: =MIN(BH94:BM94) -> 550 | BP94: 2812.057256 | BS94: BN94 | BT94: Stephanie Martin | BU94: DCU | BV94: 511 | BW94: 517 | BX94: 0 | BY94: 516 | BZ94: 0 | CA94: 522 | CB94: 2066 | CC94: =MIN(BV94:CA94) -> 0 | CD94: 2066.051752
A95: A95 | C95: TBC | D95: TBC | E95: TBC | F95: TBC | G95: TBC | H95: TBC | I95: TBC | K95: 0 | L95: 0 | O95: N95 | Q95: TBC | R95: TBC | S95: TBC | T95: TBC | U95: TBC | V95: TBC | W95: TBC | Y95: 0 | Z95: 0 | AC95: AA95 | AD95: David Price | AE95: ITC | AF95: 220 | AG95: 145 | AH95: 318 | AI95: 381 | AJ95: 396 | AK95: 445 | AL95: 1905 | AM95: 145 | AN95: 1760.039638 | AQ95: AN95 | AR95: Aoife Monaghan | AS95: GMIT | AT95: 0 | AU95: 231 | AV95: 253 | AW95: 274 | AX95: 314 | AY95: 319 | AZ95: 1391 | BA95: 0 | BB95: 1391.031427 | BE95: BA95 | BF95: Christopher Ryan | BG95: NUIG | BH95: 513 | BI95: 539 | BJ95: 547 | BK95: 525 | BL95: 350 | BM95: 544 | BN95: 3018 | BO95: 350 | BP95: 2668.054754 | BS95: BN95 | BT95: Adria Quinn | BU95: GMITC | BV95: 528 | BW95: 533 | BX95: 512 | BY95: 0 | BZ95: 0 | CA95: 0 | CB95: 1573 | CC95: 0 | CD95: 1573.053353
A96: A96 | C96: TBC | D96: TBC | E96: TBC | F96: TBC | G96: TBC | H96: TBC | I96: TBC | K96: 0 | L96: 0 | O96: N96 | Q96: TBC | R96: TBC | S96: TBC | T96: TBC | U96: TBC | V96: TBC | W96: TBC | Y96: 0 | Z96: 0 | AC96: AA96 | AD96: Shane Hyland | AE96: GMIT | AF96: 322 | AG96: 269 | AH96: 378 | AI96: 179 | AJ96: 265 | AK96: 248 | AL96: 1661 | AM96: 179 | AN96: 1482.037832 | AQ96: AN96 | AR96: Emily Flanagan | AS96: NUIG | AT96: 0 | AU96: 357 | AV96: 309 | AW96: 0 | AX96: 380 | AY96: 0 | AZ96: 1046 | BA96: 0 | BB96: 1046.038036 | BE96: BA96 | BF96: Callum Conroy | BG96: NUIG | BH96: 505 | BI96: 469 | BJ96: 493 | BK96: 468 | BL96: 524 | BM96: 540 | BN96: 2999 | BO96: 468 | BP96: 2531.05245 | BS96: BN96 | BT96: Nicole Shellenbarger | BU96: NUIG | BV96: 0 | BW96: 0 | BX96: 0 | BY96: 477 | BZ96: 414 | CA96: 463 | CB96: 1354 | CC96: 0 | CD96: 1354.047741
A97: A97 | C97: TBC | D97: TBC | E97: TBC | F97: TBC | G97: TBC | H97: TBC | I97: TBC | K97: 0 | L97: 0 | O97: N97 | Q97: TBC | R97: TBC | S97: TBC | T97: TBC | U97: TBC | V97: TBC | W97: TBC | Y97: 0 | Z97: 0 | AC97: AA97 | AD97: Jericho Siababa | AE97: DCU | AF97: 301 | AG97: 381 | AH97: 0 | AI97: 325 | AJ97: 0 | AK97: 430 | AL97: 1437 | AM97: 0 | AN97: 1437.038133 | AQ97: AN97 | AR97: Katrina Prakhova | AS97: ITC | AT97: 335 | AU97: 293 | AV97: 368 | AW97: 0 | AX97: 0 | AY97: 0 | AZ97: 996 | BA97: 0 | BB97: 996.0368335 | BE97: BA97 | BF97: Andrew Egan | BG97: UCC | BH97: 534 | BI97: 550 | BJ97: 553 | BK97: 0 | BL97: 554 | BM97: 559 | BN97: 2750 | BO97: 0 | BP97: 2750.055455 | BS97: BN97 | BT97: Katie Hamilton | BU97: UCC | BV97: 0 | BW97: 0 | BX97: 0 | BY97: 0 | BZ97: 491 | CA97: 0 | CB97: 491 | CC97: 0 | CD97: 491.0491
A98: A98 | C98: TBC | D98: TBC | E98: TBC | F98: TBC | G98: TBC | H98: TBC | I98: TBC | K98: 0 | L98: 0 | O98: N98 | Q98: TBC | R98: TBC | S98: TBC | T98: TBC | U98: TBC | V98: TBC | W98: TBC | Y98: 0 | Z98: 0 | AC98: AA98 | AD98: Sean Brogan | AE98: NUIG | AF98: 0 | AG98: 317 | AH98: 389 | AI98: 306 | AJ98: 0 | AK98: 276 | AL98: 1288 | AM98: 0 | AN98: 1288.038932 | AQ98: AN98 | AR98: Raizel Burstein-Frame | AS98: NUIG | AT98: 0 | AU98: 0 | AV98: 187 | AW98: 0 | AX98: 254 | AY98: 317 | AZ98: 758 | BA98: 0 | BB98: 758.0254187 | BE98: BA98 | BF98: Glen Conway | BG98: CD | BH98: 555 | BI98: 546 | BJ98: 557 | BK98: 0 | BL98: 0 | BM98: 560 | BN98: 2218 | BO98: 0 | BP98: 2218.055756 | BS98: BN98 | BU98: TBC | BV98: TBC | BW98: TBC | BX98: TBC | BY98: TBC | BZ98: TBC | CA98: TBC | CC98: 0 | CD98: 0
A99: A99 | C99: TBC | D99: TBC | E99: TBC | F99: TBC | G99: TBC | H99: TBC | I99: TBC | K99: 0 | L99: 0 | O99: N99 | Q99: TBC | R99: TBC | S99: TBC | T99: TBC | U99: TBC | V99: TBC | W99: TBC | Y99: 0 | Z99: 0 | AC99: AA99 | AD99: Darren Griffin | AE99: GMITC | AF99: 309 | AG99: 0 | AH99: 419 | AI99: 0 | AJ99: 359 | AK99: 0 | AL99: 1087 | AM99: 0 | AN99: 1087.041936 | AQ99: AN99 | AR99: Jennifer Keegan | AS99: GMITC | AT99: 0 | AU99: 0 | AV99: 352 | AW99: 0 | AX99: 332 | AY99: 0 | AZ99: 684 | BA99: 0 | BB99: 684.0352332 | BE99: BA99 | BF99: Cillian Byrne | BG99: DCU | BH99: 524 | BI99: 538 | BJ99: 0 | BK99: 542 | BL99: 544 | BM99: 0 | BN99: 2148 | BO99: 0 | BP99: 2148.054454 | BS99: BN99 | BU99: TBC | BV99: TBC | BW99: TBC | BX99: TBC | BY99: TBC | BZ99: TBC | CA99: TBC | CC99: 0 | CD99: 0
A100: A100 | C100: TBC | D100: TBC | E100: TBC | F100: TBC | G100: TBC | H100: TBC | I100: TBC | K100: 0 | L100: 0 | O100: N100 | Q100: TBC | R100: TBC | S100: TBC | T100: TBC | U100: TBC | V100: TBC | W100: TBC | Y100: 0 | Z100: 0 | AC100: AA100 | AD100: Paul Dixon | AE100: GMITC | AF100: 0 | AG100: 0 | AH100: 304 | AI100: 405 | AJ100: 0 | AK100: 274 | AL100: 983 | AM100: 0 | AN100: 983.0405304 | AQ100: AN100 | AR100: Caroline Greene | AS100: GMIT | AT100: 153 | AU100: 0 | AV100: 0 | AW100: 255 | AX100: 245 | AY100: 0 | AZ100: 653 | BA100: 0 | BB100: 653.0255245 | BE100: BA100 | BF100: Sean Scott | BG100: DIT | BH100: 0 | BI100: 513 | BJ100: 524 | BK100: 0 | BL100: 514 | BM100: 513 | BN100: 2064 | BO100: 0 | BP100: 2064.052451 | BS100: BN100 | BU100: TBC | BV100: TBC | BW100: TBC | BX100: TBC | BY100: TBC | BZ100: TBC | CA100: TBC | CC100: 0 | CD100: 0
A101: A101 | C101: TBC | D101: TBC | E101: TBC | F101: TBC | G101: TBC | H101: TBC | I101: TBC | K101: 0 | L101: 0 | O101: N101 | Q101: TBC | R101: TBC | S101: TBC | T101: TBC | U101: TBC | V101: TBC | W101: TBC | Y101: 0 | Z101: 0 | AC101: AA101 | AD101: Stephen Sheppard | AE101: ITC | AF101: 303 | AG101: 259 | AH101: 415 | AI101: 0 | AJ101: 0 | AK101: 0 | AL101: 977 | AM101: 0 | AN101: 977.0415303 | AQ101: AN101 | AR101: Kate Forte | AS101: NUIM | AT101: 0 | AU101: 0 | AV101: 0 | AW101: 210 | AX101: 0 | AY101: 348 | AZ101: 558 | BA101: 0 | BB101: 558.021 | BE101: BA101 | BF101: John Smith | BG101: DIT | BH101: 564 | BI101: 566 | BJ101: 570 | BK101: 0 | BL101: 0 | BM101: 0 | BN101: 1700 | BO101: 0 | BP101: 1700.057057 | BS101: BN101 | BU101: TBC | BV101: TBC | BW101: TBC | BX101: TBC | BY101: TBC | BZ101: TBC | CA101: TBC | CC101: 0 | CD101: 0
A102: A102 | C102: TBC | D102: TBC | E102: TBC | F102: TBC | G102: TBC | H102: TBC | I102: TBC | K102: 0 | L102: 0 | O102: N102 | Q102: TBC | R102: TBC | S102: TBC | T102: TBC | U102: TBC | V102: TBC | W102: TBC | Y102: 0 | Z102: 0 | AC102: AA102 | AD102: Andrew Warrington | AE102: GMITC | AF102: 0 | AG102: 281 | AH102: 0 | AI102: 287 | AJ102: 0 | AK102: 380 | AL102: 948 | AM102: 0 | AN102: 948.0287281 | AQ102: AN102 | AR102: Wiebke Hasselmann | AS102: NUIG | AT102: 0 | AU102: 306 | AV102: 0 | AW102: 0 | AX102: 0 | AY102: 0 | AZ102: 306 | BA102: 0 | BB102: 306.0306 | BE102: BA102 | BF102: Marko Kovacevic | BG102: GMIT | BH102: 515 | BI102: 512 | BJ102: 527 | BK102: 0 | BL102: 0 | BM102: 0 | BN102: 1554 | BO102: 0 | BP102: 1554.052751 | BS102: BN102 | BU102: TBC | BV102: TBC | BW102: TBC | BX102: TBC | BY102: TBC | BZ102: TBC | CA102: TBC | CC102: 0 | CD102: 0
A103: A103 | C103: TBC | D103: TBC | E103: TBC | F103: TBC | G103: TBC | H103: TBC | I103: TBC | K103: 0 | L103: 0 | O103: N103 | Q103: TBC | R103: TBC | S103: TBC | T103: TBC | U103: TBC | V103: TBC | W103: TBC | Y103: 0 | Z103: 0 | AC103: AA103 | AD103: Carlton Bennett | AE103: GMITC | AF103: 0 | AG103: 0 | AH103: 0 | AI103: 269 | AJ103: 283 | AK103: 326 | AL103: 878 | AM103: 0 | AN103: 878.0283269 | AQ103: AN103 | AR103: Tara Kilcommons | AS103: GMITC | AT103: 0 | AU103: 0 | AV103: 0 | AW103: 0 | AX103: 0 | AY103: 283 | AZ103: 283 | BA103: 0 | BB103: 283 | BE103: BA103 | BF103: Will Hurley | BG103: NUIG | BH103: 0 | BI103: 498 | BJ103: 0 | BK103: 0 | BL103: 0 | BM103: 0 | BN103: 498 | BO103: 0 | BP103: 498.0498 | BS103: BN103 | BU103: TBC | BV103: TBC | BW103: TBC | BX103: TBC | BY103: TBC | BZ103: TBC | CA103: TBC | CC103: 0 | CD103: 0
A104: A104 | C104: TBC | D104: TBC | E104: TBC | F104: TBC | G104: TBC | H104: TBC | I104: TBC | K104: 0 | L104: 0 | O104: N104 | Q104: TBC | R104: TBC | S104: TBC | T104: TBC | U104: TBC | V104: TBC | W104: TBC | Y104: 0 | Z104: 0 | AC104: AA104 | AD104: Dara MacEoin | AE104: NUIG | AF104: 241 | AG104: 0 | AH104: 284 | AI104: 267 | AJ104: 0 | AK104: 0 | AL104: 792 | AM104: 0 | AN104: 792.0284267 | AQ104: AN104 | AR104: Abigail Miller | AS104: NUIG | AT104: 0 | AU104: 0 | AV104: 0 | AW104: 258 | AX104: 0 | AY104: 0 | AZ104: 258 | BA104: 0 | BB104: 258.0258 | BE104: BA104 | BF104: Lukas Korcak | BG104: ITC | BH104: 362 | BI104: 0 | BJ104: 0 | BK104: 0 | BL104: 0 | BM104: 0 | BN104: 362 | BO104: 0 | BP104: 362.0362 | BS104: BN104 | BU104: TBC | BV104: TBC | BW104: TBC | BX104: TBC | BY104: TBC | BZ104: TBC | CA104: TBC | CC104: 0 | CD104: 0
A105: A105 | C105: TBC | D105: TBC | E105: TBC | F105: TBC | G105: TBC | H105: TBC | I105: TBC | K105: 0 | L105: 0 | O105: N105 | Q105: TBC | R105: TBC | S105: TBC | T105: TBC | U105: TBC | V105: TBC | W105: TBC | Y105: 0 | Z105: 0 | AC105: AA105 | AD105: Sam Schultz | AE105: NUIG | AF105: 0 | AG105: 0 | AH105: 356 | AI105: 0 | AJ105: 434 | AK105: 0 | AL105: 790 | AM105: 0 | AN105: 790.0434356 | AQ105: AN105 | AR105: Siobhan O'Connor | AS105: GMITC | AT105: 0 | AU105: 0 | AV105: 0 | AW105: 0 | AX105: 256 | AY105: 0 | AZ105: 256 | BA105: 0 | BB105: 256.0256 | BE105: BA105 | BG105: TBC | BH105: TBC | BI105: TBC | BJ105: TBC | BK105: TBC | BL105: TBC | BM105: TBC | BO105: 0 | BP105: 0 | BS105: BN105 | BU105: TBC | BV105: TBC | BW105: TBC | BX105: TBC | BY105: TBC | BZ105: TBC | CA105: TBC | CC105: 0 | CD105: 0
A106: A106 | C106: TBC | D106: TBC | E106: TBC | F106: TBC | G106: TBC | H106: TBC | I106: TBC | K106: 0 | L106: 0 | O106: N106 | Q106: TBC | R106: TBC | S106: TBC | T106: TBC | U106: TBC | V106: TBC | W106: TBC | Y106: 0 | Z106: 0 | AC106: AA106 | AD106: Alan Gibbons | AE106: GMITC | AF106: 0 | AG106: 0 | AH106: 414 | AI106: 0 | AJ106: 0 | AK106: 367 | AL106: 781 | AM106: 0 | AN106: 781.0414 | AQ106: AN106 | AR106: Karina Wrzesinska | AS106: IT Tallaght | AT106: 0 | AU106: 0 | AV106: 0 | AW106: 247 | AX106: 0 | AY106: 0 | AZ106: 247 | BA106: 0 | BB106: 247.0247 | BE106: BA106 | BG106: TBC | BH106: TBC | BI106: TBC | BJ106: TBC | BK106: TBC | BL106: TBC | BM106: TBC | BO106: 0 | BP106: 0 | BS106: BN106 | BU106: TBC | BV106: TBC | BW106: TBC | BX106: TBC | BY106: TBC | BZ106: TBC | CA106: TBC | CC106: 0 | CD106: 0
A107: A107 | C107: TBC | D107: TBC | E107: TBC | F107: TBC | G107: TBC | H107: TBC | I107: TBC | K107: 0 | L107: 0 | O107: N107 | Q107: TBC | R107: TBC | S107: TBC | T107: TBC | U107: TBC | V107: TBC | W107: TBC | Y107: 0 | Z107: 0 | AC107: AA107 | AD107: Liam Maloney | AE107: ITC | AF107: 0 | AG107: 0 | AH107: 377 | AI107: 0 | AJ107: 400 | AK107: 0 | AL107: 777 | AM107: 0 | AN107: 777.0400377 | AQ107: AN107 | AS107: TBC | AT107: TBC | AU107: TBC | AV107: TBC | AW107: TBC | AX107: TBC | AY107: TBC | BA107: 0 | BB107: 0 | BE107: BA107 | BG107: TBC | BH107: TBC | BI107: TBC | BJ107: TBC | BK107: TBC | BL107: TBC | BM107: TBC | BO107: 0 | BP107: 0 | BS107: BN107 | BU107: TBC | BV107: TBC | BW107: TBC | BX107: TBC | BY107: TBC | BZ107: TBC | CA107: TBC | CC107: 0 | CD107: 0
A108: A108 | C108: TBC | D108: TBC | E108: TBC | F108: TBC | G108: TBC | H108: TBC | I108: TBC | K108: 0 | L108: 0 | O108: N108 | Q108: TBC | R108: TBC | S108: TBC | T108: TBC | U108: TBC | V108: TBC | W108: TBC | Y108: 0 | Z108: 0 | AC108: AA108 | AD108: Derek Naughton | AE108: NUIG | AF108: 0 | AG108: 0 | AH108: 0 | AI108: 0 | AJ108: 389 | AK108: 336 | AL108: 725 | AM108: 0 | AN108: 725.0389 | AQ108: AN108 | AS108: TBC | AT108: TBC | AU108: TBC | AV108: TBC | AW108: TBC | AX108: TBC | AY108: TBC | BA108: 0 | BB108: 0 | BE108: BA108 | BG108: TBC | BH108: TBC | BI108: TBC | BJ108: TBC | BK108: TBC | BL108: TBC | BM108: TBC | BO108: 0 | BP108: 0 | BS108: BN108 | BU108: TBC | BV108: TBC | BW108: TBC | BX108: TBC | BY108: TBC | BZ108: TBC | CA108: TBC | CC108: 0 | CD108: 0
A109: A109 | C109: TBC | D109: TBC | E109: TBC | F109: TBC | G109: TBC | H109: TBC | I109: TBC | K109: 0 | L109: 0 | O109: N109 | Q109: TBC | R109: TBC | S109: TBC | T109: TBC | U109: TBC | V109: TBC | W109: TBC | Y109: 0 | Z109: 0 | AC109: AA109 | AD109: Jay Mc Carron | AE109: GMIT | AF109: 370 | AG109: 118 | AH109: 0 | AI109: 210 | AJ109: 0 | AK109: 0 | AL109: 698 | AM109: 0 | AN109: 698.037021 | AQ109: AN109 | AS109: TBC | AT109: TBC | AU109: TBC | AV109: TBC | AW109: TBC | AX109: TBC | AY109: TBC | BA109: 0 | BB109: 0 | BE109: BA109 | BG109: TBC | BH109: TBC | BI109: TBC | BJ109: TBC | BK109: TBC | BL109: TBC | BM109: TBC | BO109: 0 | BP109: 0 | BS109: BN109 | BU109: TBC | BV109: TBC | BW109: TBC | BX109: TBC | BY109: TBC | BZ109: TBC | CA109: TBC | CC109: 0 | CD109: 0
A110: A110 | C110: TBC | D110: TBC | E110: TBC | F110: TBC | G110: TBC | H110: TBC | I110: TBC | K110: 0 | L110: 0 | O110: N110 | Q110: TBC | R110: TBC | S110: TBC | T110: TBC | U110: TBC | V110: TBC | W110: TBC | Y110: 0 | Z110: 0 | AC110: AA110 | AD110: John O'Toole | AE110: NUIM | AF110: 0 | AG110: 0 | AH110: 0 | AI110: 332 | AJ110: 0 | AK110: 344 | AL110: 676 | AM110: 0 | AN110: 676.0332 | AQ110: AN110 | AS110: TBC | AT110: TBC | AU110: TBC | AV110: TBC | AW110: TBC | AX110: TBC | AY110: TBC | BA110: 0 | BB110: 0 | BE110: BA110 | BG110: TBC | BH110: TBC | BI110: TBC | BJ110: TBC | BK110: TBC | BL110: TBC | BM110: TBC | BO110: 0 | BP110: 0 | BS110: BN110 | BU110: TBC | BV110: TBC | BW110: TBC | BX110: TBC | BY110: TBC | BZ110: TBC | CA110: TBC | CC110: 0 | CD110: 0
A111: A111 | C111: TBC | D111: TBC | E111: TBC | F111: TBC | G111: TBC | H111: TBC | I111: TBC | K111: 0 | L111: 0 | O111: N111 | Q111: TBC | R111: TBC | S111: TBC | T111: TBC | U111: TBC | V111: TBC | W111: TBC | Y111: 0 | Z111: 0 | AC111: AA111 | AD111: Tony Keane | AE111: GMITC | AF111: 0 | AG111: 0 | AH111: 0 | AI111: 312 | AJ111: 0 | AK111: 359 | AL111: 671 | AM111: 0 | AN111: 671.0312 | AQ111: AN111 | AS111: TBC | AT111: TBC | AU111: TBC | AV111: TBC | AW111: TBC | AX111: TBC | AY111: TBC | BA111: 0 | BB111: 0 | BE111: BA111 | BG111: TBC | BH111: TBC | BI111: TBC | BJ111: TBC | BK111: TBC | BL111: TBC | BM111: TBC | BO111: 0 | BP111: 0 | BS111: BN111 | BU111: TBC | BV111: TBC | BW111: TBC | BX111: TBC | BY111: TBC | BZ111: TBC | CA111: TBC | CC111: 0 | CD111: 0
A112: A112 | C112: TBC | D112: TBC | E112: TBC | F112: TBC | G112: TBC | H112: TBC | I112: TBC | K112: 0 | L112: 0 | O112: N112 | Q112: TBC | R112: TBC | S112: TBC | T112: TBC | U112: TBC | V112: TBC | W112: TBC | Y112: 0 | Z112: 0 | AC112: AA112 | AD112: Marc Creehan | AE112: UCC | AF112: 0 | AG112: 0 | AH112: 259 | AI112: 0 | AJ112: 161 | AK112: 246 | AL112: 666 | AM112: 0 | AN112: 666.0259161 | AQ112: AN112 | AS112: TBC | AT112: TBC | AU112: TBC | AV112: TBC | AW112: TBC | AX112: TBC | AY112: TBC | BA112: 0 | BB112: 0 | BE112: BA112 | BG112: TBC | BH112: TBC | BI112: TBC | BJ112: TBC | BK112: TBC | BL112: TBC | BM112: TBC | BO112: 0 | BP112: 0 | BS112: BN112 | BU112: TBC | BV112: TBC | BW112: TBC | BX112: TBC | BY112: TBC | BZ112: TBC | CA112: TBC | CC112: 0 | CD112: 0
A113: A113 | C113: TBC | D113: TBC | E113: TBC | F113: TBC | G113: TBC | H113: TBC | I113: TBC | K113: 0 | L113: 0 | O113: N113 | Q113: TBC | R113: TBC | S113: TBC | T113: TBC | U113: TBC | V113: TBC | W113: TBC | Y113: 0 | Z113: 0 | AC113: AA113 | AD113: David Doyle | AE113: NUIM | AF113: 0 | AG113: 0 | AH113: 0 | AI113: 0 | AJ113: 331 | AK113: 277 | AL113: 608 | AM113: 0 | AN113: 608.0331 | AQ113: AN113 | AS113: TBC | AT113: TBC | AU113: TBC | AV113: TBC | AW113: TBC | AX113: TBC | AY113: TBC | BA113: 0 | BB113: 0 | BE113: BA113 | BG113: TBC | BH113: TBC | BI113: TBC | BJ113: TBC | BK113: TBC | BL113: TBC | BM113: TBC | BO113: 0 | BP113: 0 | BS113: BN113 | BU113: TBC | BV113: TBC | BW113: TBC | BX113: TBC | BY113: TBC | BZ113: TBC | CA113: TBC | CC113: 0 | CD113: 0
A114: A114 | C114: TBC | D114: TBC | E114: TBC | F114: TBC | G114: TBC | H114: TBC | I114: TBC | K114: 0 | L114: 0 | O114: N114 | Q114: TBC | R114: TBC | S114: TBC | T114: TBC | U114: TBC | V114: TBC | W114: TBC | Y114: 0 | Z114: 0 | AC114: AA114 | AD114: Aiman Rahim | AE114: RCSI | AF114: 331 | AG114: 0 | AH114: 0 | AI114: 0 | AJ114: 0 | AK114: 216 | AL114: 547 | AM114: 0 | AN114: 547.0331 | AQ114: AN114 | AS114: TBC | AT114: TBC | AU114: TBC | AV114: TBC | AW114: TBC | AX114: TBC | AY114: TBC | BA114: 0 | BB114: 0 | BE114: BA114 | BG114: TBC | BH114: TBC | BI114: TBC | BJ114: TBC | BK114: TBC | BL114: TBC | BM114: TBC | BO114: 0 | BP114: 0 | BS114: BN114 | BU114: TBC | BV114: TBC | BW114: TBC | BX114: TBC | BY114: TBC | BZ114: TBC | CA114: TBC | CC114: 0 | CD114: 0
A115: A115 | C115: TBC | D115: TBC | E115: TBC | F115: TBC | G115: TBC | H115: TBC | I115: TBC | K115: 0 | L115: 0 | O115: N115 | Q115: TBC | R115: TBC | S115: TBC | T115: TBC | U115: TBC | V115: TBC | W115: TBC | Y115: 0 | Z115: 0 | AC115: AA115 | AD115: Daeln Murphy | AE115: DCU | AF115: 216 | AG115: 292 | AH115: 0 | AI115: 0 | AJ115: 0 | AK115: 0 | AL115: 508 | AM115: 0 | AN115: 508.0292216 | AQ115: AN115 | AS115: TBC | AT115: TBC | AU115: TBC | AV115: TBC | AW115: TBC | AX115: TBC | AY115: TBC | BA115: 0 | BB115: 0 | BE115: BA115 | BG115: TBC | BH115: TBC | BI115: TBC | BJ115: TBC | BK115: TBC | BL115: TBC | BM115: TBC | BO115: 0 | BP115: 0 | BS115: BN115 | BU115: TBC | BV115: TBC | BW115: TBC | BX115: TBC | BY115: TBC | BZ115: TBC | CA115: TBC | CC115: 0 | CD115: 0
A116: A116 | C116: TBC | D116: TBC | E116: TBC | F116: TBC | G116: TBC | H116: TBC | I116: TBC | K116: 0 | L116: 0 | O116: N116 | Q116: TBC | R116: TBC | S116: TBC | T116: TBC | U116: TBC | V116: TBC | W116: TBC | Y116: 0 | Z116: 0 | AC116: AA116 | AD116: Brian Breslin | AE116: ITC | AF116: 224 | AG116: 227 | AH116: 0 | AI116: 0 | AJ116: 0 | AK116: 0 | AL116: 451 | AM116: 0 | AN116: 451.0227224 | AQ116: AN116 | AS116: TBC | AT116: TBC | AU116: TBC | AV116: TBC | AW116: TBC | AX116: TBC | AY116: TBC | BA116: 0 | BB116: 0 | BE116: BA116 | BG116: TBC | BH116: TBC | BI116: TBC | BJ116: TBC | BK116: TBC | BL116: TBC | BM116: TBC | BO116: 0 | BP116: 0 | BS116: BN116 | BU116: TBC | BV116: TBC | BW116: TBC | BX116: TBC | BY116: TBC | BZ116: TBC | CA116: TBC | CC116: 0 | CD116: 0
A117: A117 | C117: TBC | D117: TBC | E117: TBC | F117: TBC | G117: TBC | H117: TBC | I117: TBC | K117: 0 | L117: 0 | O117: N117 | Q117: TBC | R117: TBC | S117: TBC | T117: TBC | U117: TBC | V117: TBC | W117: TBC | Y117: 0 | Z117: 0 | AC117: AA117 | AD117: Alan Sheppard | AE117: ITC | AF117: 187 | AG117: 248 | AH117: 0 | AI117: 0 | AJ117: 0 | AK117: 0 | AL117: 435 | AM117: 0 | AN117: 435.0248187 | AQ117: AN117 | AS117: TBC | AT117: TBC | AU117: TBC | AV117: TBC | AW117: TBC | AX117: TBC | AY117: TBC | BA117: 0 | BB117: 0 | BE117: BA117 | BG117: TBC | BH117: TBC | BI117: TBC | BJ117: TBC | BK117: TBC | BL117: TBC | BM117: TBC | BO117: 0 | BP117: 0 | BS117: BN117 | BU117: TBC | BV117: TBC | BW117: TBC | BX117: TBC | BY117: TBC | BZ117: TBC | CA117: TBC | CC117: 0 | CD117: 0
A118: A118 | C118: TBC | D118: TBC | E118: TBC | F118: TBC | G118: TBC | H118: TBC | I118: TBC | K118: 0 | L118: 0 | O118: N118 | Q118: TBC | R118: TBC | S118: TBC | T118: TBC | U118: TBC | V118: TBC | W118: TBC | Y118: 0 | Z118: 0 | AC118: AA118 | AD118: Gary Smith | AE118: IT Tallaght | AF118: 0 | AG118: 0 | AH118: 0 | AI118: 0 | AJ118: 0 | AK118: 331 | AL118: 331 | AM118: 0 | AN118: 331 | AQ118: AN118 | AS118: TBC | AT118: TBC | AU118: TBC | AV118: TBC | AW118: TBC | AX118: TBC | AY118: TBC | BA118: 0 | BB118: 0 | BE118: BA118 | BG118: TBC | BH118: TBC | BI118: TBC | BJ118: TBC | BK118: TBC | BL118: TBC | BM118: TBC | BO118: 0 | BP118: 0 | BS118: BN118 | BU118: TBC | BV118: TBC | BW118: TBC | BX118: TBC | BY118: TBC | BZ118: TBC | CA118: TBC | CC118: 0 | CD118: 0
A119: A119 | C119: TBC | D119: TBC | E119: TBC | F119: TBC | G119: TBC | H119: TBC | I119: TBC | K119: 0 | L119: 0 | O119: N119 | Q119: TBC | R119: TBC | S119: TBC | T119: TBC | U119: TBC | V119: TBC | W119: TBC | Y119: 0 | Z119: 0 | AC119: AA119 | AD119: Nik Idlan Faiq | AE119: RCSI | AF119: 0 | AG119: 174 | AH119: 0 | AI119: 0 | AJ119: 0 | AK119: 108 | AL119: 282 | AM119: 0 | AN119: 282.0174 | AQ119: AN119 | AS119: TBC | AT119: TBC | AU119: TBC | AV119: TBC | AW119: TBC | AX119: TBC | AY119: TBC | BA119: 0 | BB119: 0 | BE119: BA119 | BG119: TBC | BH119: TBC | BI119: TBC | BJ119: TBC | BK119: TBC | BL119: TBC | BM119: TBC | BO119: 0 | BP119: 0 | BS119: BN119 | BU119: TBC | BV119: TBC | BW119: TBC | BX119: TBC | BY119: TBC | BZ119: TBC | CA119: TBC | CC119: 0 | CD119: 0
A120: A120 | C120: TBC | D120: TBC | E120: TBC | F120: TBC | G120: TBC | H120: TBC | I120: TBC | K120: 0 | L120: 0 | O120: N120 | Q120: TBC | R120: TBC | S120: TBC | T120: TBC | U120: TBC | V120: TBC | W120: TBC | Y120: 0 | Z120: 0 | AC120: AA120 | AD120: Eamonn Dunleavy | AE120: GMITC | AF120: 0 | AG120: 280 | AH120: 0 | AI120: 0 | AJ120: 0 | AK120: 0 | AL120: 280 | AM120: 0 | AN120: 280.028 | AQ120: AN120 | AS120: TBC | AT120: TBC | AU120: TBC | AV120: TBC | AW120: TBC | AX120: TBC | AY120: TBC | BA120: 0 | BB120: 0 | BE120: BA120 | BG120: TBC | BH120: TBC | BI120: TBC | BJ120: TBC | BK120: TBC | BL120: TBC | BM120: TBC | BO120: 0 | BP120: 0 | BS120: BN120 | BU120: TBC | BV120: TBC | BW120: TBC | BX120: TBC | BY120: TBC | BZ120: TBC | CA120: TBC | CC120: 0 | CD120: 0
A121: A121 | C121: TBC | D121: TBC | E121: TBC | F121: TBC | G121: TBC | H121: TBC | I121: TBC | K121: 0 | L121: 0 | O121: N121 | Q121: TBC | R121: TBC | S121: TBC | T121: TBC | U121: TBC | V121: TBC | W121: TBC | Y121: 0 | Z121: 0 | AC121: AA121 | AD121: Marco Tulios | AE121: GMITC | AF121: 0 | AG121: 0 | AH121: 0 | AI121: 0 | AJ121: 279 | AK121: 0 | AL121: 279 | AM121: 0 | AN121: 279.0279 | AQ121: AN121 | AS121: TBC | AT121: TBC | AU121: TBC | AV121: TBC | AW121: TBC | AX121: TBC | AY121: TBC | BA121: 0 | BB121: 0 | BE121: BA121 | BG121: TBC | BH121: TBC | BI121: TBC | BJ121: TBC | BK121: TBC | BL121: TBC | BM121: TBC | BO121: 0 | BP121: 0 | BS121: BN121 | BU121: TBC | BV121: TBC | BW121: TBC | BX121: TBC | BY121: TBC | BZ121: TBC | CA121: TBC | CC121: 0 | CD121: 0
A122: A122 | C122: TBC | D122: TBC | E122: TBC | F122: TBC | G122: TBC | H122: TBC | I122: TBC | K122: 0 | L122: 0 | O122: N122 | Q122: TBC | R122: TBC | S122: TBC | T122: TBC | U122: TBC | V122: TBC | W122: TBC | Y122: 0 | Z122: 0 | AC122: AA122 | AD122: conor watkins | AE122: UL | AF122: 278 | AG122: 0 | AH122: 0 | AI122: 0 | AJ122: 0 | AK122: 0 | AL122: 278 | AM122: 0 | AN122: 278.0278 | AQ122: AN122 | AS122: TBC | AT122: TBC | AU122: TBC | AV122: TBC | AW122: TBC | AX122: TBC | AY122: TBC | BA122: 0 | BB122: 0 | BE122: BA122 | BG122: TBC | BH122: TBC | BI122: TBC | BJ122: TBC | BK122: TBC | BL122: TBC | BM122: TBC | BO122: 0 | BP122: 0 | BS122: BN122 | BU122: TBC | BV122: TBC | BW122: TBC | BX122: TBC | BY122: TBC | BZ122: TBC | CA122: TBC | CC122: 0 | CD122: 0
A123: A123 | C123: TBC | D123: TBC | E123: TBC | F123: TBC | G123: TBC | H123: TBC | I123: TBC | K123: 0 | L123: 0 | O123: N123 | Q123: TBC | R123: TBC | S123: TBC | T123: TBC | U123: TBC | V123: TBC | W123: TBC | Y123: 0 | Z123: 0 | AC123: AA123 | AD123: Omar Mustafa | AE123: NUIG | AF123: 0 | AG123: 0 | AH123: 0 | AI123: 0 | AJ123: 270 | AK123: 0 | AL123: 270 | AM123: 0 | AN123: 270.027 | AQ123: AN123 | AS123: TBC | AT123: TBC | AU123: TBC | AV123: TBC | AW123: TBC | AX123: TBC | AY123: TBC | BA123: 0 | BB123: 0 | BE123: BA123 | BG123: TBC | BH123: TBC | BI123: TBC | BJ123: TBC | BK123: TBC | BL123: TBC | BM123: TBC | BO123: 0 | BP123: 0 | BS123: BN123 | BU123: TBC | BV123: TBC | BW123: TBC | BX123: TBC | BY123: TBC | BZ123: TBC | CA123: TBC | CC123: 0 | CD123: 0
A124: A124 | C124: TBC | D124: TBC | E124: TBC | F124: TBC | G124: TBC | H124: TBC | I124: TBC | K124: 0 | L124: 0 | O124: N124 | Q124: TBC | R124: TBC | S124: TBC | T124: TBC | U124: TBC | V124: TBC | W124: TBC | Y124: 0 | Z124: 0 | AC124: AA124 | AD124: Kevin May | AE124: RCSI | AF124: 254 | AG124: 0 | AH124: 0 | AI124: 0 | AJ124: 0 | AK124: 0 | AL124: 254 | AM124: 0 | AN124: 254.0254 | AQ124: AN124 | AS124: TBC | AT124: TBC | AU124: TBC | AV124: TBC | AW124: TBC | AX124: TBC | AY124: TBC | BA124: 0 | BB124: 0 | BE124: BA124 | BG124: TBC | BH124: TBC | BI124: TBC | BJ124: TBC | BK124: TBC | BL124: TBC | BM124: TBC | BO124: 0 | BP124: 0 | BS124: BN124 | BU124: TBC | BV124: TBC | BW124: TBC | BX124: TBC | BY124: TBC | BZ124: TBC | CA124: TBC | CC124: 0 | CD124: 0
A125: A125 | C125: TBC | D125: TBC | E125: TBC | F125: TBC | G125: TBC | H125: TBC | I125: TBC | K125: 0 | L125: 0 | O125: N125 | Q125: TBC | R125: TBC | S125: TBC | T125: TBC | U125: TBC | V125: TBC | W125: TBC | Y125: 0 | Z125: 0 | AC125: AA125 | AD125: Eammon McGrory | AE125: NUIM | AF125: 0 | AG125: 239 | AH125: 0 | AI125: 0 | AJ125: 0 | AK125: 0 | AL125: 239 | AM125: 0 | AN125: =IF(AE125="TBC",0,(AL125-AM125)+(LARGE(AF125:AJ125,1)/10000)+(LARGE(AF125:AJ125,2)/10000000)) -> 239.0239 | AQ125: AN125 | AS125: TBC | AT125: TBC | AU125: TBC | AV125: TBC | AW125: TBC | AX125: TBC | AY125: TBC | BA125: 0 | BB125: =IF(AS125="TBC",0,(AZ125-BA125)+(LARGE(AT125:AX125,1)/10000)+(LARGE(AT125:AX125,2)/10000000)) -> 0 | BE125: BA125 | BG125: TBC | BH125: TBC | BI125: TBC | BJ125: TBC | BK125: TBC | BL125: TBC | BM125: TBC | BO125: 0 | BP125: =IF(BG125="TBC",0,(BN125-BO125)+(LARGE(BH125:BL125,1)/10000)+(LARGE(BH125:BL125,2)/10000000)) -> 0 | BS125: BN125 | BU125: TBC | BV125: TBC | BW125: TBC | BX125: TBC | BY125: TBC | BZ125: TBC | CA125: TBC | CC125: 0 | CD125: =IF(BU125="TBC",0,(CB125-CC125)+(LARGE(BV125:BZ125,1)/10000)+(LARGE(BV125:BZ125,2)/10000000)) -> 0
A126: A126 | C126: TBC | D126: TBC | E126: TBC | F126: TBC | G126: TBC | H126: TBC | I126: TBC | K126: 0 | L126: 0 | O126: N126 | Q126: TBC | R126: TBC | S126: TBC | T126: TBC | U126: TBC | V126: TBC | W126: TBC | Y126: 0 | Z126: 0 | AC126: AA126 | AD126: Simon Lavin | AE126: GMITC | AF126: 0 | AG126: 0 | AH126: 0 | AI126: 232 | AJ126: 0 | AK126: 0 | AL126: 232 | AM126: 0 | AN126: 232.0232 | AQ126: AN126 | AS126: TBC | AT126: TBC | AU126: TBC | AV126: TBC | AW126: TBC | AX126: TBC | AY126: TBC | BA126: 0 | BB126: 0 | BE126: BA126 | BG126: TBC | BH126: TBC | BI126: TBC | BJ126: TBC | BK126: TBC | BL126: TBC | BM126: TBC | BO126: 0 | BP126: 0 | BS126: BN126 | BU126: TBC | BV126: TBC | BW126: TBC | BX126: TBC | BY126: TBC | BZ126: TBC | CA126: TBC | CC126: 0 | CD126: 0
A127: A127 | C127: TBC | D127: TBC | E127: TBC | F127: TBC | G127: TBC | H127: TBC | I127: TBC | K127: 0 | L127: 0 | O127: N127 | Q127: TBC | R127: TBC | S127: TBC | T127: TBC | U127: TBC | V127: TBC | W127: TBC | Y127: 0 | Z127: 0 | AC127: AA127 | AD127: Jonathan Cassidy | AE127: NUIG | AF127: 0 | AG127: 0 | AH127: 0 | AI127: 0 | AJ127: 229 | AK127: 0 | AL127: 229 | AM127: 0 | AN127: 229.0229 | AQ127: AN127 | AS127: TBC | AT127: TBC | AU127: TBC | AV127: TBC | AW127: TBC | AX127: TBC | AY127: TBC | BA127: 0 | BB127: 0 | BE127: BA127 | BG127: TBC | BH127: TBC | BI127: TBC | BJ127: TBC | BK127: TBC | BL127: TBC | BM127: TBC | BO127: 0 | BP127: 0 | BS127: BN127 | BU127: TBC | BV127: TBC | BW127: TBC | BX127: TBC | BY127: TBC | BZ127: TBC | CA127: TBC | CC127: 0 | CD127: 0
A128: A128 | C128: TBC | D128: TBC | E128: TBC | F128: TBC | G128: TBC | H128: TBC | I128: TBC | K128: 0 | L128: 0 | O128: N128 | Q128: TBC | R128: TBC | S128: TBC | T128: TBC | U128: TBC | V128: TBC | W128: TBC | Y128: 0 | Z128: 0 | AC128: AA128 | AD128: Robert Dore | AE128: IT Tallaght | AF128: 0 | AG128: 0 | AH128: 0 | AI128: 223 | AJ128: 0 | AK128: 0 | AL128: 223 | AM128: 0 | AN128: 223.0223 | AQ128: AN128 | AS128: TBC | AT128: TBC | AU128: TBC | AV128: TBC | AW128: TBC | AX128: TBC | AY128: TBC | BA128: 0 | BB128: 0 | BE128: BA128 | BG128: TBC | BH128: TBC | BI128: TBC | BJ128: TBC | BK128: TBC | BL128: TBC | BM128: TBC | BO128: 0 | BP128: 0 | BS128: BN128 | BU128: TBC | BV128: TBC | BW128: TBC | BX128: TBC | BY128: TBC | BZ128: TBC | CA128: TBC | CC128: 0 | CD128: 0
A129: A129 | C129: TBC | D129: TBC | E129: TBC | F129: TBC | G129: TBC | H129: TBC | I129: TBC | K129: 0 | L129: 0 | O129: N129 | Q129: TBC | R129: TBC | S129: TBC | T129: TBC | U129: TBC | V129: TBC | W129: TBC | Y129: 0 | Z129: 0 | AC129: AA129 | AD129: Lukas Frese | AE129: UCD | AF129: 0 | AG129: 0 | AH129: 0 | AI129: 0 | AJ129: 0 | AK129: 204 | AL129: 204 | AM129: 0 | AN129: 204 | AQ129: AN129 | AS129: TBC | AT129: TBC | AU129: TBC | AV129: TBC | AW129: TBC | AX129: TBC | AY129: TBC | BA129: 0 | BB129: 0 | BE129: BA129 | BG129: TBC | BH129: TBC | BI129: TBC | BJ129: TBC | BK129: TBC | BL129: TBC | BM129: TBC | BO129: 0 | BP129: 0 | BS129: BN129 | BU129: TBC | BV129: TBC | BW129: TBC | BX129: TBC | BY129: TBC | BZ129: TBC | CA129: TBC | CC129: 0 | CD129: 0
A130: A130 | C130: TBC | D130: TBC | E130: TBC | F130: TBC | G130: TBC | H130: TBC | I130: TBC | K130: 0 | L130: 0 | O130: N130 | Q130: TBC | R130: TBC | S130: TBC | T130: TBC | U130: TBC | V130: TBC | W130: TBC | Y130: 0 | Z130: 0 | AC130: AA130 | AD130: Keelan Bancroft | AE130: GMITC | AF130: 0 | AG130: 0 | AH130: 0 | AI130: 0 | AJ130: 0 | AK130: 147 | AL130: 147 | AM130: 0 | AN130: 147 | AQ130: AN130 | AS130: TBC | AT130: TBC | AU130: TBC | AV130: TBC | AW130: TBC | AX130: TBC | AY130: TBC | BA130: 0 | BB130: 0 | BE130: BA130 | BG130: TBC | BH130: TBC | BI130: TBC | BJ130: TBC | BK130: TBC | BL130: TBC | BM130: TBC | BO130: 0 | BP130: 0 | BS130: BN130 | BU130: TBC | BV130: TBC | BW130: TBC | BX130: TBC | BY130: TBC | BZ130: TBC | CA130: TBC | CC130: 0 | CD130: 0
A131: A131 | C131: TBC | D131: TBC | E131: TBC | F131: TBC | G131: TBC | H131: TBC | I131: TBC | K131: 0 | L131: 0 | O131: N131 | Q131: TBC | R131: TBC | S131: TBC | T131: TBC | U131: TBC | V131: TBC | W131: TBC | Y131: 0 | Z131: 0 | AC131: AA131 | AD131: Arief Naimun | AE131: RCSI | AF131: 0 | AG131: 0 | AH131: 0 | AI131: 143 | AJ131: 0 | AK131: 0 | AL131: 143 | AM131: 0 | AN131: 143.0143 | AQ131: AN131 | AS131: TBC | AT131: TBC | AU131: TBC | AV131: TBC | AW131: TBC | AX131: TBC | AY131: TBC | BA131: 0 | BB131: 0 | BE131: BA131 | BG131: TBC | BH131: TBC | BI131: TBC | BJ131: TBC | BK131: TBC | BL131: TBC | BM131: TBC | BO131: 0 | BP131: 0 | BS131: BN131 | BU131: TBC | BV131: TBC | BW131: TBC | BX131: TBC | BY131: TBC | BZ131: TBC | CA131: TBC | CC131: 0 | CD131: 0
A132: A132 | C132: TBC | D132: TBC | E132: TBC | F132: TBC | G132: TBC | H132: TBC | I132: TBC | K132: 0 | L132: 0 | O132: N132 | Q132: TBC | R132: TBC | S132: TBC | T132: TBC | U132: TBC | V132: TBC | W132: TBC | Y132: 0 | Z132: 0 | AC132: AA132 | AD132: Derek Dooley | AE132: GMITC | AF132: 0 | AG132: 0 | AH132: 0 | AI132: 136 | AJ132: 0 | AK132: 0 | AL132: 136 | AM132: 0 | AN132: 136.0136 | AQ132: AN132 | AS132: TBC | AT132: TBC | AU132: TBC | AV132: TBC | AW132: TBC | AX132: TBC | AY132: TBC | BA132: 0 | BB132: 0 | BE132: BA132 | BG132: TBC | BH132: TBC | BI132: TBC | BJ132: TBC | BK132: TBC | BL132: TBC | BM132: TBC | BO132: 0 | BP132: 0 | BS132: BN132 | BU132: TBC | BV132: TBC | BW132: TBC | BX132: TBC | BY132: TBC | BZ132: TBC | CA132: TBC | CC132: 0 | CD132: 0
A133: A133 | C133: TBC | D133: TBC | E133: TBC | F133: TBC | G133: TBC | H133: TBC | I133: TBC | K133: 0 | L133: 0 | O133: N133 | Q133: TBC | R133: TBC | S133: TBC | T133: TBC | U133: TBC | V133: TBC | W133: TBC | Y133: 0 | Z133: 0 | AC133: AA133 | AD133: Paul Fox | AE133: RCSI | AF133: 0 | AG133: 0 | AH133: 0 | AI133: 131 | AJ133: 0 | AK133: 0 | AL133: 131 | AM133: 0 | AN133: 131.0131 | AQ133: AN133 | AS133: TBC | AT133: TBC | AU133: TBC | AV133: TBC | AW133: TBC | AX133: TBC | AY133: TBC | BA133: 0 | BB133: 0 | BE133: BA133 | BG133: TBC | BH133: TBC | BI133: TBC | BJ133: TBC | BK133: TBC | BL133: TBC | BM133: TBC | BO133: 0 | BP133: 0 | BS133: BN133 | BU133: TBC | BV133: TBC | BW133: TBC | BX133: TBC | BY133: TBC | BZ133: TBC | CA133: TBC | CC133: 0 | CD133: 0
A134: A134 | C134: TBC | D134: TBC | E134: TBC | F134: TBC | G134: TBC | H134: TBC | I134: TBC | K134: 0 | L134: 0 | O134: N134 | Q134: TBC | R134: TBC | S134: TBC | T134: TBC | U134: TBC | V134: TBC | W134: TBC | Y134: 0 | Z134: 0 | AC134: AA134 | AD134: Craig Hill | AE134: GMITC | AF134: 0 | AG134: 0 | AH134: 0 | AI134: 0 | AJ134: 123 | AK134: 0 | AL134: 123 | AM134: 0 | AN134: 123.0123 | AQ134: AN134 | AS134: TBC | AT134: TBC | AU134: TBC | AV134: TBC | AW134: TBC | AX134: TBC | AY134: TBC | BA134: 0 | BB134: 0 | BE134: BA134 | BG134: TBC | BH134: TBC | BI134: TBC | BJ134: TBC | BK134: TBC | BL134: TBC | BM134: TBC | BO134: 0 | BP134: 0 | BS134: BN134 | BU134: TBC | BV134: TBC | BW134: TBC | BX134: TBC | BY134: TBC | BZ134: TBC | CA134: TBC | CC134: 0 | CD134: 0
A135: A135 | C135: TBC | D135: TBC | E135: TBC | F135: TBC | G135: TBC | H135: TBC | I135: TBC | K135: 0 | L135: 0 | O135: N135 | Q135: TBC | R135: TBC | S135: TBC | T135: TBC | U135: TBC | V135: TBC | W135: TBC | Y135: 0 | Z135: 0 | AC135: AA135 | AD135: Cody Meadows | AE135: NUIG | AF135: 0 | AG135: 0 | AH135: 0 | AI135: 0 | AJ135: 105 | AK135: 0 | AL135: 105 | AM135: 0 | AN135: 105.0105 | AQ135: AN135 | AS135: TBC | AT135: TBC | AU135: TBC | AV135: TBC | AW135: TBC | AX135: TBC | AY135: TBC | BA135: 0 | BB135: 0 | BE135: BA135 | BG135: TBC | BH135: TBC | BI135: TBC | BJ135: TBC | BK135: TBC | BL135: TBC | BM135: TBC | BO135: 0 | BP135: 0 | BS135: BN135 | BU135: TBC | BV135: TBC | BW135: TBC | BX135: TBC | BY135: TBC | BZ135: TBC | CA135: TBC | CC135: 0 | CD135: 0
A136: A136 | C136: TBC | D136: TBC | E136: TBC | F136: TBC | G136: TBC | H136: TBC | I136: TBC | K136: 0 | L136: 0 | O136: N136 | Q136: TBC | R136: TBC | S136: TBC | T136: TBC | U136: TBC | V136: TBC | W136: TBC | Y136: 0 | Z136: 0 | AC136: AA136 | AE136: TBC | AF136: TBC | AG136: TBC | AH136: TBC | AI136: TBC | AJ136: TBC | AK136: TBC | AM136: 0 | AN136: 0 | AQ136: AN136 | AS136: TBC | AT136: TBC | AU136: TBC | AV136: TBC | AW136: TBC | AX136: TBC | AY136: TBC | BA136: 0 | BB136: 0 | BE136: BA136 | BG136: TBC | BH136: TBC | BI136: TBC | BJ136: TBC | BK136: TBC | BL136: TBC | BM136: TBC | BO136: 0 | BP136: 0 | BS136: BN136 | BU136: TBC | BV136: TBC | BW136: TBC | BX136: TBC | BY136: TBC | BZ136: TBC | CA136: TBC | CC136: 0 | CD136: 0
A137: A137 | C137: TBC | D137: TBC | E137: TBC | F137: TBC | G137: TBC | H137: TBC | I137: TBC | K137: 0 | L137: 0 | O137: N137 | Q137: TBC | R137: TBC | S137: TBC | T137: TBC | U137: TBC | V137: TBC | W137: TBC | Y137: 0 | Z137: 0 | AC137: AA137 | AE137: TBC | AF137: TBC | AG137: TBC | AH137: TBC | AI137: TBC | AJ137: TBC | AK137: TBC | AM137: 0 | AN137: 0 | AQ137: AN137 | AS137: TBC | AT137: TBC | AU137: TBC | AV137: TBC | AW137: TBC | AX137: TBC | AY137: TBC | BA137: 0 | BB137: 0 | BE137: BA137 | BG137: TBC | BH137: TBC | BI137: TBC | BJ137: TBC | BK137: TBC | BL137: TBC | BM137: TBC | BO137: 0 | BP137: 0 | BS137: BN137 | BU137: TBC | BV137: TBC | BW137: TBC | BX137: TBC | BY137: TBC | BZ137: TBC | CA137: TBC | CC137: 0 | CD137: 0
A138: A138 | C138: TBC | D138: TBC | E138: TBC | F138: TBC | G138: TBC | H138: TBC | I138: TBC | K138: 0 | L138: 0 | O138: N138 | Q138: TBC | R138: TBC | S138: TBC | T138: TBC | U138: TBC | V138: TBC | W138: TBC | Y138: 0 | Z138: 0 | AC138: AA138 | AE138: TBC | AF138: TBC | AG138: TBC | AH138: TBC | AI138: TBC | AJ138: TBC | AK138: TBC | AM138: 0 | AN138: 0 | AQ138: AN138 | AS138: TBC | AT138: TBC | AU138: TBC | AV138: TBC | AW138: TBC | AX138: TBC | AY138: TBC | BA138: 0 | BB138: 0 | BE138: BA138 | BG138: TBC | BH138: TBC | BI138: TBC | BJ138: TBC | BK138: TBC | BL138: TBC | BM138: TBC | BO138: 0 | BP138: 0 | BS138: BN138 | BU138: TBC | BV138: TBC | BW138: TBC | BX138: TBC | BY138: TBC | BZ138: TBC | CA138: TBC | CC138: 0 | CD138: 0
A139: A139 | C139: TBC | D139: TBC | E139: TBC | F139: TBC | G139: TBC | H139: TBC | I139: TBC | K139: 0 | L139: 0 | O139: N139 | Q139: TBC | R139: TBC | S139: TBC | T139: TBC | U139: TBC | V139: TBC | W139: TBC | Y139: 0 | Z139: 0 | AC139: AA139 | AE139: TBC | AF139: TBC | AG139: TBC | AH139: TBC | AI139: TBC | AJ139: TBC | AK139: TBC | AM139: 0 | AN139: 0 | AQ139: AN139 | AS139: TBC | AT139: TBC | AU139: TBC | AV139: TBC | AW139: TBC | AX139: TBC | AY139: TBC | BA139: 0 | BB139: 0 | BE139: BA139 | BG139: TBC | BH139: TBC | BI139: TBC | BJ139: TBC | BK139: TBC | BL139: TBC | BM139: TBC | BO139: 0 | BP139: 0 | BS139: BN139 | BU139: TBC | BV139: TBC | BW139: TBC | BX139: TBC | BY139: TBC | BZ139: TBC | CA139: TBC | CC139: 0 | CD139: 0
A140: A140 | C140: TBC | D140: TBC | E140: TBC | F140: TBC | G140: TBC | H140: TBC | I140: TBC | K140: 0 | L140: 0 | O140: N140 | Q140: TBC | R140: TBC | S140: TBC | T140: TBC | U140: TBC | V140: TBC | W140: TBC | Y140: 0 | Z140: 0 | AC140: AA140 | AE140: TBC | AF140: TBC | AG140: TBC | AH140: TBC | AI140: TBC | AJ140: TBC | AK140: TBC | AM140: 0 | AN140: 0 | AQ140: AN140 | AS140: TBC | AT140: TBC | AU140: TBC | AV140: TBC | AW140: TBC | AX140: TBC | AY140: TBC | BA140: 0 | BB140: 0 | BE140: BA140 | BG140: TBC | BH140: TBC | BI140: TBC | BJ140: TBC | BK140: TBC | BL140: TBC | BM140: TBC | BO140: 0 | BP140: 0 | BS140: BN140 | BU140: TBC | BV140: TBC | BW140: TBC | BX140: TBC | BY140: TBC | BZ140: TBC | CA140: TBC | CC140: 0 | CD140: 0
A141: A141 | C141: TBC | D141: TBC | E141: TBC | F141: TBC | G141: TBC | H141: TBC | I141: TBC | K141: 0 | L141: 0 | O141: N141 | Q141: TBC | R141: TBC | S141: TBC | T141: TBC | U141: TBC | V141: TBC | W141: TBC | Y141: 0 | Z141: 0 | AC141: AA141 | AE141: TBC | AF141: TBC | AG141: TBC | AH141: TBC | AI141: TBC | AJ141: TBC | AK141: TBC | AM141: 0 | AN141: 0 | AQ141: AN141 | AS141: TBC | AT141: TBC | AU141: TBC | AV141: TBC | AW141: TBC | AX141: TBC | AY141: TBC | BA141: 0 | BB141: 0 | BE141: BA141 | BG141: TBC | BH141: TBC | BI141: TBC | BJ141: TBC | BK141: TBC | BL141: TBC | BM141: TBC | BO141: 0 | BP141: 0 | BS141: BN141 | BU141: TBC | BV141: TBC | BW141: TBC | BX141: TBC | BY141: TBC | BZ141: TBC | CA141: TBC | CC141: 0 | CD141: 0
A142: A142 | C142: TBC | D142: TBC | E142: TBC | F142: TBC | G142: TBC | H142: TBC | I142: TBC | K142: 0 | L142: 0 | O142: N142 | Q142: TBC | R142: TBC | S142: TBC | T142: TBC | U142: TBC | V142: TBC | W142: TBC | Y142: 0 | Z142: 0 | AC142: AA142 | AE142: TBC | AF142: TBC | AG142: TBC | AH142: TBC | AI142: TBC | AJ142: TBC | AK142: TBC | AM142: 0 | AN142: 0 | AQ142: AN142 | AS142: TBC | AT142: TBC | AU142: TBC | AV142: TBC | AW142: TBC | AX142: TBC | AY142: TBC | BA142: 0 | BB142: 0 | BE142: BA142 | BG142: TBC | BH142: TBC | BI142: TBC | BJ142: TBC | BK142: TBC | BL142: TBC | BM142: TBC | BO142: 0 | BP142: 0 | BS142: BN142 | BU142: TBC | BV142: TBC | BW142: TBC | BX142: TBC | BY142: TBC | BZ142: TBC | CA142: TBC | CC142: 0 | CD142: 0
A143: A143 | C143: TBC | D143: TBC | E143: TBC | F143: TBC | G143: TBC | H143: TBC | I143: TBC | K143: 0 | L143: 0 | O143: N143 | Q143: TBC | R143: TBC | S143: TBC | T143: TBC | U143: TBC | V143: TBC | W143: TBC | Y143: 0 | Z143: 0 | AC143: AA143 | AE143: TBC | AF143: TBC | AG143: TBC | AH143: TBC | AI143: TBC | AJ143: TBC | AK143: TBC | AM143: 0 | AN143: 0 | AQ143: AN143 | AS143: TBC | AT143: TBC | AU143: TBC | AV143: TBC | AW143: TBC | AX143: TBC | AY143: TBC | BA143: 0 | BB143: 0 | BE143: BA143 | BG143: TBC | BH143: TBC | BI143: TBC | BJ143: TBC | BK143: TBC | BL143: TBC | BM143: TBC | BO143: 0 | BP143: 0 | BS143: BN143 | BU143: TBC | BV143: TBC | BW143: TBC | BX143: TBC | BY143: TBC | BZ143: TBC | CA143: TBC | CC143: 0 | CD143: 0
A144: A144 | C144: TBC | D144: TBC | E144: TBC | F144: TBC | G144: TBC | H144: TBC | I144: TBC | K144: 0 | L144: 0 | O144: N144 | Q144: TBC | R144: TBC | S144: TBC | T144: TBC | U144: TBC | V144: TBC | W144: TBC | Y144: 0 | Z144: 0 | AC144: AA144 | AE144: TBC | AF144: TBC | AG144: TBC | AH144: TBC | AI144: TBC | AJ144: TBC | AK144: TBC | AM144: 0 | AN144: 0 | AQ144: AN144 | AS144: TBC | AT144: TBC | AU144: TBC | AV144: TBC | AW144: TBC | AX144: TBC | AY144: TBC | BA144: 0 | BB144: 0 | BE144: BA144 | BG144: TBC | BH144: TBC | BI144: TBC | BJ144: TBC | BK144: TBC | BL144: TBC | BM144: TBC | BO144: 0 | BP144: 0 | BS144: BN144 | BU144: TBC | BV144: TBC | BW144: TBC | BX144: TBC | BY144: TBC | BZ144: TBC | CA144: TBC | CC144: 0 | CD144: 0
A145: A145 | C145: TBC | D145: TBC | E145: TBC | F145: TBC | G145: TBC | H145: TBC | I145: TBC | K145: 0 | L145: 0 | O145: N145 | Q145: TBC | R145: TBC | S145: TBC | T145: TBC | U145: TBC | V145: TBC | W145: TBC | Y145: 0 | Z145: 0 | AC145: AA145 | AE145: TBC | AF145: TBC | AG145: TBC | AH145: TBC | AI145: TBC | AJ145: TBC | AK145: TBC | AM145: 0 | AN145: 0 | AQ145: AN145 | AS145: TBC | AT145: TBC | AU145: TBC | AV145: TBC | AW145: TBC | AX145: TBC | AY145: TBC | BA145: 0 | BB145: 0 | BE145: BA145 | BG145: TBC | BH145: TBC | BI145: TBC | BJ145: TBC | BK145: TBC | BL145: TBC | BM145: TBC | BO145: 0 | BP145: 0 | BS145: BN145 | BU145: TBC | BV145: TBC | BW145: TBC | BX145: TBC | BY145: TBC | BZ145: TBC | CA145: TBC | CC145: 0 | CD145: 0
A146: A146 | C146: TBC | D146: TBC | E146: TBC | F146: TBC | G146: TBC | H146: TBC | I146: TBC | K146: 0 | L146: 0 | O146: N146 | Q146: TBC | R146: TBC | S146: TBC | T146: TBC | U146: TBC | V146: TBC | W146: TBC | Y146: 0 | Z146: 0 | AC146: AA146 | AE146: TBC | AF146: TBC | AG146: TBC | AH146: TBC | AI146: TBC | AJ146: TBC | AK146: TBC | AM146: 0 | AN146: 0 | AQ146: AN146 | AS146: TBC | AT146: TBC | AU146: TBC | AV146: TBC | AW146: TBC | AX146: TBC | AY146: TBC | BA146: 0 | BB146: 0 | BE146: BA146 | BG146: TBC | BH146: TBC | BI146: TBC | BJ146: TBC | BK146: TBC | BL146: TBC | BM146: TBC | BO146: 0 | BP146: 0 | BS146: BN146 | BU146: TBC | BV146: TBC | BW146: TBC | BX146: TBC | BY146: TBC | BZ146: TBC | CA146: TBC | CC146: 0 | CD146: 0
A147: A147 | C147: TBC | D147: TBC | E147: TBC | F147: TBC | G147: TBC | H147: TBC | I147: TBC | K147: 0 | L147: 0 | O147: N147 | Q147: TBC | R147: TBC | S147: TBC | T147: TBC | U147: TBC | V147: TBC | W147: TBC | Y147: 0 | Z147: 0 | AC147: AA147 | AE147: TBC | AF147: TBC | AG147: TBC | AH147: TBC | AI147: TBC | AJ147: TBC | AK147: TBC | AM147: 0 | AN147: 0 | AQ147: AN147 | AS147: TBC | AT147: TBC | AU147: TBC | AV147: TBC | AW147: TBC | AX147: TBC | AY147: TBC | BA147: 0 | BB147: 0 | BE147: BA147 | BG147: TBC | BH147: TBC | BI147: TBC | BJ147: TBC | BK147: TBC | BL147: TBC | BM147: TBC | BO147: 0 | BP147: 0 | BS147: BN147 | BU147: TBC | BV147: TBC | BW147: TBC | BX147: TBC | BY147: TBC | BZ147: TBC | CA147: TBC | CC147: 0 | CD147: 0
A148: A148 | C148: TBC | D148: TBC | E148: TBC | F148: TBC | G148: TBC | H148: TBC | I148: TBC | K148: 0 | L148: 0 | O148: N148 | Q148: TBC | R148: TBC | S148: TBC | T148: TBC | U148: TBC | V148: TBC | W148: TBC | Y148: 0 | Z148: 0 | AC148: AA148 | AE148: TBC | AF148: TBC | AG148: TBC | AH148: TBC | AI148: TBC | AJ148: TBC | AK148: TBC | AM148: 0 | AN148: 0 | AQ148: AN148 | AS148: TBC | AT148: TBC | AU148: TBC | AV148: TBC | AW148: TBC | AX148: TBC | AY148: TBC | BA148: 0 | BB148: 0 | BE148: BA148 | BG148: TBC | BH148: TBC | BI148: TBC | BJ148: TBC | BK148: TBC | BL148: TBC | BM148: TBC | BO148: 0 | BP148: 0 | BS148: BN148 | BU148: TBC | BV148: TBC | BW148: TBC | BX148: TBC | BY148: TBC | BZ148: TBC | CA148: TBC | CC148: 0 | CD148: 0
A149: A149 | C149: TBC | D149: TBC | E149: TBC | F149: TBC | G149: TBC | H149: TBC | I149: TBC | K149: 0 | L149: 0 | O149: N149 | Q149: TBC | R149: TBC | S149: TBC | T149: TBC | U149: TBC | V149: TBC | W149: TBC | Y149: 0 | Z149: 0 | AC149: AA149 | AE149: TBC | AF149: TBC | AG149: TBC | AH149: TBC | AI149: TBC | AJ149: TBC | AK149: TBC | AM149: 0 | AN149: 0 | AQ149: AN149 | AS149: TBC | AT149: TBC | AU149: TBC | AV149: TBC | AW149: TBC | AX149: TBC | AY149: TBC | BA149: 0 | BB149: 0 | BE149: BA149 | BG149: TBC | BH149: TBC | BI149: TBC | BJ149: TBC | BK149: TBC | BL149: TBC | BM149: TBC | BO149: 0 | BP149: 0 | BS149: BN149 | BU149: TBC | BV149: TBC | BW149: TBC | BX149: TBC | BY149: TBC | BZ149: TBC | CA149: TBC | CC149: 0 | CD149: 0
A150: A150 | C150: TBC | D150: TBC | E150: TBC | F150: TBC | G150: TBC | H150: TBC | I150: TBC | K150: 0 | L150: 0 | O150: N150 | Q150: TBC | R150: TBC | S150: TBC | T150: TBC | U150: TBC | V150: TBC | W150: TBC | Y150: 0 | Z150: 0 | AC150: AA150 | AE150: TBC | AF150: TBC | AG150: TBC | AH150: TBC | AI150: TBC | AJ150: TBC | AK150: TBC | AM150: 0 | AN150: 0 | AQ150: AN150 | AS150: TBC | AT150: TBC | AU150: TBC | AV150: TBC | AW150: TBC | AX150: TBC | AY150: TBC | BA150: 0 | BB150: 0 | BE150: BA150 | BG150: TBC | BH150: TBC | BI150: TBC | BJ150: TBC | BK150: TBC | BL150: TBC | BM150: TBC | BO150: 0 | BP150: 0 | BS150: BN150 | BU150: TBC | BV150: TBC | BW150: TBC | BX150: TBC | BY150: TBC | BZ150: TBC | CA150: TBC | CC150: 0 | CD150: 0
A151: A151 | C151: TBC | D151: TBC | E151: TBC | F151: TBC | G151: TBC | H151: TBC | I151: TBC | K151: 0 | L151: 0 | O151: N151 | Q151: TBC | R151: TBC | S151: TBC | T151: TBC | U151: TBC | V151: TBC | W151: TBC | Y151: 0 | Z151: 0 | AC151: AA151 | AE151: TBC | AF151: TBC | AG151: TBC | AH151: TBC | AI151: TBC | AJ151: TBC | AK151: TBC | AM151: 0 | AN151: 0 | AQ151: AN151 | AS151: TBC | AT151: TBC | AU151: TBC | AV151: TBC | AW151: TBC | AX151: TBC | AY151: TBC | BA151: 0 | BB151: 0 | BE151: BA151 | BG151: TBC | BH151: TBC | BI151: TBC | BJ151: TBC | BK151: TBC | BL151: TBC | BM151: TBC | BO151: 0 | BP151: 0 | BS151: BN151 | BU151: TBC | BV151: TBC | BW151: TBC | BX151: TBC | BY151: TBC | BZ151: TBC | CA151: TBC | CC151: 0 | CD151: 0
A152: A152 | C152: TBC | D152: TBC | E152: TBC | F152: TBC | G152: TBC | H152: TBC | I152: TBC | K152: 0 | L152: 0 | O152: N152 | Q152: TBC | R152: TBC | S152: TBC | T152: TBC | U152: TBC | V152: TBC | W152: TBC | Y152: 0 | Z152: 0 | AC152: AA152 | AE152: TBC | AF152: TBC | AG152: TBC | AH152: TBC | AI152: TBC | AJ152: TBC | AK152: TBC | AM152: 0 | AN152: 0 | AQ152: AN152 | AS152: TBC | AT152: TBC | AU152: TBC | AV152: TBC | AW152: TBC | AX152: TBC | AY152: TBC | BA152: 0 | BB152: 0 | BE152: BA152 | BG152: TBC | BH152: TBC | BI152: TBC | BJ152: TBC | BK152: TBC | BL152: TBC | BM152: TBC | BO152: 0 | BP152: 0 | BS152: BN152 | BU152: TBC | BV152: TBC | BW152: TBC | BX152: TBC | BY152: TBC | BZ152: TBC | CA152: TBC | CC152: 0 | CD152: 0
A153: A153 | C153: TBC | D153: TBC | E153: TBC | F153: TBC | G153: TBC | H153: TBC | I153: TBC | K153: 0 | L153: 0 | O153: N153 | Q153: TBC | R153: TBC | S153: TBC | T153: TBC | U153: TBC | V153: TBC | W153: TBC | Y153: 0 | Z153: 0 | AC153: AA153 | AE153: TBC | AF153: TBC | AG153: TBC | AH153: TBC | AI153: TBC | AJ153: TBC | AK153: TBC | AM153: 0 | AN153: 0 | AQ153: AN153 | AS153: TBC | AT153: TBC | AU153: TBC | AV153: TBC | AW153: TBC | AX153: TBC | AY153: TBC | BA153: 0 | BB153: 0 | BE153: BA153 | BG153: TBC | BH153: TBC | BI153: TBC | BJ153: TBC | BK153: TBC | BL153: TBC | BM153: TBC | BO153: 0 | BP153: 0 | BS153: BN153 | BU153: TBC | BV153: TBC | BW153: TBC | BX153: TBC | BY153: TBC | BZ153: TBC | CA153: TBC | CC153: 0 | CD153: 0
A154: A154 | C154: TBC | D154: TBC | E154: TBC | F154: TBC | G154: TBC | H154: TBC | I154: TBC | K154: 0 | L154: 0 | O154: N154 | Q154: TBC | R154: TBC | S154: TBC | T154: TBC | U154: TBC | V154: TBC | W154: TBC | Y154: 0 | Z154: 0 | AC154: AA154 | AE154: TBC | AF154: TBC | AG154: TBC | AH154: TBC | AI154: TBC | AJ154: TBC | AK154: TBC | AM154: 0 | AN154: 0 | AQ154: AN154 | AS154: TBC | AT154: TBC | AU154: TBC | AV154: TBC | AW154: TBC | AX154: TBC | AY154: TBC | BA154: 0 | BB154: 0 | BE154: BA154 | BG154: TBC | BH154: TBC | BI154: TBC | BJ154: TBC | BK154: TBC | BL154: TBC | BM154: TBC | BO154: 0 | BP154: 0 | BS154: BN154 | BU154: TBC | BV154: TBC | BW154: TBC | BX154: TBC | BY154: TBC | BZ154: TBC | CA154: TBC | CC154: 0 | CD154: 0
A155: A155 | C155: TBC | D155: TBC | E155: TBC | F155: TBC | G155: TBC | H155: TBC | I155: TBC | K155: 0 | L155: 0 | O155: N155 | Q155: TBC | R155: TBC | S155: TBC | T155: TBC | U155: TBC | V155: TBC | W155: TBC | Y155: 0 | Z155: 0 | AC155: AA155 | AE155: TBC | AF155: TBC | AG155: TBC | AH155: TBC | AI155: TBC | AJ155: TBC | AK155: TBC | AM155: 0 | AN155: 0 | AQ155: AN155 | AS155: TBC | AT155: TBC | AU155: TBC | AV155: TBC | AW155: TBC | AX155: TBC | AY155: TBC | BA155: 0 | BB155: 0 | BE155: BA155 | BG155: TBC | BH155: TBC | BI155: TBC | BJ155: TBC | BK155: TBC | BL155: TBC | BM155: TBC | BO155: 0 | BP155: 0 | BS155: BN155 | BU155: TBC | BV155: TBC | BW155: TBC | BX155: TBC | BY155: TBC | BZ155: TBC | CA155: TBC | CC155: 0 | CD155: 0
A156: A156 | C156: TBC | D156: TBC | E156: TBC | F156: TBC | G156: TBC | H156: TBC | I156: TBC | K156: 0 | L156: 0 | O156: N156 | Q156: TBC | R156: TBC | S156: TBC | T156: TBC | U156: TBC | V156: TBC | W156: TBC | Y156: 0 | Z156: 0 | AC156: AA156 | AE156: TBC | AF156: TBC | AG156: TBC | AH156: TBC | AI156: TBC | AJ156: TBC | AK156: TBC | AM156: 0 | AN156: 0 | AQ156: AN156 | AS156: TBC | AT156: TBC | AU156: TBC | AV156: TBC | AW156: TBC | AX156: TBC | AY156: TBC | BA156: 0 | BB156: 0 | BE156: BA156 | BG156: TBC | BH156: TBC | BI156: TBC | BJ156: TBC | BK156: TBC | BL156: TBC | BM156: TBC | BO156: 0 | BP156: 0 | BS156: BN156 | BU156: TBC | BV156: TBC | BW156: TBC | BX156: TBC | BY156: TBC | BZ156: TBC | CA156: TBC | CC156: 0 | CD156: 0
A157: A157 | C157: TBC | D157: TBC | E157: TBC | F157: TBC | G157: TBC | H157: TBC | I157: TBC | K157: 0 | L157: =IF(C157="TBC",0,(I157-K157)+(LARGE(D157:H157,1)/10000)+(LARGE(D157:H157,2)/10000000)) -> 0 | O157: N157 | Q157: TBC | R157: TBC | S157: TBC | T157: TBC | U157: TBC | V157: TBC | W157: TBC | Y157: 0 | Z157: =IF(Q157="TBC",0,(W157-Y157)+(LARGE(R157:V157,1)/10000)+(LARGE(R157:V157,2)/10000000)) -> 0 | AC157: AA157 | AE157: TBC | AF157: TBC | AG157: TBC | AH157: TBC | AI157: TBC | AJ157: TBC | AK157: TBC | AM157: 0 | AN157: =IF(AE157="TBC",0,(AL157-AM157)+(LARGE(AF157:AJ157,1)/10000)+(LARGE(AF157:AJ157,2)/10000000)) -> 0 | AQ157: AN157 | AS157: TBC | AT157: TBC | AU157: TBC | AV157: TBC | AW157: TBC | AX157: TBC | AY157: TBC | BA157: 0 | BB157: =IF(AS157="TBC",0,(AZ157-BA157)+(LARGE(AT157:AX157,1)/10000)+(LARGE(AT157:AX157,2)/10000000)) -> 0 | BE157: BA157 | BG157: TBC | BH157: TBC | BI157: TBC | BJ157: TBC | BK157: TBC | BL157: TBC | BM157: TBC | BO157: 0 | BP157: =IF(BG157="TBC",0,(BN157-BO157)+(LARGE(BH157:BL157,1)/10000)+(LARGE(BH157:BL157,2)/10000000)) -> 0 | BS157: BN157 | BU157: TBC | BV157: TBC | BW157: TBC | BX157: TBC | BY157: TBC | BZ157: TBC | CA157: TBC | CC157: 0 | CD157: =IF(BU157="TBC",0,(CB157-CC157)+(LARGE(BV157:BZ157,1)/10000)+(LARGE(BV157:BZ157,2)/10000000)) -> 0
A158: A158 | C158: TBC | D158: TBC | E158: TBC | F158: TBC | G158: TBC | H158: TBC | I158: TBC | K158: =MIN(D158:H158) -> 0 | L158: 0 | O158: N158 | Q158: TBC | R158: TBC | S158: TBC | T158: TBC | U158: TBC | V158: TBC | W158: TBC | Y158: =MIN(R158:V158) -> 0 | Z158: 0 | AC158: AA158 | AE158: TBC | AF158: TBC | AG158: TBC | AH158: TBC | AI158: TBC | AJ158: TBC | AK158: TBC | AM158: =MIN(AF158:AI158) -> 0 | AN158: 0 | AQ158: AN158 | AS158: TBC | AT158: TBC | AU158: TBC | AV158: TBC | AW158: TBC | AX158: TBC | AY158: TBC | BA158: =MIN(AT158:AY158) -> 0 | BB158: 0 | BE158: BA158 | BG158: TBC | BH158: TBC | BI158: TBC | BJ158: TBC | BK158: TBC | BL158: TBC | BM158: TBC | BO158: =MIN(BH158:BM158) -> 0 | BP158: 0 | BS158: BN158 | BU158: TBC | BV158: TBC | BW158: TBC | BX158: TBC | BY158: TBC | BZ158: TBC | CA158: TBC | CC158: =MIN(BV158:CA158) -> 0 | CD158: 0
A159: A159 | C159: TBC | D159: TBC | E159: TBC | F159: TBC | G159: TBC | H159: TBC | I159: TBC | K159: 0 | L159: 0 | O159: N159 | Q159: TBC | R159: TBC | S159: TBC | T159: TBC | U159: TBC | V159: TBC | W159: TBC | Y159: 0 | Z159: 0 | AC159: AA159 | AE159: TBC | AF159: TBC | AG159: TBC | AH159: TBC | AI159: TBC | AJ159: TBC | AK159: TBC | AM159: 0 | AN159: 0 | AQ159: AN159 | AS159: TBC | AT159: TBC | AU159: TBC | AV159: TBC | AW159: TBC | AX159: TBC | AY159: TBC | BA159: 0 | BB159: 0 | BE159: BA159 | BG159: TBC | BH159: TBC | BI159: TBC | BJ159: TBC | BK159: TBC | BL159: TBC | BM159: TBC | BO159: 0 | BP159: 0 | BS159: BN159 | BU159: TBC | BV159: TBC | BW159: TBC | BX159: TBC | BY159: TBC | BZ159: TBC | CA159: TBC | CC159: 0 | CD159: 0
A160: A160 | C160: TBC | D160: TBC | E160: TBC | F160: TBC | G160: TBC | H160: TBC | I160: TBC | K160: 0 | L160: 0 | O160: N160 | Q160: TBC | R160: TBC | S160: TBC | T160: TBC | U160: TBC | V160: TBC | W160: TBC | Y160: 0 | Z160: 0 | AC160: AA160 | AE160: TBC | AF160: TBC | AG160: TBC | AH160: TBC | AI160: TBC | AJ160: TBC | AK160: TBC | AM160: 0 | AN160: 0 | AQ160: AN160 | AS160: TBC | AT160: TBC | AU160: TBC | AV160: TBC | AW160: TBC | AX160: TBC | AY160: TBC | BA160: 0 | BB160: 0 | BE160: BA160 | BG160: TBC | BH160: TBC | BI160: TBC | BJ160: TBC | BK160: TBC | BL160: TBC | BM160: TBC | BO160: 0 | BP160: 0 | BS160: BN160 | BU160: TBC | BV160: TBC | BW160: TBC | BX160: TBC | BY160: TBC | BZ160: TBC | CA160: TBC | CC160: 0 | CD160: 0
A161: A161 | C161: TBC | D161: TBC | E161: TBC | F161: TBC | G161: TBC | H161: TBC | I161: TBC | K161: 0 | L161: 0 | O161: N161 | Q161: TBC | R161: TBC | S161: TBC | T161: TBC | U161: TBC | V161: TBC | W161: TBC | Y161: 0 | Z161: 0 | AC161: AA161 | AE161: TBC | AF161: TBC | AG161: TBC | AH161: TBC | AI161: TBC | AJ161: TBC | AK161: TBC | AM161: 0 | AN161: 0 | AQ161: AN161 | AS161: TBC | AT161: TBC | AU161: TBC | AV161: TBC | AW161: TBC | AX161: TBC | AY161: TBC | BA161: 0 | BB161: 0 | BE161: BA161 | BG161: TBC | BH161: TBC | BI161: TBC | BJ161: TBC | BK161: TBC | BL161: TBC | BM161: TBC | BO161: 0 | BP161: 0 | BS161: BN161 | BU161: TBC | BV161: TBC | BW161: TBC | BX161: TBC | BY161: TBC | BZ161: TBC | CA161: TBC | CC161: 0 | CD161: 0
A162: A162 | C162: TBC | D162: TBC | E162: TBC | F162: TBC | G162: TBC | H162: TBC | I162: TBC | K162: 0 | L162: 0 | O162: N162 | Q162: TBC | R162: TBC | S162: TBC | T162: TBC | U162: TBC | V162: TBC | W162: TBC | Y162: 0 | Z162: 0 | AC162: AA162 | AE162: TBC | AF162: TBC | AG162: TBC | AH162: TBC | AI162: TBC | AJ162: TBC | AK162: TBC | AM162: 0 | AN162: 0 | AQ162: AN162 | AS162: TBC | AT162: TBC | AU162: TBC | AV162: TBC | AW162: TBC | AX162: TBC | AY162: TBC | BA162: 0 | BB162: 0 | BE162: BA162 | BG162: TBC | BH162: TBC | BI162: TBC | BJ162: TBC | BK162: TBC | BL162: TBC | BM162: TBC | BO162: 0 | BP162: 0 | BS162: BN162 | BU162: TBC | BV162: TBC | BW162: TBC | BX162: TBC | BY162: TBC | BZ162: TBC | CA162: TBC | CC162: 0 | CD162: 0
A163: A163 | C163: TBC | D163: TBC | E163: TBC | F163: TBC | G163: TBC | H163: TBC | I163: TBC | K163: 0 | L163: 0 | O163: N163 | Q163: TBC | R163: TBC | S163: TBC | T163: TBC | U163: TBC | V163: TBC | W163: TBC | Y163: 0 | Z163: 0 | AC163: AA163 | AE163: TBC | AF163: TBC | AG163: TBC | AH163: TBC | AI163: TBC | AJ163: TBC | AK163: TBC | AM163: 0 | AN163: 0 | AQ163: AN163 | AS163: TBC | AT163: TBC | AU163: TBC | AV163: TBC | AW163: TBC | AX163: TBC | AY163: TBC | BA163: 0 | BB163: 0 | BE163: BA163 | BG163: TBC | BH163: TBC | BI163: TBC | BJ163: TBC | BK163: TBC | BL163: TBC | BM163: TBC | BO163: 0 | BP163: 0 | BS163: BN163 | BU163: TBC | BV163: TBC | BW163: TBC | BX163: TBC | BY163: TBC | BZ163: TBC | CA163: TBC | CC163: 0 | CD163: 0
A164: A164 | C164: TBC | D164: TBC | E164: TBC | F164: TBC | G164: TBC | H164: TBC | I164: TBC | K164: 0 | L164: 0 | O164: N164 | Q164: TBC | R164: TBC | S164: TBC | T164: TBC | U164: TBC | V164: TBC | W164: TBC | Y164: 0 | Z164: 0 | AC164: AA164 | AE164: TBC | AF164: TBC | AG164: TBC | AH164: TBC | AI164: TBC | AJ164: TBC | AK164: TBC | AM164: 0 | AN164: 0 | AQ164: AN164 | AS164: TBC | AT164: TBC | AU164: TBC | AV164: TBC | AW164: TBC | AX164: TBC | AY164: TBC | BA164: 0 | BB164: 0 | BE164: BA164 | BG164: TBC | BH164: TBC | BI164: TBC | BJ164: TBC | BK164: TBC | BL164: TBC | BM164: TBC | BO164: 0 | BP164: 0 | BS164: BN164 | BU164: TBC | BV164: TBC | BW164: TBC | BX164: TBC | BY164: TBC | BZ164: TBC | CA164: TBC | CC164: 0 | CD164: 0
A165: A165 | C165: TBC | D165: TBC | E165: TBC | F165: TBC | G165: TBC | H165: TBC | I165: TBC | K165: 0 | L165: 0 | O165: N165 | Q165: TBC | R165: TBC | S165: TBC | T165: TBC | U165: TBC | V165: TBC | W165: TBC | Y165: 0 | Z165: 0 | AC165: AA165 | AE165: TBC | AF165: TBC | AG165: TBC | AH165: TBC | AI165: TBC | AJ165: TBC | AK165: TBC | AM165: 0 | AN165: 0 | AQ165: AN165 | AS165: TBC | AT165: TBC | AU165: TBC | AV165: TBC | AW165: TBC | AX165: TBC | AY165: TBC | BA165: 0 | BB165: 0 | BE165: BA165 | BG165: TBC | BH165: TBC | BI165: TBC | BJ165: TBC | BK165: TBC | BL165: TBC | BM165: TBC | BO165: 0 | BP165: 0 | BS165: BN165 | BU165: TBC | BV165: TBC | BW165: TBC | BX165: TBC | BY165: TBC | BZ165: TBC | CA165: TBC | CC165: 0 | CD165: 0
A166: A166 | C166: TBC | D166: TBC | E166: TBC | F166: TBC | G166: TBC | H166: TBC | I166: TBC | K166: 0 | L166: 0 | O166: N166 | Q166: TBC | R166: TBC | S166: TBC | T166: TBC | U166: TBC | V166: TBC | W166: TBC | Y166: 0 | Z166: 0 | AC166: AA166 | AE166: TBC | AF166: TBC | AG166: TBC | AH166: TBC | AI166: TBC | AJ166: TBC | AK166: TBC | AM166: 0 | AN166: 0 | AQ166: AN166 | AS166: TBC | AT166: TBC | AU166: TBC | AV166: TBC | AW166: TBC | AX166: TBC | AY166: TBC | BA166: 0 | BB166: 0 | BE166: BA166 | BG166: TBC | BH166: TBC | BI166: TBC | BJ166: TBC | BK166: TBC | BL166: TBC | BM166: TBC | BO166: 0 | BP166: 0 | BS166: BN166 | BU166: TBC | BV166: TBC | BW166: TBC | BX166: TBC | BY166: TBC | BZ166: TBC | CA166: TBC | CC166: 0 | CD166: 0
A167: A167 | B167: 0 | C167: TBC | D167: TBC | E167: TBC | F167: TBC | G167: TBC | H167: TBC | I167: TBC | K167: 0 | L167: 0 | O167: N167 | P167: 0 | Q167: TBC | R167: TBC | S167: TBC | T167: TBC | U167: TBC | V167: TBC | W167: TBC | Y167: 0 | Z167: 0 | AC167: AA167 | AD167: 0 | AE167: TBC | AF167: TBC | AG167: TBC | AH167: TBC | AI167: TBC | AJ167: TBC | AK167: TBC | AM167: 0 | AN167: 0 | AQ167: AN167 | AR167: 0 | AS167: TBC | AT167: TBC | AU167: TBC | AV167: TBC | AW167: TBC | AX167: TBC | AY167: TBC | BA167: =MIN(AT167:AY167) -> 0 | BB167: 0 | BE167: BA167 | BF167: 0 | BG167: TBC | BH167: TBC | BI167: TBC | BJ167: TBC | BK167: TBC | BL167: TBC | BM167: TBC | BO167: 0 | BP167: 0 | BS167: BN167 | BT167: 0 | BU167: TBC | BV167: TBC | BW167: TBC | BX167: TBC | BY167: TBC | BZ167: TBC | CA167: TBC | CC167: 0 | CD167: 0
B199: RBM Sort | P199: RBF Sort | AD199: RIM Sort | AR199: RIF Sort | BF199: RAM Sort | BT199: RAF Sort
A200: Tag | B200: Name | C200: College | D200: IV 1 | E200: IV 2 | F200: IV3 | G200: IV4 | H200: IV5 | I200: Total | K200: Lowest | L200: LEAGUE | O200: Tag | P200: Name | Q200: College | R200: IV 1 | S200: IV 2 | T200: IV3 | U200: IV4 | V200: IV5 | W200: Total | Y200: Lowest | Z200: LEAGUE | AC200: Tag | AD200: Name | AE200: College | AF200: IV 1 | AG200: IV 2 | AH200: IV3 | AI200: IV4 | AJ200: IV5 | AK200: Total | AM200: Lowest | AN200: LEAGUE | AQ200: Tag | AR200: Name | AS200: College | AT200: IV 1 | AU200: IV 2 | AV200: IV3 | AW200: IV4 | AX200: IV5 | AY200: Total | BA200: Lowest | BB200: LEAGUE | BE200: Tag | BF200: Name | BG200: College | BH200: IV 1 | BI200: IV 2 | BJ200: IV3 | BK200: IV4 | BL200: IV5 | BM200: Total | BO200: Lowest | BP200: LEAGUE | BS200: Tag | BT200: Name | BU200: College | BV200: IV 1 | BW200: IV 2 | BX200: IV3 | BY200: IV4 | BZ200: IV5 | CA200: Total | CC200: Lowest | CD200: LEAGUE
A201: A8 | B201: =VLOOKUP($A201,$A$8:$L$82,2,0) -> Kevin Kok Zhi Hao | C201: =VLOOKUP($A201,$A$8:$L$82,3,0) -> DkIT | D201: =VLOOKUP($A201,$A$8:$L$82,4,0) -> 452 | E201: =VLOOKUP($A201,$A$8:$L$82,5,0) -> 427 | F201: =VLOOKUP($A201,$A$8:$L$82,6,0) -> 462 | G201: =VLOOKUP($A201,$A$8:$L$82,7,0) -> 413 | H201: =VLOOKUP($A201,$A$8:$L$82,8,0) -> 446 | I201: =VLOOKUP($A201,$A$8:$L$82,9,0) -> 432 | K201: =VLOOKUP($A201,$A$8:$L$82,10,0) -> 2632 | L201: =VLOOKUP($A201,$A$8:$L$82,11,0) -> 413 | O201: N8 | P201: =VLOOKUP($O201,$O$8:$Z$82,2,0) -> Christina Somers | Q201: =VLOOKUP($O201,$O$8:$Z$82,3,0) -> DCU | R201: =VLOOKUP($O201,$O$8:$Z$82,4,0) -> 366 | S201: =VLOOKUP($O201,$O$8:$Z$82,5,0) -> 446 | T201: =VLOOKUP($O201,$O$8:$Z$82,6,0) -> 377 | U201: =VLOOKUP($O201,$O$8:$Z$82,7,0) -> 456 | V201: =VLOOKUP($O201,$O$8:$Z$82,8,0) -> 397 | W201: =VLOOKUP($O201,$O$8:$Z$82,9,0) -> 431 | Y201: =VLOOKUP($O201,$O$8:$Z$82,10,0) -> 2473 | Z201: =VLOOKUP($O201,$O$8:$Z$82,11,0) -> 366 | AC201: AA8 | AD201: =VLOOKUP($AC201,$AC$8:$AN$82,2,0) -> 0 | AE201: =VLOOKUP($AC201,$AC$8:$AN$82,3,0) -> 0 | AF201: =VLOOKUP($AC201,$AC$8:$AN$82,4,0) -> 0 | AG201: =VLOOKUP($AC201,$AC$8:$AN$82,5,0) -> TBC | AH201: =VLOOKUP($AC201,$AC$8:$AN$82,6,0) -> TBC | AI201: =VLOOKUP($AC201,$AC$8:$AN$82,7,0) -> TBC | AJ201: =VLOOKUP($AC201,$AC$8:$AN$82,8,0) -> TBC | AK201: =VLOOKUP($AC201,$AC$8:$AN$82,9,0) -> TBC | AM201: =VLOOKUP($AC201,$AC$8:$AN$82,10,0) -> 0 | AN201: =VLOOKUP($AC201,$AC$8:$AN$82,11,0) -> 0 | AQ201: AN8 | AR201: =VLOOKUP($AQ201,$AQ$8:$BB$82,2,0) -> 0 | AS201: =VLOOKUP($AQ201,$AQ$8:$BB$82,3,0) -> 0 | AT201: =VLOOKUP($AQ201,$AQ$8:$BB$82,4,0) -> 0 | AU201: =VLOOKUP($AQ201,$AQ$8:$BB$82,5,0) -> TBC | AV201: =VLOOKUP($AQ201,$AQ$8:$BB$82,6,0) -> TBC | AW201: =VLOOKUP($AQ201,$AQ$8:$BB$82,7,0) -> TBC | AX201: =VLOOKUP($AQ201,$AQ$8:$BB$82,8,0) -> TBC | AY201: =VLOOKUP($AQ201,$AQ$8:$BB$82,9,0) -> TBC | BA201: =VLOOKUP($AQ201,$AQ$8:$BB$82,10,0) -> 0 | BB201: =VLOOKUP($AQ201,$AQ$8:$BB$82,11,0) -> 0 | BE201: BA8 | BF201: =VLOOKUP($BE201,$BE$8:$BP$82,2,0) -> Darren Wallace | BG201: =VLOOKUP($BE201,$BE$8:$BP$82,3,0) -> NUIG | BH201: =VLOOKUP($BE201,$BE$8:$BP$82,4,0) -> 564 | BI201: =VLOOKUP($BE201,$BE$8:$BP$82,5,0) -> 560 | BJ201: =VLOOKUP($BE201,$BE$8:$BP$82,6,0) -> 567 | BK201: =VLOOKUP($BE201,$BE$8:$BP$82,7,0) -> 560 | BL201: =VLOOKUP($BE201,$BE$8:$BP$82,8,0) -> 575 | BM201: =VLOOKUP($BE201,$BE$8:$BP$82,9,0) -> 565 | BO201: =VLOOKUP($BE201,$BE$8:$BP$82,10,0) -> 3391 | BP201: =VLOOKUP($BE201,$BE$8:$BP$82,11,0) -> 560 | BS201: BN8 | BT201: =VLOOKUP($BS201,$BS$8:$CD$82,2,0) -> Maeve Reidy | BU201: =VLOOKUP($BS201,$BS$8:$CD$82,3,0) -> BCFE | BV201: =VLOOKUP($BS201,$BS$8:$CD$82,4,0) -> 552 | BW201: =VLOOKUP($BS201,$BS$8:$CD$82,5,0) -> 546 | BX201: =VLOOKUP($BS201,$BS$8:$CD$82,6,0) -> 562 | BY201: =VLOOKUP($BS201,$BS$8:$CD$82,7,0) -> 550 | BZ201: =VLOOKUP($BS201,$BS$8:$CD$82,8,0) -> 559 | CA201: =VLOOKUP($BS201,$BS$8:$CD$82,9,0) -> 548 | CC201: =VLOOKUP($BS201,$BS$8:$CD$82,10,0) -> 3317 | CD201: =VLOOKUP($BS201,$BS$8:$CD$82,11,0) -> 546
A202: A9 | B202: =VLOOKUP($A202,$A$8:$L$82,2,0) -> Frank Stafford | C202: =VLOOKUP($A202,$A$8:$L$82,3,0) -> UL | D202: =VLOOKUP($A202,$A$8:$L$82,4,0) -> 501 | E202: =VLOOKUP($A202,$A$8:$L$82,5,0) -> 376 | F202: =VLOOKUP($A202,$A$8:$L$82,6,0) -> 387 | G202: =VLOOKUP($A202,$A$8:$L$82,7,0) -> 427 | H202: =VLOOKUP($A202,$A$8:$L$82,8,0) -> 399 | I202: =VLOOKUP($A202,$A$8:$L$82,9,0) -> 441 | K202: =VLOOKUP($A202,$A$8:$L$82,10,0) -> 2531 | L202: =VLOOKUP($A202,$A$8:$L$82,11,0) -> 376 | O202: N9 | P202: Jen Daly | Q202: DIT | R202: 355 | S202: 467 | T202: 389 | U202: 373 | V202: 398 | W202: 464 | Y202: 2446 | Z202: 355 | AC202: AA9 | AD202: =VLOOKUP($AC202,$AC$8:$AN$82,2,0) -> 0 | AE202: =VLOOKUP($AC202,$AC$8:$AN$82,3,0) -> TBC | AF202: =VLOOKUP($AC202,$AC$8:$AN$82,4,0) -> TBC | AG202: =VLOOKUP($AC202,$AC$8:$AN$82,5,0) -> TBC | AH202: =VLOOKUP($AC202,$AC$8:$AN$82,6,0) -> TBC | AI202: =VLOOKUP($AC202,$AC$8:$AN$82,7,0) -> TBC | AJ202: =VLOOKUP($AC202,$AC$8:$AN$82,8,0) -> TBC | AK202: =VLOOKUP($AC202,$AC$8:$AN$82,9,0) -> TBC | AM202: =VLOOKUP($AC202,$AC$8:$AN$82,10,0) -> 0 | AN202: =VLOOKUP($AC202,$AC$8:$AN$82,11,0) -> 0 | AQ202: AN9 | AR202: =VLOOKUP($AQ202,$AQ$8:$BB$82,2,0) -> 0 | AS202: =VLOOKUP($AQ202,$AQ$8:$BB$82,3,0) -> TBC | AT202: =VLOOKUP($AQ202,$AQ$8:$BB$82,4,0) -> TBC | AU202: =VLOOKUP($AQ202,$AQ$8:$BB$82,5,0) -> TBC | AV202: =VLOOKUP($AQ202,$AQ$8:$BB$82,6,0) -> TBC | AW202: =VLOOKUP($AQ202,$AQ$8:$BB$82,7,0) -> TBC | AX202: =VLOOKUP($AQ202,$AQ$8:$BB$82,8,0) -> TBC | AY202: =VLOOKUP($AQ202,$AQ$8:$BB$82,9,0) -> TBC | BA202: =VLOOKUP($AQ202,$AQ$8:$BB$82,10,0) -> 0 | BB202: =VLOOKUP($AQ202,$AQ$8:$BB$82,11,0) -> 0 | BE202: BA9 | BF202: =VLOOKUP($BE202,$BE$8:$BP$82,2,0) -> Adam McSweeney | BG202: =VLOOKUP($BE202,$BE$8:$BP$82,3,0) -> DCU | BH202: =VLOOKUP($BE202,$BE$8:$BP$82,4,0) -> 547 | BI202: =VLOOKUP($BE202,$BE$8:$BP$82,5,0) -> 547 | BJ202: =VLOOKUP($BE202,$BE$8:$BP$82,6,0) -> 544 | BK202: =VLOOKUP($BE202,$BE$8:$BP$82,7,0) -> 538 | BL202: =VLOOKUP($BE202,$BE$8:$BP$82,8,0) -> 530 | BM202: =VLOOKUP($BE202,$BE$8:$BP$82,9,0) -> 554 | BO202: =VLOOKUP($BE202,$BE$8:$BP$82,10,0) -> 3260 | BP202: =VLOOKUP($BE202,$BE$8:$BP$82,11,0) -> 530 | BS202: BN9 | BT202: =VLOOKUP($BS202,$BS$8:$CD$82,2,0) -> Aida Alexandru | BU202: =VLOOKUP($BS202,$BS$8:$CD$82,3,0) -> NUIM | BV202: =VLOOKUP($BS202,$BS$8:$CD$82,4,0) -> 505 | BW202: =VLOOKUP($BS202,$BS$8:$CD$82,5,0) -> 521 | BX202: =VLOOKUP($BS202,$BS$8:$CD$82,6,0) -> 525 | BY202: =VLOOKUP($BS202,$BS$8:$CD$82,7,0) -> 492 | BZ202: =VLOOKUP($BS202,$BS$8:$CD$82,8,0) -> 485 | CA202: =VLOOKUP($BS202,$BS$8:$CD$82,9,0) -> 448 | CC202: =VLOOKUP($BS202,$BS$8:$CD$82,10,0) -> 2976 | CD202: =VLOOKUP($BS202,$BS$8:$CD$82,11,0) -> 448
A203: A10 | B203: Edwin Ma | C203: DkIT | D203: 399 | E203: 464 | F203: 394 | G203: 323 | H203: 334 | I203: 350 | K203: 2264 | L203: 323 | O203: N10 | P203: Jessica Lee | Q203: DkIT | R203: 347 | S203: 388 | T203: 342 | U203: 404 | V203: 337 | W203: 351 | Y203: 2169 | Z203: 337 | AC203: AA10 | AD203: 0 | AE203: TBC | AF203: TBC | AG203: TBC | AH203: TBC | AI203: TBC | AJ203: TBC | AK203: TBC | AM203: 0 | AN203: 0 | AQ203: AN10 | AR203: 0 | AS203: TBC | AT203: TBC | AU203: TBC | AV203: TBC | AW203: TBC | AX203: TBC | AY203: TBC | BA203: 0 | BB203: 0 | BE203: BA10 | BF203: Brendan Forde | BG203: DkIT | BH203: 503 | BI203: 542 | BJ203: 496 | BK203: 513 | BL203: 556 | BM203: 531 | BO203: 3141 | BP203: 496 | BS203: BN10 | BT203: Ines Rauch | BU203: UCD | BV203: 473 | BW203: 458 | BX203: 537 | BY203: 502 | BZ203: 498 | CA203: 502 | CC203: 2970 | CD203: 458
A204: A11 | B204: See Qui Ren | C204: DkIT | D204: 471 | E204: 422 | F204: 414 | G204: 362 | H204: 292 | I204: 301 | K204: 2262 | L204: 292 | O204: N11 | P204: Karen Power | Q204: UL | R204: 394 | S204: 364 | T204: 0 | U204: 433 | V204: 487 | W204: 357 | Y204: 2035 | Z204: 0 | AC204: AA11 | AD204: 0 | AE204: TBC | AF204: TBC | AG204: TBC | AH204: TBC | AI204: TBC | AJ204: TBC | AK204: TBC | AM204: 0 | AN204: 0 | AQ204: AN11 | AR204: 0 | AS204: TBC | AT204: TBC | AU204: TBC | AV204: TBC | AW204: TBC | AX204: TBC | AY204: TBC | BA204: 0 | BB204: 0 | BE204: BA11 | BF204: Sean Flavin | BG204: UL | BH204: 524 | BI204: 517 | BJ204: 505 | BK204: 522 | BL204: 527 | BM204: 503 | BO204: 3098 | BP204: 503 | BS204: BN11 | BT204: Ailish Dennehy | BU204: UCD | BV204: 474 | BW204: 429 | BX204: 486 | BY204: 457 | BZ204: 479 | CA204: 494 | CC204: 2819 | CD204: 429
A205: A12 | B205: Keet Wai Hong | C205: DkIT | D205: 287 | E205: 402 | F205: 358 | G205: 339 | H205: 357 | I205: 355 | K205: 2098 | L205: 287 | O205: N12 | P205: Jocelyn Yee | Q205: DkIT | R205: 337 | S205: 320 | T205: 443 | U205: 279 | V205: 247 | W205: 352 | Y205: 1978 | Z205: 247 | AC205: AA12 | AD205: 0 | AE205: TBC | AF205: TBC | AG205: TBC | AH205: TBC | AI205: TBC | AJ205: TBC | AK205: TBC | AM205: 0 | AN205: 0 | AQ205: AN12 | AR205: 0 | AS205: TBC | AT205: TBC | AU205: TBC | AV205: TBC | AW205: TBC | AX205: TBC | AY205: TBC | BA205: 0 | BB205: 0 | BE205: BA12 | BF205: Sean Curtin | BG205: UL | BH205: 541 | BI205: 540 | BJ205: 494 | BK205: 529 | BL205: 491 | BM205: 499 | BO205: 3094 | BP205: 491 | BS205: BN12 | BT205: Sarah Maloney | BU205: DCU | BV205: 465 | BW205: 434 | BX205: 517 | BY205: 484 | BZ205: 431 | CA205: 474 | CC205: 2805 | CD205: 431
A206: A13 | B206: Yeo Eng Jet | C206: DkIT | D206: 465 | E206: 344 | F206: 350 | G206: 200 | H206: 228 | I206: 342 | K206: 1929 | L206: 200 | O206: N13 | P206: Victoria Tan | Q206: DkIT | R206: 291 | S206: 267 | T206: 401 | U206: 352 | V206: 313 | W206: 330 | Y206: 1954 | Z206: 267 | AC206: AA13 | AD206: 0 | AE206: TBC | AF206: TBC | AG206: TBC | AH206: TBC | AI206: TBC | AJ206: TBC | AK206: TBC | AM206: 0 | AN206: 0 | AQ206: AN13 | AR206: 0 | AS206: TBC | AT206: TBC | AU206: TBC | AV206: TBC | AW206: TBC | AX206: TBC | AY206: TBC | BA206: 0 | BB206: 0 | BE206: BA13 | BF206: Dave Boyle | BG206: DCU | BH206: 513 | BI206: 533 | BJ206: 522 | BK206: 527 | BL206: 493 | BM206: 480 | BO206: 3068 | BP206: 480 | BS206: BN13 | BT206: Sinead O`Connell | BU206: NUIM | BV206: 433 | BW206: 477 | BX206: 472 | BY206: 428 | BZ206: 444 | CA206: 482 | CC206: 2736 | CD206: 428
A207: A14 | B207: Mark Walsh | C207: NUIG | D207: 354 | E207: 394 | F207: 449 | G207: 355 | H207: 354 | I207: 0 | K207: 1906 | L207: 0 | O207: N14 | P207: Ciara O'Sullivan | Q207: DCU | R207: 0 | S207: 284 | T207: 410 | U207: 410 | V207: 380 | W207: 363 | Y207: 1847 | Z207: 0 | AC207: AA14 | AD207: 0 | AE207: TBC | AF207: TBC | AG207: TBC | AH207: TBC | AI207: TBC | AJ207: TBC | AK207: TBC | AM207: 0 | AN207: 0 | AQ207: AN14 | AR207: 0 | AS207: TBC | AT207: TBC | AU207: TBC | AV207: TBC | AW207: TBC | AX207: TBC | AY207: TBC | BA207: 0 | BB207: 0 | BE207: BA14 | BF207: John Hally | BG207: UL | BH207: 512 | BI207: 488 | BJ207: 541 | BK207: 497 | BL207: 515 | BM207: 511 | BO207: 3064 | BP207: 488 | BS207: BN14 | BT207: Sinead Naughton | BU207: GMITC | BV207: 366 | BW207: 452 | BX207: 413 | BY207: 423 | BZ207: 445 | CA207: 452 | CC207: 2551 | CD207: 366
A208: A15 | B208: Colm McClelland | C208: DkIT | D208: 279 | E208: 342 | F208: 402 | G208: 244 | H208: 253 | I208: 336 | K208: 1856 | L208: 244 | O208: N15 | P208: Ester Schwarz | Q208: NUIM | R208: 0 | S208: 375 | T208: 0 | U208: 359 | V208: 393 | W208: 416 | Y208: 1543 | Z208: 0 | AC208: AA15 | AD208: 0 | AE208: TBC | AF208: TBC | AG208: TBC | AH208: TBC | AI208: TBC | AJ208: TBC | AK208: TBC | AM208: 0 | AN208: 0 | AQ208: AN15 | AR208: 0 | AS208: TBC | AT208: TBC | AU208: TBC | AV208: TBC | AW208: TBC | AX208: TBC | AY208: TBC | BA208: 0 | BB208: 0 | BE208: BA15 | BF208: James Byrne | BG208: DIT | BH208: 499 | BI208: 476 | BJ208: 494 | BK208: 488 | BL208: 508 | BM208: 503 | BO208: 2968 | BP208: 476 | BS208: BN15 | BT208: Jennifer Nally | BU208: NUIM | BV208: 349 | BW208: 419 | BX208: 459 | BY208: 413 | BZ208: 478 | CA208: 419 | CC208: 2537 | CD208: 349
A209: A16 | B209: sean Morrisey | C209: UL | D209: 391 | E209: 398 | F209: 507 | G209: 0 | H209: 0 | I209: 374 | K209: 1670 | L209: 0 | O209: N16 | P209: Linda Hearn | Q209: UCC | R209: 450 | S209: 312 | T209: 374 | U209: 0 | V209: 0 | W209: 405 | Y209: 1541 | Z209: 0 | AC209: AA16 | AD209: 0 | AE209: TBC | AF209: TBC | AG209: TBC | AH209: TBC | AI209: TBC | AJ209: TBC | AK209: TBC | AM209: 0 | AN209: 0 | AQ209: AN16 | AR209: 0 | AS209: TBC | AT209: TBC | AU209: TBC | AV209: TBC | AW209: TBC | AX209: TBC | AY209: TBC | BA209: 0 | BB209: 0 | BE209: BA16 | BF209: Diego Coyle Diez | BG209: NUIM | BH209: 505 | BI209: 504 | BJ209: 496 | BK209: 445 | BL209: 487 | BM209: 470 | BO209: 2907 | BP209: 445 | BS209: BN16 | BT209: Marie Phelan | BU209: DCU | BV209: 0 | BW209: 393 | BX209: 0 | BY209: 385 | BZ209: 0 | CA209: 408 | CC209: 1186 | CD209: 0
A210: A17 | B210: Paul Coleman | C210: DCU | D210: 454 | E210: 372 | F210: 0 | G210: 0 | H210: 314 | I210: 375 | K210: 1515 | L210: 0 | O210: N17 | P210: =VLOOKUP($O210,$O$8:$Z$82,2,0) -> alannah redington | Q210: =VLOOKUP($O210,$O$8:$Z$82,3,0) -> UL | R210: =VLOOKUP($O210,$O$8:$Z$82,4,0) -> 356 | S210: =VLOOKUP($O210,$O$8:$Z$82,5,0) -> 325 | T210: =VLOOKUP($O210,$O$8:$Z$82,6,0) -> 0 | U210: =VLOOKUP($O210,$O$8:$Z$82,7,0) -> 449 | V210: =VLOOKUP($O210,$O$8:$Z$82,8,0) -> 0 | W210: =VLOOKUP($O210,$O$8:$Z$82,9,0) -> 381 | Y210: =VLOOKUP($O210,$O$8:$Z$82,10,0) -> 1511 | Z210: =VLOOKUP($O210,$O$8:$Z$82,11,0) -> 0 | AC210: AA17 | AD210: 0 | AE210: TBC | AF210: TBC | AG210: TBC | AH210: TBC | AI210: TBC | AJ210: TBC | AK210: TBC | AM210: 0 | AN210: 0 | AQ210: AN17 | AR210: 0 | AS210: TBC | AT210: TBC | AU210: TBC | AV210: TBC | AW210: TBC | AX210: TBC | AY210: TBC | BA210: 0 | BB210: 0 | BE210: BA17 | BF210: Thomas Brouder | BG210: UL | BH210: 452 | BI210: 453 | BJ210: 499 | BK210: 480 | BL210: 485 | BM210: 462 | BO210: 2831 | BP210: 452 | BS210: BN17 | BT210: Aisling Finn | BU210: NUIG | BV210: 0 | BW210: 0 | BX210: 519 | BY210: 0 | BZ210: 501 | CA210: 0 | CC210: 1020 | CD210: 0
A211: A18 | B211: Eric Moore | C211: NUIG | D211: 0 | E211: 0 | F211: 315 | G211: 387 | H211: 343 | I211: 455 | K211: 1500 | L211: 0 | O211: N18 | P211: Tara Dunne | Q211: UCD | R211: 272 | S211: 184 | T211: 0 | U211: 256 | V211: 287 | W211: 280 | Y211: 1279 | Z211: 0 | AC211: AA18 | AD211: 0 | AE211: TBC | AF211: TBC | AG211: TBC | AH211: TBC | AI211: TBC | AJ211: TBC | AK211: TBC | AM211: 0 | AN211: 0 | AQ211: AN18 | AR211: 0 | AS211: TBC | AT211: TBC | AU211: TBC | AV211: TBC | AW211: TBC | AX211: TBC | AY211: TBC | BA211: 0 | BB211: 0 | BE211: BA18 | BF211: Ian Kenna | BG211: ITC | BH211: 429 | BI211: 393 | BJ211: 484 | BK211: 510 | BL211: 474 | BM211: 526 | BO211: 2816 | BP211: 393 | BS211: BN18 | BT211: Sinead Walsh | BU211: UCC | BV211: 403 | BW211: 0 | BX211: 0 | BY211: 0 | BZ211: 252 | CA211: 314 | CC211: 969 | CD211: 0
A212: A19 | B212: Zul Farhan | C212: UCD | D212: 399 | E212: 426 | F212: 0 | G212: 312 | H212: 0 | I212: 355 | K212: 1492 | L212: 0 | O212: N19 | P212: Laura Ni Riada | Q212: DCU | R212: 477 | S212: 415 | T212: 0 | U212: 0 | V212: 0 | W212: 369 | Y212: 1261 | Z212: 0 | AC212: AA19 | AD212: 0 | AE212: TBC | AF212: TBC | AG212: TBC | AH212: TBC | AI212: TBC | AJ212: TBC | AK212: TBC | AM212: 0 | AN212: 0 | AQ212: AN19 | AR212: 0 | AS212: TBC | AT212: TBC | AU212: TBC | AV212: TBC | AW212: TBC | AX212: TBC | AY212: TBC | BA212: 0 | BB212: 0 | BE212: BA19 | BF212: Adin Middleton | BG212: ITC | BH212: 474 | BI212: 400 | BJ212: 467 | BK212: 496 | BL212: 489 | BM212: 484 | BO212: 2810 | BP212: 400 | BS212: BN19 | BT212: Laura Adams | BU212: QUB | BV212: 454 | BW212: 0 | BX212: 0 | BY212: 0 | BZ212: 471 | CA212: 0 | CC212: 925 | CD212: 0
A213: A20 | B213: Shane McGloin | C213: GMIT | D213: 0 | E213: 0 | F213: 325 | G213: 373 | H213: 428 | I213: 361 | K213: 1487 | L213: 0 | O213: N20 | P213: Aisling Brady | Q213: NUIG | R213: 0 | S213: 0 | T213: 402 | U213: 260 | V213: 280 | W213: 271 | Y213: 1213 | Z213: 0 | AC213: AA20 | AD213: 0 | AE213: TBC | AF213: TBC | AG213: TBC | AH213: TBC | AI213: TBC | AJ213: TBC | AK213: TBC | AM213: 0 | AN213: 0 | AQ213: AN20 | AR213: 0 | AS213: TBC | AT213: TBC | AU213: TBC | AV213: TBC | AW213: TBC | AX213: TBC | AY213: TBC | BA213: 0 | BB213: 0 | BE213: BA20 | BF213: Aldrin Campos | BG213: IT Tallaght | BH213: 392 | BI213: 499 | BJ213: 477 | BK213: 478 | BL213: 451 | BM213: 494 | BO213: 2791 | BP213: 392 | BS213: BN20 | BT213: Ashley Allen | BU213: UCD | BV213: 407 | BW213: 0 | BX213: 0 | BY213: 105 | BZ213: 394 | CA213: 0 | CC213: 906 | CD213: 0
A214: A21 | B214: Max Klein | C214: NUIM | D214: 462 | E214: 0 | F214: 272 | G214: 384 | H214: 363 | I214: 0 | K214: 1481 | L214: 0 | O214: N21 | P214: Katy Doyle | Q214: UCD | R214: 0 | S214: 203 | T214: 0 | U214: 313 | V214: 278 | W214: 341 | Y214: 1135 | Z214: 0 | AC214: AA21 | AD214: 0 | AE214: TBC | AF214: TBC | AG214: TBC | AH214: TBC | AI214: TBC | AJ214: TBC | AK214: TBC | AM214: 0 | AN214: 0 | AQ214: AN21 | AR214: 0 | AS214: TBC | AT214: TBC | AU214: TBC | AV214: TBC | AW214: TBC | AX214: TBC | AY214: TBC | BA214: 0 | BB214: 0 | BE214: BA21 | BF214: Ryan Byrne | BG214: DIT | BH214: 559 | BI214: 480 | BJ214: 527 | BK214: 530 | BL214: 0 | BM214: 530 | BO214: 2626 | BP214: 0 | BS214: BN21 | BT214: Bríd Galvin | BU214: NUIG | BV214: 0 | BW214: 460 | BX214: 0 | BY214: 0 | BZ214: 389 | CA214: 0 | CC214: 849 | CD214: 0
A215: A22 | B215: Thomas Kear | C215: NUIG | D215: 0 | E215: 337 | F215: 180 | G215: 365 | H215: 298 | I215: 279 | K215: 1459 | L215: 0 | O215: N22 | P215: Sarah Delaney | Q215: NUIG | R215: 0 | S215: 421 | T215: 0 | U215: 361 | V215: 252 | W215: 0 | Y215: 1034 | Z215: 0 | AC215: AA22 | AD215: 0 | AE215: TBC | AF215: TBC | AG215: TBC | AH215: TBC | AI215: TBC | AJ215: TBC | AK215: TBC | AM215: 0 | AN215: 0 | AQ215: AN22 | AR215: 0 | AS215: TBC | AT215: TBC | AU215: TBC | AV215: TBC | AW215: TBC | AX215: TBC | AY215: TBC | BA215: 0 | BB215: 0 | BE215: BA22 | BF215: Patrick Molloy | BG215: NUIG | BH215: 454 | BI215: 459 | BJ215: 386 | BK215: 408 | BL215: 456 | BM215: 427 | BO215: 2590 | BP215: 386 | BS215: BN22 | BT215: Alysoun Killilea | BU215: UCC | BV215: 423 | BW215: 0 | BX215: 0 | BY215: 0 | BZ215: 399 | CA215: 0 | CC215: 822 | CD215: 0
A216: A23 | B216: Eoin Hinkson | C216: UCD | D216: 313 | E216: 270 | F216: 456 | G216: 0 | H216: 0 | I216: 400 | K216: 1439 | L216: 0 | O216: N23 | P216: Maria Jacob | Q216: UCD | R216: 0 | S216: 0 | T216: 230 | U216: 410 | V216: 0 | W216: 274 | Y216: 914 | Z216: 0 | AC216: AA23 | AD216: 0 | AE216: TBC | AF216: TBC | AG216: TBC | AH216: TBC | AI216: TBC | AJ216: TBC | AK216: TBC | AM216: 0 | AN216: 0 | AQ216: AN23 | AR216: 0 | AS216: TBC | AT216: TBC | AU216: TBC | AV216: TBC | AW216: TBC | AX216: TBC | AY216: TBC | BA216: 0 | BB216: 0 | BE216: BA23 | BF216: Muhammad Asyraf Maarof | BG216: NUIG | BH216: 410 | BI216: 404 | BJ216: 467 | BK216: 443 | BL216: 424 | BM216: 425 | BO216: 2573 | BP216: 404 | BS216: BN23 | BT216: Laura Ford | BU216: DCU | BV216: 0 | BW216: 0 | BX216: 0 | BY216: 416 | BZ216: 403 | CA216: 0 | CC216: 819 | CD216: 0
A217: A24 | B217: John Power | C217: NUIM | D217: 523 | E217: 464 | F217: 419 | G217: 0 | H217: 0 | I217: 0 | K217: 1406 | L217: 0 | O217: N24 | P217: Katrina Kelly | Q217: NUIG | R217: 0 | S217: 0 | T217: 363 | U217: 146 | V217: 404 | W217: 0 | Y217: 913 | Z217: 0 | AC217: AA24 | AD217: 0 | AE217: TBC | AF217: TBC | AG217: TBC | AH217: TBC | AI217: TBC | AJ217: TBC | AK217: TBC | AM217: 0 | AN217: 0 | AQ217: AN24 | AR217: 0 | AS217: TBC | AT217: TBC | AU217: TBC | AV217: TBC | AW217: TBC | AX217: TBC | AY217: TBC | BA217: 0 | BB217: 0 | BE217: BA24 | BF217: Stephen Masterson | BG217: UCD | BH217: 466 | BI217: 75 | BJ217: 473 | BK217: 488 | BL217: 461 | BM217: 526 | BO217: 2489 | BP217: 75 | BS217: BN24 | BT217: Susan Ryan | BU217: UCD | BV217: 390 | BW217: 333 | BX217: 0 | BY217: 0 | BZ217: 0 | CA217: 0 | CC217: 723 | CD217: 0
A218: A25 | B218: Leo Byrne | C218: ITC | D218: 0 | E218: 0 | F218: 304 | G218: 313 | H218: 337 | I218: 399 | K218: 1353 | L218: 0 | O218: N25 | P218: Martha Chege | Q218: UU | R218: 0 | S218: 322 | T218: 0 | U218: 381 | V218: 0 | W218: 0 | Y218: 703 | Z218: 0 | AC218: AA25 | AD218: 0 | AE218: TBC | AF218: TBC | AG218: TBC | AH218: TBC | AI218: TBC | AJ218: TBC | AK218: TBC | AM218: 0 | AN218: 0 | AQ218: AN25 | AR218: 0 | AS218: TBC | AT218: TBC | AU218: TBC | AV218: TBC | AW218: TBC | AX218: TBC | AY218: TBC | BA218: 0 | BB218: 0 | BE218: BA25 | BF218: Simon Henleywillis | BG218: UCC | BH218: 495 | BI218: 489 | BJ218: 486 | BK218: 0 | BL218: 488 | BM218: 465 | BO218: 2423 | BP218: 0 | BS218: BN25 | BT218: Katie Hamilton | BU218: UCC | BV218: 451 | BW218: 0 | BX218: 0 | BY218: 0 | BZ218: 0 | CA218: 0 | CC218: 451 | CD218: 0
A219: A26 | B219: Lukasz wrobel | C219: GMIT | D219: 346 | E219: 0 | F219: 424 | G219: 225 | H219: 286 | I219: 0 | K219: 1281 | L219: 0 | O219: N26 | P219: Rebecca Ward | Q219: DkIT | R219: 272 | S219: 0 | T219: 331 | U219: 0 | V219: 0 | W219: 0 | Y219: 603 | Z219: 0 | AC219: AA26 | AD219: 0 | AE219: TBC | AF219: TBC | AG219: TBC | AH219: TBC | AI219: TBC | AJ219: TBC | AK219: TBC | AM219: 0 | AN219: 0 | AQ219: AN26 | AR219: 0 | AS219: TBC | AT219: TBC | AU219: TBC | AV219: TBC | AW219: TBC | AX219: TBC | AY219: TBC | BA219: 0 | BB219: 0 | BE219: BA26 | BF219: Youcheng Pan | BG219: DIT | BH219: 399 | BI219: 0 | BJ219: 480 | BK219: 509 | BL219: 529 | BM219: 499 | BO219: 2416 | BP219: 0 | BS219: BN26 | BT219: sarah o sullivan | BU219: UL | BV219: 432 | BW219: 0 | BX219: 0 | BY219: 0 | BZ219: 0 | CA219: 0 | CC219: 432 | CD219: 0
A220: A27 | B220: Darren Ng | C220: UCD | D220: 0 | E220: 391 | F220: 457 | G220: 0 | H220: 0 | I220: 418 | K220: 1266 | L220: 0 | O220: N27 | P220: Zhi-Miin Ong | Q220: RCSI | R220: 0 | S220: 0 | T220: 0 | U220: 318 | V220: 251 | W220: 0 | Y220: 569 | Z220: 0 | AC220: AA27 | AD220: 0 | AE220: TBC | AF220: TBC | AG220: TBC | AH220: TBC | AI220: TBC | AJ220: TBC | AK220: TBC | AM220: 0 | AN220: 0 | AQ220: AN27 | AR220: 0 | AS220: TBC | AT220: TBC | AU220: TBC | AV220: TBC | AW220: TBC | AX220: TBC | AY220: TBC | BA220: 0 | BB220: 0 | BE220: BA27 | BF220: Pádraig Dunphy | BG220: NUIM | BH220: 401 | BI220: 476 | BJ220: 0 | BK220: 499 | BL220: 488 | BM220: 509 | BO220: 2373 | BP220: 0 | BS220: BN27 | BT220: 0 | BU220: TBC | BV220: TBC | BW220: TBC | BX220: TBC | BY220: TBC | BZ220: TBC | CA220: TBC | CC220: 0 | CD220: 0
A221: A28 | B221: Paul Murphy | C221: UL | D221: 470 | E221: 0 | F221: 0 | G221: 321 | H221: 0 | I221: 424 | K221: 1215 | L221: 0 | O221: N28 | P221: Rose Comendador | Q221: IT Tallaght | R221: 0 | S221: 0 | T221: 0 | U221: 283 | V221: 0 | W221: 250 | Y221: 533 | Z221: 0 | AC221: AA28 | AD221: 0 | AE221: TBC | AF221: TBC | AG221: TBC | AH221: TBC | AI221: TBC | AJ221: TBC | AK221: TBC | AM221: 0 | AN221: 0 | AQ221: AN28 | AR221: 0 | AS221: TBC | AT221: TBC | AU221: TBC | AV221: TBC | AW221: TBC | AX221: TBC | AY221: TBC | BA221: 0 | BB221: 0 | BE221: BA28 | BF221: Adam Garton | BG221: DIT | BH221: 475 | BI221: 486 | BJ221: 0 | BK221: 485 | BL221: 437 | BM221: 478 | BO221: 2361 | BP221: 0 | BS221: BN28 | BT221: 0 | BU221: TBC | BV221: TBC | BW221: TBC | BX221: TBC | BY221: TBC | BZ221: TBC | CA221: TBC | CC221: 0 | CD221: 0
A222: A29 | B222: Mark Kearns | C222: NUIM | D222: 417 | E222: 363 | F222: 0 | G222: 386 | H222: 0 | I222: 0 | K222: 1166 | L222: 0 | O222: N29 | P222: Cara Brennan | Q222: NUIG | R222: 0 | S222: 0 | T222: 0 | U222: 263 | V222: 224 | W222: 0 | Y222: 487 | Z222: 0 | AC222: AA29 | AD222: 0 | AE222: TBC | AF222: TBC | AG222: TBC | AH222: TBC | AI222: TBC | AJ222: TBC | AK222: TBC | AM222: 0 | AN222: 0 | AQ222: AN29 | AR222: 0 | AS222: TBC | AT222: TBC | AU222: TBC | AV222: TBC | AW222: TBC | AX222: TBC | AY222: TBC | BA222: 0 | BB222: 0 | BE222: BA29 | BF222: Michael O Callaghan | BG222: UL | BH222: 448 | BI222: 449 | BJ222: 0 | BK222: 439 | BL222: 492 | BM222: 465 | BO222: 2293 | BP222: 0 | BS222: BN29 | BT222: 0 | BU222: TBC | BV222: TBC | BW222: TBC | BX222: TBC | BY222: TBC | BZ222: TBC | CA222: TBC | CC222: 0 | CD222: 0
A223: A30 | B223: Graham Buckley | C223: DIT | D223: 0 | E223: 0 | F223: 437 | G223: 0 | H223: 366 | I223: 340 | K223: 1143 | L223: 0 | O223: N30 | P223: Liu Min | Q223: NUIG | R223: 0 | S223: 0 | T223: 0 | U223: 0 | V223: 238 | W223: 249 | Y223: 487 | Z223: 0 | AC223: AA30 | AD223: 0 | AE223: TBC | AF223: TBC | AG223: TBC | AH223: TBC | AI223: TBC | AJ223: TBC | AK223: TBC | AM223: 0 | AN223: 0 | AQ223: AN30 | AR223: 0 | AS223: TBC | AT223: TBC | AU223: TBC | AV223: TBC | AW223: TBC | AX223: TBC | AY223: TBC | BA223: 0 | BB223: 0 | BE223: BA30 | BF223: Chris O'Leary | BG223: UCC | BH223: 452 | BI223: 450 | BJ223: 414 | BK223: 0 | BL223: 479 | BM223: 490 | BO223: 2285 | BP223: 0 | BS223: BN30 | BT223: 0 | BU223: TBC | BV223: TBC | BW223: TBC | BX223: TBC | BY223: TBC | BZ223: TBC | CA223: TBC | CC223: 0 | CD223: 0
A224: A31 | B224: Conor dePaor | C224: UCD | D224: 0 | E224: 0 | F224: 0 | G224: 415 | H224: 366 | I224: 276 | K224: 1057 | L224: 0 | O224: N31 | P224: Farah Nadia Zikhtar | Q224: RCSI | R224: 187 | S224: 186 | T224: 0 | U224: 0 | V224: 0 | W224: 66 | Y224: 439 | Z224: 0 | AC224: AA31 | AD224: 0 | AE224: TBC | AF224: TBC | AG224: TBC | AH224: TBC | AI224: TBC | AJ224: TBC | AK224: TBC | AM224: 0 | AN224: 0 | AQ224: AN31 | AR224: 0 | AS224: TBC | AT224: TBC | AU224: TBC | AV224: TBC | AW224: TBC | AX224: TBC | AY224: TBC | BA224: 0 | BB224: 0 | BE224: BA31 | BF224: Peter Cummings | BG224: UU | BH224: 564 | BI224: 548 | BJ224: 559 | BK224: 557 | BL224: 0 | BM224: 0 | BO224: 2228 | BP224: 0 | BS224: BN31 | BT224: 0 | BU224: TBC | BV224: TBC | BW224: TBC | BX224: TBC | BY224: TBC | BZ224: TBC | CA224: TBC | CC224: 0 | CD224: 0
A225: A32 | B225: Tan Shu leed | C225: RCSI | D225: 0 | E225: 282 | F225: 0 | G225: 0 | H225: 366 | I225: 407 | K225: 1055 | L225: 0 | O225: N32 | P225: Brona Howard | Q225: DkIT | R225: 0 | S225: 0 | T225: 421 | U225: 0 | V225: 0 | W225: 0 | Y225: 421 | Z225: 0 | AC225: AA32 | AD225: 0 | AE225: TBC | AF225: TBC | AG225: TBC | AH225: TBC | AI225: TBC | AJ225: TBC | AK225: TBC | AM225: 0 | AN225: 0 | AQ225: AN32 | AR225: 0 | AS225: TBC | AT225: TBC | AU225: TBC | AV225: TBC | AW225: TBC | AX225: TBC | AY225: TBC | BA225: 0 | BB225: 0 | BE225: BA32 | BF225: Mark Christiansen | BG225: NUIM | BH225: 0 | BI225: 440 | BJ225: 458 | BK225: 430 | BL225: 422 | BM225: 408 | BO225: 2158 | BP225: 0 | BS225: BN32 | BT225: 0 | BU225: TBC | BV225: TBC | BW225: TBC | BX225: TBC | BY225: TBC | BZ225: TBC | CA225: TBC | CC225: 0 | CD225: 0
A226: A33 | B226: Conor Moran | C226: UL | D226: 391 | E226: 401 | F226: 0 | G226: 230 | H226: 0 | I226: 0 | K226: 1022 | L226: 0 | O226: N33 | P226: Eilis Ni Shuilleabhain | Q226: UCD | R226: 0 | S226: 339 | T226: 0 | U226: 0 | V226: 0 | W226: 0 | Y226: 339 | Z226: 0 | AC226: AA33 | AD226: 0 | AE226: TBC | AF226: TBC | AG226: TBC | AH226: TBC | AI226: TBC | AJ226: TBC | AK226: TBC | AM226: 0 | AN226: 0 | AQ226: AN33 | AR226: 0 | AS226: TBC | AT226: TBC | AU226: TBC | AV226: TBC | AW226: TBC | AX226: TBC | AY226: TBC | BA226: 0 | BB226: 0 | BE226: BA33 | BF226: Austin Tobin | BG226: DCU | BH226: 0 | BI226: 0 | BJ226: 524 | BK226: 543 | BL226: 521 | BM226: 538 | BO226: 2126 | BP226: 0 | BS226: BN33 | BT226: 0 | BU226: TBC | BV226: TBC | BW226: TBC | BX226: TBC | BY226: TBC | BZ226: TBC | CA226: TBC | CC226: 0 | CD226: 0
A227: A34 | B227: Muhammad Hakim Mohd Nasir | C227: RCSI | D227: 224 | E227: 239 | F227: 0 | G227: 444 | H227: 0 | I227: 114 | K227: 1021 | L227: 0 | O227: N34 | P227: Elizabeth Clare Lao | Q227: DIT | R227: 287 | S227: 0 | T227: 0 | U227: 0 | V227: 0 | W227: 0 | Y227: 287 | Z227: 0 | AC227: AA34 | AD227: 0 | AE227: TBC | AF227: TBC | AG227: TBC | AH227: TBC | AI227: TBC | AJ227: TBC | AK227: TBC | AM227: 0 | AN227: 0 | AQ227: AN34 | AR227: 0 | AS227: TBC | AT227: TBC | AU227: TBC | AV227: TBC | AW227: TBC | AX227: TBC | AY227: TBC | BA227: 0 | BB227: 0 | BE227: BA34 | BF227: Stephen Dillon | BG227: IT Tallaght | BH227: 497 | BI227: 0 | BJ227: 543 | BK227: 523 | BL227: 0 | BM227: 525 | BO227: 2088 | BP227: 0 | BS227: BN34 | BT227: 0 | BU227: TBC | BV227: TBC | BW227: TBC | BX227: TBC | BY227: TBC | BZ227: TBC | CA227: TBC | CC227: 0 | CD227: 0
A228: A35 | B228: Ronan Walsh | C228: UCD | D228: 0 | E228: 268 | F228: 247 | G228: 0 | H228: 0 | I228: 469 | K228: 984 | L228: 0 | O228: N35 | P228: Hana Cúipéir | Q228: DCU | R228: 0 | S228: 275 | T228: 0 | U228: 0 | V228: 0 | W228: 0 | Y228: 275 | Z228: 0 | AC228: AA35 | AD228: 0 | AE228: TBC | AF228: TBC | AG228: TBC | AH228: TBC | AI228: TBC | AJ228: TBC | AK228: TBC | AM228: 0 | AN228: 0 | AQ228: AN35 | AR228: 0 | AS228: TBC | AT228: TBC | AU228: TBC | AV228: TBC | AW228: TBC | AX228: TBC | AY228: TBC | BA228: 0 | BB228: 0 | BE228: BA35 | BF228: Philip Early | BG228: DCU | BH228: 406 | BI228: 408 | BJ228: 442 | BK228: 381 | BL228: 0 | BM228: 444 | BO228: 2081 | BP228: 0 | BS228: BN35 | BT228: 0 | BU228: TBC | BV228: TBC | BW228: TBC | BX228: TBC | BY228: TBC | BZ228: TBC | CA228: TBC | CC228: 0 | CD228: 0
A229: A36 | B229: Gary Cooney | C229: DCU | D229: 516 | E229: 449 | F229: 0 | G229: 0 | H229: 0 | I229: 0 | K229: 965 | L229: 0 | O229: N36 | P229: Shahrizan Majid Allapitchai | Q229: RCSI | R229: 259 | S229: 0 | T229: 0 | U229: 0 | V229: 0 | W229: 0 | Y229: 259 | Z229: 0 | AC229: AA36 | AD229: 0 | AE229: TBC | AF229: TBC | AG229: TBC | AH229: TBC | AI229: TBC | AJ229: TBC | AK229: TBC | AM229: 0 | AN229: 0 | AQ229: AN36 | AR229: 0 | AS229: TBC | AT229: TBC | AU229: TBC | AV229: TBC | AW229: TBC | AX229: TBC | AY229: TBC | BA229: 0 | BB229: 0 | BE229: BA36 | BF229: Ciarán Lowe | BG229: NUIM | BH229: 0 | BI229: 519 | BJ229: 519 | BK229: 513 | BL229: 0 | BM229: 515 | BO229: 2066 | BP229: 0 | BS229: BN36 | BT229: 0 | BU229: TBC | BV229: TBC | BW229: TBC | BX229: TBC | BY229: TBC | BZ229: TBC | CA229: TBC | CC229: 0 | CD229: 0
A230: A37 | B230: Sam Schultz | C230: NUIG | D230: 486 | E230: 435 | F230: 0 | G230: 0 | H230: 0 | I230: 0 | K230: 921 | L230: 0 | O230: N37 | P230: Maria Dunne | Q230: UL | R230: 0 | S230: 0 | T230: 0 | U230: 0 | V230: 0 | W230: 257 | Y230: 257 | Z230: 0 | AC230: AA37 | AD230: 0 | AE230: TBC | AF230: TBC | AG230: TBC | AH230: TBC | AI230: TBC | AJ230: TBC | AK230: TBC | AM230: 0 | AN230: 0 | AQ230: AN37 | AR230: 0 | AS230: TBC | AT230: TBC | AU230: TBC | AV230: TBC | AW230: TBC | AX230: TBC | AY230: TBC | BA230: 0 | BB230: 0 | BE230: BA37 | BF230: Patrick Markey | BG230: DkIT | BH230: 424 | BI230: 394 | BJ230: 374 | BK230: 349 | BL230: 397 | BM230: 0 | BO230: 1938 | BP230: 0 | BS230: BN37 | BT230: 0 | BU230: TBC | BV230: TBC | BW230: TBC | BX230: TBC | BY230: TBC | BZ230: TBC | CA230: TBC | CC230: 0 | CD230: 0
A231: A38 | B231: Muhammad Izrin Syukri Mohd Nasri | C231: RCSI | D231: 0 | E231: 240 | F231: 0 | G231: 0 | H231: 282 | I231: 382 | K231: 904 | L231: 0 | O231: N38 | P231: Shauna O Brien | Q231: UCD | R231: 0 | S231: 0 | T231: 249 | U231: 0 | V231: 0 | W231: 0 | Y231: 249 | Z231: 0 | AC231: AA38 | AD231: 0 | AE231: TBC | AF231: TBC | AG231: TBC | AH231: TBC | AI231: TBC | AJ231: TBC | AK231: TBC | AM231: 0 | AN231: 0 | AQ231: AN38 | AR231: 0 | AS231: TBC | AT231: TBC | AU231: TBC | AV231: TBC | AW231: TBC | AX231: TBC | AY231: TBC | BA231: 0 | BB231: 0 | BE231: BA38 | BF231: Jordan McCord | BG231: UU | BH231: 445 | BI231: 472 | BJ231: 476 | BK231: 531 | BL231: 0 | BM231: 0 | BO231: 1924 | BP231: 0 | BS231: BN38 | BT231: 0 | BU231: TBC | BV231: TBC | BW231: TBC | BX231: TBC | BY231: TBC | BZ231: TBC | CA231: TBC | CC231: 0 | CD231: 0
A232: A39 | B232: Paul Ferguson | C232: IT Tallaght | D232: 0 | E232: 0 | F232: 0 | G232: 480 | H232: 0 | I232: 423 | K232: 903 | L232: 0 | O232: N39 | P232: Nassira Musa | Q232: UCC | R232: 0 | S232: 241 | T232: 0 | U232: 0 | V232: 0 | W232: 0 | Y232: 241 | Z232: 0 | AC232: AA39 | AD232: 0 | AE232: TBC | AF232: TBC | AG232: TBC | AH232: TBC | AI232: TBC | AJ232: TBC | AK232: TBC | AM232: 0 | AN232: 0 | AQ232: AN39 | AR232: 0 | AS232: TBC | AT232: TBC | AU232: TBC | AV232: TBC | AW232: TBC | AX232: TBC | AY232: TBC | BA232: 0 | BB232: 0 | BE232: BA39 | BF232: Conor McCan | BG232: GMIT | BH232: 0 | BI232: 0 | BJ232: 389 | BK232: 437 | BL232: 458 | BM232: 444 | BO232: 1728 | BP232: 0 | BS232: BN39 | BT232: 0 | BU232: TBC | BV232: TBC | BW232: TBC | BX232: TBC | BY232: TBC | BZ232: TBC | CA232: TBC | CC232: 0 | CD232: 0
A233: A40 | B233: =VLOOKUP($A233,$A$8:$L$82,2,0) -> geoffrey doorbosch | C233: =VLOOKUP($A233,$A$8:$L$82,3,0) -> UL | D233: =VLOOKUP($A233,$A$8:$L$82,4,0) -> 446 | E233: =VLOOKUP($A233,$A$8:$L$82,5,0) -> 438 | F233: =VLOOKUP($A233,$A$8:$L$82,6,0) -> 0 | G233: =VLOOKUP($A233,$A$8:$L$82,7,0) -> 0 | H233: =VLOOKUP($A233,$A$8:$L$82,8,0) -> 0 | I233: =VLOOKUP($A233,$A$8:$L$82,9,0) -> 0 | K233: =VLOOKUP($A233,$A$8:$L$82,10,0) -> 884 | L233: =VLOOKUP($A233,$A$8:$L$82,11,0) -> 0 | O233: N40 | P233: zahratulfatin | Q233: RCSI | R233: 0 | S233: 0 | T233: 0 | U233: 0 | V233: 0 | W233: 232 | Y233: 232 | Z233: 0 | AC233: AA40 | AD233: 0 | AE233: TBC | AF233: TBC | AG233: TBC | AH233: TBC | AI233: TBC | AJ233: TBC | AK233: TBC | AM233: 0 | AN233: 0 | AQ233: AN40 | AR233: 0 | AS233: TBC | AT233: TBC | AU233: TBC | AV233: TBC | AW233: TBC | AX233: TBC | AY233: TBC | BA233: 0 | BB233: 0 | BE233: BA40 | BF233: Peter Callanan | BG233: UCD | BH233: 303 | BI233: 205 | BJ233: 350 | BK233: 0 | BL233: 328 | BM233: 451 | BO233: 1637 | BP233: 0 | BS233: BN40 | BT233: 0 | BU233: TBC | BV233: TBC | BW233: TBC | BX233: TBC | BY233: TBC | BZ233: TBC | CA233: TBC | CC233: 0 | CD233: 0
A234: A41 | B234: Omar Mustafa | C234: NUIG | D234: 414 | E234: 386 | F234: 0 | G234: 0 | H234: 0 | I234: 0 | K234: 800 | L234: 0 | O234: N41 | P234: Shenelle Samodee | Q234: RCSI | R234: 0 | S234: 0 | T234: 0 | U234: 0 | V234: 230 | W234: 0 | Y234: 230 | Z234: 0 | AC234: AA41 | AD234: 0 | AE234: TBC | AF234: TBC | AG234: TBC | AH234: TBC | AI234: TBC | AJ234: TBC | AK234: TBC | AM234: 0 | AN234: 0 | AQ234: AN41 | AR234: 0 | AS234: TBC | AT234: TBC | AU234: TBC | AV234: TBC | AW234: TBC | AX234: TBC | AY234: TBC | BA234: 0 | BB234: 0 | BE234: BA41 | BF234: Eoin Miller | BG234: NUIM | BH234: 437 | BI234: 0 | BJ234: 0 | BK234: 414 | BL234: 392 | BM234: 386 | BO234: 1629 | BP234: 0 | BS234: BN41 | BT234: 0 | BU234: TBC | BV234: TBC | BW234: TBC | BX234: TBC | BY234: TBC | BZ234: TBC | CA234: TBC | CC234: 0 | CD234: 0
A235: A42 | B235: Richard Jeffery | C235: NUIG | D235: 0 | E235: 436 | F235: 304 | G235: 0 | H235: 0 | I235: 0 | K235: 740 | L235: 0 | O235: N42 | P235: Rebecca Watkin | Q235: UCD | R235: 0 | S235: 0 | T235: 179 | U235: 0 | V235: 0 | W235: 0 | Y235: 179 | Z235: 0 | AC235: AA42 | AD235: 0 | AE235: TBC | AF235: TBC | AG235: TBC | AH235: TBC | AI235: TBC | AJ235: TBC | AK235: TBC | AM235: 0 | AN235: 0 | AQ235: AN42 | AR235: 0 | AS235: TBC | AT235: TBC | AU235: TBC | AV235: TBC | AW235: TBC | AX235: TBC | AY235: TBC | BA235: 0 | BB235: 0 | BE235: BA42 | BF235: Brendan Browne | BG235: GMIT | BH235: 0 | BI235: 0 | BJ235: 400 | BK235: 380 | BL235: 422 | BM235: 371 | BO235: 1573 | BP235: 0 | BS235: BN42 | BT235: 0 | BU235: TBC | BV235: TBC | BW235: TBC | BX235: TBC | BY235: TBC | BZ235: TBC | CA235: TBC | CC235: 0 | CD235: 0
A236: A43 | B236: Brendan Burke | C236: NUIM | D236: 0 | E236: 0 | F236: 0 | G236: 344 | H236: 0 | I236: 370 | K236: 714 | L236: 0 | O236: N43 | P236: Rubasangkari Rajaderam | Q236: RCSI | R236: 149 | S236: 0 | T236: 0 | U236: 0 | V236: 0 | W236: 0 | Y236: 149 | Z236: 0 | AC236: AA43 | AD236: 0 | AE236: TBC | AF236: TBC | AG236: TBC | AH236: TBC | AI236: TBC | AJ236: TBC | AK236: TBC | AM236: 0 | AN236: 0 | AQ236: AN43 | AR236: 0 | AS236: TBC | AT236: TBC | AU236: TBC | AV236: TBC | AW236: TBC | AX236: TBC | AY236: TBC | BA236: 0 | BB236: 0 | BE236: BA43 | BF236: Fan Zingliang | BG236: NUIG | BH236: 0 | BI236: 0 | BJ236: 0 | BK236: 502 | BL236: 507 | BM236: 522 | BO236: 1531 | BP236: 0 | BS236: BN43 | BT236: 0 | BU236: TBC | BV236: TBC | BW236: TBC | BX236: TBC | BY236: TBC | BZ236: TBC | CA236: TBC | CC236: 0 | CD236: 0
A237: A44 | B237: Paul Connolly | C237: NUIG | D237: 0 | E237: 0 | F237: 0 | G237: 259 | H237: 0 | I237: 375 | K237: 634 | L237: 0 | O237: N44 | P237: Auni Awang Dahan | Q237: RCSI | R237: 94 | S237: 0 | T237: 0 | U237: 0 | V237: 0 | W237: 0 | Y237: 94 | Z237: 0 | AC237: AA44 | AD237: 0 | AE237: TBC | AF237: TBC | AG237: TBC | AH237: TBC | AI237: TBC | AJ237: TBC | AK237: TBC | AM237: 0 | AN237: 0 | AQ237: AN44 | AR237: 0 | AS237: TBC | AT237: TBC | AU237: TBC | AV237: TBC | AW237: TBC | AX237: TBC | AY237: TBC | BA237: 0 | BB237: 0 | BE237: BA44 | BF237: Daniel Meyer | BG237: DCU | BH237: 0 | BI237: 0 | BJ237: 0 | BK237: 468 | BL237: 441 | BM237: 480 | BO237: 1389 | BP237: 0 | BS237: BN44 | BT237: 0 | BU237: TBC | BV237: TBC | BW237: TBC | BX237: TBC | BY237: TBC | BZ237: TBC | CA237: TBC | CC237: 0 | CD237: 0
A238: A45 | B238: Eric Brown | C238: UCD | D238: 0 | E238: 484 | F238: 0 | G238: 0 | H238: 0 | I238: 0 | K238: 484 | L238: 0 | O238: N45 | P238: Nurhidayah Miswan | Q238: RCSI | R238: 0 | S238: 84 | T238: 0 | U238: 0 | V238: 0 | W238: 0 | Y238: 84 | Z238: 0 | AC238: AA45 | AD238: 0 | AE238: TBC | AF238: TBC | AG238: TBC | AH238: TBC | AI238: TBC | AJ238: TBC | AK238: TBC | AM238: 0 | AN238: 0 | AQ238: AN45 | AR238: 0 | AS238: TBC | AT238: TBC | AU238: TBC | AV238: TBC | AW238: TBC | AX238: TBC | AY238: TBC | BA238: 0 | BB238: 0 | BE238: BA45 | BF238: Tony Liu | BG238: DkIT | BH238: 466 | BI238: 442 | BJ238: 0 | BK238: 0 | BL238: 475 | BM238: 0 | BO238: 1383 | BP238: 0 | BS238: BN45 | BT238: 0 | BU238: TBC | BV238: TBC | BW238: TBC | BX238: TBC | BY238: TBC | BZ238: TBC | CA238: TBC | CC238: 0 | CD238: 0
... 114 more rows

Sheet RBM
A1: =$D$7 -> DkIT
A2: DkIT | B2: Male Beginner Recurve | E2: Host Club | K2: =$D$7 -> DkIT | L2: Scores | O2: =$D$7 -> DkIT | AI2: =AI7 -> Kevin Kok Zhi Hao | AU2: A1,A2,J2,N2,B5,K5,A82
E3: =Entries!K6 -> DCU IV | F3: UCD/ITC | G3: =Entries!K8 -> DkIT IV | H3: NUIM/GMIT | I3: =Entries!K10 -> NUIG IV | J3: =Entries!K11 -> UL IV | L3: Total | M3: Lowest | N3: League
B5: =$D$7 -> DkIT | L5: DkIT
C6: Name | D6: College | E6: DCU IV | F6: UCD/ITC IV | G6: DkIT IV | H6: NUIM/GMIT IV | I6: NUIG IV | J6: UL IV | L6: Total | M6: Lowest | N6: League total | AU6: $K$7:$M$7,$B$7:$I$7,$B$2
B7: 1 | C7: =Singles!B201 -> Kevin Kok Zhi Hao | D7: =Singles!C201 -> DkIT | E7: =Singles!D201 -> 452 | F7: =Singles!E201 -> 427 | G7: =Singles!F201 -> 462 | H7: =Singles!G201 -> 413 | I7: =Singles!H201 -> 446 | J7: =Singles!I201 -> 432 | L7: =Singles!J8 -> 2632 | M7: =Singles!K8 -> 413 | N7: =Singles!L8 -> 2219.046245 | AI7: =C7 -> Kevin Kok Zhi Hao
B8: 2 | C8: =Singles!B202 -> Frank Stafford | D8: =Singles!C202 -> UL | E8: =Singles!D202 -> 501 | F8: =Singles!E202 -> 376 | G8: =Singles!F202 -> 387 | H8: =Singles!G202 -> 427 | I8: =Singles!H202 -> 399 | J8: =Singles!I202 -> 441 | L8: =Singles!J9 -> 2531 | M8: =Singles!K9 -> 376 | N8: =Singles!L9 -> 2155.050143 | AU8: DCU CONDITIONAL FORMATTING FORMULA > | AV8: OR($AH7=Tables!$B$131,$AH7=Tables!$B$132,$AH7=Tables!$B$133,$AH7=Tables!$B$134,$AH7=Tables!$B$135,$AH7=Tables!$B$136,$AH7=Tables!$B$137,$AH7=Tables!$B$138,$AH7=Tables!$B$139,$AH7=Tables!$B$140,$AH7=Tables!$B$141,$AH7=Tables!$B$142,$AH7=Tables!$B$143,$AH7=Tables!$B$144,$AH7=Tables!$B$145,$AH7=Tables!$B$146,$AH7=Tables!$B$147,$AH7=Tables!$B$148,$AH7=Tables!$B$149,$AH7=Tables!$B$150,$AH7=Tables!$B$151)
B9: 3 | C9: =Singles!B204 -> See Qui Ren | D9: =Singles!C204 -> DkIT | E9: =Singles!D204 -> 471 | F9: =Singles!E204 -> 422 | G9: =Singles!F204 -> 414 | H9: =Singles!G204 -> 362 | I9: =Singles!H204 -> 292 | J9: =Singles!I204 -> 301 | L9: =Singles!J11 -> 2262 | M9: =Singles!K11 -> 292 | N9: =Singles!L11 -> 1970.047142 | AU9: DIT CONDITIONAL FORMATTING FORMULA > | AV9: OR($AH7=Tables!$B$156,$AH7=Tables!$B$157,$AH7=Tables!$B$158,$AH7=Tables!$B$159,$AH7=Tables!$B$160,$AH7=Tables!$B$161,$AH7=Tables!$B$162,$AH7=Tables!$B$163,$AH7=Tables!$B$164,$AH7=Tables!$B$165,$AH7=Tables!$B$166,$AH7=Tables!$B$167,$AH7=Tables!$B$168,$AH7=Tables!$B$169,$AH7=Tables!$B$170,$AH7=Tables!$B$171,$AH7=Tables!$B$172,$AH7=Tables!$B$173,$AH7=Tables!$B$174,$AH7=Tables!$B$175,$AH7=Tables!$B$176)
B10: 4 | C10: =Singles!B203 -> Edwin Ma | D10: =Singles!C203 -> DkIT | E10: =Singles!D203 -> 399 | F10: =Singles!E203 -> 464 | G10: =Singles!F203 -> 394 | H10: =Singles!G203 -> 323 | I10: =Singles!H203 -> 334 | J10: =Singles!I203 -> 350 | L10: =Singles!J10 -> 2264 | M10: =Singles!K10 -> 323 | N10: =Singles!L10 -> 1941.04644 | AU10: DKIT CONDITIONAL FORMATTING FORMULA > | AV10: OR($AH7=Tables!$B$181,$AH7=Tables!$B$182,$AH7=Tables!$B$183,$AH7=Tables!$B$184,$AH7=Tables!$B$185,$AH7=Tables!$B$186,$AH7=Tables!$B$187,$AH7=Tables!$B$188,$AH7=Tables!$B$189,$AH7=Tables!$B$190,$AH7=Tables!$B$191,$AH7=Tables!$B$192,$AH7=Tables!$B$193,$AH7=Tables!$B$194,$AH7=Tables!$B$195,$AH7=Tables!$B$196,$AH7=Tables!$B$197,$AH7=Tables!$B$198,$AH7=Tables!$B$199,$AH7=Tables!$B$200,$AH7=Tables!$B$201)
B11: 5 | C11: =Singles!B207 -> Mark Walsh | D11: =Singles!C207 -> NUIG | E11: =Singles!D207 -> 354 | F11: =Singles!E207 -> 394 | G11: =Singles!F207 -> 449 | H11: =Singles!G207 -> 355 | I11: =Singles!H207 -> 354 | J11: =Singles!I207 -> 0 | L11: =Singles!J14 -> 1906 | M11: =Singles!K14 -> 0 | N11: =Singles!L14 -> 1906.044939 | AU11: DUAC CONDITIONAL FORMATTING FORMULA > | AV11: OR($AH7=Tables!$B$206,$AH7=Tables!$B$207,$AH7=Tables!$B$208,$AH7=Tables!$B$209,$AH7=Tables!$B$210,$AH7=Tables!$B$211,$AH7=Tables!$B$212,$AH7=Tables!$B$213,$AH7=Tables!$B$214,$AH7=Tables!$B$215,$AH7=Tables!$B$216,$AH7=Tables!$B$217,$AH7=Tables!$B$218,$AH7=Tables!$B$219,$AH7=Tables!$B$220,$AH7=Tables!$B$221,$AH7=Tables!$B$222,$AH7=Tables!$B$223,$AH7=Tables!$B$224,$AH7=Tables!$B$225,$AH7=Tables!$B$226)
B12: 6 | C12: =Singles!B205 -> Keet Wai Hong | D12: =Singles!C205 -> DkIT | E12: =Singles!D205 -> 287 | F12: =Singles!E205 -> 402 | G12: =Singles!F205 -> 358 | H12: =Singles!G205 -> 339 | I12: =Singles!H205 -> 357 | J12: =Singles!I205 -> 355 | L12: =Singles!J12 -> 2098 | M12: =Singles!K12 -> 287 | N12: =Singles!L12 -> 1811.040236 | AU12: GMIT CONDITIONAL FORMATTING FORMULA > | AV12: OR($AH7=Tables!$B$231,$AH7=Tables!$B$232,$AH7=Tables!$B$233,$AH7=Tables!$B$234,$AH7=Tables!$B$235,$AH7=Tables!$B$236,$AH7=Tables!$B$237,$AH7=Tables!$B$238,$AH7=Tables!$B$239,$AH7=Tables!$B$240,$AH7=Tables!$B$241,$AH7=Tables!$B$242,$AH7=Tables!$B$243,$AH7=Tables!$B$244,$AH7=Tables!$B$245,$AH7=Tables!$B$246,$AH7=Tables!$B$247,$AH7=Tables!$B$248,$AH7=Tables!$B$249,$AH7=Tables!$B$250,$AH7=Tables!$B$251)
B13: 7 | C13: =Singles!B206 -> Yeo Eng Jet | D13: =Singles!C206 -> DkIT | E13: =Singles!D206 -> 465 | F13: =Singles!E206 -> 344 | G13: =Singles!F206 -> 350 | H13: =Singles!G206 -> 200 | I13: =Singles!H206 -> 228 | J13: =Singles!I206 -> 342 | L13: =Singles!J13 -> 1929 | M13: =Singles!K13 -> 200 | N13: =Singles!L13 -> 1729.046535 | AU13: GMITC CONDITIONAL FORMATTING FORMULA > | AV13: OR($AH7=Tables!$B$256,$AH7=Tables!$B$257,$AH7=Tables!$B$258,$AH7=Tables!$B$259,$AH7=Tables!$B$260,$AH7=Tables!$B$261,$AH7=Tables!$B$262,$AH7=Tables!$B$263,$AH7=Tables!$B$264,$AH7=Tables!$B$265,$AH7=Tables!$B$266,$AH7=Tables!$B$267,$AH7=Tables!$B$268,$AH7=Tables!$B$269,$AH7=Tables!$B$270,$AH7=Tables!$B$271,$AH7=Tables!$B$272,$AH7=Tables!$B$273,$AH7=Tables!$B$274,$AH7=Tables!$B$275,$AH7=Tables!$B$276)
B14: 8 | C14: =Singles!B209 -> sean Morrisey | D14: =Singles!C209 -> UL | E14: =Singles!D209 -> 391 | F14: =Singles!E209 -> 398 | G14: =Singles!F209 -> 507 | H14: =Singles!G209 -> 0 | I14: =Singles!H209 -> 0 | J14: =Singles!I209 -> 374 | L14: =Singles!J16 -> 1670 | M14: =Singles!K16 -> 0 | N14: =Singles!L16 -> 1670.05074 | AU14: ITC CONDITIONAL FORMATTING FORMULA > | AV14: OR($AH7=Tables!$B$281,$AH7=Tables!$B$282,$AH7=Tables!$B$283,$AH7=Tables!$B$284,$AH7=Tables!$B$285,$AH7=Tables!$B$286,$AH7=Tables!$B$287,$AH7=Tables!$B$288,$AH7=Tables!$B$289,$AH7=Tables!$B$290,$AH7=Tables!$B$291,$AH7=Tables!$B$292,$AH7=Tables!$B$293,$AH7=Tables!$B$294,$AH7=Tables!$B$295,$AH7=Tables!$B$296,$AH7=Tables!$B$297,$AH7=Tables!$B$298,$AH7=Tables!$B$299,$AH7=Tables!$B$300,$AH7=Tables!$B$301)
B15: 9 | C15: =Singles!B208 -> Colm McClelland | D15: =Singles!C208 -> DkIT | E15: =Singles!D208 -> 279 | F15: =Singles!E208 -> 342 | G15: =Singles!F208 -> 402 | H15: =Singles!G208 -> 244 | I15: =Singles!H208 -> 253 | J15: =Singles!I208 -> 336 | L15: =Singles!J15 -> 1856 | M15: =Singles!K15 -> 244 | N15: =Singles!L15 -> 1612.040234 | AU15: ITT CONDITIONAL FORMATTING FORMULA > | AV15: OR($AH7=Tables!$B$306,$AH7=Tables!$B$307,$AH7=Tables!$B$308,$AH7=Tables!$B$309,$AH7=Tables!$B$310,$AH7=Tables!$B$311,$AH7=Tables!$B$312,$AH7=Tables!$B$313,$AH7=Tables!$B$314,$AH7=Tables!$B$315,$AH7=Tables!$B$316,$AH7=Tables!$B$317,$AH7=Tables!$B$318,$AH7=Tables!$B$319,$AH7=Tables!$B$320,$AH7=Tables!$B$321,$AH7=Tables!$B$322,$AH7=Tables!$B$323,$AH7=Tables!$B$324,$AH7=Tables!$B$325,$AH7=Tables!$B$326)
B16: 10 | C16: =Singles!B210 -> Paul Coleman | D16: =Singles!C210 -> DCU | E16: =Singles!D210 -> 454 | F16: =Singles!E210 -> 372 | G16: =Singles!F210 -> 0 | H16: =Singles!G210 -> 0 | I16: =Singles!H210 -> 314 | J16: =Singles!I210 -> 375 | L16: =Singles!J17 -> 1515 | M16: =Singles!K17 -> 0 | N16: =Singles!L17 -> 1515.045437 | AU16: MU CONDITIONAL FORMATTING FORMULA > | AV16: OR($AH7=Tables!$B$331,$AH7=Tables!$B$332,$AH7=Tables!$B$333,$AH7=Tables!$B$334,$AH7=Tables!$B$335,$AH7=Tables!$B$336,$AH7=Tables!$B$337,$AH7=Tables!$B$338,$AH7=Tables!$B$339,$AH7=Tables!$B$340,$AH7=Tables!$B$341,$AH7=Tables!$B$342,$AH7=Tables!$B$343,$AH7=Tables!$B$344,$AH7=Tables!$B$345,$AH7=Tables!$B$346,$AH7=Tables!$B$347,$AH7=Tables!$B$348,$AH7=Tables!$B$349,$AH7=Tables!$B$350,$AH7=Tables!$B$351)
B17: 11 | C17: =Singles!B211 -> Eric Moore | D17: =Singles!C211 -> NUIG | E17: =Singles!D211 -> 0 | F17: =Singles!E211 -> 0 | G17: =Singles!F211 -> 315 | H17: =Singles!G211 -> 387 | I17: =Singles!H211 -> 343 | J17: =Singles!I211 -> 455 | L17: =Singles!J18 -> 1500 | M17: =Singles!K18 -> 0 | N17: =Singles!L18 -> 1500.038734 | AU17: NCAD CONDITIONAL FORMATTING FORMULA > | AV17: OR($AH7=Tables!$B$356,$AH7=Tables!$B$357,$AH7=Tables!$B$358,$AH7=Tables!$B$359,$AH7=Tables!$B$360,$AH7=Tables!$B$361,$AH7=Tables!$B$362,$AH7=Tables!$B$363,$AH7=Tables!$B$364,$AH7=Tables!$B$365,$AH7=Tables!$B$366,$AH7=Tables!$B$367,$AH7=Tables!$B$368,$AH7=Tables!$B$369,$AH7=Tables!$B$370,$AH7=Tables!$B$371,$AH7=Tables!$B$372,$AH7=Tables!$B$373,$AH7=Tables!$B$374,$AH7=Tables!$B$375,$AH7=Tables!$B$376)
B18: 12 | C18: =Singles!B212 -> Zul Farhan | D18: =Singles!C212 -> UCD | E18: =Singles!D212 -> 399 | F18: =Singles!E212 -> 426 | G18: =Singles!F212 -> 0 | H18: =Singles!G212 -> 312 | I18: =Singles!H212 -> 0 | J18: =Singles!I212 -> 355 | L18: =Singles!J19 -> 1492 | M18: =Singles!K19 -> 0 | N18: =Singles!L19 -> 1492.04264 | AU18: NUIG CONDITIONAL FORMATTING FORMULA > | AV18: OR($AH7=Tables!$B$381,$AH7=Tables!$B$382,$AH7=Tables!$B$383,$AH7=Tables!$B$384,$AH7=Tables!$B$385,$AH7=Tables!$B$386,$AH7=Tables!$B$387,$AH7=Tables!$B$388,$AH7=Tables!$B$389,$AH7=Tables!$B$390,$AH7=Tables!$B$391,$AH7=Tables!$B$392,$AH7=Tables!$B$393,$AH7=Tables!$B$394,$AH7=Tables!$B$395,$AH7=Tables!$B$396,$AH7=Tables!$B$397,$AH7=Tables!$B$398,$AH7=Tables!$B$399,$AH7=Tables!$B$400,$AH7=Tables!$B$401)
B19: 13 | C19: =Singles!B213 -> Shane McGloin | D19: =Singles!C213 -> GMIT | E19: =Singles!D213 -> 0 | F19: =Singles!E213 -> 0 | G19: =Singles!F213 -> 325 | H19: =Singles!G213 -> 373 | I19: =Singles!H213 -> 428 | J19: =Singles!I213 -> 361 | L19: =Singles!J20 -> 1487 | M19: =Singles!K20 -> 0 | N19: =Singles!L20 -> 1487.042837 | AU19: RCSI CONDITIONAL FORMATTING FORMULA > | AV19: OR($AH7=Tables!$B$406,$AH7=Tables!$B$407,$AH7=Tables!$B$408,$AH7=Tables!$B$409,$AH7=Tables!$B$410,$AH7=Tables!$B$411,$AH7=Tables!$B$412,$AH7=Tables!$B$413,$AH7=Tables!$B$414,$AH7=Tables!$B$415,$AH7=Tables!$B$416,$AH7=Tables!$B$417,$AH7=Tables!$B$418,$AH7=Tables!$B$419,$AH7=Tables!$B$420,$AH7=Tables!$B$421,$AH7=Tables!$B$422,$AH7=Tables!$B$423,$AH7=Tables!$B$424,$AH7=Tables!$B$425,$AH7=Tables!$B$426)
B20: 14 | C20: =Singles!B214 -> Max Klein | D20: =Singles!C214 -> NUIM | E20: =Singles!D214 -> 462 | F20: =Singles!E214 -> 0 | G20: =Singles!F214 -> 272 | H20: =Singles!G214 -> 384 | I20: =Singles!H214 -> 363 | J20: =Singles!I214 -> 0 | L20: =Singles!J21 -> 1481 | M20: =Singles!K21 -> 0 | N20: =Singles!L21 -> 1481.046238 | AU20: UCC CONDITIONAL FORMATTING FORMULA > | AV20: OR($AH7=Tables!$B$431,$AH7=Tables!$B$432,$AH7=Tables!$B$433,$AH7=Tables!$B$434,$AH7=Tables!$B$435,$AH7=Tables!$B$436,$AH7=Tables!$B$437,$AH7=Tables!$B$438,$AH7=Tables!$B$439,$AH7=Tables!$B$440,$AH7=Tables!$B$441,$AH7=Tables!$B$442,$AH7=Tables!$B$443,$AH7=Tables!$B$444,$AH7=Tables!$B$445,$AH7=Tables!$B$446,$AH7=Tables!$B$447,$AH7=Tables!$B$448,$AH7=Tables!$B$449,$AH7=Tables!$B$450,$AH7=Tables!$B$451)
B21: 15 | C21: =Singles!B215 -> Thomas Kear | D21: =Singles!C215 -> NUIG | E21: =Singles!D215 -> 0 | F21: =Singles!E215 -> 337 | G21: =Singles!F215 -> 180 | H21: =Singles!G215 -> 365 | I21: =Singles!H215 -> 298 | J21: =Singles!I215 -> 279 | L21: =Singles!J22 -> 1459 | M21: =Singles!K22 -> 0 | N21: =Singles!L22 -> 1459.036534 | AI21: Thomas Kear | AU21: UCD CONDITIONAL FORMATTING FORMULA > | AV21: OR($AH7=Tables!$B$456,$AH7=Tables!$B$457,$AH7=Tables!$B$458,$AH7=Tables!$B$459,$AH7=Tables!$B$460,$AH7=Tables!$B$461,$AH7=Tables!$B$462,$AH7=Tables!$B$463,$AH7=Tables!$B$464,$AH7=Tables!$B$465,$AH7=Tables!$B$466,$AH7=Tables!$B$467,$AH7=Tables!$B$468,$AH7=Tables!$B$469,$AH7=Tables!$B$470,$AH7=Tables!$B$471,$AH7=Tables!$B$472,$AH7=Tables!$B$473,$AH7=Tables!$B$474,$AH7=Tables!$B$475,$AH7=Tables!$B$476)
B22: 16 | C22: =Singles!B216 -> Eoin Hinkson | D22: =Singles!C216 -> UCD | E22: =Singles!D216 -> 313 | F22: =Singles!E216 -> 270 | G22: =Singles!F216 -> 456 | H22: =Singles!G216 -> 0 | I22: =Singles!H216 -> 0 | J22: =Singles!I216 -> 400 | L22: =Singles!J23 -> 1439 | M22: =Singles!K23 -> 0 | N22: =Singles!L23 -> 1439.045631 | AI22: Eoin Hinkson | AU22: UL CONDITIONAL FORMATTING FORMULA > | AV22: OR($AH7=Tables!$B$481,$AH7=Tables!$B$482,$AH7=Tables!$B$483,$AH7=Tables!$B$484,$AH7=Tables!$B$485,$AH7=Tables!$B$486,$AH7=Tables!$B$487,$AH7=Tables!$B$488,$AH7=Tables!$B$489,$AH7=Tables!$B$490,$AH7=Tables!$B$491,$AH7=Tables!$B$492,$AH7=Tables!$B$493,$AH7=Tables!$B$494,$AH7=Tables!$B$495,$AH7=Tables!$B$496,$AH7=Tables!$B$497,$AH7=Tables!$B$498,$AH7=Tables!$B$499,$AH7=Tables!$B$500,$AH7=Tables!$B$501)
B23: 17 | C23: =Singles!B217 -> John Power | D23: =Singles!C217 -> NUIM | E23: =Singles!D217 -> 523 | F23: =Singles!E217 -> 464 | G23: =Singles!F217 -> 419 | H23: =Singles!G217 -> 0 | I23: =Singles!H217 -> 0 | J23: =Singles!I217 -> 0 | L23: =Singles!J24 -> 1406 | M23: =Singles!K24 -> 0 | N23: =Singles!L24 -> 1406.052346 | AI23: John Power | AU23: UU CONDITIONAL FORMATTING FORMULA > | AV23: OR($AH7=Tables!$B$506,$AH7=Tables!$B$507,$AH7=Tables!$B$508,$AH7=Tables!$B$509,$AH7=Tables!$B$510,$AH7=Tables!$B$511,$AH7=Tables!$B$512,$AH7=Tables!$B$513,$AH7=Tables!$B$514,$AH7=Tables!$B$515,$AH7=Tables!$B$516,$AH7=Tables!$B$517,$AH7=Tables!$B$518,$AH7=Tables!$B$519,$AH7=Tables!$B$520,$AH7=Tables!$B$521,$AH7=Tables!$B$522,$AH7=Tables!$B$523,$AH7=Tables!$B$524,$AH7=Tables!$B$525,$AH7=Tables!$B$526)
B24: 18 | C24: =Singles!B218 -> Leo Byrne | D24: =Singles!C218 -> ITC | E24: =Singles!D218 -> 0 | F24: =Singles!E218 -> 0 | G24: =Singles!F218 -> 304 | H24: =Singles!G218 -> 313 | I24: =Singles!H218 -> 337 | J24: =Singles!I218 -> 399 | L24: =Singles!J25 -> 1353 | M24: =Singles!K25 -> 0 | N24: =Singles!L25 -> 1353.033731 | AI24: Leo Byrne | AU24: WIT CONDITIONAL FORMATTING FORMULA > | AV24: OR($AH7=Tables!$B$531,$AH7=Tables!$B$532,$AH7=Tables!$B$533,$AH7=Tables!$B$534,$AH7=Tables!$B$535,$AH7=Tables!$B$536,$AH7=Tables!$B$537,$AH7=Tables!$B$538,$AH7=Tables!$B$539,$AH7=Tables!$B$540,$AH7=Tables!$B$541,$AH7=Tables!$B$542,$AH7=Tables!$B$543,$AH7=Tables!$B$544,$AH7=Tables!$B$545,$AH7=Tables!$B$546,$AH7=Tables!$B$547,$AH7=Tables!$B$548,$AH7=Tables!$B$549,$AH7=Tables!$B$550,$AH7=Tables!$B$551)
B25: 19 | C25: =Singles!B219 -> Lukasz wrobel | D25: =Singles!C219 -> GMIT | E25: =Singles!D219 -> 346 | F25: =Singles!E219 -> 0 | G25: =Singles!F219 -> 424 | H25: =Singles!G219 -> 225 | I25: =Singles!H219 -> 286 | J25: =Singles!I219 -> 0 | L25: =Singles!J26 -> 1281 | M25: =Singles!K26 -> 0 | N25: =Singles!L26 -> 1281.042435 | AI25: Lukasz wrobel | AU25: AAA CONDITIONAL FORMATTING FORMULA > | AV25: OR($AH7=Tables!$B$1151,$AH7=Tables!$B$1152,$AH7=Tables!$B$1153,$AH7=Tables!$B$1154,$AH7=Tables!$B$1155,$AH7=Tables!$B$1156,$AH7=Tables!$B$1157,$AH7=Tables!$B$1158,$AH7=Tables!$B$1159,$AH7=Tables!$B$1160,$AH7=Tables!$B$1161,$AH7=Tables!$B$1162,$AH7=Tables!$B$1163,$AH7=Tables!$B$1164,$AH7=Tables!$B$1165,$AH7=Tables!$B$1166,$AH7=Tables!$B$1167,$AH7=Tables!$B$1168,$AH7=Tables!$B$1169,$AH7=Tables!$B$1170,$AH7=Tables!$B$1171)
B26: 20 | C26: =Singles!B220 -> Darren Ng | D26: =Singles!C220 -> UCD | E26: =Singles!D220 -> 0 | F26: =Singles!E220 -> 391 | G26: =Singles!F220 -> 457 | H26: =Singles!G220 -> 0 | I26: =Singles!H220 -> 0 | J26: =Singles!I220 -> 418 | L26: =Singles!J27 -> 1266 | M26: =Singles!K27 -> 0 | N26: =Singles!L27 -> 1266.045739 | AI26: Darren Ng | AU26: BBB CONDITIONAL FORMATTING FORMULA > | AV26: OR($AH7=Tables!$B$1176,$AH7=Tables!$B$1177,$AH7=Tables!$B$1178,$AH7=Tables!$B$1179,$AH7=Tables!$B$1180,$AH7=Tables!$B$1181,$AH7=Tables!$B$1182,$AH7=Tables!$B$1183,$AH7=Tables!$B$1184,$AH7=Tables!$B$1185,$AH7=Tables!$B$1186,$AH7=Tables!$B$1187,$AH7=Tables!$B$1188,$AH7=Tables!$B$1189,$AH7=Tables!$B$1190,$AH7=Tables!$B$1191,$AH7=Tables!$B$1192,$AH7=Tables!$B$1193,$AH7=Tables!$B$1194,$AH7=Tables!$B$1195,$AH7=Tables!$B$1196)
B27: 21 | C27: =Singles!B221 -> Paul Murphy | D27: =Singles!C221 -> UL | E27: =Singles!D221 -> 470 | F27: =Singles!E221 -> 0 | G27: =Singles!F221 -> 0 | H27: =Singles!G221 -> 321 | I27: =Singles!H221 -> 0 | J27: =Singles!I221 -> 424 | L27: =Singles!J28 -> 1215 | M27: =Singles!K28 -> 0 | N27: =Singles!L28 -> 1215.047032 | AI27: Paul Murphy | AU27: CCC CONDITIONAL FORMATTING FORMULA > | AV27: OR($AH7=Tables!$B$1201,$AH7=Tables!$B$1202,$AH7=Tables!$B$1203,$AH7=Tables!$B$1204,$AH7=Tables!$B$1205,$AH7=Tables!$B$1206,$AH7=Tables!$B$1207,$AH7=Tables!$B$1208,$AH7=Tables!$B$1209,$AH7=Tables!$B$1210,$AH7=Tables!$B$1211,$AH7=Tables!$B$1212,$AH7=Tables!$B$1213,$AH7=Tables!$B$1214,$AH7=Tables!$B$1215,$AH7=Tables!$B$1216,$AH7=Tables!$B$1217,$AH7=Tables!$B$1218,$AH7=Tables!$B$1219,$AH7=Tables!$B$1220,$AH7=Tables!$B$1221)
B28: 22 | C28: =Singles!B222 -> Mark Kearns | D28: =Singles!C222 -> NUIM | E28: =Singles!D222 -> 417 | F28: =Singles!E222 -> 363 | G28: =Singles!F222 -> 0 | H28: =Singles!G222 -> 386 | I28: =Singles!H222 -> 0 | J28: =Singles!I222 -> 0 | L28: =Singles!J29 -> 1166 | M28: =Singles!K29 -> 0 | N28: =Singles!L29 -> 1166.041739 | AI28: Mark Kearns | AU28: DDD CONDITIONAL FORMATTING FORMULA > | AV28: OR($AH7=Tables!$B$1226,$AH7=Tables!$B$1227,$AH7=Tables!$B$1228,$AH7=Tables!$B$1229,$AH7=Tables!$B$1230,$AH7=Tables!$B$1231,$AH7=Tables!$B$1232,$AH7=Tables!$B$1233,$AH7=Tables!$B$1234,$AH7=Tables!$B$1235,$AH7=Tables!$B$1236,$AH7=Tables!$B$1237,$AH7=Tables!$B$1238,$AH7=Tables!$B$1239,$AH7=Tables!$B$1240,$AH7=Tables!$B$1241,$AH7=Tables!$B$1242,$AH7=Tables!$B$1243,$AH7=Tables!$B$1244,$AH7=Tables!$B$1245,$AH7=Tables!$B$1246)
B29: 23 | C29: =Singles!B223 -> Graham Buckley | D29: =Singles!C223 -> DIT | E29: =Singles!D223 -> 0 | F29: =Singles!E223 -> 0 | G29: =Singles!F223 -> 437 | H29: =Singles!G223 -> 0 | I29: =Singles!H223 -> 366 | J29: =Singles!I223 -> 340 | L29: =Singles!J30 -> 1143 | M29: =Singles!K30 -> 0 | N29: =Singles!L30 -> 1143.043737 | AI29: Graham Buckley | AU29: EEE CONDITIONAL FORMATTING FORMULA > | AV29: OR($AH7=Tables!$B$1251,$AH7=Tables!$B$1252,$AH7=Tables!$B$1253,$AH7=Tables!$B$1254,$AH7=Tables!$B$1255,$AH7=Tables!$B$1256,$AH7=Tables!$B$1257,$AH7=Tables!$B$1258,$AH7=Tables!$B$1259,$AH7=Tables!$B$1260,$AH7=Tables!$B$1261,$AH7=Tables!$B$1262,$AH7=Tables!$B$1263,$AH7=Tables!$B$1264,$AH7=Tables!$B$1265,$AH7=Tables!$B$1266,$AH7=Tables!$B$1267,$AH7=Tables!$B$1268,$AH7=Tables!$B$1269,$AH7=Tables!$B$1270,$AH7=Tables!$B$1271)
B30: 24 | C30: =Singles!B224 -> Conor dePaor | D30: =Singles!C224 -> UCD | E30: =Singles!D224 -> 0 | F30: =Singles!E224 -> 0 | G30: =Singles!F224 -> 0 | H30: =Singles!G224 -> 415 | I30: =Singles!H224 -> 366 | J30: =Singles!I224 -> 276 | L30: =Singles!J31 -> 1057 | M30: =Singles!K31 -> 0 | N30: =Singles!L31 -> 1057.041537 | AI30: Conor dePaor
B31: 25 | C31: =Singles!B225 -> Tan Shu leed | D31: =Singles!C225 -> RCSI | E31: =Singles!D225 -> 0 | F31: =Singles!E225 -> 282 | G31: =Singles!F225 -> 0 | H31: =Singles!G225 -> 0 | I31: =Singles!H225 -> 366 | J31: =Singles!I225 -> 407 | L31: =Singles!J32 -> 1055 | M31: =Singles!K32 -> 0 | N31: =Singles!L32 -> 1055.036628 | AI31: Tan Shu leed
B32: 26 | C32: =Singles!B226 -> Conor Moran | D32: =Singles!C226 -> UL | E32: =Singles!D226 -> 391 | F32: =Singles!E226 -> 401 | G32: =Singles!F226 -> 0 | H32: =Singles!G226 -> 230 | I32: =Singles!H226 -> 0 | J32: =Singles!I226 -> 0 | L32: =Singles!J33 -> 1022 | M32: =Singles!K33 -> 0 | N32: =Singles!L33 -> 1022.040139 | AI32: Conor Moran
B33: 27 | C33: =Singles!B227 -> Muhammad Hakim Mohd Nasir | D33: =Singles!C227 -> RCSI | E33: =Singles!D227 -> 224 | F33: =Singles!E227 -> 239 | G33: =Singles!F227 -> 0 | H33: =Singles!G227 -> 444 | I33: =Singles!H227 -> 0 | J33: =Singles!I227 -> 114 | L33: =Singles!J34 -> 1021 | M33: =Singles!K34 -> 0 | N33: =Singles!L34 -> 1021.044424 | AI33: Muhammad Hakim Mohd Nasir
B34: 28 | C34: =Singles!B228 -> Ronan Walsh | D34: =Singles!C228 -> UCD | E34: =Singles!D228 -> 0 | F34: =Singles!E228 -> 268 | G34: =Singles!F228 -> 247 | H34: =Singles!G228 -> 0 | I34: =Singles!H228 -> 0 | J34: =Singles!I228 -> 469 | L34: =Singles!J35 -> 984 | M34: =Singles!K35 -> 0 | N34: =Singles!L35 -> 984.0268247 | AI34: Ronan Walsh
B35: 29 | C35: =Singles!B229 -> Gary Cooney | D35: =Singles!C229 -> DCU | E35: =Singles!D229 -> 516 | F35: =Singles!E229 -> 449 | G35: =Singles!F229 -> 0 | H35: =Singles!G229 -> 0 | I35: =Singles!H229 -> 0 | J35: =Singles!I229 -> 0 | L35: =Singles!J36 -> 965 | M35: =Singles!K36 -> 0 | N35: =Singles!L36 -> 965.0516449 | AI35: Gary Cooney
B36: 30 | C36: =Singles!B230 -> Sam Schultz | D36: =Singles!C230 -> NUIG | E36: =Singles!D230 -> 486 | F36: =Singles!E230 -> 435 | G36: =Singles!F230 -> 0 | H36: =Singles!G230 -> 0 | I36: =Singles!H230 -> 0 | J36: =Singles!I230 -> 0 | L36: =Singles!J37 -> 921 | M36: =Singles!K37 -> 0 | N36: =Singles!L37 -> 921.0486435 | AI36: Sam Schultz
B37: 31 | C37: =Singles!B231 -> Muhammad Izrin Syukri Mohd Nasri | D37: =Singles!C231 -> RCSI | E37: =Singles!D231 -> 0 | F37: =Singles!E231 -> 240 | G37: =Singles!F231 -> 0 | H37: =Singles!G231 -> 0 | I37: =Singles!H231 -> 282 | J37: =Singles!I231 -> 382 | L37: =Singles!J38 -> 904 | M37: =Singles!K38 -> 0 | N37: =Singles!L38 -> 904.028224 | AI37: Muhammad Izrin Syukri Mohd Nasri
B38: 32 | C38: =Singles!B232 -> Paul Ferguson | D38: =Singles!C232 -> IT Tallaght | E38: =Singles!D232 -> 0 | F38: =Singles!E232 -> 0 | G38: =Singles!F232 -> 0 | H38: =Singles!G232 -> 480 | I38: =Singles!H232 -> 0 | J38: =Singles!I232 -> 423 | L38: =Singles!J39 -> 903 | M38: =Singles!K39 -> 0 | N38: =Singles!L39 -> 903.048 | AI38: Paul Ferguson
B39: 33 | C39: =Singles!B233 -> geoffrey doorbosch | D39: =Singles!C233 -> UL | E39: =Singles!D233 -> 446 | F39: =Singles!E233 -> 438 | G39: =Singles!F233 -> 0 | H39: =Singles!G233 -> 0 | I39: =Singles!H233 -> 0 | J39: =Singles!I233 -> 0 | L39: =Singles!J40 -> 884 | M39: =Singles!K40 -> 0 | N39: =Singles!L40 -> 884.0446438 | AI39: =C39 -> geoffrey doorbosch
B40: 34 | C40: =Singles!B234 -> Omar Mustafa | D40: =Singles!C234 -> NUIG | E40: =Singles!D234 -> 414 | F40: =Singles!E234 -> 386 | G40: =Singles!F234 -> 0 | H40: =Singles!G234 -> 0 | I40: =Singles!H234 -> 0 | J40: =Singles!I234 -> 0 | L40: =Singles!J41 -> 800 | M40: =Singles!K41 -> 0 | N40: =Singles!L41 -> 800.0414386 | AI40: Omar Mustafa
B41: 35 | C41: =Singles!B235 -> Richard Jeffery | D41: =Singles!C235 -> NUIG | E41: =Singles!D235 -> 0 | F41: =Singles!E235 -> 436 | G41: =Singles!F235 -> 304 | H41: =Singles!G235 -> 0 | I41: =Singles!H235 -> 0 | J41: =Singles!I235 -> 0 | L41: =Singles!J42 -> 740 | M41: =Singles!K42 -> 0 | N41: =Singles!L42 -> 740.0436304 | AI41: Richard Jeffery
B42: 36 | C42: =Singles!B236 -> Brendan Burke | D42: =Singles!C236 -> NUIM | E42: =Singles!D236 -> 0 | F42: =Singles!E236 -> 0 | G42: =Singles!F236 -> 0 | H42: =Singles!G236 -> 344 | I42: =Singles!H236 -> 0 | J42: =Singles!I236 -> 370 | L42: =Singles!J43 -> 714 | M42: =Singles!K43 -> 0 | N42: =Singles!L43 -> 714.0344 | AI42: Brendan Burke
B43: 37 | C43: =Singles!B237 -> Paul Connolly | D43: =Singles!C237 -> NUIG | E43: =Singles!D237 -> 0 | F43: =Singles!E237 -> 0 | G43: =Singles!F237 -> 0 | H43: =Singles!G237 -> 259 | I43: =Singles!H237 -> 0 | J43: =Singles!I237 -> 375 | L43: =Singles!J44 -> 634 | M43: =Singles!K44 -> 0 | N43: =Singles!L44 -> 634.0259 | AI43: Paul Connolly
B44: 38 | C44: =Singles!B238 -> Eric Brown | D44: =Singles!C238 -> UCD | E44: =Singles!D238 -> 0 | F44: =Singles!E238 -> 484 | G44: =Singles!F238 -> 0 | H44: =Singles!G238 -> 0 | I44: =Singles!H238 -> 0 | J44: =Singles!I238 -> 0 | L44: =Singles!J45 -> 484 | M44: =Singles!K45 -> 0 | N44: =Singles!L45 -> 484.0484 | AI44: Eric Brown
B45: 39 | C45: =Singles!B239 -> Cian Aherne | D45: =Singles!C239 -> UCD | E45: =Singles!D239 -> 0 | F45: =Singles!E239 -> 233 | G45: =Singles!F239 -> 244 | H45: =Singles!G239 -> 0 | I45: =Singles!H239 -> 0 | J45: =Singles!I239 -> 0 | L45: =Singles!J46 -> 477 | M45: =Singles!K46 -> 0 | N45: =Singles!L46 -> 477.0244233 | AI45: Cian Aherne
B46: 40 | C46: =Singles!B240 -> danny neill | D46: =Singles!C240 -> UL | E46: =Singles!D240 -> 462 | F46: =Singles!E240 -> 0 | G46: =Singles!F240 -> 0 | H46: =Singles!G240 -> 0 | I46: =Singles!H240 -> 0 | J46: =Singles!I240 -> 0 | L46: =Singles!J47 -> 462 | M46: =Singles!K47 -> 0 | N46: =Singles!L47 -> 462.0462 | AI46: danny neill
B47: 41 | C47: =Singles!B241 -> Davy Shaw | D47: =Singles!C241 -> UCD | E47: =Singles!D241 -> 0 | F47: =Singles!E241 -> 263 | G47: =Singles!F241 -> 187 | H47: =Singles!G241 -> 0 | I47: =Singles!H241 -> 0 | J47: =Singles!I241 -> 0 | L47: =Singles!J48 -> 450 | M47: =Singles!K48 -> 0 | N47: =Singles!L48 -> 450.0263187 | AI47: Davy Shaw
B48: 42 | C48: =Singles!B242 -> Pavle Barbaric | D48: =Singles!C242 -> NUIM | E48: =Singles!D242 -> 0 | F48: =Singles!E242 -> 445 | G48: =Singles!F242 -> 0 | H48: =Singles!G242 -> 0 | I48: =Singles!H242 -> 0 | J48: =Singles!I242 -> 0 | L48: =Singles!J49 -> 445 | M48: =Singles!K49 -> 0 | N48: =Singles!L49 -> 445.0445 | AI48: Pavle Barbaric
B49: 43 | C49: =Singles!B243 -> James Greer | D49: =Singles!C243 -> UCD | E49: =Singles!D243 -> 0 | F49: =Singles!E243 -> 0 | G49: =Singles!F243 -> 0 | H49: =Singles!G243 -> 0 | I49: =Singles!H243 -> 429 | J49: =Singles!I243 -> 0 | L49: =Singles!J50 -> 429 | M49: =Singles!K50 -> 0 | N49: =Singles!L50 -> 429.0429 | AI49: James Greer
B50: 44 | C50: =Singles!B244 -> Alan Boylan | D50: =Singles!C244 -> DIT | E50: =Singles!D244 -> 421 | F50: =Singles!E244 -> 0 | G50: =Singles!F244 -> 0 | H50: =Singles!G244 -> 0 | I50: =Singles!H244 -> 0 | J50: =Singles!I244 -> 0 | L50: =Singles!J51 -> 421 | M50: =Singles!K51 -> 0 | N50: =Singles!L51 -> 421.0421 | AI50: Alan Boylan
B51: 45 | C51: =Singles!B245 -> Tengku Nazim Tengku Yusof | D51: =Singles!C245 -> RCSI | E51: =Singles!D245 -> 0 | F51: =Singles!E245 -> 0 | G51: =Singles!F245 -> 0 | H51: =Singles!G245 -> 248 | I51: =Singles!H245 -> 159 | J51: =Singles!I245 -> 0 | L51: =Singles!J52 -> 407 | M51: =Singles!K52 -> 0 | N51: =Singles!L52 -> 407.0248159 | AI51: Tengku Nazim Tengku Yusof
B52: 46 | C52: =Singles!B246 -> Mark McGrane | D52: =Singles!C246 -> UCD | E52: =Singles!D246 -> 185 | F52: =Singles!E246 -> 204 | G52: =Singles!F246 -> 0 | H52: =Singles!G246 -> 0 | I52: =Singles!H246 -> 0 | J52: =Singles!I246 -> 0 | L52: =Singles!J53 -> 389 | M52: =Singles!K53 -> 0 | N52: =Singles!L53 -> 389.0204185 | AI52: Mark McGrane
B53: 47 | C53: =Singles!B247 -> Daniel Sinnott | D53: =Singles!C247 -> UCD | E53: =Singles!D247 -> 383 | F53: =Singles!E247 -> 0 | G53: =Singles!F247 -> 0 | H53: =Singles!G247 -> 0 | I53: =Singles!H247 -> 0 | J53: =Singles!I247 -> 0 | L53: =Singles!J54 -> 383 | M53: =Singles!K54 -> 0 | N53: =Singles!L54 -> 383.0383 | AI53: Daniel Sinnott
B54: 48 | C54: =Singles!B248 -> Robin Collins | D54: =Singles!C248 -> DIT | E54: =Singles!D248 -> 0 | F54: =Singles!E248 -> 372 | G54: =Singles!F248 -> 0 | H54: =Singles!G248 -> 0 | I54: =Singles!H248 -> 0 | J54: =Singles!I248 -> 0 | L54: =Singles!J55 -> 372 | M54: =Singles!K55 -> 0 | N54: =Singles!L55 -> 372.0372 | AI54: Robin Collins
B55: 49 | C55: =Singles!B249 -> Fahad Alabdullatif | D55: =Singles!C249 -> RCSI | E55: =Singles!D249 -> 0 | F55: =Singles!E249 -> 0 | G55: =Singles!F249 -> 0 | H55: =Singles!G249 -> 371 | I55: =Singles!H249 -> 0 | J55: =Singles!I249 -> 0 | L55: =Singles!J56 -> 371 | M55: =Singles!K56 -> 0 | N55: =Singles!L56 -> 371.0371 | AI55: Fahad Alabdullatif
B56: 50 | C56: =Singles!B250 -> Artem Eremin | D56: =Singles!C250 -> DIT | E56: =Singles!D250 -> 0 | F56: =Singles!E250 -> 0 | G56: =Singles!F250 -> 0 | H56: =Singles!G250 -> 0 | I56: =Singles!H250 -> 365 | J56: =Singles!I250 -> 0 | L56: =Singles!J57 -> 365 | M56: =Singles!K57 -> 0 | N56: =Singles!L57 -> 365.0365 | AI56: Artem Eremin
B57: 51 | C57: =Singles!B251 -> Ruaidhri | D57: =Singles!C251 -> UCD | E57: =Singles!D251 -> 0 | F57: =Singles!E251 -> 360 | G57: =Singles!F251 -> 0 | H57: =Singles!G251 -> 0 | I57: =Singles!H251 -> 0 | J57: =Singles!I251 -> 0 | L57: =Singles!J58 -> 360 | M57: =Singles!K58 -> 0 | N57: =Singles!L58 -> 360.036 | AI57: Ruaidhri
B58: 52 | C58: =Singles!B252 -> Faiq Syukri | D58: =Singles!C252 -> RCSI | E58: =Singles!D252 -> 0 | F58: =Singles!E252 -> 0 | G58: =Singles!F252 -> 0 | H58: =Singles!G252 -> 0 | I58: =Singles!H252 -> 359 | J58: =Singles!I252 -> 0 | L58: =Singles!J59 -> 359 | M58: =Singles!K59 -> 0 | N58: =Singles!L59 -> 359.0359 | AI58: Faiq Syukri
B59: 53 | C59: =Singles!B253 -> Eamonn Dunleavy | D59: =Singles!C253 -> GMITC | E59: =Singles!D253 -> 337 | F59: =Singles!E253 -> 0 | G59: =Singles!F253 -> 0 | H59: =Singles!G253 -> 0 | I59: =Singles!H253 -> 0 | J59: =Singles!I253 -> 0 | L59: =Singles!J60 -> 337 | M59: =Singles!K60 -> 0 | N59: =Singles!L60 -> 337.0337 | AI59: Eamonn Dunleavy
B60: 54 | C60: =Singles!B254 -> Thomas Carr | D60: =Singles!C254 -> NUIG | E60: =Singles!D254 -> 318 | F60: =Singles!E254 -> 0 | G60: =Singles!F254 -> 0 | H60: =Singles!G254 -> 0 | I60: =Singles!H254 -> 0 | J60: =Singles!I254 -> 0 | L60: =Singles!J61 -> 318 | M60: =Singles!K61 -> 0 | N60: =Singles!L61 -> 318.0318 | AI60: Thomas Carr
B61: 55 | C61: =Singles!B255 -> Eoin Codd | D61: =Singles!C255 -> UCD | E61: =Singles!D255 -> 0 | F61: =Singles!E255 -> 304 | G61: =Singles!F255 -> 0 | H61: =Singles!G255 -> 0 | I61: =Singles!H255 -> 0 | J61: =Singles!I255 -> 0 | L61: =Singles!J62 -> 304 | M61: =Singles!K62 -> 0 | N61: =Singles!L62 -> 304.0304 | AI61: Eoin Codd
B62: 56 | C62: =Singles!B256 -> Dennis Reynor | D62: =Singles!C256 -> UCD | E62: =Singles!D256 -> 0 | F62: =Singles!E256 -> 0 | G62: =Singles!F256 -> 0 | H62: =Singles!G256 -> 0 | I62: =Singles!H256 -> 302 | J62: =Singles!I256 -> 0 | L62: =Singles!J63 -> 302 | M62: =Singles!K63 -> 0 | N62: =Singles!L63 -> 302.0302 | AI62: Dennis Reynor
B63: 57 | C63: =Singles!B257 -> Tudor Varga | D63: =Singles!C257 -> UCD | E63: =Singles!D257 -> 0 | F63: =Singles!E257 -> 300 | G63: =Singles!F257 -> 0 | H63: =Singles!G257 -> 0 | I63: =Singles!H257 -> 0 | J63: =Singles!I257 -> 0 | L63: =Singles!J64 -> 300 | M63: =Singles!K64 -> 0 | N63: =Singles!L64 -> 300.03 | AI63: Tudor Varga
B64: 58 | C64: =Singles!B258 -> Daniel Olajide | D64: =Singles!C258 -> NUIG | E64: =Singles!D258 -> 0 | F64: =Singles!E258 -> 280 | G64: =Singles!F258 -> 0 | H64: =Singles!G258 -> 0 | I64: =Singles!H258 -> 0 | J64: =Singles!I258 -> 0 | L64: =Singles!J65 -> 280 | M64: =Singles!K65 -> 0 | N64: =Singles!L65 -> 280.028 | AI64: Daniel Olajide
B65: 59 | C65: =Singles!B259 -> Cathal Mc Guire | D65: =Singles!C259 -> UCD | E65: =Singles!D259 -> 0 | F65: =Singles!E259 -> 272 | G65: =Singles!F259 -> 0 | H65: =Singles!G259 -> 0 | I65: =Singles!H259 -> 0 | J65: =Singles!I259 -> 0 | L65: =Singles!J66 -> 272 | M65: =Singles!K66 -> 0 | N65: =Singles!L66 -> 272.0272 | AI65: Cathal Mc Guire
B66: 60 | C66: =Singles!B260 -> Ian Mc Dermot | D66: =Singles!C260 -> UCC | E66: =Singles!D260 -> 0 | F66: =Singles!E260 -> 266 | G66: =Singles!F260 -> 0 | H66: =Singles!G260 -> 0 | I66: =Singles!H260 -> 0 | J66: =Singles!I260 -> 0 | L66: =Singles!J67 -> 266 | M66: =Singles!K67 -> 0 | N66: =Singles!L67 -> 266.0266 | AI66: Ian Mc Dermot
B67: 61 | C67: =Singles!B261 -> Ciaran McElhinney | D67: =Singles!C261 -> GMIT | E67: =Singles!D261 -> 252 | F67: =Singles!E261 -> 0 | G67: =Singles!F261 -> 0 | H67: =Singles!G261 -> 0 | I67: =Singles!H261 -> 0 | J67: =Singles!I261 -> 0 | L67: =Singles!J68 -> 252 | M67: =Singles!K68 -> 0 | N67: =Singles!L68 -> 252.0252 | AI67: Ciaran McElhinney
B68: 62 | C68: =Singles!B262 -> Syahira Najua Zulkefly | D68: =Singles!C262 -> UCD | E68: =Singles!D262 -> 0 | F68: =Singles!E262 -> 221 | G68: =Singles!F262 -> 0 | H68: =Singles!G262 -> 0 | I68: =Singles!H262 -> 0 | J68: =Singles!I262 -> 0 | L68: =Singles!J69 -> 221 | M68: =Singles!K69 -> 0 | N68: =Singles!L69 -> 221.0221 | AI68: Syahira Najua Zulkefly
B69: 63 | C69: =Singles!B263 -> Tajul Syaqqil Tajor Amar | D69: =Singles!C263 -> RCSI | E69: =Singles!D263 -> 0 | F69: =Singles!E263 -> 173 | G69: =Singles!F263 -> 0 | H69: =Singles!G263 -> 0 | I69: =Singles!H263 -> 0 | J69: =Singles!I263 -> 0 | L69: =Singles!J70 -> 173 | M69: =Singles!K70 -> 0 | N69: =Singles!L70 -> 173.0173 | AI69: Tajul Syaqqil Tajor Amar
B70: 64 | C70: =Singles!B264 -> Eoghan Brophy | D70: =Singles!C264 -> IT Tallaght | E70: =Singles!D264 -> 0 | F70: =Singles!E264 -> 0 | G70: =Singles!F264 -> 0 | H70: =Singles!G264 -> 170 | I70: =Singles!H264 -> 0 | J70: =Singles!I264 -> 0 | L70: =Singles!J71 -> 170 | M70: =Singles!K71 -> 0 | N70: =Singles!L71 -> 170.017 | AI70: Eoghan Brophy
B71: 65 | C71: =Singles!B265 -> Marc Creehan | D71: =Singles!C265 -> UCC | E71: =Singles!D265 -> 0 | F71: =Singles!E265 -> 166 | G71: =Singles!F265 -> 0 | H71: =Singles!G265 -> 0 | I71: =Singles!H265 -> 0 | J71: =Singles!I265 -> 0 | L71: =Singles!J72 -> 166 | M71: =Singles!K72 -> 0 | N71: =Singles!L72 -> 166.0166 | AI71: Marc Creehan
B72: 66 | C72: =Singles!B266 -> Zain Bari | D72: =Singles!C266 -> UCD | E72: =Singles!D266 -> 0 | F72: =Singles!E266 -> 123 | G72: =Singles!F266 -> 0 | H72: =Singles!G266 -> 0 | I72: =Singles!H266 -> 0 | J72: =Singles!I266 -> 0 | L72: =Singles!J73 -> 123 | M72: =Singles!K73 -> 0 | N72: =Singles!L73 -> 123.0123 | AI72: Zain Bari
B73: 67 | C73: =Singles!B267 -> Jonathan Cassidy | D73: =Singles!C267 -> NUIG | E73: =Singles!D267 -> 122 | F73: =Singles!E267 -> 0 | G73: =Singles!F267 -> 0 | H73: =Singles!G267 -> 0 | I73: =Singles!H267 -> 0 | J73: =Singles!I267 -> 0 | L73: =Singles!J74 -> 122 | M73: =Singles!K74 -> 0 | N73: =Singles!L74 -> 122.0122 | AI73: Jonathan Cassidy
B74: 68 | C74: =Singles!B268 -> Lorenzo | D74: =Singles!C268 -> UCD | E74: =Singles!D268 -> 0 | F74: =Singles!E268 -> 104 | G74: =Singles!F268 -> 0 | H74: =Singles!G268 -> 0 | I74: =Singles!H268 -> 0 | J74: =Singles!I268 -> 0 | L74: =Singles!J75 -> 104 | M74: =Singles!K75 -> 0 | N74: =Singles!L75 -> 104.0104 | AI74: Lorenzo
B75: 69 | C75: =Singles!B269 -> Yogeswran Muthukumaru | D75: =Singles!C269 -> RCSI | E75: =Singles!D269 -> 0 | F75: =Singles!E269 -> 0 | G75: =Singles!F269 -> 0 | H75: =Singles!G269 -> 0 | I75: =Singles!H269 -> 96 | J75: =Singles!I269 -> 0 | L75: =Singles!J76 -> 96 | M75: =Singles!K76 -> 0 | N75: =Singles!L76 -> 96.0096 | AI75: Yogeswran Muthukumaru
B76: 70 | C76: =Singles!B270 -> William Oliver | D76: =Singles!C270 -> IT Tallaght | E76: =Singles!D270 -> 53 | F76: =Singles!E270 -> 0 | G76: =Singles!F270 -> 0 | H76: =Singles!G270 -> 0 | I76: =Singles!H270 -> 0 | J76: =Singles!I270 -> 0 | L76: =Singles!J77 -> 53 | M76: =Singles!K77 -> 0 | N76: =Singles!L77 -> 53.0053 | AI76: William Oliver
B77: 71 | C77: =Singles!B271 -> Kevin Lynch | D77: =Singles!C271 -> UCD | E77: =Singles!D271 -> 0 | F77: =Singles!E271 -> 31 | G77: =Singles!F271 -> 0 | H77: =Singles!G271 -> 0 | I77: =Singles!H271 -> 0 | J77: =Singles!I271 -> 0 | L77: =Singles!J78 -> 31 | M77: =Singles!K78 -> 0 | N77: =Singles!L78 -> 31.0031 | AI77: Kevin Lynch
B78: 72 | C78: =Singles!B272 -> 0 | D78: =Singles!C272 -> TBC | E78: =Singles!D272 -> TBC | F78: =Singles!E272 -> TBC | G78: =Singles!F272 -> TBC | H78: =Singles!G272 -> TBC | I78: =Singles!H272 -> TBC | J78: =Singles!I272 -> TBC | L78: =Singles!J79 -> 0 | M78: =Singles!K79 -> 0 | N78: =Singles!L79 -> 0 | AI78: 0
B79: 73 | C79: =Singles!B273 -> 0 | D79: =Singles!C273 -> TBC | E79: =Singles!D273 -> TBC | F79: =Singles!E273 -> TBC | G79: =Singles!F273 -> TBC | H79: =Singles!G273 -> TBC | I79: =Singles!H273 -> TBC | J79: =Singles!I273 -> TBC | L79: =Singles!J80 -> 0 | M79: =Singles!K80 -> 0 | N79: =Singles!L80 -> 0 | AI79: 0
B80: 74 | C80: =Singles!B274 -> 0 | D80: =Singles!C274 -> TBC | E80: =Singles!D274 -> TBC | F80: =Singles!E274 -> TBC | G80: =Singles!F274 -> TBC | H80: =Singles!G274 -> TBC | I80: =Singles!H274 -> TBC | J80: =Singles!I274 -> TBC | L80: =Singles!J81 -> 0 | M80: =Singles!K81 -> 0 | N80: =Singles!L81 -> 0 | AI80: 0
B81: 75 | C81: =Singles!B275 -> 0 | D81: =Singles!C275 -> TBC | E81: =Singles!D275 -> TBC | F81: =Singles!E275 -> TBC | G81: =Singles!F275 -> TBC | H81: =Singles!G275 -> TBC | I81: =Singles!H275 -> TBC | J81: =Singles!I275 -> TBC | L81: =Singles!J82 -> 0 | M81: =Singles!K82 -> 0 | N81: =Singles!L82 -> 0 | AI81: 0
A82: =$D$7 -> DkIT
A100: DCU | B100: -1
A101: DIT | B101: -2
A102: DKIT | B102: -3
A103: DUAC | B103: -4
A104: GMIT | B104: -5
A105: GMITC | B105: -6
A106: ITC | B106: -7
A107: IT Tallaght | B107: -8
A108: MU | B108: -9
A109: NCAD | B109: -10
A110: NUIG | B110: -11
A111: RCSI | B111: -12
A112: UCC | B112: -13
A113: UCD | B113: -14
A114: UL | B114: -15
A115: UU | B115: -16
A116: WIT | B116: -17
A117: AAA | B117: -18
A118: BBB | B118: -19
A119: CCC | B119: -20
A120: DDD | B120: -21
A121: EEE | B121: -22

Sheet RBF
A1: =$D$7 -> DCU
A2: =$D$7 -> DCU | B2: Female Beginner Recurve | E2: Host Club | K2: DCU | L2: Scores | O2: =$D$7 -> DCU | AI2: =AI7 -> Christina Somers
E3: =Entries!K6 -> DCU IV | F3: UCD/ITC | G3: =Entries!K8 -> DkIT IV | H3: NUIM/GMIT | I3: =Entries!K10 -> NUIG IV | J3: =Entries!K11 -> UL IV | L3: Total | M3: Lowest | N3: League
B5: =$D$7 -> DCU | L5: =$D$7 -> DCU
C6: Name | D6: College | E6: DCU IV | F6: UCD/ITC IV | G6: DkIT IV | H6: NUIM/GMIT IV | I6: NUIG IV | J6: UL IV | L6: Total | M6: Lowest | N6: League total
B7: 1 | C7: =Singles!P201 -> Christina Somers | D7: =Singles!Q201 -> DCU | E7: =Singles!R201 -> 366 | F7: =Singles!S201 -> 446 | G7: =Singles!T201 -> 377 | H7: =Singles!U201 -> 456 | I7: =Singles!V201 -> 397 | J7: =Singles!W201 -> 431 | L7: =Singles!X8 -> 2473 | M7: =Singles!Y8 -> 366 | N7: =Singles!Z8 -> 2107.045645 | AI7: =C7 -> Christina Somers
B8: 2 | C8: =Singles!P202 -> Jen Daly | D8: =Singles!Q202 -> DIT | E8: =Singles!R202 -> 355 | F8: =Singles!S202 -> 467 | G8: =Singles!T202 -> 389 | H8: =Singles!U202 -> 373 | I8: =Singles!V202 -> 398 | J8: =Singles!W202 -> 464 | L8: =Singles!X9 -> 2446 | M8: =Singles!Y9 -> 355 | N8: =Singles!Z9 -> 2091.04674 | AI8: Jen Daly
B9: 3 | C9: =Singles!P204 -> Karen Power | D9: =Singles!Q204 -> UL | E9: =Singles!R204 -> 394 | F9: =Singles!S204 -> 364 | G9: =Singles!T204 -> 0 | H9: =Singles!U204 -> 433 | I9: =Singles!V204 -> 487 | J9: =Singles!W204 -> 357 | L9: =Singles!X11 -> 2035 | M9: =Singles!Y11 -> 0 | N9: =Singles!Z11 -> 2035.048743 | AI9: Karen Power
B10: 4 | C10: =Singles!P207 -> Ciara O'Sullivan | D10: =Singles!Q207 -> DCU | E10: =Singles!R207 -> 0 | F10: =Singles!S207 -> 284 | G10: =Singles!T207 -> 410 | H10: =Singles!U207 -> 410 | I10: =Singles!V207 -> 380 | J10: =Singles!W207 -> 363 | L10: =Singles!X14 -> 1847 | M10: =Singles!Y14 -> 0 | N10: =Singles!Z14 -> 1847.041041 | AI10: Ciara O'Sullivan
B11: 5 | C11: =Singles!P203 -> Jessica Lee | D11: =Singles!Q203 -> DkIT | E11: =Singles!R203 -> 347 | F11: =Singles!S203 -> 388 | G11: =Singles!T203 -> 342 | H11: =Singles!U203 -> 404 | I11: =Singles!V203 -> 337 | J11: =Singles!W203 -> 351 | L11: =Singles!X10 -> 2169 | M11: =Singles!Y10 -> 337 | N11: =Singles!Z10 -> 1832.040439 | AI11: Jessica Lee
B12: 6 | C12: =Singles!P205 -> Jocelyn Yee | D12: =Singles!Q205 -> DkIT | E12: =Singles!R205 -> 337 | F12: =Singles!S205 -> 320 | G12: =Singles!T205 -> 443 | H12: =Singles!U205 -> 279 | I12: =Singles!V205 -> 247 | J12: =Singles!W205 -> 352 | L12: =Singles!X12 -> 1978 | M12: =Singles!Y12 -> 247 | N12: =Singles!Z12 -> 1731.044334 | AI12: Jocelyn Yee
B13: 7 | C13: =Singles!P206 -> Victoria Tan | D13: =Singles!Q206 -> DkIT | E13: =Singles!R206 -> 291 | F13: =Singles!S206 -> 267 | G13: =Singles!T206 -> 401 | H13: =Singles!U206 -> 352 | I13: =Singles!V206 -> 313 | J13: =Singles!W206 -> 330 | L13: =Singles!X13 -> 1954 | M13: =Singles!Y13 -> 267 | N13: =Singles!Z13 -> 1687.040135 | AI13: Victoria Tan
B14: 8 | C14: =Singles!P208 -> Ester Schwarz | D14: =Singles!Q208 -> NUIM | E14: =Singles!R208 -> 0 | F14: =Singles!S208 -> 375 | G14: =Singles!T208 -> 0 | H14: =Singles!U208 -> 359 | I14: =Singles!V208 -> 393 | J14: =Singles!W208 -> 416 | L14: =Singles!X15 -> 1543 | M14: =Singles!Y15 -> 0 | N14: =Singles!Z15 -> 1543.039337 | AI14: Ester Schwarz
B15: 9 | C15: =Singles!P209 -> Linda Hearn | D15: =Singles!Q209 -> UCC | E15: =Singles!R209 -> 450 | F15: =Singles!S209 -> 312 | G15: =Singles!T209 -> 374 | H15: =Singles!U209 -> 0 | I15: =Singles!V209 -> 0 | J15: =Singles!W209 -> 405 | L15: =Singles!X16 -> 1541 | M15: =Singles!Y16 -> 0 | N15: =Singles!Z16 -> 1541.045037 | AI15: Linda Hearn
B16: 10 | C16: =Singles!P210 -> alannah redington | D16: =Singles!Q210 -> UL | E16: =Singles!R210 -> 356 | F16: =Singles!S210 -> 325 | G16: =Singles!T210 -> 0 | H16: =Singles!U210 -> 449 | I16: =Singles!V210 -> 0 | J16: =Singles!W210 -> 381 | L16: =Singles!X17 -> 1511 | M16: =Singles!Y17 -> 0 | N16: =Singles!Z17 -> 1511.044936 | AI16: alannah redington
B17: 11 | C17: =Singles!P211 -> Tara Dunne | D17: =Singles!Q211 -> UCD | E17: =Singles!R211 -> 272 | F17: =Singles!S211 -> 184 | G17: =Singles!T211 -> 0 | H17: =Singles!U211 -> 256 | I17: =Singles!V211 -> 287 | J17: =Singles!W211 -> 280 | L17: =Singles!X18 -> 1279 | M17: =Singles!Y18 -> 0 | N17: =Singles!Z18 -> 1279.028727 | AI17: Tara Dunne
B18: 12 | C18: =Singles!P212 -> Laura Ni Riada | D18: =Singles!Q212 -> DCU | E18: =Singles!R212 -> 477 | F18: =Singles!S212 -> 415 | G18: =Singles!T212 -> 0 | H18: =Singles!U212 -> 0 | I18: =Singles!V212 -> 0 | J18: =Singles!W212 -> 369 | L18: =Singles!X19 -> 1261 | M18: =Singles!Y19 -> 0 | N18: =Singles!Z19 -> 1261.047742 | AI18: Laura Ni Riada
B19: 13 | C19: =Singles!P213 -> Aisling Brady | D19: =Singles!Q213 -> NUIG | E19: =Singles!R213 -> 0 | F19: =Singles!S213 -> 0 | G19: =Singles!T213 -> 402 | H19: =Singles!U213 -> 260 | I19: =Singles!V213 -> 280 | J19: =Singles!W213 -> 271 | L19: =Singles!X20 -> 1213 | M19: =Singles!Y20 -> 0 | N19: =Singles!Z20 -> 1213.040228 | AI19: Aisling Brady
B20: 14 | C20: =Singles!P214 -> Katy Doyle | D20: =Singles!Q214 -> UCD | E20: =Singles!R214 -> 0 | F20: =Singles!S214 -> 203 | G20: =Singles!T214 -> 0 | H20: =Singles!U214 -> 313 | I20: =Singles!V214 -> 278 | J20: =Singles!W214 -> 341 | L20: =Singles!X21 -> 1135 | M20: =Singles!Y21 -> 0 | N20: =Singles!Z21 -> 1135.031328 | AI20: Katy Doyle
B21: 15 | C21: =Singles!P215 -> Sarah Delaney | D21: =Singles!Q215 -> NUIG | E21: =Singles!R215 -> 0 | F21: =Singles!S215 -> 421 | G21: =Singles!T215 -> 0 | H21: =Singles!U215 -> 361 | I21: =Singles!V215 -> 252 | J21: =Singles!W215 -> 0 | L21: =Singles!X22 -> 1034 | M21: =Singles!Y22 -> 0 | N21: =Singles!Z22 -> 1034.042136 | AI21: Sarah Delaney
B22: 16 | C22: =Singles!P216 -> Maria Jacob | D22: =Singles!Q216 -> UCD | E22: =Singles!R216 -> 0 | F22: =Singles!S216 -> 0 | G22: =Singles!T216 -> 230 | H22: =Singles!U216 -> 410 | I22: =Singles!V216 -> 0 | J22: =Singles!W216 -> 274 | L22: =Singles!X23 -> 914 | M22: =Singles!Y23 -> 0 | N22: =Singles!Z23 -> 914.041023 | AI22: Maria Jacob
B23: 17 | C23: =Singles!P217 -> Katrina Kelly | D23: =Singles!Q217 -> NUIG | E23: =Singles!R217 -> 0 | F23: =Singles!S217 -> 0 | G23: =Singles!T217 -> 363 | H23: =Singles!U217 -> 146 | I23: =Singles!V217 -> 404 | J23: =Singles!W217 -> 0 | L23: =Singles!X24 -> 913 | M23: =Singles!Y24 -> 0 | N23: =Singles!Z24 -> 913.0404363 | AI23: Katrina Kelly
B24: 18 | C24: =Singles!P218 -> Martha Chege | D24: =Singles!Q218 -> UU | E24: =Singles!R218 -> 0 | F24: =Singles!S218 -> 322 | G24: =Singles!T218 -> 0 | H24: =Singles!U218 -> 381 | I24: =Singles!V218 -> 0 | J24: =Singles!W218 -> 0 | L24: =Singles!X25 -> 703 | M24: =Singles!Y25 -> 0 | N24: =Singles!Z25 -> 703.0381322 | AI24: Martha Chege
B25: 19 | C25: =Singles!P219 -> Rebecca Ward | D25: =Singles!Q219 -> DkIT | E25: =Singles!R219 -> 272 | F25: =Singles!S219 -> 0 | G25: =Singles!T219 -> 331 | H25: =Singles!U219 -> 0 | I25: =Singles!V219 -> 0 | J25: =Singles!W219 -> 0 | L25: =Singles!X26 -> 603 | M25: =Singles!Y26 -> 0 | N25: =Singles!Z26 -> 603.0331272 | AI25: Rebecca Ward
B26: 20 | C26: =Singles!P220 -> Zhi-Miin Ong | D26: =Singles!Q220 -> RCSI | E26: =Singles!R220 -> 0 | F26: =Singles!S220 -> 0 | G26: =Singles!T220 -> 0 | H26: =Singles!U220 -> 318 | I26: =Singles!V220 -> 251 | J26: =Singles!W220 -> 0 | L26: =Singles!X27 -> 569 | M26: =Singles!Y27 -> 0 | N26: =Singles!Z27 -> 569.0318251 | AI26: Zhi-Miin Ong
B27: 21 | C27: =Singles!P221 -> Rose Comendador | D27: =Singles!Q221 -> IT Tallaght | E27: =Singles!R221 -> 0 | F27: =Singles!S221 -> 0 | G27: =Singles!T221 -> 0 | H27: =Singles!U221 -> 283 | I27: =Singles!V221 -> 0 | J27: =Singles!W221 -> 250 | L27: =Singles!X28 -> 533 | M27: =Singles!Y28 -> 0 | N27: =Singles!Z28 -> 533.0283 | AI27: Rose Comendador
B28: 22 | C28: =Singles!P222 -> Cara Brennan | D28: =Singles!Q222 -> NUIG | E28: =Singles!R222 -> 0 | F28: =Singles!S222 -> 0 | G28: =Singles!T222 -> 0 | H28: =Singles!U222 -> 263 | I28: =Singles!V222 -> 224 | J28: =Singles!W222 -> 0 | L28: =Singles!X29 -> 487 | M28: =Singles!Y29 -> 0 | N28: =Singles!Z29 -> 487.0263224 | AI28: Cara Brennan
B29: 23 | C29: =Singles!P223 -> Liu Min | D29: =Singles!Q223 -> NUIG | E29: =Singles!R223 -> 0 | F29: =Singles!S223 -> 0 | G29: =Singles!T223 -> 0 | H29: =Singles!U223 -> 0 | I29: =Singles!V223 -> 238 | J29: =Singles!W223 -> 249 | L29: =Singles!X30 -> 487 | M29: =Singles!Y30 -> 0 | N29: =Singles!Z30 -> 487.0238 | AI29: Liu Min
B30: 24 | C30: =Singles!P224 -> Farah Nadia Zikhtar | D30: =Singles!Q224 -> RCSI | E30: =Singles!R224 -> 187 | F30: =Singles!S224 -> 186 | G30: =Singles!T224 -> 0 | H30: =Singles!U224 -> 0 | I30: =Singles!V224 -> 0 | J30: =Singles!W224 -> 66 | L30: =Singles!X31 -> 439 | M30: =Singles!Y31 -> 0 | N30: =Singles!Z31 -> 439.0187186 | AI30: Farah Nadia Zikhtar
B31: 25 | C31: =Singles!P225 -> Brona Howard | D31: =Singles!Q225 -> DkIT | E31: =Singles!R225 -> 0 | F31: =Singles!S225 -> 0 | G31: =Singles!T225 -> 421 | H31: =Singles!U225 -> 0 | I31: =Singles!V225 -> 0 | J31: =Singles!W225 -> 0 | L31: =Singles!X32 -> 421 | M31: =Singles!Y32 -> 0 | N31: =Singles!Z32 -> 421.0421 | AI31: Brona Howard
B32: 26 | C32: =Singles!P226 -> Eilis Ni Shuilleabhain | D32: =Singles!Q226 -> UCD | E32: =Singles!R226 -> 0 | F32: =Singles!S226 -> 339 | G32: =Singles!T226 -> 0 | H32: =Singles!U226 -> 0 | I32: =Singles!V226 -> 0 | J32: =Singles!W226 -> 0 | L32: =Singles!X33 -> 339 | M32: =Singles!Y33 -> 0 | N32: =Singles!Z33 -> 339.0339 | AI32: Eilis Ni Shuilleabhain
B33: 27 | C33: =Singles!P227 -> Elizabeth Clare Lao | D33: =Singles!Q227 -> DIT | E33: =Singles!R227 -> 287 | F33: =Singles!S227 -> 0 | G33: =Singles!T227 -> 0 | H33: =Singles!U227 -> 0 | I33: =Singles!V227 -> 0 | J33: =Singles!W227 -> 0 | L33: =Singles!X34 -> 287 | M33: =Singles!Y34 -> 0 | N33: =Singles!Z34 -> 287.0287 | AI33: Elizabeth Clare Lao
B34: 28 | C34: =Singles!P228 -> Hana Cúipéir | D34: =Singles!Q228 -> DCU | E34: =Singles!R228 -> 0 | F34: =Singles!S228 -> 275 | G34: =Singles!T228 -> 0 | H34: =Singles!U228 -> 0 | I34: =Singles!V228 -> 0 | J34: =Singles!W228 -> 0 | L34: =Singles!X35 -> 275 | M34: =Singles!Y35 -> 0 | N34: =Singles!Z35 -> 275.0275 | AI34: Hana Cúipéir
B35: 29 | C35: =Singles!P229 -> Shahrizan Majid Allapitchai | D35: =Singles!Q229 -> RCSI | E35: =Singles!R229 -> 259 | F35: =Singles!S229 -> 0 | G35: =Singles!T229 -> 0 | H35: =Singles!U229 -> 0 | I35: =Singles!V229 -> 0 | J35: =Singles!W229 -> 0 | L35: =Singles!X36 -> 259 | M35: =Singles!Y36 -> 0 | N35: =Singles!Z36 -> 259.0259 | AI35: Shahrizan Majid Allapitchai
B36: 30 | C36: =Singles!P230 -> Maria Dunne | D36: =Singles!Q230 -> UL | E36: =Singles!R230 -> 0 | F36: =Singles!S230 -> 0 | G36: =Singles!T230 -> 0 | H36: =Singles!U230 -> 0 | I36: =Singles!V230 -> 0 | J36: =Singles!W230 -> 257 | L36: =Singles!X37 -> 257 | M36: =Singles!Y37 -> 0 | N36: =Singles!Z37 -> 257 | AI36: Maria Dunne
B37: 31 | C37: =Singles!P231 -> Shauna O Brien | D37: =Singles!Q231 -> UCD | E37: =Singles!R231 -> 0 | F37: =Singles!S231 -> 0 | G37: =Singles!T231 -> 249 | H37: =Singles!U231 -> 0 | I37: =Singles!V231 -> 0 | J37: =Singles!W231 -> 0 | L37: =Singles!X38 -> 249 | M37: =Singles!Y38 -> 0 | N37: =Singles!Z38 -> 249.0249 | AI37: Shauna O Brien
B38: 32 | C38: =Singles!P232 -> Nassira Musa | D38: =Singles!Q232 -> UCC | E38: =Singles!R232 -> 0 | F38: =Singles!S232 -> 241 | G38: =Singles!T232 -> 0 | H38: =Singles!U232 -> 0 | I38: =Singles!V232 -> 0 | J38: =Singles!W232 -> 0 | L38: =Singles!X39 -> 241 | M38: =Singles!Y39 -> 0 | N38: =Singles!Z39 -> 241.0241 | AI38: Nassira Musa
B39: 33 | C39: =Singles!P233 -> zahratulfatin | D39: =Singles!Q233 -> RCSI | E39: =Singles!R233 -> 0 | F39: =Singles!S233 -> 0 | G39: =Singles!T233 -> 0 | H39: =Singles!U233 -> 0 | I39: =Singles!V233 -> 0 | J39: =Singles!W233 -> 232 | L39: =Singles!X40 -> 232 | M39: =Singles!Y40 -> 0 | N39: =Singles!Z40 -> 232 | AI39: =C39 -> zahratulfatin
B40: 34 | C40: =Singles!P234 -> Shenelle Samodee | D40: =Singles!Q234 -> RCSI | E40: =Singles!R234 -> 0 | F40: =Singles!S234 -> 0 | G40: =Singles!T234 -> 0 | H40: =Singles!U234 -> 0 | I40: =Singles!V234 -> 230 | J40: =Singles!W234 -> 0 | L40: =Singles!X41 -> 230 | M40: =Singles!Y41 -> 0 | N40: =Singles!Z41 -> 230.023 | AI40: Shenelle Samodee
B41: 35 | C41: =Singles!P235 -> Rebecca Watkin | D41: =Singles!Q235 -> UCD | E41: =Singles!R235 -> 0 | F41: =Singles!S235 -> 0 | G41: =Singles!T235 -> 179 | H41: =Singles!U235 -> 0 | I41: =Singles!V235 -> 0 | J41: =Singles!W235 -> 0 | L41: =Singles!X42 -> 179 | M41: =Singles!Y42 -> 0 | N41: =Singles!Z42 -> 179.0179 | AI41: Rebecca Watkin
B42: 36 | C42: =Singles!P236 -> Rubasangkari Rajaderam | D42: =Singles!Q236 -> RCSI | E42: =Singles!R236 -> 149 | F42: =Singles!S236 -> 0 | G42: =Singles!T236 -> 0 | H42: =Singles!U236 -> 0 | I42: =Singles!V236 -> 0 | J42: =Singles!W236 -> 0 | L42: =Singles!X43 -> 149 | M42: =Singles!Y43 -> 0 | N42: =Singles!Z43 -> 149.0149 | AI42: Rubasangkari Rajaderam
B43: 37 | C43: =Singles!P237 -> Auni Awang Dahan | D43: =Singles!Q237 -> RCSI | E43: =Singles!R237 -> 94 | F43: =Singles!S237 -> 0 | G43: =Singles!T237 -> 0 | H43: =Singles!U237 -> 0 | I43: =Singles!V237 -> 0 | J43: =Singles!W237 -> 0 | L43: =Singles!X44 -> 94 | M43: =Singles!Y44 -> 0 | N43: =Singles!Z44 -> 94.0094 | AI43: Auni Awang Dahan
B44: 38 | C44: =Singles!P238 -> Nurhidayah Miswan | D44: =Singles!Q238 -> RCSI | E44: =Singles!R238 -> 0 | F44: =Singles!S238 -> 84 | G44: =Singles!T238 -> 0 | H44: =Singles!U238 -> 0 | I44: =Singles!V238 -> 0 | J44: =Singles!W238 -> 0 | L44: =Singles!X45 -> 84 | M44: =Singles!Y45 -> 0 | N44: =Singles!Z45 -> 84.0084 | AI44: Nurhidayah Miswan
B45: 39 | C45: =Singles!P239 -> Siti Nur Syazwana Mohammad Shafiee | D45: =Singles!Q239 -> RCSI | E45: =Singles!R239 -> 0 | F45: =Singles!S239 -> 76 | G45: =Singles!T239 -> 0 | H45: =Singles!U239 -> 0 | I45: =Singles!V239 -> 0 | J45: =Singles!W239 -> 0 | L45: =Singles!X46 -> 76 | M45: =Singles!Y46 -> 0 | N45: =Singles!Z46 -> 76.0076 | AI45: Siti Nur Syazwana Mohammad Shafiee
B46: 40 | C46: =Singles!P240 -> 0 | D46: =Singles!Q240 -> TBC | E46: =Singles!R240 -> TBC | F46: =Singles!S240 -> TBC | G46: =Singles!T240 -> TBC | H46: =Singles!U240 -> TBC | I46: =Singles!V240 -> TBC | J46: =Singles!W240 -> TBC | L46: =Singles!X47 -> 0 | M46: =Singles!Y47 -> 0 | N46: =Singles!Z47 -> 0 | AI46: 0
B47: 41 | C47: =Singles!P241 -> 0 | D47: =Singles!Q241 -> TBC | E47: =Singles!R241 -> TBC | F47: =Singles!S241 -> TBC | G47: =Singles!T241 -> TBC | H47: =Singles!U241 -> TBC | I47: =Singles!V241 -> TBC | J47: =Singles!W241 -> TBC | L47: =Singles!X48 -> 0 | M47: =Singles!Y48 -> 0 | N47: =Singles!Z48 -> 0 | AI47: 0
B48: 42 | C48: =Singles!P242 -> 0 | D48: =Singles!Q242 -> TBC | E48: =Singles!R242 -> TBC | F48: =Singles!S242 -> TBC | G48: =Singles!T242 -> TBC | H48: =Singles!U242 -> TBC | I48: =Singles!V242 -> TBC | J48: =Singles!W242 -> TBC | L48: =Singles!X49 -> 0 | M48: =Singles!Y49 -> 0 | N48: =Singles!Z49 -> 0 | AI48: 0
B49: 43 | C49: =Singles!P243 -> 0 | D49: =Singles!Q243 -> TBC | E49: =Singles!R243 -> TBC | F49: =Singles!S243 -> TBC | G49: =Singles!T243 -> TBC | H49: =Singles!U243 -> TBC | I49: =Singles!V243 -> TBC | J49: =Singles!W243 -> TBC | L49: =Singles!X50 -> 0 | M49: =Singles!Y50 -> 0 | N49: =Singles!Z50 -> 0 | AI49: 0
B50: 44 | C50: =Singles!P244 -> 0 | D50: =Singles!Q244 -> TBC | E50: =Singles!R244 -> TBC | F50: =Singles!S244 -> TBC | G50: =Singles!T244 -> TBC | H50: =Singles!U244 -> TBC | I50: =Singles!V244 -> TBC | J50: =Singles!W244 -> TBC | L50: =Singles!X51 -> 0 | M50: =Singles!Y51 -> 0 | N50: =Singles!Z51 -> 0 | AI50: 0
B51: 45 | C51: =Singles!P245 -> 0 | D51: =Singles!Q245 -> TBC | E51: =Singles!R245 -> TBC | F51: =Singles!S245 -> TBC | G51: =Singles!T245 -> TBC | H51: =Singles!U245 -> TBC | I51: =Singles!V245 -> TBC | J51: =Singles!W245 -> TBC | L51: =Singles!X52 -> 0 | M51: =Singles!Y52 -> 0 | N51: =Singles!Z52 -> 0 | AI51: 0
B52: 46 | C52: =Singles!P246 -> 0 | D52: =Singles!Q246 -> TBC | E52: =Singles!R246 -> TBC | F52: =Singles!S246 -> TBC | G52: =Singles!T246 -> TBC | H52: =Singles!U246 -> TBC | I52: =Singles!V246 -> TBC | J52: =Singles!W246 -> TBC | L52: =Singles!X53 -> 0 | M52: =Singles!Y53 -> 0 | N52: =Singles!Z53 -> 0 | AI52: 0
B53: 47 | C53: =Singles!P247 -> 0 | D53: =Singles!Q247 -> TBC | E53: =Singles!R247 -> TBC | F53: =Singles!S247 -> TBC | G53: =Singles!T247 -> TBC | H53: =Singles!U247 -> TBC | I53: =Singles!V247 -> TBC | J53: =Singles!W247 -> TBC | L53: =Singles!X54 -> 0 | M53: =Singles!Y54 -> 0 | N53: =Singles!Z54 -> 0 | AI53: 0
B54: 48 | C54: =Singles!P248 -> 0 | D54: =Singles!Q248 -> TBC | E54: =Singles!R248 -> TBC | F54: =Singles!S248 -> TBC | G54: =Singles!T248 -> TBC | H54: =Singles!U248 -> TBC | I54: =Singles!V248 -> TBC | J54: =Singles!W248 -> TBC | L54: =Singles!X55 -> 0 | M54: =Singles!Y55 -> 0 | N54: =Singles!Z55 -> 0 | AI54: 0
B55: 49 | C55: =Singles!P249 -> 0 | D55: =Singles!Q249 -> TBC | E55: =Singles!R249 -> TBC | F55: =Singles!S249 -> TBC | G55: =Singles!T249 -> TBC | H55: =Singles!U249 -> TBC | I55: =Singles!V249 -> TBC | J55: =Singles!W249 -> TBC | L55: =Singles!X56 -> 0 | M55: =Singles!Y56 -> 0 | N55: =Singles!Z56 -> 0 | AI55: 0
B56: 50 | C56: =Singles!P250 -> 0 | D56: =Singles!Q250 -> TBC | E56: =Singles!R250 -> TBC | F56: =Singles!S250 -> TBC | G56: =Singles!T250 -> TBC | H56: =Singles!U250 -> TBC | I56: =Singles!V250 -> TBC | J56: =Singles!W250 -> TBC | L56: =Singles!X57 -> 0 | M56: =Singles!Y57 -> 0 | N56: =Singles!Z57 -> 0 | AI56: 0
B57: 51 | C57: =Singles!P251 -> 0 | D57: =Singles!Q251 -> TBC | E57: =Singles!R251 -> TBC | F57: =Singles!S251 -> TBC | G57: =Singles!T251 -> TBC | H57: =Singles!U251 -> TBC | I57: =Singles!V251 -> TBC | J57: =Singles!W251 -> TBC | L57: =Singles!X58 -> 0 | M57: =Singles!Y58 -> 0 | N57: =Singles!Z58 -> 0 | AI57: 0
B58: 52 | C58: =Singles!P252 -> 0 | D58: =Singles!Q252 -> TBC | E58: =Singles!R252 -> TBC | F58: =Singles!S252 -> TBC | G58: =Singles!T252 -> TBC | H58: =Singles!U252 -> TBC | I58: =Singles!V252 -> TBC | J58: =Singles!W252 -> TBC | L58: =Singles!X59 -> 0 | M58: =Singles!Y59 -> 0 | N58: =Singles!Z59 -> 0 | AI58: 0
B59: 53 | C59: =Singles!P253 -> 0 | D59: =Singles!Q253 -> TBC | E59: =Singles!R253 -> TBC | F59: =Singles!S253 -> TBC | G59: =Singles!T253 -> TBC | H59: =Singles!U253 -> TBC | I59: =Singles!V253 -> TBC | J59: =Singles!W253 -> TBC | L59: =Singles!X60 -> 0 | M59: =Singles!Y60 -> 0 | N59: =Singles!Z60 -> 0 | AI59: 0
B60: 54 | C60: =Singles!P254 -> 0 | D60: =Singles!Q254 -> TBC | E60: =Singles!R254 -> TBC | F60: =Singles!S254 -> TBC | G60: =Singles!T254 -> TBC | H60: =Singles!U254 -> TBC | I60: =Singles!V254 -> TBC | J60: =Singles!W254 -> TBC | L60: =Singles!X61 -> 0 | M60: =Singles!Y61 -> 0 | N60: =Singles!Z61 -> 0 | AI60: 0
B61: 55 | C61: =Singles!P255 -> 0 | D61: =Singles!Q255 -> TBC | E61: =Singles!R255 -> TBC | F61: =Singles!S255 -> TBC | G61: =Singles!T255 -> TBC | H61: =Singles!U255 -> TBC | I61: =Singles!V255 -> TBC | J61: =Singles!W255 -> TBC | L61: =Singles!X62 -> 0 | M61: =Singles!Y62 -> 0 | N61: =Singles!Z62 -> 0 | AI61: 0
B62: 56 | C62: =Singles!P256 -> 0 | D62: =Singles!Q256 -> TBC | E62: =Singles!R256 -> TBC | F62: =Singles!S256 -> TBC | G62: =Singles!T256 -> TBC | H62: =Singles!U256 -> TBC | I62: =Singles!V256 -> TBC | J62: =Singles!W256 -> TBC | L62: =Singles!X63 -> 0 | M62: =Singles!Y63 -> 0 | N62: =Singles!Z63 -> 0 | AI62: 0
B63: 57 | C63: =Singles!P257 -> 0 | D63: =Singles!Q257 -> TBC | E63: =Singles!R257 -> TBC | F63: =Singles!S257 -> TBC | G63: =Singles!T257 -> TBC | H63: =Singles!U257 -> TBC | I63: =Singles!V257 -> TBC | J63: =Singles!W257 -> TBC | L63: =Singles!X64 -> 0 | M63: =Singles!Y64 -> 0 | N63: =Singles!Z64 -> 0 | AI63: 0
B64: 58 | C64: =Singles!P258 -> 0 | D64: =Singles!Q258 -> TBC | E64: =Singles!R258 -> TBC | F64: =Singles!S258 -> TBC | G64: =Singles!T258 -> TBC | H64: =Singles!U258 -> TBC | I64: =Singles!V258 -> TBC | J64: =Singles!W258 -> TBC | L64: =Singles!X65 -> 0 | M64: =Singles!Y65 -> 0 | N64: =Singles!Z65 -> 0 | AI64: 0
B65: 59 | C65: =Singles!P259 -> 0 | D65: =Singles!Q259 -> TBC | E65: =Singles!R259 -> TBC | F65: =Singles!S259 -> TBC | G65: =Singles!T259 -> TBC | H65: =Singles!U259 -> TBC | I65: =Singles!V259 -> TBC | J65: =Singles!W259 -> TBC | L65: =Singles!X66 -> 0 | M65: =Singles!Y66 -> 0 | N65: =Singles!Z66 -> 0 | AI65: 0
B66: 60 | C66: =Singles!P260 -> 0 | D66: =Singles!Q260 -> TBC | E66: =Singles!R260 -> TBC | F66: =Singles!S260 -> TBC | G66: =Singles!T260 -> TBC | H66: =Singles!U260 -> TBC | I66: =Singles!V260 -> TBC | J66: =Singles!W260 -> TBC | L66: =Singles!X67 -> 0 | M66: =Singles!Y67 -> 0 | N66: =Singles!Z67 -> 0 | AI66: 0
B67: 61 | C67: =Singles!P261 -> 0 | D67: =Singles!Q261 -> TBC | E67: =Singles!R261 -> TBC | F67: =Singles!S261 -> TBC | G67: =Singles!T261 -> TBC | H67: =Singles!U261 -> TBC | I67: =Singles!V261 -> TBC | J67: =Singles!W261 -> TBC | L67: =Singles!X68 -> 0 | M67: =Singles!Y68 -> 0 | N67: =Singles!Z68 -> 0 | AI67: 0
B68: 62 | C68: =Singles!P262 -> 0 | D68: =Singles!Q262 -> TBC | E68: =Singles!R262 -> TBC | F68: =Singles!S262 -> TBC | G68: =Singles!T262 -> TBC | H68: =Singles!U262 -> TBC | I68: =Singles!V262 -> TBC | J68: =Singles!W262 -> TBC | L68: =Singles!X69 -> 0 | M68: =Singles!Y69 -> 0 | N68: =Singles!Z69 -> 0 | AI68: 0
B69: 63 | C69: =Singles!P263 -> 0 | D69: =Singles!Q263 -> TBC | E69: =Singles!R263 -> TBC | F69: =Singles!S263 -> TBC | G69: =Singles!T263 -> TBC | H69: =Singles!U263 -> TBC | I69: =Singles!V263 -> TBC | J69: =Singles!W263 -> TBC | L69: =Singles!X70 -> 0 | M69: =Singles!Y70 -> 0 | N69: =Singles!Z70 -> 0 | AI69: 0
B70: 64 | C70: =Singles!P264 -> 0 | D70: =Singles!Q264 -> TBC | E70: =Singles!R264 -> TBC | F70: =Singles!S264 -> TBC | G70: =Singles!T264 -> TBC | H70: =Singles!U264 -> TBC | I70: =Singles!V264 -> TBC | J70: =Singles!W264 -> TBC | L70: =Singles!X71 -> 0 | M70: =Singles!Y71 -> 0 | N70: =Singles!Z71 -> 0 | AI70: 0
B71: 65 | C71: =Singles!P265 -> 0 | D71: =Singles!Q265 -> TBC | E71: =Singles!R265 -> TBC | F71: =Singles!S265 -> TBC | G71: =Singles!T265 -> TBC | H71: =Singles!U265 -> TBC | I71: =Singles!V265 -> TBC | J71: =Singles!W265 -> TBC | L71: =Singles!X72 -> 0 | M71: =Singles!Y72 -> 0 | N71: =Singles!Z72 -> 0 | AI71: 0
B72: 66 | C72: =Singles!P266 -> 0 | D72: =Singles!Q266 -> TBC | E72: =Singles!R266 -> TBC | F72: =Singles!S266 -> TBC | G72: =Singles!T266 -> TBC | H72: =Singles!U266 -> TBC | I72: =Singles!V266 -> TBC | J72: =Singles!W266 -> TBC | L72: =Singles!X73 -> 0 | M72: =Singles!Y73 -> 0 | N72: =Singles!Z73 -> 0 | AI72: 0
B73: 67 | C73: =Singles!P267 -> 0 | D73: =Singles!Q267 -> TBC | E73: =Singles!R267 -> TBC | F73: =Singles!S267 -> TBC | G73: =Singles!T267 -> TBC | H73: =Singles!U267 -> TBC | I73: =Singles!V267 -> TBC | J73: =Singles!W267 -> TBC | L73: =Singles!X74 -> 0 | M73: =Singles!Y74 -> 0 | N73: =Singles!Z74 -> 0 | AI73: 0
B74: 68 | C74: =Singles!P268 -> 0 | D74: =Singles!Q268 -> TBC | E74: =Singles!R268 -> TBC | F74: =Singles!S268 -> TBC | G74: =Singles!T268 -> TBC | H74: =Singles!U268 -> TBC | I74: =Singles!V268 -> TBC | J74: =Singles!W268 -> TBC | L74: =Singles!X75 -> 0 | M74: =Singles!Y75 -> 0 | N74: =Singles!Z75 -> 0 | AI74: 0
B75: 69 | C75: =Singles!P269 -> 0 | D75: =Singles!Q269 -> TBC | E75: =Singles!R269 -> TBC | F75: =Singles!S269 -> TBC | G75: =Singles!T269 -> TBC | H75: =Singles!U269 -> TBC | I75: =Singles!V269 -> TBC | J75: =Singles!W269 -> TBC | L75: =Singles!X76 -> 0 | M75: =Singles!Y76 -> 0 | N75: =Singles!Z76 -> 0 | AI75: 0
B76: 70 | C76: =Singles!P270 -> 0 | D76: =Singles!Q270 -> TBC | E76: =Singles!R270 -> TBC | F76: =Singles!S270 -> TBC | G76: =Singles!T270 -> TBC | H76: =Singles!U270 -> TBC | I76: =Singles!V270 -> TBC | J76: =Singles!W270 -> TBC | L76: =Singles!X77 -> 0 | M76: =Singles!Y77 -> 0 | N76: =Singles!Z77 -> 0 | AI76: 0
B77: 71 | C77: =Singles!P271 -> 0 | D77: =Singles!Q271 -> TBC | E77: =Singles!R271 -> TBC | F77: =Singles!S271 -> TBC | G77: =Singles!T271 -> TBC | H77: =Singles!U271 -> TBC | I77: =Singles!V271 -> TBC | J77: =Singles!W271 -> TBC | L77: =Singles!X78 -> 0 | M77: =Singles!Y78 -> 0 | N77: =Singles!Z78 -> 0 | AI77: 0
B78: 72 | C78: =Singles!P272 -> 0 | D78: =Singles!Q272 -> TBC | E78: =Singles!R272 -> TBC | F78: =Singles!S272 -> TBC | G78: =Singles!T272 -> TBC | H78: =Singles!U272 -> TBC | I78: =Singles!V272 -> TBC | J78: =Singles!W272 -> TBC | L78: =Singles!X79 -> 0 | M78: =Singles!Y79 -> 0 | N78: =Singles!Z79 -> 0 | AI78: 0
B79: 73 | C79: =Singles!P273 -> 0 | D79: =Singles!Q273 -> TBC | E79: =Singles!R273 -> TBC | F79: =Singles!S273 -> TBC | G79: =Singles!T273 -> TBC | H79: =Singles!U273 -> TBC | I79: =Singles!V273 -> TBC | J79: =Singles!W273 -> TBC | L79: =Singles!X80 -> 0 | M79: =Singles!Y80 -> 0 | N79: =Singles!Z80 -> 0 | AI79: 0
B80: 74 | C80: =Singles!P274 -> 0 | D80: =Singles!Q274 -> TBC | E80: =Singles!R274 -> TBC | F80: =Singles!S274 -> TBC | G80: =Singles!T274 -> TBC | H80: =Singles!U274 -> TBC | I80: =Singles!V274 -> TBC | J80: =Singles!W274 -> TBC | L80: =Singles!X81 -> 0 | M80: =Singles!Y81 -> 0 | N80: =Singles!Z81 -> 0 | AI80: 0
B81: 75 | C81: =Singles!P275 -> 0 | D81: =Singles!Q275 -> TBC | E81: =Singles!R275 -> TBC | F81: =Singles!S275 -> TBC | G81: =Singles!T275 -> TBC | H81: =Singles!U275 -> TBC | I81: =Singles!V275 -> TBC | J81: =Singles!W275 -> TBC | L81: =Singles!X82 -> 0 | M81: =Singles!Y82 -> 0 | N81: =Singles!Z82 -> 0 | AI81: 0
A82: =$D$7 -> DCU

Sheet RIM (hidden)
A1: =$D$7 -> 0
A2: =$D$7 -> 0 | B2: Male Intermediate Recurve | E2: Host Club | K2: =$D$7 -> 0 | L2: Scores | O2: 0 | AI2: =AI7 -> 0
E3: =Entries!K6 -> DCU IV | F3: =Entries!K7 -> UCD/ITC IV | G3: =Entries!K8 -> DkIT IV | I3: =Entries!K9 -> NUIM/GMIT IV | J3: =Entries!K10 -> NUIG IV | L3: Total | M3: Lowest | N3: League
B5: 0 | L5: 0
C6: Name | D6: College | E6: =Entries!K6 -> DCU IV | F6: =Entries!K7 -> UCD/ITC IV | G6: =Entries!K8 -> DkIT IV | I6: =Entries!K9 -> NUIM/GMIT IV | J6: =Entries!K10 -> NUIG IV | L6: Total | M6: Lowest | N6: League total
B7: 1 | C7: =Singles!AD201 -> 0 | D7: =Singles!AE201 -> 0 | E7: =Singles!AF201 -> 0 | F7: =Singles!AG201 -> TBC | G7: =Singles!AH201 -> TBC | H7: =Singles!AI201 -> TBC | I7: =Singles!AJ201 -> TBC | J7: =Singles!AK201 -> TBC | L7: =Singles!AL201 -> 0 | M7: =Singles!AM201 -> 0 | N7: =Singles!AN201 -> 0 | AI7: =C7 -> 0
B8: 2 | C8: =Singles!AD202 -> 0 | D8: =Singles!AE202 -> TBC | E8: =Singles!AF202 -> TBC | F8: =Singles!AG202 -> TBC | G8: =Singles!AH202 -> TBC | H8: =Singles!AI202 -> TBC | I8: =Singles!AJ202 -> TBC | J8: =Singles!AK202 -> TBC | L8: =Singles!AL202 -> 0 | M8: =Singles!AM202 -> 0 | N8: =Singles!AN202 -> 0 | AI8: 0
B9: 3 | C9: =Singles!AD203 -> 0 | D9: =Singles!AE203 -> TBC | E9: =Singles!AF203 -> TBC | F9: =Singles!AG203 -> TBC | G9: =Singles!AH203 -> TBC | H9: =Singles!AI203 -> TBC | I9: =Singles!AJ203 -> TBC | J9: =Singles!AK203 -> TBC | L9: =Singles!AL203 -> 0 | M9: =Singles!AM203 -> 0 | N9: =Singles!AN203 -> 0 | AI9: 0
B10: 4 | C10: =Singles!AD204 -> 0 | D10: =Singles!AE204 -> TBC | E10: =Singles!AF204 -> TBC | F10: =Singles!AG204 -> TBC | G10: =Singles!AH204 -> TBC | H10: =Singles!AI204 -> TBC | I10: =Singles!AJ204 -> TBC | J10: =Singles!AK204 -> TBC | L10: =Singles!AL204 -> 0 | M10: =Singles!AM204 -> 0 | N10: =Singles!AN204 -> 0 | AI10: 0
B11: 5 | C11: =Singles!AD211 -> 0 | D11: =Singles!AE211 -> TBC | E11: =Singles!AF211 -> TBC | F11: =Singles!AG211 -> TBC | G11: =Singles!AH211 -> TBC | H11: =Singles!AI211 -> TBC | I11: =Singles!AJ211 -> TBC | J11: =Singles!AK211 -> TBC | L11: =Singles!AL211 -> 0 | M11: =Singles!AM211 -> 0 | N11: =Singles!AN211 -> 0 | AI11: 0
B12: 6 | C12: =Singles!AD205 -> 0 | D12: =Singles!AE205 -> TBC | E12: =Singles!AF205 -> TBC | F12: =Singles!AG205 -> TBC | G12: =Singles!AH205 -> TBC | H12: =Singles!AI205 -> TBC | I12: =Singles!AJ205 -> TBC | J12: =Singles!AK205 -> TBC | L12: =Singles!AL205 -> 0 | M12: =Singles!AM205 -> 0 | N12: =Singles!AN205 -> 0 | AI12: 0
B13: 7 | C13: =Singles!AD207 -> 0 | D13: =Singles!AE207 -> TBC | E13: =Singles!AF207 -> TBC | F13: =Singles!AG207 -> TBC | G13: =Singles!AH207 -> TBC | H13: =Singles!AI207 -> TBC | I13: =Singles!AJ207 -> TBC | J13: =Singles!AK207 -> TBC | L13: =Singles!AL207 -> 0 | M13: =Singles!AM207 -> 0 | N13: =Singles!AN207 -> 0 | AI13: 0
B14: 8 | C14: =Singles!AD206 -> 0 | D14: =Singles!AE206 -> TBC | E14: =Singles!AF206 -> TBC | F14: =Singles!AG206 -> TBC | G14: =Singles!AH206 -> TBC | H14: =Singles!AI206 -> TBC | I14: =Singles!AJ206 -> TBC | J14: =Singles!AK206 -> TBC | L14: =Singles!AL206 -> 0 | M14: =Singles!AM206 -> 0 | N14: =Singles!AN206 -> 0 | AI14: 0
B15: 9 | C15: =Singles!AD208 -> 0 | D15: =Singles!AE208 -> TBC | E15: =Singles!AF208 -> TBC | F15: =Singles!AG208 -> TBC | G15: =Singles!AH208 -> TBC | H15: =Singles!AI208 -> TBC | I15: =Singles!AJ208 -> TBC | J15: =Singles!AK208 -> TBC | L15: =Singles!AL208 -> 0 | M15: =Singles!AM208 -> 0 | N15: =Singles!AN208 -> 0 | AI15: 0
B16: 10 | C16: =Singles!AD212 -> 0 | D16: =Singles!AE212 -> TBC | E16: =Singles!AF212 -> TBC | F16: =Singles!AG212 -> TBC | G16: =Singles!AH212 -> TBC | H16: =Singles!AI212 -> TBC | I16: =Singles!AJ212 -> TBC | J16: =Singles!AK212 -> TBC | L16: =Singles!AL212 -> 0 | M16: =Singles!AM212 -> 0 | N16: =Singles!AN212 -> 0 | AI16: 0
B17: 11 | C17: =Singles!AD213 -> 0 | D17: =Singles!AE213 -> TBC | E17: =Singles!AF213 -> TBC | F17: =Singles!AG213 -> TBC | G17: =Singles!AH213 -> TBC | H17: =Singles!AI213 -> TBC | I17: =Singles!AJ213 -> TBC | J17: =Singles!AK213 -> TBC | L17: =Singles!AL213 -> 0 | M17: =Singles!AM213 -> 0 | N17: =Singles!AN213 -> 0 | AI17: 0
B18: 12 | C18: =Singles!AD209 -> 0 | D18: =Singles!AE209 -> TBC | E18: =Singles!AF209 -> TBC | F18: =Singles!AG209 -> TBC | G18: =Singles!AH209 -> TBC | H18: =Singles!AI209 -> TBC | I18: =Singles!AJ209 -> TBC | J18: =Singles!AK209 -> TBC | L18: =Singles!AL209 -> 0 | M18: =Singles!AM209 -> 0 | N18: =Singles!AN209 -> 0 | AI18: 0
B19: 13 | C19: =Singles!AD214 -> 0 | D19: =Singles!AE214 -> TBC | E19: =Singles!AF214 -> TBC | F19: =Singles!AG214 -> TBC | G19: =Singles!AH214 -> TBC | H19: =Singles!AI214 -> TBC | I19: =Singles!AJ214 -> TBC | J19: =Singles!AK214 -> TBC | L19: =Singles!AL214 -> 0 | M19: =Singles!AM214 -> 0 | N19: =Singles!AN214 -> 0 | AI19: 0
B20: 14 | C20: =Singles!AD210 -> 0 | D20: =Singles!AE210 -> TBC | E20: =Singles!AF210 -> TBC | F20: =Singles!AG210 -> TBC | G20: =Singles!AH210 -> TBC | H20: =Singles!AI210 -> TBC | I20: =Singles!AJ210 -> TBC | J20: =Singles!AK210 -> TBC | L20: =Singles!AL210 -> 0 | M20: =Singles!AM210 -> 0 | N20: =Singles!AN210 -> 0 | AI20: 0
B21: 15 | C21: =Singles!AD215 -> 0 | D21: =Singles!AE215 -> TBC | E21: =Singles!AF215 -> TBC | F21: =Singles!AG215 -> TBC | G21: =Singles!AH215 -> TBC | H21: =Singles!AI215 -> TBC | I21: =Singles!AJ215 -> TBC | J21: =Singles!AK215 -> TBC | L21: =Singles!AL215 -> 0 | M21: =Singles!AM215 -> 0 | N21: =Singles!AN215 -> 0 | AI21: 0
B22: 16 | C22: =Singles!AD216 -> 0 | D22: =Singles!AE216 -> TBC | E22: =Singles!AF216 -> TBC | F22: =Singles!AG216 -> TBC | G22: =Singles!AH216 -> TBC | H22: =Singles!AI216 -> TBC | I22: =Singles!AJ216 -> TBC | J22: =Singles!AK216 -> TBC | L22: =Singles!AL216 -> 0 | M22: =Singles!AM216 -> 0 | N22: =Singles!AN216 -> 0 | AI22: 0
B23: 17 | C23: =Singles!AD217 -> 0 | D23: =Singles!AE217 -> TBC | E23: =Singles!AF217 -> TBC | F23: =Singles!AG217 -> TBC | G23: =Singles!AH217 -> TBC | H23: =Singles!AI217 -> TBC | I23: =Singles!AJ217 -> TBC | J23: =Singles!AK217 -> TBC | L23: =Singles!AL217 -> 0 | M23: =Singles!AM217 -> 0 | N23: =Singles!AN217 -> 0 | AI23: 0
B24: 18 | C24: =Singles!AD218 -> 0 | D24: =Singles!AE218 -> TBC | E24: =Singles!AF218 -> TBC | F24: =Singles!AG218 -> TBC | G24: =Singles!AH218 -> TBC | H24: =Singles!AI218 -> TBC | I24: =Singles!AJ218 -> TBC | J24: =Singles!AK218 -> TBC | L24: =Singles!AL218 -> 0 | M24: =Singles!AM218 -> 0 | N24: =Singles!AN218 -> 0 | AI24: 0
B25: 19 | C25: =Singles!AD219 -> 0 | D25: =Singles!AE219 -> TBC | E25: =Singles!AF219 -> TBC | F25: =Singles!AG219 -> TBC | G25: =Singles!AH219 -> TBC | H25: =Singles!AI219 -> TBC | I25: =Singles!AJ219 -> TBC | J25: =Singles!AK219 -> TBC | L25: =Singles!AL219 -> 0 | M25: =Singles!AM219 -> 0 | N25: =Singles!AN219 -> 0 | AI25: 0
B26: 20 | C26: =Singles!AD220 -> 0 | D26: =Singles!AE220 -> TBC | E26: =Singles!AF220 -> TBC | F26: =Singles!AG220 -> TBC | G26: =Singles!AH220 -> TBC | H26: =Singles!AI220 -> TBC | I26: =Singles!AJ220 -> TBC | J26: =Singles!AK220 -> TBC | L26: =Singles!AL220 -> 0 | M26: =Singles!AM220 -> 0 | N26: =Singles!AN220 -> 0 | AI26: 0
B27: 21 | C27: =Singles!AD221 -> 0 | D27: =Singles!AE221 -> TBC | E27: =Singles!AF221 -> TBC | F27: =Singles!AG221 -> TBC | G27: =Singles!AH221 -> TBC | H27: =Singles!AI221 -> TBC | I27: =Singles!AJ221 -> TBC | J27: =Singles!AK221 -> TBC | L27: =Singles!AL221 -> 0 | M27: =Singles!AM221 -> 0 | N27: =Singles!AN221 -> 0 | AI27: 0
B28: 22 | C28: =Singles!AD222 -> 0 | D28: =Singles!AE222 -> TBC | E28: =Singles!AF222 -> TBC | F28: =Singles!AG222 -> TBC | G28: =Singles!AH222 -> TBC | H28: =Singles!AI222 -> TBC | I28: =Singles!AJ222 -> TBC | J28: =Singles!AK222 -> TBC | L28: =Singles!AL222 -> 0 | M28: =Singles!AM222 -> 0 | N28: =Singles!AN222 -> 0 | AI28: 0
B29: 23 | C29: =Singles!AD223 -> 0 | D29: =Singles!AE223 -> TBC | E29: =Singles!AF223 -> TBC | F29: =Singles!AG223 -> TBC | G29: =Singles!AH223 -> TBC | H29: =Singles!AI223 -> TBC | I29: =Singles!AJ223 -> TBC | J29: =Singles!AK223 -> TBC | L29: =Singles!AL223 -> 0 | M29: =Singles!AM223 -> 0 | N29: =Singles!AN223 -> 0 | AI29: 0
B30: 24 | C30: =Singles!AD224 -> 0 | D30: =Singles!AE224 -> TBC | E30: =Singles!AF224 -> TBC | F30: =Singles!AG224 -> TBC | G30: =Singles!AH224 -> TBC | H30: =Singles!AI224 -> TBC | I30: =Singles!AJ224 -> TBC | J30: =Singles!AK224 -> TBC | L30: =Singles!AL224 -> 0 | M30: =Singles!AM224 -> 0 | N30: =Singles!AN224 -> 0 | AI30: 0
B31: 25 | C31: =Singles!AD225 -> 0 | D31: =Singles!AE225 -> TBC | E31: =Singles!AF225 -> TBC | F31: =Singles!AG225 -> TBC | G31: =Singles!AH225 -> TBC | H31: =Singles!AI225 -> TBC | I31: =Singles!AJ225 -> TBC | J31: =Singles!AK225 -> TBC | L31: =Singles!AL225 -> 0 | M31: =Singles!AM225 -> 0 | N31: =Singles!AN225 -> 0 | AI31: 0
B32: 26 | C32: =Singles!AD226 -> 0 | D32: =Singles!AE226 -> TBC | E32: =Singles!AF226 -> TBC | F32: =Singles!AG226 -> TBC | G32: =Singles!AH226 -> TBC | H32: =Singles!AI226 -> TBC | I32: =Singles!AJ226 -> TBC | J32: =Singles!AK226 -> TBC | L32: =Singles!AL226 -> 0 | M32: =Singles!AM226 -> 0 | N32: =Singles!AN226 -> 0 | AI32: 0
B33: 27 | C33: =Singles!AD227 -> 0 | D33: =Singles!AE227 -> TBC | E33: =Singles!AF227 -> TBC | F33: =Singles!AG227 -> TBC | G33: =Singles!AH227 -> TBC | H33: =Singles!AI227 -> TBC | I33: =Singles!AJ227 -> TBC | J33: =Singles!AK227 -> TBC | L33: =Singles!AL227 -> 0 | M33: =Singles!AM227 -> 0 | N33: =Singles!AN227 -> 0 | AI33: 0
B34: 28 | C34: =Singles!AD228 -> 0 | D34: =Singles!AE228 -> TBC | E34: =Singles!AF228 -> TBC | F34: =Singles!AG228 -> TBC | G34: =Singles!AH228 -> TBC | H34: =Singles!AI228 -> TBC | I34: =Singles!AJ228 -> TBC | J34: =Singles!AK228 -> TBC | L34: =Singles!AL228 -> 0 | M34: =Singles!AM228 -> 0 | N34: =Singles!AN228 -> 0 | AI34: 0
B35: 29 | C35: =Singles!AD229 -> 0 | D35: =Singles!AE229 -> TBC | E35: =Singles!AF229 -> TBC | F35: =Singles!AG229 -> TBC | G35: =Singles!AH229 -> TBC | H35: =Singles!AI229 -> TBC | I35: =Singles!AJ229 -> TBC | J35: =Singles!AK229 -> TBC | L35: =Singles!AL229 -> 0 | M35: =Singles!AM229 -> 0 | N35: =Singles!AN229 -> 0 | AI35: 0
B36: 30 | C36: =Singles!AD230 -> 0 | D36: =Singles!AE230 -> TBC | E36: =Singles!AF230 -> TBC | F36: =Singles!AG230 -> TBC | G36: =Singles!AH230 -> TBC | H36: =Singles!AI230 -> TBC | I36: =Singles!AJ230 -> TBC | J36: =Singles!AK230 -> TBC | L36: =Singles!AL230 -> 0 | M36: =Singles!AM230 -> 0 | N36: =Singles!AN230 -> 0 | AI36: 0
B37: 31 | C37: =Singles!AD231 -> 0 | D37: =Singles!AE231 -> TBC | E37: =Singles!AF231 -> TBC | F37: =Singles!AG231 -> TBC | G37: =Singles!AH231 -> TBC | H37: =Singles!AI231 -> TBC | I37: =Singles!AJ231 -> TBC | J37: =Singles!AK231 -> TBC | L37: =Singles!AL231 -> 0 | M37: =Singles!AM231 -> 0 | N37: =Singles!AN231 -> 0 | AI37: 0
B38: 32 | C38: =Singles!AD232 -> 0 | D38: =Singles!AE232 -> TBC | E38: =Singles!AF232 -> TBC | F38: =Singles!AG232 -> TBC | G38: =Singles!AH232 -> TBC | H38: =Singles!AI232 -> TBC | I38: =Singles!AJ232 -> TBC | J38: =Singles!AK232 -> TBC | L38: =Singles!AL232 -> 0 | M38: =Singles!AM232 -> 0 | N38: =Singles!AN232 -> 0 | AI38: 0
B39: 33 | C39: =Singles!AD233 -> 0 | D39: =Singles!AE233 -> TBC | E39: =Singles!AF233 -> TBC | F39: =Singles!AG233 -> TBC | G39: =Singles!AH233 -> TBC | H39: =Singles!AI233 -> TBC | I39: =Singles!AJ233 -> TBC | J39: =Singles!AK233 -> TBC | L39: =Singles!AL233 -> 0 | M39: =Singles!AM233 -> 0 | N39: =Singles!AN233 -> 0 | AI39: =C39 -> 0
B40: 34 | C40: =Singles!AD234 -> 0 | D40: =Singles!AE234 -> TBC | E40: =Singles!AF234 -> TBC | F40: =Singles!AG234 -> TBC | G40: =Singles!AH234 -> TBC | H40: =Singles!AI234 -> TBC | I40: =Singles!AJ234 -> TBC | J40: =Singles!AK234 -> TBC | L40: =Singles!AL234 -> 0 | M40: =Singles!AM234 -> 0 | N40: =Singles!AN234 -> 0 | AI40: 0
B41: 35 | C41: =Singles!AD235 -> 0 | D41: =Singles!AE235 -> TBC | E41: =Singles!AF235 -> TBC | F41: =Singles!AG235 -> TBC | G41: =Singles!AH235 -> TBC | H41: =Singles!AI235 -> TBC | I41: =Singles!AJ235 -> TBC | J41: =Singles!AK235 -> TBC | L41: =Singles!AL235 -> 0 | M41: =Singles!AM235 -> 0 | N41: =Singles!AN235 -> 0 | AI41: 0
B42: 36 | C42: =Singles!AD236 -> 0 | D42: =Singles!AE236 -> TBC | E42: =Singles!AF236 -> TBC | F42: =Singles!AG236 -> TBC | G42: =Singles!AH236 -> TBC | H42: =Singles!AI236 -> TBC | I42: =Singles!AJ236 -> TBC | J42: =Singles!AK236 -> TBC | L42: =Singles!AL236 -> 0 | M42: =Singles!AM236 -> 0 | N42: =Singles!AN236 -> 0 | AI42: 0
B43: 37 | C43: =Singles!AD237 -> 0 | D43: =Singles!AE237 -> TBC | E43: =Singles!AF237 -> TBC | F43: =Singles!AG237 -> TBC | G43: =Singles!AH237 -> TBC | H43: =Singles!AI237 -> TBC | I43: =Singles!AJ237 -> TBC | J43: =Singles!AK237 -> TBC | L43: =Singles!AL237 -> 0 | M43: =Singles!AM237 -> 0 | N43: =Singles!AN237 -> 0 | AI43: 0
B44: 38 | C44: =Singles!AD238 -> 0 | D44: =Singles!AE238 -> TBC | E44: =Singles!AF238 -> TBC | F44: =Singles!AG238 -> TBC | G44: =Singles!AH238 -> TBC | H44: =Singles!AI238 -> TBC | I44: =Singles!AJ238 -> TBC | J44: =Singles!AK238 -> TBC | L44: =Singles!AL238 -> 0 | M44: =Singles!AM238 -> 0 | N44: =Singles!AN238 -> 0 | AI44: 0
B45: 39 | C45: =Singles!AD239 -> 0 | D45: =Singles!AE239 -> TBC | E45: =Singles!AF239 -> TBC | F45: =Singles!AG239 -> TBC | G45: =Singles!AH239 -> TBC | H45: =Singles!AI239 -> TBC | I45: =Singles!AJ239 -> TBC | J45: =Singles!AK239 -> TBC | L45: =Singles!AL239 -> 0 | M45: =Singles!AM239 -> 0 | N45: =Singles!AN239 -> 0 | AI45: 0
B46: 40 | C46: =Singles!AD240 -> 0 | D46: =Singles!AE240 -> TBC | E46: =Singles!AF240 -> TBC | F46: =Singles!AG240 -> TBC | G46: =Singles!AH240 -> TBC | H46: =Singles!AI240 -> TBC | I46: =Singles!AJ240 -> TBC | J46: =Singles!AK240 -> TBC | L46: =Singles!AL240 -> 0 | M46: =Singles!AM240 -> 0 | N46: =Singles!AN240 -> 0 | AI46: 0
B47: 41 | C47: =Singles!AD241 -> 0 | D47: =Singles!AE241 -> TBC | E47: =Singles!AF241 -> TBC | F47: =Singles!AG241 -> TBC | G47: =Singles!AH241 -> TBC | H47: =Singles!AI241 -> TBC | I47: =Singles!AJ241 -> TBC | J47: =Singles!AK241 -> TBC | L47: =Singles!AL241 -> 0 | M47: =Singles!AM241 -> 0 | N47: =Singles!AN241 -> 0 | AI47: 0
B48: 42 | C48: =Singles!AD242 -> 0 | D48: =Singles!AE242 -> TBC | E48: =Singles!AF242 -> TBC | F48: =Singles!AG242 -> TBC | G48: =Singles!AH242 -> TBC | H48: =Singles!AI242 -> TBC | I48: =Singles!AJ242 -> TBC | J48: =Singles!AK242 -> TBC | L48: =Singles!AL242 -> 0 | M48: =Singles!AM242 -> 0 | N48: =Singles!AN242 -> 0 | AI48: 0
B49: 43 | C49: =Singles!AD243 -> 0 | D49: =Singles!AE243 -> TBC | E49: =Singles!AF243 -> TBC | F49: =Singles!AG243 -> TBC | G49: =Singles!AH243 -> TBC | H49: =Singles!AI243 -> TBC | I49: =Singles!AJ243 -> TBC | J49: =Singles!AK243 -> TBC | L49: =Singles!AL243 -> 0 | M49: =Singles!AM243 -> 0 | N49: =Singles!AN243 -> 0 | AI49: 0
B50: 44 | C50: =Singles!AD244 -> 0 | D50: =Singles!AE244 -> TBC | E50: =Singles!AF244 -> TBC | F50: =Singles!AG244 -> TBC | G50: =Singles!AH244 -> TBC | H50: =Singles!AI244 -> TBC | I50: =Singles!AJ244 -> TBC | J50: =Singles!AK244 -> TBC | L50: =Singles!AL244 -> 0 | M50: =Singles!AM244 -> 0 | N50: =Singles!AN244 -> 0 | AI50: 0
B51: 45 | C51: =Singles!AD245 -> 0 | D51: =Singles!AE245 -> TBC | E51: =Singles!AF245 -> TBC | F51: =Singles!AG245 -> TBC | G51: =Singles!AH245 -> TBC | H51: =Singles!AI245 -> TBC | I51: =Singles!AJ245 -> TBC | J51: =Singles!AK245 -> TBC | L51: =Singles!AL245 -> 0 | M51: =Singles!AM245 -> 0 | N51: =Singles!AN245 -> 0 | AI51: 0
B52: 46 | C52: =Singles!AD246 -> 0 | D52: =Singles!AE246 -> TBC | E52: =Singles!AF246 -> TBC | F52: =Singles!AG246 -> TBC | G52: =Singles!AH246 -> TBC | H52: =Singles!AI246 -> TBC | I52: =Singles!AJ246 -> TBC | J52: =Singles!AK246 -> TBC | L52: =Singles!AL246 -> 0 | M52: =Singles!AM246 -> 0 | N52: =Singles!AN246 -> 0 | AI52: 0
B53: 47 | C53: =Singles!AD247 -> 0 | D53: =Singles!AE247 -> TBC | E53: =Singles!AF247 -> TBC | F53: =Singles!AG247 -> TBC | G53: =Singles!AH247 -> TBC | H53: =Singles!AI247 -> TBC | I53: =Singles!AJ247 -> TBC | J53: =Singles!AK247 -> TBC | L53: =Singles!AL247 -> 0 | M53: =Singles!AM247 -> 0 | N53: =Singles!AN247 -> 0 | AI53: 0
B54: 48 | C54: =Singles!AD248 -> 0 | D54: =Singles!AE248 -> TBC | E54: =Singles!AF248 -> TBC | F54: =Singles!AG248 -> TBC | G54: =Singles!AH248 -> TBC | H54: =Singles!AI248 -> TBC | I54: =Singles!AJ248 -> TBC | J54: =Singles!AK248 -> TBC | L54: =Singles!AL248 -> 0 | M54: =Singles!AM248 -> 0 | N54: =Singles!AN248 -> 0 | AI54: 0
B55: 49 | C55: =Singles!AD249 -> 0 | D55: =Singles!AE249 -> TBC | E55: =Singles!AF249 -> TBC | F55: =Singles!AG249 -> TBC | G55: =Singles!AH249 -> TBC | H55: =Singles!AI249 -> TBC | I55: =Singles!AJ249 -> TBC | J55: =Singles!AK249 -> TBC | L55: =Singles!AL249 -> 0 | M55: =Singles!AM249 -> 0 | N55: =Singles!AN249 -> 0 | AI55: 0
B56: 50 | C56: =Singles!AD250 -> 0 | D56: =Singles!AE250 -> TBC | E56: =Singles!AF250 -> TBC | F56: =Singles!AG250 -> TBC | G56: =Singles!AH250 -> TBC | H56: =Singles!AI250 -> TBC | I56: =Singles!AJ250 -> TBC | J56: =Singles!AK250 -> TBC | L56: =Singles!AL250 -> 0 | M56: =Singles!AM250 -> 0 | N56: =Singles!AN250 -> 0 | AI56: 0
B57: 51 | C57: =Singles!AD251 -> 0 | D57: =Singles!AE251 -> TBC | E57: =Singles!AF251 -> TBC | F57: =Singles!AG251 -> TBC | G57: =Singles!AH251 -> TBC | H57: =Singles!AI251 -> TBC | I57: =Singles!AJ251 -> TBC | J57: =Singles!AK251 -> TBC | L57: =Singles!AL251 -> 0 | M57: =Singles!AM251 -> 0 | N57: =Singles!AN251 -> 0 | AI57: 0
B58: 52 | C58: =Singles!AD252 -> 0 | D58: =Singles!AE252 -> TBC | E58: =Singles!AF252 -> TBC | F58: =Singles!AG252 -> TBC | G58: =Singles!AH252 -> TBC | H58: =Singles!AI252 -> TBC | I58: =Singles!AJ252 -> TBC | J58: =Singles!AK252 -> TBC | L58: =Singles!AL252 -> 0 | M58: =Singles!AM252 -> 0 | N58: =Singles!AN252 -> 0 | AI58: 0
B59: 53 | C59: =Singles!AD253 -> 0 | D59: =Singles!AE253 -> TBC | E59: =Singles!AF253 -> TBC | F59: =Singles!AG253 -> TBC | G59: =Singles!AH253 -> TBC | H59: =Singles!AI253 -> TBC | I59: =Singles!AJ253 -> TBC | J59: =Singles!AK253 -> TBC | L59: =Singles!AL253 -> 0 | M59: =Singles!AM253 -> 0 | N59: =Singles!AN253 -> 0 | AI59: 0
B60: 54 | C60: =Singles!AD254 -> 0 | D60: =Singles!AE254 -> TBC | E60: =Singles!AF254 -> TBC | F60: =Singles!AG254 -> TBC | G60: =Singles!AH254 -> TBC | H60: =Singles!AI254 -> TBC | I60: =Singles!AJ254 -> TBC | J60: =Singles!AK254 -> TBC | L60: =Singles!AL254 -> 0 | M60: =Singles!AM254 -> 0 | N60: =Singles!AN254 -> 0 | AI60: 0
B61: 55 | C61: =Singles!AD255 -> 0 | D61: =Singles!AE255 -> TBC | E61: =Singles!AF255 -> TBC | F61: =Singles!AG255 -> TBC | G61: =Singles!AH255 -> TBC | H61: =Singles!AI255 -> TBC | I61: =Singles!AJ255 -> TBC | J61: =Singles!AK255 -> TBC | L61: =Singles!AL255 -> 0 | M61: =Singles!AM255 -> 0 | N61: =Singles!AN255 -> 0 | AI61: 0
B62: 56 | C62: =Singles!AD256 -> 0 | D62: =Singles!AE256 -> TBC | E62: =Singles!AF256 -> TBC | F62: =Singles!AG256 -> TBC | G62: =Singles!AH256 -> TBC | H62: =Singles!AI256 -> TBC | I62: =Singles!AJ256 -> TBC | J62: =Singles!AK256 -> TBC | L62: =Singles!AL256 -> 0 | M62: =Singles!AM256 -> 0 | N62: =Singles!AN256 -> 0 | AI62: 0
B63: 57 | C63: =Singles!AD257 -> 0 | D63: =Singles!AE257 -> TBC | E63: =Singles!AF257 -> TBC | F63: =Singles!AG257 -> TBC | G63: =Singles!AH257 -> TBC | H63: =Singles!AI257 -> TBC | I63: =Singles!AJ257 -> TBC | J63: =Singles!AK257 -> TBC | L63: =Singles!AL257 -> 0 | M63: =Singles!AM257 -> 0 | N63: =Singles!AN257 -> 0 | AI63: 0
B64: 58 | C64: =Singles!AD258 -> 0 | D64: =Singles!AE258 -> TBC | E64: =Singles!AF258 -> TBC | F64: =Singles!AG258 -> TBC | G64: =Singles!AH258 -> TBC | H64: =Singles!AI258 -> TBC | I64: =Singles!AJ258 -> TBC | J64: =Singles!AK258 -> TBC | L64: =Singles!AL258 -> 0 | M64: =Singles!AM258 -> 0 | N64: =Singles!AN258 -> 0 | AI64: 0
B65: 59 | C65: =Singles!AD259 -> 0 | D65: =Singles!AE259 -> TBC | E65: =Singles!AF259 -> TBC | F65: =Singles!AG259 -> TBC | G65: =Singles!AH259 -> TBC | H65: =Singles!AI259 -> TBC | I65: =Singles!AJ259 -> TBC | J65: =Singles!AK259 -> TBC | L65: =Singles!AL259 -> 0 | M65: =Singles!AM259 -> 0 | N65: =Singles!AN259 -> 0 | AI65: 0
B66: 60 | C66: =Singles!AD260 -> 0 | D66: =Singles!AE260 -> TBC | E66: =Singles!AF260 -> TBC | F66: =Singles!AG260 -> TBC | G66: =Singles!AH260 -> TBC | H66: =Singles!AI260 -> TBC | I66: =Singles!AJ260 -> TBC | J66: =Singles!AK260 -> TBC | L66: =Singles!AL260 -> 0 | M66: =Singles!AM260 -> 0 | N66: =Singles!AN260 -> 0 | AI66: 0
B67: 61 | C67: =Singles!AD261 -> 0 | D67: =Singles!AE261 -> TBC | E67: =Singles!AF261 -> TBC | F67: =Singles!AG261 -> TBC | G67: =Singles!AH261 -> TBC | H67: =Singles!AI261 -> TBC | I67: =Singles!AJ261 -> TBC | J67: =Singles!AK261 -> TBC | L67: =Singles!AL261 -> 0 | M67: =Singles!AM261 -> 0 | N67: =Singles!AN261 -> 0 | AI67: 0
B68: 62 | C68: =Singles!AD262 -> 0 | D68: =Singles!AE262 -> TBC | E68: =Singles!AF262 -> TBC | F68: =Singles!AG262 -> TBC | G68: =Singles!AH262 -> TBC | H68: =Singles!AI262 -> TBC | I68: =Singles!AJ262 -> TBC | J68: =Singles!AK262 -> TBC | L68: =Singles!AL262 -> 0 | M68: =Singles!AM262 -> 0 | N68: =Singles!AN262 -> 0 | AI68: 0
B69: 63 | C69: =Singles!AD263 -> 0 | D69: =Singles!AE263 -> TBC | E69: =Singles!AF263 -> TBC | F69: =Singles!AG263 -> TBC | G69: =Singles!AH263 -> TBC | H69: =Singles!AI263 -> TBC | I69: =Singles!AJ263 -> TBC | J69: =Singles!AK263 -> TBC | L69: =Singles!AL263 -> 0 | M69: =Singles!AM263 -> 0 | N69: =Singles!AN263 -> 0 | AI69: 0
B70: 64 | C70: =Singles!AD264 -> 0 | D70: =Singles!AE264 -> TBC | E70: =Singles!AF264 -> TBC | F70: =Singles!AG264 -> TBC | G70: =Singles!AH264 -> TBC | H70: =Singles!AI264 -> TBC | I70: =Singles!AJ264 -> TBC | J70: =Singles!AK264 -> TBC | L70: =Singles!AL264 -> 0 | M70: =Singles!AM264 -> 0 | N70: =Singles!AN264 -> 0 | AI70: 0
B71: 65 | C71: =Singles!AD265 -> 0 | D71: =Singles!AE265 -> TBC | E71: =Singles!AF265 -> TBC | F71: =Singles!AG265 -> TBC | G71: =Singles!AH265 -> TBC | H71: =Singles!AI265 -> TBC | I71: =Singles!AJ265 -> TBC | J71: =Singles!AK265 -> TBC | L71: =Singles!AL265 -> 0 | M71: =Singles!AM265 -> 0 | N71: =Singles!AN265 -> 0 | AI71: 0
B72: 66 | C72: =Singles!AD266 -> 0 | D72: =Singles!AE266 -> TBC | E72: =Singles!AF266 -> TBC | F72: =Singles!AG266 -> TBC | G72: =Singles!AH266 -> TBC | H72: =Singles!AI266 -> TBC | I72: =Singles!AJ266 -> TBC | J72: =Singles!AK266 -> TBC | L72: =Singles!AL266 -> 0 | M72: =Singles!AM266 -> 0 | N72: =Singles!AN266 -> 0 | AI72: 0
B73: 67 | C73: =Singles!AD267 -> 0 | D73: =Singles!AE267 -> TBC | E73: =Singles!AF267 -> TBC | F73: =Singles!AG267 -> TBC | G73: =Singles!AH267 -> TBC | H73: =Singles!AI267 -> TBC | I73: =Singles!AJ267 -> TBC | J73: =Singles!AK267 -> TBC | L73: =Singles!AL267 -> 0 | M73: =Singles!AM267 -> 0 | N73: =Singles!AN267 -> 0 | AI73: 0
B74: 68 | C74: =Singles!AD268 -> 0 | D74: =Singles!AE268 -> TBC | E74: =Singles!AF268 -> TBC | F74: =Singles!AG268 -> TBC | G74: =Singles!AH268 -> TBC | H74: =Singles!AI268 -> TBC | I74: =Singles!AJ268 -> TBC | J74: =Singles!AK268 -> TBC | L74: =Singles!AL268 -> 0 | M74: =Singles!AM268 -> 0 | N74: =Singles!AN268 -> 0 | AI74: 0
B75: 69 | C75: =Singles!AD269 -> 0 | D75: =Singles!AE269 -> TBC | E75: =Singles!AF269 -> TBC | F75: =Singles!AG269 -> TBC | G75: =Singles!AH269 -> TBC | H75: =Singles!AI269 -> TBC | I75: =Singles!AJ269 -> TBC | J75: =Singles!AK269 -> TBC | L75: =Singles!AL269 -> 0 | M75: =Singles!AM269 -> 0 | N75: =Singles!AN269 -> 0 | AI75: 0
B76: 70 | C76: =Singles!AD270 -> 0 | D76: =Singles!AE270 -> TBC | E76: =Singles!AF270 -> TBC | F76: =Singles!AG270 -> TBC | G76: =Singles!AH270 -> TBC | H76: =Singles!AI270 -> TBC | I76: =Singles!AJ270 -> TBC | J76: =Singles!AK270 -> TBC | L76: =Singles!AL270 -> 0 | M76: =Singles!AM270 -> 0 | N76: =Singles!AN270 -> 0 | AI76: 0
B77: 71 | C77: =Singles!AD271 -> 0 | D77: =Singles!AE271 -> TBC | E77: =Singles!AF271 -> TBC | F77: =Singles!AG271 -> TBC | G77: =Singles!AH271 -> TBC | H77: =Singles!AI271 -> TBC | I77: =Singles!AJ271 -> TBC | J77: =Singles!AK271 -> TBC | L77: =Singles!AL271 -> 0 | M77: =Singles!AM271 -> 0 | N77: =Singles!AN271 -> 0 | AI77: 0
B78: 72 | C78: =Singles!AD272 -> 0 | D78: =Singles!AE272 -> TBC | E78: =Singles!AF272 -> TBC | F78: =Singles!AG272 -> TBC | G78: =Singles!AH272 -> TBC | H78: =Singles!AI272 -> TBC | I78: =Singles!AJ272 -> TBC | J78: =Singles!AK272 -> TBC | L78: =Singles!AL272 -> 0 | M78: =Singles!AM272 -> 0 | N78: =Singles!AN272 -> 0 | AI78: 0
B79: 73 | C79: =Singles!AD273 -> 0 | D79: =Singles!AE273 -> TBC | E79: =Singles!AF273 -> TBC | F79: =Singles!AG273 -> TBC | G79: =Singles!AH273 -> TBC | H79: =Singles!AI273 -> TBC | I79: =Singles!AJ273 -> TBC | J79: =Singles!AK273 -> TBC | L79: =Singles!AL273 -> 0 | M79: =Singles!AM273 -> 0 | N79: =Singles!AN273 -> 0 | AI79: 0
B80: 74 | C80: =Singles!AD274 -> 0 | D80: =Singles!AE274 -> TBC | E80: =Singles!AF274 -> TBC | F80: =Singles!AG274 -> TBC | G80: =Singles!AH274 -> TBC | H80: =Singles!AI274 -> TBC | I80: =Singles!AJ274 -> TBC | J80: =Singles!AK274 -> TBC | L80: =Singles!AL274 -> 0 | M80: =Singles!AM274 -> 0 | N80: =Singles!AN274 -> 0 | AI80: 0
B81: 75 | C81: =Singles!AD275 -> 0 | D81: =Singles!AE275 -> TBC | E81: =Singles!AF275 -> TBC | F81: =Singles!AG275 -> TBC | G81: =Singles!AH275 -> TBC | H81: =Singles!AI275 -> TBC | I81: =Singles!AJ275 -> TBC | J81: =Singles!AK275 -> TBC | L81: =Singles!AL275 -> 0 | M81: =Singles!AM275 -> 0 | N81: =Singles!AN275 -> 0 | AI81: 0
A82: =$D$7 -> 0

Sheet RIF (hidden)
A1: =$D$7 -> 0
A2: 0 | B2: Female Intermediate Recurve | E2: Host Club | K2: =$D$7 -> 0 | L2: Scores | O2: 0 | AI2: =AI7 -> 0
E3: =Entries!K6 -> DCU IV | F3: =Entries!K7 -> UCD/ITC IV | G3: =Entries!K8 -> DkIT IV | I3: =Entries!K9 -> NUIM/GMIT IV | J3: =Entries!K10 -> NUIG IV | L3: Total | M3: Lowest | N3: League
B5: 0 | L5: 0
C6: Name | D6: College | E6: =Entries!K6 -> DCU IV | F6: =Entries!K7 -> UCD/ITC IV | G6: =Entries!K8 -> DkIT IV | I6: =Entries!K9 -> NUIM/GMIT IV | J6: =Entries!K10 -> NUIG IV | L6: Total | M6: Lowest | N6: League total
B7: 1 | C7: =Singles!AR201 -> 0 | D7: =Singles!AS201 -> 0 | E7: =Singles!AT201 -> 0 | F7: =Singles!AU201 -> TBC | G7: =Singles!AV201 -> TBC | H7: =Singles!AW201 -> TBC | I7: =Singles!AX201 -> TBC | J7: =Singles!AY201 -> TBC | L7: =Singles!AZ201 -> 0 | M7: =Singles!BA201 -> 0 | N7: =Singles!BB201 -> 0 | AI7: =C7 -> 0
B8: 2 | C8: =Singles!AR202 -> 0 | D8: =Singles!AS202 -> TBC | E8: =Singles!AT202 -> TBC | F8: =Singles!AU202 -> TBC | G8: =Singles!AV202 -> TBC | H8: =Singles!AW202 -> TBC | I8: =Singles!AX202 -> TBC | J8: =Singles!AY202 -> TBC | L8: =Singles!AZ202 -> 0 | M8: =Singles!BA202 -> 0 | N8: =Singles!BB202 -> 0 | AI8: 0
B9: 3 | C9: =Singles!AR203 -> 0 | D9: =Singles!AS203 -> TBC | E9: =Singles!AT203 -> TBC | F9: =Singles!AU203 -> TBC | G9: =Singles!AV203 -> TBC | H9: =Singles!AW203 -> TBC | I9: =Singles!AX203 -> TBC | J9: =Singles!AY203 -> TBC | L9: =Singles!AZ203 -> 0 | M9: =Singles!BA203 -> 0 | N9: =Singles!BB203 -> 0 | AI9: 0
B10: 4 | C10: =Singles!AR204 -> 0 | D10: =Singles!AS204 -> TBC | E10: =Singles!AT204 -> TBC | F10: =Singles!AU204 -> TBC | G10: =Singles!AV204 -> TBC | H10: =Singles!AW204 -> TBC | I10: =Singles!AX204 -> TBC | J10: =Singles!AY204 -> TBC | L10: =Singles!AZ204 -> 0 | M10: =Singles!BA204 -> 0 | N10: =Singles!BB204 -> 0 | AI10: 0
B11: 5 | C11: =Singles!AR205 -> 0 | D11: =Singles!AS205 -> TBC | E11: =Singles!AT205 -> TBC | F11: =Singles!AU205 -> TBC | G11: =Singles!AV205 -> TBC | H11: =Singles!AW205 -> TBC | I11: =Singles!AX205 -> TBC | J11: =Singles!AY205 -> TBC | L11: =Singles!AZ205 -> 0 | M11: =Singles!BA205 -> 0 | N11: =Singles!BB205 -> 0 | AI11: 0
B12: 6 | C12: =Singles!AR206 -> 0 | D12: =Singles!AS206 -> TBC | E12: =Singles!AT206 -> TBC | F12: =Singles!AU206 -> TBC | G12: =Singles!AV206 -> TBC | H12: =Singles!AW206 -> TBC | I12: =Singles!AX206 -> TBC | J12: =Singles!AY206 -> TBC | L12: =Singles!AZ206 -> 0 | M12: =Singles!BA206 -> 0 | N12: =Singles!BB206 -> 0 | AI12: 0
B13: 7 | C13: =Singles!AR208 -> 0 | D13: =Singles!AS208 -> TBC | E13: =Singles!AT208 -> TBC | F13: =Singles!AU208 -> TBC | G13: =Singles!AV208 -> TBC | H13: =Singles!AW208 -> TBC | I13: =Singles!AX208 -> TBC | J13: =Singles!AY208 -> TBC | L13: =Singles!AZ208 -> 0 | M13: =Singles!BA208 -> 0 | N13: =Singles!BB208 -> 0 | AI13: 0
B14: 8 | C14: =Singles!AR209 -> 0 | D14: =Singles!AS209 -> TBC | E14: =Singles!AT209 -> TBC | F14: =Singles!AU209 -> TBC | G14: =Singles!AV209 -> TBC | H14: =Singles!AW209 -> TBC | I14: =Singles!AX209 -> TBC | J14: =Singles!AY209 -> TBC | L14: =Singles!AZ209 -> 0 | M14: =Singles!BA209 -> 0 | N14: =Singles!BB209 -> 0 | AI14: 0
B15: 9 | C15: =Singles!AR207 -> 0 | D15: =Singles!AS207 -> TBC | E15: =Singles!AT207 -> TBC | F15: =Singles!AU207 -> TBC | G15: =Singles!AV207 -> TBC | H15: =Singles!AW207 -> TBC | I15: =Singles!AX207 -> TBC | J15: =Singles!AY207 -> TBC | L15: =Singles!AZ207 -> 0 | M15: =Singles!BA207 -> 0 | N15: =Singles!BB207 -> 0 | AI15: 0
B16: 10 | C16: =Singles!AR210 -> 0 | D16: =Singles!AS210 -> TBC | E16: =Singles!AT210 -> TBC | F16: =Singles!AU210 -> TBC | G16: =Singles!AV210 -> TBC | H16: =Singles!AW210 -> TBC | I16: =Singles!AX210 -> TBC | J16: =Singles!AY210 -> TBC | L16: =Singles!AZ210 -> 0 | M16: =Singles!BA210 -> 0 | N16: =Singles!BB210 -> 0 | AI16: 0
B17: 11 | C17: =Singles!AR211 -> 0 | D17: =Singles!AS211 -> TBC | E17: =Singles!AT211 -> TBC | F17: =Singles!AU211 -> TBC | G17: =Singles!AV211 -> TBC | H17: =Singles!AW211 -> TBC | I17: =Singles!AX211 -> TBC | J17: =Singles!AY211 -> TBC | L17: =Singles!AZ211 -> 0 | M17: =Singles!BA211 -> 0 | N17: =Singles!BB211 -> 0 | AI17: 0
B18: 12 | C18: =Singles!AR212 -> 0 | D18: =Singles!AS212 -> TBC | E18: =Singles!AT212 -> TBC | F18: =Singles!AU212 -> TBC | G18: =Singles!AV212 -> TBC | H18: =Singles!AW212 -> TBC | I18: =Singles!AX212 -> TBC | J18: =Singles!AY212 -> TBC | L18: =Singles!AZ212 -> 0 | M18: =Singles!BA212 -> 0 | N18: =Singles!BB212 -> 0 | AI18: 0
B19: 13 | C19: =Singles!AR213 -> 0 | D19: =Singles!AS213 -> TBC | E19: =Singles!AT213 -> TBC | F19: =Singles!AU213 -> TBC | G19: =Singles!AV213 -> TBC | H19: =Singles!AW213 -> TBC | I19: =Singles!AX213 -> TBC | J19: =Singles!AY213 -> TBC | L19: =Singles!AZ213 -> 0 | M19: =Singles!BA213 -> 0 | N19: =Singles!BB213 -> 0 | AI19: 0
B20: 14 | C20: =Singles!AR214 -> 0 | D20: =Singles!AS214 -> TBC | E20: =Singles!AT214 -> TBC | F20: =Singles!AU214 -> TBC | G20: =Singles!AV214 -> TBC | H20: =Singles!AW214 -> TBC | I20: =Singles!AX214 -> TBC | J20: =Singles!AY214 -> TBC | L20: =Singles!AZ214 -> 0 | M20: =Singles!BA214 -> 0 | N20: =Singles!BB214 -> 0 | AI20: 0
B21: 15 | C21: =Singles!AR215 -> 0 | D21: =Singles!AS215 -> TBC | E21: =Singles!AT215 -> TBC | F21: =Singles!AU215 -> TBC | G21: =Singles!AV215 -> TBC | H21: =Singles!AW215 -> TBC | I21: =Singles!AX215 -> TBC | J21: =Singles!AY215 -> TBC | L21: =Singles!AZ215 -> 0 | M21: =Singles!BA215 -> 0 | N21: =Singles!BB215 -> 0 | AI21: 0
B22: 16 | C22: =Singles!AR216 -> 0 | D22: =Singles!AS216 -> TBC | E22: =Singles!AT216 -> TBC | F22: =Singles!AU216 -> TBC | G22: =Singles!AV216 -> TBC | H22: =Singles!AW216 -> TBC | I22: =Singles!AX216 -> TBC | J22: =Singles!AY216 -> TBC | L22: =Singles!AZ216 -> 0 | M22: =Singles!BA216 -> 0 | N22: =Singles!BB216 -> 0 | AI22: 0
B23: 17 | C23: =Singles!AR217 -> 0 | D23: =Singles!AS217 -> TBC | E23: =Singles!AT217 -> TBC | F23: =Singles!AU217 -> TBC | G23: =Singles!AV217 -> TBC | H23: =Singles!AW217 -> TBC | I23: =Singles!AX217 -> TBC | J23: =Singles!AY217 -> TBC | L23: =Singles!AZ217 -> 0 | M23: =Singles!BA217 -> 0 | N23: =Singles!BB217 -> 0 | AI23: 0
B24: 18 | C24: =Singles!AR218 -> 0 | D24: =Singles!AS218 -> TBC | E24: =Singles!AT218 -> TBC | F24: =Singles!AU218 -> TBC | G24: =Singles!AV218 -> TBC | H24: =Singles!AW218 -> TBC | I24: =Singles!AX218 -> TBC | J24: =Singles!AY218 -> TBC | L24: =Singles!AZ218 -> 0 | M24: =Singles!BA218 -> 0 | N24: =Singles!BB218 -> 0 | AI24: 0
B25: 19 | C25: =Singles!AR219 -> 0 | D25: =Singles!AS219 -> TBC | E25: =Singles!AT219 -> TBC | F25: =Singles!AU219 -> TBC | G25: =Singles!AV219 -> TBC | H25: =Singles!AW219 -> TBC | I25: =Singles!AX219 -> TBC | J25: =Singles!AY219 -> TBC | L25: =Singles!AZ219 -> 0 | M25: =Singles!BA219 -> 0 | N25: =Singles!BB219 -> 0 | AI25: 0
B26: 20 | C26: =Singles!AR220 -> 0 | D26: =Singles!AS220 -> TBC | E26: =Singles!AT220 -> TBC | F26: =Singles!AU220 -> TBC | G26: =Singles!AV220 -> TBC | H26: =Singles!AW220 -> TBC | I26: =Singles!AX220 -> TBC | J26: =Singles!AY220 -> TBC | L26: =Singles!AZ220 -> 0 | M26: =Singles!BA220 -> 0 | N26: =Singles!BB220 -> 0 | AI26: 0
B27: 21 | C27: =Singles!AR221 -> 0 | D27: =Singles!AS221 -> TBC | E27: =Singles!AT221 -> TBC | F27: =Singles!AU221 -> TBC | G27: =Singles!AV221 -> TBC | H27: =Singles!AW221 -> TBC | I27: =Singles!AX221 -> TBC | J27: =Singles!AY221 -> TBC | L27: =Singles!AZ221 -> 0 | M27: =Singles!BA221 -> 0 | N27: =Singles!BB221 -> 0 | AI27: 0
B28: 22 | C28: =Singles!AR222 -> 0 | D28: =Singles!AS222 -> TBC | E28: =Singles!AT222 -> TBC | F28: =Singles!AU222 -> TBC | G28: =Singles!AV222 -> TBC | H28: =Singles!AW222 -> TBC | I28: =Singles!AX222 -> TBC | J28: =Singles!AY222 -> TBC | L28: =Singles!AZ222 -> 0 | M28: =Singles!BA222 -> 0 | N28: =Singles!BB222 -> 0 | AI28: 0
B29: 23 | C29: =Singles!AR223 -> 0 | D29: =Singles!AS223 -> TBC | E29: =Singles!AT223 -> TBC | F29: =Singles!AU223 -> TBC | G29: =Singles!AV223 -> TBC | H29: =Singles!AW223 -> TBC | I29: =Singles!AX223 -> TBC | J29: =Singles!AY223 -> TBC | L29: =Singles!AZ223 -> 0 | M29: =Singles!BA223 -> 0 | N29: =Singles!BB223 -> 0 | AI29: 0
B30: 24 | C30: =Singles!AR224 -> 0 | D30: =Singles!AS224 -> TBC | E30: =Singles!AT224 -> TBC | F30: =Singles!AU224 -> TBC | G30: =Singles!AV224 -> TBC | H30: =Singles!AW224 -> TBC | I30: =Singles!AX224 -> TBC | J30: =Singles!AY224 -> TBC | L30: =Singles!AZ224 -> 0 | M30: =Singles!BA224 -> 0 | N30: =Singles!BB224 -> 0 | AI30: 0
B31: 25 | C31: =Singles!AR225 -> 0 | D31: =Singles!AS225 -> TBC | E31: =Singles!AT225 -> TBC | F31: =Singles!AU225 -> TBC | G31: =Singles!AV225 -> TBC | H31: =Singles!AW225 -> TBC | I31: =Singles!AX225 -> TBC | J31: =Singles!AY225 -> TBC | L31: =Singles!AZ225 -> 0 | M31: =Singles!BA225 -> 0 | N31: =Singles!BB225 -> 0 | AI31: 0
B32: 26 | C32: =Singles!AR226 -> 0 | D32: =Singles!AS226 -> TBC | E32: =Singles!AT226 -> TBC | F32: =Singles!AU226 -> TBC | G32: =Singles!AV226 -> TBC | H32: =Singles!AW226 -> TBC | I32: =Singles!AX226 -> TBC | J32: =Singles!AY226 -> TBC | L32: =Singles!AZ226 -> 0 | M32: =Singles!BA226 -> 0 | N32: =Singles!BB226 -> 0 | AI32: 0
B33: 27 | C33: =Singles!AR227 -> 0 | D33: =Singles!AS227 -> TBC | E33: =Singles!AT227 -> TBC | F33: =Singles!AU227 -> TBC | G33: =Singles!AV227 -> TBC | H33: =Singles!AW227 -> TBC | I33: =Singles!AX227 -> TBC | J33: =Singles!AY227 -> TBC | L33: =Singles!AZ227 -> 0 | M33: =Singles!BA227 -> 0 | N33: =Singles!BB227 -> 0 | AI33: 0
B34: 28 | C34: =Singles!AR228 -> 0 | D34: =Singles!AS228 -> TBC | E34: =Singles!AT228 -> TBC | F34: =Singles!AU228 -> TBC | G34: =Singles!AV228 -> TBC | H34: =Singles!AW228 -> TBC | I34: =Singles!AX228 -> TBC | J34: =Singles!AY228 -> TBC | L34: =Singles!AZ228 -> 0 | M34: =Singles!BA228 -> 0 | N34: =Singles!BB228 -> 0 | AI34: 0
B35: 29 | C35: =Singles!AR229 -> 0 | D35: =Singles!AS229 -> TBC | E35: =Singles!AT229 -> TBC | F35: =Singles!AU229 -> TBC | G35: =Singles!AV229 -> TBC | H35: =Singles!AW229 -> TBC | I35: =Singles!AX229 -> TBC | J35: =Singles!AY229 -> TBC | L35: =Singles!AZ229 -> 0 | M35: =Singles!BA229 -> 0 | N35: =Singles!BB229 -> 0 | AI35: 0
B36: 30 | C36: =Singles!AR230 -> 0 | D36: =Singles!AS230 -> TBC | E36: =Singles!AT230 -> TBC | F36: =Singles!AU230 -> TBC | G36: =Singles!AV230 -> TBC | H36: =Singles!AW230 -> TBC | I36: =Singles!AX230 -> TBC | J36: =Singles!AY230 -> TBC | L36: =Singles!AZ230 -> 0 | M36: =Singles!BA230 -> 0 | N36: =Singles!BB230 -> 0 | AI36: 0
B37: 31 | C37: =Singles!AR231 -> 0 | D37: =Singles!AS231 -> TBC | E37: =Singles!AT231 -> TBC | F37: =Singles!AU231 -> TBC | G37: =Singles!AV231 -> TBC | H37: =Singles!AW231 -> TBC | I37: =Singles!AX231 -> TBC | J37: =Singles!AY231 -> TBC | L37: =Singles!AZ231 -> 0 | M37: =Singles!BA231 -> 0 | N37: =Singles!BB231 -> 0 | AI37: 0
B38: 32 | C38: =Singles!AR232 -> 0 | D38: =Singles!AS232 -> TBC | E38: =Singles!AT232 -> TBC | F38: =Singles!AU232 -> TBC | G38: =Singles!AV232 -> TBC | H38: =Singles!AW232 -> TBC | I38: =Singles!AX232 -> TBC | J38: =Singles!AY232 -> TBC | L38: =Singles!AZ232 -> 0 | M38: =Singles!BA232 -> 0 | N38: =Singles!BB232 -> 0 | AI38: 0
B39: 33 | C39: =Singles!AR233 -> 0 | D39: =Singles!AS233 -> TBC | E39: =Singles!AT233 -> TBC | F39: =Singles!AU233 -> TBC | G39: =Singles!AV233 -> TBC | H39: =Singles!AW233 -> TBC | I39: =Singles!AX233 -> TBC | J39: =Singles!AY233 -> TBC | L39: =Singles!AZ233 -> 0 | M39: =Singles!BA233 -> 0 | N39: =Singles!BB233 -> 0 | AI39: =C39 -> 0
B40: 34 | C40: =Singles!AR234 -> 0 | D40: =Singles!AS234 -> TBC | E40: =Singles!AT234 -> TBC | F40: =Singles!AU234 -> TBC | G40: =Singles!AV234 -> TBC | H40: =Singles!AW234 -> TBC | I40: =Singles!AX234 -> TBC | J40: =Singles!AY234 -> TBC | L40: =Singles!AZ234 -> 0 | M40: =Singles!BA234 -> 0 | N40: =Singles!BB234 -> 0 | AI40: 0
B41: 35 | C41: =Singles!AR235 -> 0 | D41: =Singles!AS235 -> TBC | E41: =Singles!AT235 -> TBC | F41: =Singles!AU235 -> TBC | G41: =Singles!AV235 -> TBC | H41: =Singles!AW235 -> TBC | I41: =Singles!AX235 -> TBC | J41: =Singles!AY235 -> TBC | L41: =Singles!AZ235 -> 0 | M41: =Singles!BA235 -> 0 | N41: =Singles!BB235 -> 0 | AI41: 0
B42: 36 | C42: =Singles!AR236 -> 0 | D42: =Singles!AS236 -> TBC | E42: =Singles!AT236 -> TBC | F42: =Singles!AU236 -> TBC | G42: =Singles!AV236 -> TBC | H42: =Singles!AW236 -> TBC | I42: =Singles!AX236 -> TBC | J42: =Singles!AY236 -> TBC | L42: =Singles!AZ236 -> 0 | M42: =Singles!BA236 -> 0 | N42: =Singles!BB236 -> 0 | AI42: 0
B43: 37 | C43: =Singles!AR237 -> 0 | D43: =Singles!AS237 -> TBC | E43: =Singles!AT237 -> TBC | F43: =Singles!AU237 -> TBC | G43: =Singles!AV237 -> TBC | H43: =Singles!AW237 -> TBC | I43: =Singles!AX237 -> TBC | J43: =Singles!AY237 -> TBC | L43: =Singles!AZ237 -> 0 | M43: =Singles!BA237 -> 0 | N43: =Singles!BB237 -> 0 | AI43: 0
B44: 38 | C44: =Singles!AR238 -> 0 | D44: =Singles!AS238 -> TBC | E44: =Singles!AT238 -> TBC | F44: =Singles!AU238 -> TBC | G44: =Singles!AV238 -> TBC | H44: =Singles!AW238 -> TBC | I44: =Singles!AX238 -> TBC | J44: =Singles!AY238 -> TBC | L44: =Singles!AZ238 -> 0 | M44: =Singles!BA238 -> 0 | N44: =Singles!BB238 -> 0 | AI44: 0
B45: 39 | C45: =Singles!AR239 -> 0 | D45: =Singles!AS239 -> TBC | E45: =Singles!AT239 -> TBC | F45: =Singles!AU239 -> TBC | G45: =Singles!AV239 -> TBC | H45: =Singles!AW239 -> TBC | I45: =Singles!AX239 -> TBC | J45: =Singles!AY239 -> TBC | L45: =Singles!AZ239 -> 0 | M45: =Singles!BA239 -> 0 | N45: =Singles!BB239 -> 0 | AI45: 0
B46: 40 | C46: =Singles!AR240 -> 0 | D46: =Singles!AS240 -> TBC | E46: =Singles!AT240 -> TBC | F46: =Singles!AU240 -> TBC | G46: =Singles!AV240 -> TBC | H46: =Singles!AW240 -> TBC | I46: =Singles!AX240 -> TBC | J46: =Singles!AY240 -> TBC | L46: =Singles!AZ240 -> 0 | M46: =Singles!BA240 -> 0 | N46: =Singles!BB240 -> 0 | AI46: 0
B47: 41 | C47: =Singles!AR241 -> 0 | D47: =Singles!AS241 -> TBC | E47: =Singles!AT241 -> TBC | F47: =Singles!AU241 -> TBC | G47: =Singles!AV241 -> TBC | H47: =Singles!AW241 -> TBC | I47: =Singles!AX241 -> TBC | J47: =Singles!AY241 -> TBC | L47: =Singles!AZ241 -> 0 | M47: =Singles!BA241 -> 0 | N47: =Singles!BB241 -> 0 | AI47: 0
B48: 42 | C48: =Singles!AR242 -> 0 | D48: =Singles!AS242 -> TBC | E48: =Singles!AT242 -> TBC | F48: =Singles!AU242 -> TBC | G48: =Singles!AV242 -> TBC | H48: =Singles!AW242 -> TBC | I48: =Singles!AX242 -> TBC | J48: =Singles!AY242 -> TBC | L48: =Singles!AZ242 -> 0 | M48: =Singles!BA242 -> 0 | N48: =Singles!BB242 -> 0 | AI48: 0
B49: 43 | C49: =Singles!AR243 -> 0 | D49: =Singles!AS243 -> TBC | E49: =Singles!AT243 -> TBC | F49: =Singles!AU243 -> TBC | G49: =Singles!AV243 -> TBC | H49: =Singles!AW243 -> TBC | I49: =Singles!AX243 -> TBC | J49: =Singles!AY243 -> TBC | L49: =Singles!AZ243 -> 0 | M49: =Singles!BA243 -> 0 | N49: =Singles!BB243 -> 0 | AI49: 0
B50: 44 | C50: =Singles!AR244 -> 0 | D50: =Singles!AS244 -> TBC | E50: =Singles!AT244 -> TBC | F50: =Singles!AU244 -> TBC | G50: =Singles!AV244 -> TBC | H50: =Singles!AW244 -> TBC | I50: =Singles!AX244 -> TBC | J50: =Singles!AY244 -> TBC | L50: =Singles!AZ244 -> 0 | M50: =Singles!BA244 -> 0 | N50: =Singles!BB244 -> 0 | AI50: 0
B51: 45 | C51: =Singles!AR245 -> 0 | D51: =Singles!AS245 -> TBC | E51: =Singles!AT245 -> TBC | F51: =Singles!AU245 -> TBC | G51: =Singles!AV245 -> TBC | H51: =Singles!AW245 -> TBC | I51: =Singles!AX245 -> TBC | J51: =Singles!AY245 -> TBC | L51: =Singles!AZ245 -> 0 | M51: =Singles!BA245 -> 0 | N51: =Singles!BB245 -> 0 | AI51: 0
B52: 46 | C52: =Singles!AR246 -> 0 | D52: =Singles!AS246 -> TBC | E52: =Singles!AT246 -> TBC | F52: =Singles!AU246 -> TBC | G52: =Singles!AV246 -> TBC | H52: =Singles!AW246 -> TBC | I52: =Singles!AX246 -> TBC | J52: =Singles!AY246 -> TBC | L52: =Singles!AZ246 -> 0 | M52: =Singles!BA246 -> 0 | N52: =Singles!BB246 -> 0 | AI52: 0
B53: 47 | C53: =Singles!AR247 -> 0 | D53: =Singles!AS247 -> TBC | E53: =Singles!AT247 -> TBC | F53: =Singles!AU247 -> TBC | G53: =Singles!AV247 -> TBC | H53: =Singles!AW247 -> TBC | I53: =Singles!AX247 -> TBC | J53: =Singles!AY247 -> TBC | L53: =Singles!AZ247 -> 0 | M53: =Singles!BA247 -> 0 | N53: =Singles!BB247 -> 0 | AI53: 0
B54: 48 | C54: =Singles!AR248 -> 0 | D54: =Singles!AS248 -> TBC | E54: =Singles!AT248 -> TBC | F54: =Singles!AU248 -> TBC | G54: =Singles!AV248 -> TBC | H54: =Singles!AW248 -> TBC | I54: =Singles!AX248 -> TBC | J54: =Singles!AY248 -> TBC | L54: =Singles!AZ248 -> 0 | M54: =Singles!BA248 -> 0 | N54: =Singles!BB248 -> 0 | AI54: 0
B55: 49 | C55: =Singles!AR249 -> 0 | D55: =Singles!AS249 -> TBC | E55: =Singles!AT249 -> TBC | F55: =Singles!AU249 -> TBC | G55: =Singles!AV249 -> TBC | H55: =Singles!AW249 -> TBC | I55: =Singles!AX249 -> TBC | J55: =Singles!AY249 -> TBC | L55: =Singles!AZ249 -> 0 | M55: =Singles!BA249 -> 0 | N55: =Singles!BB249 -> 0 | AI55: 0
B56: 50 | C56: =Singles!AR250 -> 0 | D56: =Singles!AS250 -> TBC | E56: =Singles!AT250 -> TBC | F56: =Singles!AU250 -> TBC | G56: =Singles!AV250 -> TBC | H56: =Singles!AW250 -> TBC | I56: =Singles!AX250 -> TBC | J56: =Singles!AY250 -> TBC | L56: =Singles!AZ250 -> 0 | M56: =Singles!BA250 -> 0 | N56: =Singles!BB250 -> 0 | AI56: 0
B57: 51 | C57: =Singles!AR251 -> 0 | D57: =Singles!AS251 -> TBC | E57: =Singles!AT251 -> TBC | F57: =Singles!AU251 -> TBC | G57: =Singles!AV251 -> TBC | H57: =Singles!AW251 -> TBC | I57: =Singles!AX251 -> TBC | J57: =Singles!AY251 -> TBC | L57: =Singles!AZ251 -> 0 | M57: =Singles!BA251 -> 0 | N57: =Singles!BB251 -> 0 | AI57: 0
B58: 52 | C58: =Singles!AR252 -> 0 | D58: =Singles!AS252 -> TBC | E58: =Singles!AT252 -> TBC | F58: =Singles!AU252 -> TBC | G58: =Singles!AV252 -> TBC | H58: =Singles!AW252 -> TBC | I58: =Singles!AX252 -> TBC | J58: =Singles!AY252 -> TBC | L58: =Singles!AZ252 -> 0 | M58: =Singles!BA252 -> 0 | N58: =Singles!BB252 -> 0 | AI58: 0
B59: 53 | C59: =Singles!AR253 -> 0 | D59: =Singles!AS253 -> TBC | E59: =Singles!AT253 -> TBC | F59: =Singles!AU253 -> TBC | G59: =Singles!AV253 -> TBC | H59: =Singles!AW253 -> TBC | I59: =Singles!AX253 -> TBC | J59: =Singles!AY253 -> TBC | L59: =Singles!AZ253 -> 0 | M59: =Singles!BA253 -> 0 | N59: =Singles!BB253 -> 0 | AI59: 0
B60: 54 | C60: =Singles!AR254 -> 0 | D60: =Singles!AS254 -> TBC | E60: =Singles!AT254 -> TBC | F60: =Singles!AU254 -> TBC | G60: =Singles!AV254 -> TBC | H60: =Singles!AW254 -> TBC | I60: =Singles!AX254 -> TBC | J60: =Singles!AY254 -> TBC | L60: =Singles!AZ254 -> 0 | M60: =Singles!BA254 -> 0 | N60: =Singles!BB254 -> 0 | AI60: 0
B61: 55 | C61: =Singles!AR255 -> 0 | D61: =Singles!AS255 -> TBC | E61: =Singles!AT255 -> TBC | F61: =Singles!AU255 -> TBC | G61: =Singles!AV255 -> TBC | H61: =Singles!AW255 -> TBC | I61: =Singles!AX255 -> TBC | J61: =Singles!AY255 -> TBC | L61: =Singles!AZ255 -> 0 | M61: =Singles!BA255 -> 0 | N61: =Singles!BB255 -> 0 | AI61: 0
B62: 56 | C62: =Singles!AR256 -> 0 | D62: =Singles!AS256 -> TBC | E62: =Singles!AT256 -> TBC | F62: =Singles!AU256 -> TBC | G62: =Singles!AV256 -> TBC | H62: =Singles!AW256 -> TBC | I62: =Singles!AX256 -> TBC | J62: =Singles!AY256 -> TBC | L62: =Singles!AZ256 -> 0 | M62: =Singles!BA256 -> 0 | N62: =Singles!BB256 -> 0 | AI62: 0
B63: 57 | C63: =Singles!AR257 -> 0 | D63: =Singles!AS257 -> TBC | E63: =Singles!AT257 -> TBC | F63: =Singles!AU257 -> TBC | G63: =Singles!AV257 -> TBC | H63: =Singles!AW257 -> TBC | I63: =Singles!AX257 -> TBC | J63: =Singles!AY257 -> TBC | L63: =Singles!AZ257 -> 0 | M63: =Singles!BA257 -> 0 | N63: =Singles!BB257 -> 0 | AI63: 0
B64: 58 | C64: =Singles!AR258 -> 0 | D64: =Singles!AS258 -> TBC | E64: =Singles!AT258 -> TBC | F64: =Singles!AU258 -> TBC | G64: =Singles!AV258 -> TBC | H64: =Singles!AW258 -> TBC | I64: =Singles!AX258 -> TBC | J64: =Singles!AY258 -> TBC | L64: =Singles!AZ258 -> 0 | M64: =Singles!BA258 -> 0 | N64: =Singles!BB258 -> 0 | AI64: 0
B65: 59 | C65: =Singles!AR259 -> 0 | D65: =Singles!AS259 -> TBC | E65: =Singles!AT259 -> TBC | F65: =Singles!AU259 -> TBC | G65: =Singles!AV259 -> TBC | H65: =Singles!AW259 -> TBC | I65: =Singles!AX259 -> TBC | J65: =Singles!AY259 -> TBC | L65: =Singles!AZ259 -> 0 | M65: =Singles!BA259 -> 0 | N65: =Singles!BB259 -> 0 | AI65: 0
B66: 60 | C66: =Singles!AR260 -> 0 | D66: =Singles!AS260 -> TBC | E66: =Singles!AT260 -> TBC | F66: =Singles!AU260 -> TBC | G66: =Singles!AV260 -> TBC | H66: =Singles!AW260 -> TBC | I66: =Singles!AX260 -> TBC | J66: =Singles!AY260 -> TBC | L66: =Singles!AZ260 -> 0 | M66: =Singles!BA260 -> 0 | N66: =Singles!BB260 -> 0 | AI66: 0
B67: 61 | C67: =Singles!AR261 -> 0 | D67: =Singles!AS261 -> TBC | E67: =Singles!AT261 -> TBC | F67: =Singles!AU261 -> TBC | G67: =Singles!AV261 -> TBC | H67: =Singles!AW261 -> TBC | I67: =Singles!AX261 -> TBC | J67: =Singles!AY261 -> TBC | L67: =Singles!AZ261 -> 0 | M67: =Singles!BA261 -> 0 | N67: =Singles!BB261 -> 0 | AI67: 0
B68: 62 | C68: =Singles!AR262 -> 0 | D68: =Singles!AS262 -> TBC | E68: =Singles!AT262 -> TBC | F68: =Singles!AU262 -> TBC | G68: =Singles!AV262 -> TBC | H68: =Singles!AW262 -> TBC | I68: =Singles!AX262 -> TBC | J68: =Singles!AY262 -> TBC | L68: =Singles!AZ262 -> 0 | M68: =Singles!BA262 -> 0 | N68: =Singles!BB262 -> 0 | AI68: 0
B69: 63 | C69: =Singles!AR263 -> 0 | D69: =Singles!AS263 -> TBC | E69: =Singles!AT263 -> TBC | F69: =Singles!AU263 -> TBC | G69: =Singles!AV263 -> TBC | H69: =Singles!AW263 -> TBC | I69: =Singles!AX263 -> TBC | J69: =Singles!AY263 -> TBC | L69: =Singles!AZ263 -> 0 | M69: =Singles!BA263 -> 0 | N69: =Singles!BB263 -> 0 | AI69: 0
B70: 64 | C70: =Singles!AR264 -> 0 | D70: =Singles!AS264 -> TBC | E70: =Singles!AT264 -> TBC | F70: =Singles!AU264 -> TBC | G70: =Singles!AV264 -> TBC | H70: =Singles!AW264 -> TBC | I70: =Singles!AX264 -> TBC | J70: =Singles!AY264 -> TBC | L70: =Singles!AZ264 -> 0 | M70: =Singles!BA264 -> 0 | N70: =Singles!BB264 -> 0 | AI70: 0
B71: 65 | C71: =Singles!AR265 -> 0 | D71: =Singles!AS265 -> TBC | E71: =Singles!AT265 -> TBC | F71: =Singles!AU265 -> TBC | G71: =Singles!AV265 -> TBC | H71: =Singles!AW265 -> TBC | I71: =Singles!AX265 -> TBC | J71: =Singles!AY265 -> TBC | L71: =Singles!AZ265 -> 0 | M71: =Singles!BA265 -> 0 | N71: =Singles!BB265 -> 0 | AI71: 0
B72: 66 | C72: =Singles!AR266 -> 0 | D72: =Singles!AS266 -> TBC | E72: =Singles!AT266 -> TBC | F72: =Singles!AU266 -> TBC | G72: =Singles!AV266 -> TBC | H72: =Singles!AW266 -> TBC | I72: =Singles!AX266 -> TBC | J72: =Singles!AY266 -> TBC | L72: =Singles!AZ266 -> 0 | M72: =Singles!BA266 -> 0 | N72: =Singles!BB266 -> 0 | AI72: 0
B73: 67 | C73: =Singles!AR267 -> 0 | D73: =Singles!AS267 -> TBC | E73: =Singles!AT267 -> TBC | F73: =Singles!AU267 -> TBC | G73: =Singles!AV267 -> TBC | H73: =Singles!AW267 -> TBC | I73: =Singles!AX267 -> TBC | J73: =Singles!AY267 -> TBC | L73: =Singles!AZ267 -> 0 | M73: =Singles!BA267 -> 0 | N73: =Singles!BB267 -> 0 | AI73: 0
B74: 68 | C74: =Singles!AR268 -> 0 | D74: =Singles!AS268 -> TBC | E74: =Singles!AT268 -> TBC | F74: =Singles!AU268 -> TBC | G74: =Singles!AV268 -> TBC | H74: =Singles!AW268 -> TBC | I74: =Singles!AX268 -> TBC | J74: =Singles!AY268 -> TBC | L74: =Singles!AZ268 -> 0 | M74: =Singles!BA268 -> 0 | N74: =Singles!BB268 -> 0 | AI74: 0
B75: 69 | C75: =Singles!AR269 -> 0 | D75: =Singles!AS269 -> TBC | E75: =Singles!AT269 -> TBC | F75: =Singles!AU269 -> TBC | G75: =Singles!AV269 -> TBC | H75: =Singles!AW269 -> TBC | I75: =Singles!AX269 -> TBC | J75: =Singles!AY269 -> TBC | L75: =Singles!AZ269 -> 0 | M75: =Singles!BA269 -> 0 | N75: =Singles!BB269 -> 0 | AI75: 0
B76: 70 | C76: =Singles!AR270 -> 0 | D76: =Singles!AS270 -> TBC | E76: =Singles!AT270 -> TBC | F76: =Singles!AU270 -> TBC | G76: =Singles!AV270 -> TBC | H76: =Singles!AW270 -> TBC | I76: =Singles!AX270 -> TBC | J76: =Singles!AY270 -> TBC | L76: =Singles!AZ270 -> 0 | M76: =Singles!BA270 -> 0 | N76: =Singles!BB270 -> 0 | AI76: 0
B77: 71 | C77: =Singles!AR271 -> 0 | D77: =Singles!AS271 -> TBC | E77: =Singles!AT271 -> TBC | F77: =Singles!AU271 -> TBC | G77: =Singles!AV271 -> TBC | H77: =Singles!AW271 -> TBC | I77: =Singles!AX271 -> TBC | J77: =Singles!AY271 -> TBC | L77: =Singles!AZ271 -> 0 | M77: =Singles!BA271 -> 0 | N77: =Singles!BB271 -> 0 | AI77: 0
B78: 72 | C78: =Singles!AR272 -> 0 | D78: =Singles!AS272 -> TBC | E78: =Singles!AT272 -> TBC | F78: =Singles!AU272 -> TBC | G78: =Singles!AV272 -> TBC | H78: =Singles!AW272 -> TBC | I78: =Singles!AX272 -> TBC | J78: =Singles!AY272 -> TBC | L78: =Singles!AZ272 -> 0 | M78: =Singles!BA272 -> 0 | N78: =Singles!BB272 -> 0 | AI78: 0
B79: 73 | C79: =Singles!AR273 -> 0 | D79: =Singles!AS273 -> TBC | E79: =Singles!AT273 -> TBC | F79: =Singles!AU273 -> TBC | G79: =Singles!AV273 -> TBC | H79: =Singles!AW273 -> TBC | I79: =Singles!AX273 -> TBC | J79: =Singles!AY273 -> TBC | L79: =Singles!AZ273 -> 0 | M79: =Singles!BA273 -> 0 | N79: =Singles!BB273 -> 0 | AI79: 0
B80: 74 | C80: =Singles!AR274 -> 0 | D80: =Singles!AS274 -> TBC | E80: =Singles!AT274 -> TBC | F80: =Singles!AU274 -> TBC | G80: =Singles!AV274 -> TBC | H80: =Singles!AW274 -> TBC | I80: =Singles!AX274 -> TBC | J80: =Singles!AY274 -> TBC | L80: =Singles!AZ274 -> 0 | M80: =Singles!BA274 -> 0 | N80: =Singles!BB274 -> 0 | AI80: 0
B81: 75 | C81: =Singles!AR275 -> 0 | D81: =Singles!AS275 -> TBC | E81: =Singles!AT275 -> TBC | F81: =Singles!AU275 -> TBC | G81: =Singles!AV275 -> TBC | H81: =Singles!AW275 -> TBC | I81: =Singles!AX275 -> TBC | J81: =Singles!AY275 -> TBC | L81: =Singles!AZ275 -> 0 | M81: =Singles!BA275 -> 0 | N81: =Singles!BB275 -> 0 | AI81: 0
A82: =$D$7 -> 0

Sheet RAM
A1: =$D$7 -> NUIG
A2: =$D$7 -> NUIG | B2: Male Advanced Recurve | E2: Host Club | K2: =$D$7 -> NUIG | L2: Scores | O2: NUIG | AI2: =AI7 -> Darren Wallace
E3: =Entries!K6 -> DCU IV | F3: UCD/ITC | G3: =Entries!K8 -> DkIT IV | H3: NUIM/GMIT | I3: =Entries!K10 -> NUIG IV | J3: =Entries!K11 -> UL IV | L3: Total | M3: Lowest | N3: League
B5: NUIG | L5: NUIG
C6: Name | D6: College | E6: DCU IV | F6: UCD/ITC IV | G6: DkIT IV | H6: NUIM/GMIT IV | I6: NUIG IV | J6: UL IV | L6: Total | M6: Lowest | N6: League total
B7: 1 | C7: =Singles!BF201 -> Darren Wallace | D7: =Singles!BG201 -> NUIG | E7: =Singles!BH201 -> 564 | F7: =Singles!BI201 -> 560 | G7: =Singles!BJ201 -> 567 | H7: =Singles!BK201 -> 560 | I7: =Singles!BL201 -> 575 | J7: =Singles!BM201 -> 565 | L7: =Singles!BN8 -> 3391 | M7: =Singles!BO8 -> 560 | N7: =Singles!BP8 -> 2831.057557 | AI7: =C7 -> Darren Wallace
B8: 2 | C8: =Singles!BF202 -> Adam McSweeney | D8: =Singles!BG202 -> DCU | E8: =Singles!BH202 -> 547 | F8: =Singles!BI202 -> 547 | G8: =Singles!BJ202 -> 544 | H8: =Singles!BK202 -> 538 | I8: =Singles!BL202 -> 530 | J8: =Singles!BM202 -> 554 | L8: =Singles!BN9 -> 3260 | M8: =Singles!BO9 -> 530 | N8: =Singles!BP9 -> 2730.054755 | AI8: Adam McSweeney
B9: 3 | C9: =Singles!BF203 -> Brendan Forde | D9: =Singles!BG203 -> DkIT | E9: =Singles!BH203 -> 503 | F9: =Singles!BI203 -> 542 | G9: =Singles!BJ203 -> 496 | H9: =Singles!BK203 -> 513 | I9: =Singles!BL203 -> 556 | J9: =Singles!BM203 -> 531 | L9: =Singles!BN10 -> 3141 | M9: =Singles!BO10 -> 496 | N9: =Singles!BP10 -> 2645.055654 | AI9: Brendan Forde
B10: 4 | C10: =Singles!BF214 -> Ryan Byrne | D10: =Singles!BG214 -> DIT | E10: =Singles!BH214 -> 559 | F10: =Singles!BI214 -> 480 | G10: =Singles!BJ214 -> 527 | H10: =Singles!BK214 -> 530 | I10: =Singles!BL214 -> 0 | J10: =Singles!BM214 -> 530 | L10: =Singles!BN21 -> 2626 | M10: =Singles!BO21 -> 0 | N10: =Singles!BP21 -> 2626.055953 | AI10: Ryan Byrne
B11: 5 | C11: =Singles!BF205 -> Sean Curtin | D11: =Singles!BG205 -> UL | E11: =Singles!BH205 -> 541 | F11: =Singles!BI205 -> 540 | G11: =Singles!BJ205 -> 494 | H11: =Singles!BK205 -> 529 | I11: =Singles!BL205 -> 491 | J11: =Singles!BM205 -> 499 | L11: =Singles!BN12 -> 3094 | M11: =Singles!BO12 -> 491 | N11: =Singles!BP12 -> 2603.054154 | AI11: Sean Curtin
B12: 6 | C12: =Singles!BF204 -> Sean Flavin | D12: =Singles!BG204 -> UL | E12: =Singles!BH204 -> 524 | F12: =Singles!BI204 -> 517 | G12: =Singles!BJ204 -> 505 | H12: =Singles!BK204 -> 522 | I12: =Singles!BL204 -> 527 | J12: =Singles!BM204 -> 503 | L12: =Singles!BN11 -> 3098 | M12: =Singles!BO11 -> 503 | N12: =Singles!BP11 -> 2595.052752 | AI12: Sean Flavin
B13: 7 | C13: =Singles!BF206 -> Dave Boyle | D13: =Singles!BG206 -> DCU | E13: =Singles!BH206 -> 513 | F13: =Singles!BI206 -> 533 | G13: =Singles!BJ206 -> 522 | H13: =Singles!BK206 -> 527 | I13: =Singles!BL206 -> 493 | J13: =Singles!BM206 -> 480 | L13: =Singles!BN13 -> 3068 | M13: =Singles!BO13 -> 480 | N13: =Singles!BP13 -> 2588.053353 | AI13: Dave Boyle
B14: 8 | C14: =Singles!BF207 -> John Hally | D14: =Singles!BG207 -> UL | E14: =Singles!BH207 -> 512 | F14: =Singles!BI207 -> 488 | G14: =Singles!BJ207 -> 541 | H14: =Singles!BK207 -> 497 | I14: =Singles!BL207 -> 515 | J14: =Singles!BM207 -> 511 | L14: =Singles!BN14 -> 3064 | M14: =Singles!BO14 -> 488 | N14: =Singles!BP14 -> 2576.054151 | AI14: John Hally
B15: 9 | C15: =Singles!BF208 -> James Byrne | D15: =Singles!BG208 -> DIT | E15: =Singles!BH208 -> 499 | F15: =Singles!BI208 -> 476 | G15: =Singles!BJ208 -> 494 | H15: =Singles!BK208 -> 488 | I15: =Singles!BL208 -> 508 | J15: =Singles!BM208 -> 503 | L15: =Singles!BN15 -> 2968 | M15: =Singles!BO15 -> 476 | N15: =Singles!BP15 -> 2492.05085 | AI15: James Byrne
B16: 10 | C16: =Singles!BF209 -> Diego Coyle Diez | D16: =Singles!BG209 -> NUIM | E16: =Singles!BH209 -> 505 | F16: =Singles!BI209 -> 504 | G16: =Singles!BJ209 -> 496 | H16: =Singles!BK209 -> 445 | I16: =Singles!BL209 -> 487 | J16: =Singles!BM209 -> 470 | L16: =Singles!BN16 -> 2907 | M16: =Singles!BO16 -> 445 | N16: =Singles!BP16 -> 2462.05055 | AI16: Diego Coyle Diez
B17: 11 | C17: =Singles!BF211 -> Ian Kenna | D17: =Singles!BG211 -> ITC | E17: =Singles!BH211 -> 429 | F17: =Singles!BI211 -> 393 | G17: =Singles!BJ211 -> 484 | H17: =Singles!BK211 -> 510 | I17: =Singles!BL211 -> 474 | J17: =Singles!BM211 -> 526 | L17: =Singles!BN18 -> 2816 | M17: =Singles!BO18 -> 393 | N17: =Singles!BP18 -> 2423.051048 | AI17: Ian Kenna
B18: 12 | C18: =Singles!BF218 -> Simon Henleywillis | D18: =Singles!BG218 -> UCC | E18: =Singles!BH218 -> 495 | F18: =Singles!BI218 -> 489 | G18: =Singles!BJ218 -> 486 | H18: =Singles!BK218 -> 0 | I18: =Singles!BL218 -> 488 | J18: =Singles!BM218 -> 465 | L18: =Singles!BN25 -> 2423 | M18: =Singles!BO25 -> 0 | N18: =Singles!BP25 -> 2423.049549 | AI18: Simon Henleywillis
B19: 13 | C19: =Singles!BF219 -> Youcheng Pan | D19: =Singles!BG219 -> DIT | E19: =Singles!BH219 -> 399 | F19: =Singles!BI219 -> 0 | G19: =Singles!BJ219 -> 480 | H19: =Singles!BK219 -> 509 | I19: =Singles!BL219 -> 529 | J19: =Singles!BM219 -> 499 | L19: =Singles!BN26 -> 2416 | M19: =Singles!BO26 -> 0 | N19: =Singles!BP26 -> 2416.052951 | AI19: Youcheng Pan
B20: 14 | C20: =Singles!BF217 -> Stephen Masterson | D20: =Singles!BG217 -> UCD | E20: =Singles!BH217 -> 466 | F20: =Singles!BI217 -> 75 | G20: =Singles!BJ217 -> 473 | H20: =Singles!BK217 -> 488 | I20: =Singles!BL217 -> 461 | J20: =Singles!BM217 -> 526 | L20: =Singles!BN24 -> 2489 | M20: =Singles!BO24 -> 75 | N20: =Singles!BP24 -> 2414.048847 | AI20: Stephen Masterson
B21: 15 | C21: =Singles!BF212 -> Adin Middleton | D21: =Singles!BG212 -> ITC | E21: =Singles!BH212 -> 474 | F21: =Singles!BI212 -> 400 | G21: =Singles!BJ212 -> 467 | H21: =Singles!BK212 -> 496 | I21: =Singles!BL212 -> 489 | J21: =Singles!BM212 -> 484 | L21: =Singles!BN19 -> 2810 | M21: =Singles!BO19 -> 400 | N21: =Singles!BP19 -> 2410.049649 | AI21: Adin Middleton
